Workbook

Sheet Index

Sheet Infographic
B2: Women
B8: Body mass index (BMI, kg/m2)
D10: 1 | E10: 2 | F10: 3 | G10: 4 | H10: 5 | I10: 6 | J10: 7 | K10: 8 | L10: 9 | M10: 10 | O10: 1 | P10: 2 | Q10: 3 | R10: 4 | S10: 5 | T10: 6 | U10: 7 | V10: 8 | W10: 9 | X10: 10 | Z10: 1 | AA10: 2 | AB10: 3 | AC10: 4 | AD10: 5 | AE10: 6 | AF10: 7 | AG10: 8 | AH10: 9 | AI10: 10 | AK10: 1 | AL10: 2 | AM10: 3 | AN10: 4 | AO10: 5 | AP10: 6 | AQ10: 7 | AR10: 8 | AS10: 9 | AT10: 10
D11: 11 | E11: 12 | F11: 13 | G11: 14 | H11: 15 | I11: 16 | J11: 17 | K11: 18 | L11: 19 | M11: 20 | O11: 11 | P11: 12 | Q11: 13 | R11: 14 | S11: 15 | T11: 16 | U11: 17 | V11: 18 | W11: 19 | X11: 20 | Z11: 11 | AA11: 12 | AB11: 13 | AC11: 14 | AD11: 15 | AE11: 16 | AF11: 17 | AG11: 18 | AH11: 19 | AI11: 20 | AK11: 11 | AL11: 12 | AM11: 13 | AN11: 14 | AO11: 15 | AP11: 16 | AQ11: 17 | AR11: 18 | AS11: 19 | AT11: 20
D12: 21 | E12: 22 | F12: 23 | G12: 24 | H12: 25 | I12: 26 | J12: 27 | K12: 28 | L12: 29 | M12: 30 | O12: 21 | P12: 22 | Q12: 23 | R12: 24 | S12: 25 | T12: 26 | U12: 27 | V12: 28 | W12: 29 | X12: 30 | Z12: 21 | AA12: 22 | AB12: 23 | AC12: 24 | AD12: 25 | AE12: 26 | AF12: 27 | AG12: 28 | AH12: 29 | AI12: 30 | AK12: 21 | AL12: 22 | AM12: 23 | AN12: 24 | AO12: 25 | AP12: 26 | AQ12: 27 | AR12: 28 | AS12: 29 | AT12: 30
D13: 31 | E13: 32 | F13: 33 | G13: 34 | H13: 35 | I13: 36 | J13: 37 | K13: 38 | L13: 39 | M13: 40 | O13: 31 | P13: 32 | Q13: 33 | R13: 34 | S13: 35 | T13: 36 | U13: 37 | V13: 38 | W13: 39 | X13: 40 | Z13: 31 | AA13: 32 | AB13: 33 | AC13: 34 | AD13: 35 | AE13: 36 | AF13: 37 | AG13: 38 | AH13: 39 | AI13: 40 | AK13: 31 | AL13: 32 | AM13: 33 | AN13: 34 | AO13: 35 | AP13: 36 | AQ13: 37 | AR13: 38 | AS13: 39 | AT13: 40
D14: 41 | E14: 42 | F14: 43 | G14: 44 | H14: 45 | I14: 46 | J14: 47 | K14: 48 | L14: 49 | M14: 50 | O14: 41 | P14: 42 | Q14: 43 | R14: 44 | S14: 45 | T14: 46 | U14: 47 | V14: 48 | W14: 49 | X14: 50 | Z14: 41 | AA14: 42 | AB14: 43 | AC14: 44 | AD14: 45 | AE14: 46 | AF14: 47 | AG14: 48 | AH14: 49 | AI14: 50 | AK14: 41 | AL14: 42 | AM14: 43 | AN14: 44 | AO14: 45 | AP14: 46 | AQ14: 47 | AR14: 48 | AS14: 49 | AT14: 50
D15: 51 | E15: 52 | F15: 53 | G15: 54 | H15: 55 | I15: 56 | J15: 57 | K15: 58 | L15: 59 | M15: 60 | O15: 51 | P15: 52 | Q15: 53 | R15: 54 | S15: 55 | T15: 56 | U15: 57 | V15: 58 | W15: 59 | X15: 60 | Z15: 51 | AA15: 52 | AB15: 53 | AC15: 54 | AD15: 55 | AE15: 56 | AF15: 57 | AG15: 58 | AH15: 59 | AI15: 60 | AK15: 51 | AL15: 52 | AM15: 53 | AN15: 54 | AO15: 55 | AP15: 56 | AQ15: 57 | AR15: 58 | AS15: 59 | AT15: 60
D16: 61 | E16: 62 | F16: 63 | G16: 64 | H16: 65 | I16: 66 | J16: 67 | K16: 68 | L16: 69 | M16: 70 | O16: 61 | P16: 62 | Q16: 63 | R16: 64 | S16: 65 | T16: 66 | U16: 67 | V16: 68 | W16: 69 | X16: 70 | Z16: 61 | AA16: 62 | AB16: 63 | AC16: 64 | AD16: 65 | AE16: 66 | AF16: 67 | AG16: 68 | AH16: 69 | AI16: 70 | AK16: 61 | AL16: 62 | AM16: 63 | AN16: 64 | AO16: 65 | AP16: 66 | AQ16: 67 | AR16: 68 | AS16: 69 | AT16: 70
D17: 71 | E17: 72 | F17: 73 | G17: 74 | H17: 75 | I17: 76 | J17: 77 | K17: 78 | L17: 79 | M17: 80 | O17: 71 | P17: 72 | Q17: 73 | R17: 74 | S17: 75 | T17: 76 | U17: 77 | V17: 78 | W17: 79 | X17: 80 | Z17: 71 | AA17: 72 | AB17: 73 | AC17: 74 | AD17: 75 | AE17: 76 | AF17: 77 | AG17: 78 | AH17: 79 | AI17: 80 | AK17: 71 | AL17: 72 | AM17: 73 | AN17: 74 | AO17: 75 | AP17: 76 | AQ17: 77 | AR17: 78 | AS17: 79 | AT17: 80
D18: 81 | E18: 82 | F18: 83 | G18: 84 | H18: 85 | I18: 86 | J18: 87 | K18: 88 | L18: 89 | M18: 90 | O18: 81 | P18: 82 | Q18: 83 | R18: 84 | S18: 85 | T18: 86 | U18: 87 | V18: 88 | W18: 89 | X18: 90 | Z18: 81 | AA18: 82 | AB18: 83 | AC18: 84 | AD18: 85 | AE18: 86 | AF18: 87 | AG18: 88 | AH18: 89 | AI18: 90 | AK18: 81 | AL18: 82 | AM18: 83 | AN18: 84 | AO18: 85 | AP18: 86 | AQ18: 87 | AR18: 88 | AS18: 89 | AT18: 90
D19: 91 | E19: 92 | F19: 93 | G19: 94 | H19: 95 | I19: 96 | J19: 97 | K19: 98 | L19: 99 | M19: 100 | O19: 91 | P19: 92 | Q19: 93 | R19: 94 | S19: 95 | T19: 96 | U19: 97 | V19: 98 | W19: 99 | X19: 100 | Z19: 91 | AA19: 92 | AB19: 93 | AC19: 94 | AD19: 95 | AE19: 96 | AF19: 97 | AG19: 98 | AH19: 99 | AI19: 100 | AK19: 91 | AL19: 92 | AM19: 93 | AN19: 94 | AO19: 95 | AP19: 96 | AQ19: 97 | AR19: 98 | AS19: 99 | AT19: 100
D22: Underweight (BMI < 18.5) | O22: Normal range (18.5 ≥ BMI < 25) | Z22: Overweight, but not obese (25 ≥ BMI < 30) | AK22: Obese (BMI ≥ 30)
B24: Overweight extended BMI categories
D26: 1 | E26: 2 | F26: 3 | G26: 4 | H26: 5 | I26: 6 | J26: 7 | K26: 8 | L26: 9 | M26: 10 | O26: 1 | P26: 2 | Q26: 3 | R26: 4 | S26: 5 | T26: 6 | U26: 7 | V26: 8 | W26: 9 | X26: 10 | Z26: 1 | AA26: 2 | AB26: 3 | AC26: 4 | AD26: 5 | AE26: 6 | AF26: 7 | AG26: 8 | AH26: 9 | AI26: 10 | AK26: 1 | AL26: 2 | AM26: 3 | AN26: 4 | AO26: 5 | AP26: 6 | AQ26: 7 | AR26: 8 | AS26: 9 | AT26: 10
D27: 11 | E27: 12 | F27: 13 | G27: 14 | H27: 15 | I27: 16 | J27: 17 | K27: 18 | L27: 19 | M27: 20 | O27: 11 | P27: 12 | Q27: 13 | R27: 14 | S27: 15 | T27: 16 | U27: 17 | V27: 18 | W27: 19 | X27: 20 | Z27: 11 | AA27: 12 | AB27: 13 | AC27: 14 | AD27: 15 | AE27: 16 | AF27: 17 | AG27: 18 | AH27: 19 | AI27: 20 | AK27: 11 | AL27: 12 | AM27: 13 | AN27: 14 | AO27: 15 | AP27: 16 | AQ27: 17 | AR27: 18 | AS27: 19 | AT27: 20
D28: 21 | E28: 22 | F28: 23 | G28: 24 | H28: 25 | I28: 26 | J28: 27 | K28: 28 | L28: 29 | M28: 30 | O28: 21 | P28: 22 | Q28: 23 | R28: 24 | S28: 25 | T28: 26 | U28: 27 | V28: 28 | W28: 29 | X28: 30 | Z28: 21 | AA28: 22 | AB28: 23 | AC28: 24 | AD28: 25 | AE28: 26 | AF28: 27 | AG28: 28 | AH28: 29 | AI28: 30 | AK28: 21 | AL28: 22 | AM28: 23 | AN28: 24 | AO28: 25 | AP28: 26 | AQ28: 27 | AR28: 28 | AS28: 29 | AT28: 30
D29: 31 | E29: 32 | F29: 33 | G29: 34 | H29: 35 | I29: 36 | J29: 37 | K29: 38 | L29: 39 | M29: 40 | O29: 31 | P29: 32 | Q29: 33 | R29: 34 | S29: 35 | T29: 36 | U29: 37 | V29: 38 | W29: 39 | X29: 40 | Z29: 31 | AA29: 32 | AB29: 33 | AC29: 34 | AD29: 35 | AE29: 36 | AF29: 37 | AG29: 38 | AH29: 39 | AI29: 40 | AK29: 31 | AL29: 32 | AM29: 33 | AN29: 34 | AO29: 35 | AP29: 36 | AQ29: 37 | AR29: 38 | AS29: 39 | AT29: 40
D30: 41 | E30: 42 | F30: 43 | G30: 44 | H30: 45 | I30: 46 | J30: 47 | K30: 48 | L30: 49 | M30: 50 | O30: 41 | P30: 42 | Q30: 43 | R30: 44 | S30: 45 | T30: 46 | U30: 47 | V30: 48 | W30: 49 | X30: 50 | Z30: 41 | AA30: 42 | AB30: 43 | AC30: 44 | AD30: 45 | AE30: 46 | AF30: 47 | AG30: 48 | AH30: 49 | AI30: 50 | AK30: 41 | AL30: 42 | AM30: 43 | AN30: 44 | AO30: 45 | AP30: 46 | AQ30: 47 | AR30: 48 | AS30: 49 | AT30: 50
D31: 51 | E31: 52 | F31: 53 | G31: 54 | H31: 55 | I31: 56 | J31: 57 | K31: 58 | L31: 59 | M31: 60 | O31: 51 | P31: 52 | Q31: 53 | R31: 54 | S31: 55 | T31: 56 | U31: 57 | V31: 58 | W31: 59 | X31: 60 | Z31: 51 | AA31: 52 | AB31: 53 | AC31: 54 | AD31: 55 | AE31: 56 | AF31: 57 | AG31: 58 | AH31: 59 | AI31: 60 | AK31: 51 | AL31: 52 | AM31: 53 | AN31: 54 | AO31: 55 | AP31: 56 | AQ31: 57 | AR31: 58 | AS31: 59 | AT31: 60
D32: 61 | E32: 62 | F32: 63 | G32: 64 | H32: 65 | I32: 66 | J32: 67 | K32: 68 | L32: 69 | M32: 70 | O32: 61 | P32: 62 | Q32: 63 | R32: 64 | S32: 65 | T32: 66 | U32: 67 | V32: 68 | W32: 69 | X32: 70 | Z32: 61 | AA32: 62 | AB32: 63 | AC32: 64 | AD32: 65 | AE32: 66 | AF32: 67 | AG32: 68 | AH32: 69 | AI32: 70 | AK32: 61 | AL32: 62 | AM32: 63 | AN32: 64 | AO32: 65 | AP32: 66 | AQ32: 67 | AR32: 68 | AS32: 69 | AT32: 70
D33: 71 | E33: 72 | F33: 73 | G33: 74 | H33: 75 | I33: 76 | J33: 77 | K33: 78 | L33: 79 | M33: 80 | O33: 71 | P33: 72 | Q33: 73 | R33: 74 | S33: 75 | T33: 76 | U33: 77 | V33: 78 | W33: 79 | X33: 80 | Z33: 71 | AA33: 72 | AB33: 73 | AC33: 74 | AD33: 75 | AE33: 76 | AF33: 77 | AG33: 78 | AH33: 79 | AI33: 80 | AK33: 71 | AL33: 72 | AM33: 73 | AN33: 74 | AO33: 75 | AP33: 76 | AQ33: 77 | AR33: 78 | AS33: 79 | AT33: 80
D34: 81 | E34: 82 | F34: 83 | G34: 84 | H34: 85 | I34: 86 | J34: 87 | K34: 88 | L34: 89 | M34: 90 | O34: 81 | P34: 82 | Q34: 83 | R34: 84 | S34: 85 | T34: 86 | U34: 87 | V34: 88 | W34: 89 | X34: 90 | Z34: 81 | AA34: 82 | AB34: 83 | AC34: 84 | AD34: 85 | AE34: 86 | AF34: 87 | AG34: 88 | AH34: 89 | AI34: 90 | AK34: 81 | AL34: 82 | AM34: 83 | AN34: 84 | AO34: 85 | AP34: 86 | AQ34: 87 | AR34: 88 | AS34: 89 | AT34: 90
D35: 91 | E35: 92 | F35: 93 | G35: 94 | H35: 95 | I35: 96 | J35: 97 | K35: 98 | L35: 99 | M35: 100 | O35: 91 | P35: 92 | Q35: 93 | R35: 94 | S35: 95 | T35: 96 | U35: 97 | V35: 98 | W35: 99 | X35: 100 | Z35: 91 | AA35: 92 | AB35: 93 | AC35: 94 | AD35: 95 | AE35: 96 | AF35: 97 | AG35: 98 | AH35: 99 | AI35: 100 | AK35: 91 | AL35: 92 | AM35: 93 | AN35: 94 | AO35: 95 | AP35: 96 | AQ35: 97 | AR35: 98 | AS35: 99 | AT35: 100
D38: Overweight, but not obese (25 ≥ BMI < 30) | O38: Obese Class I (30 ≥ BMI < 35) | Z38: Obese Class II (35 ≥ BMI < 40) | AK38: Obese Class III (BMI ≥ 40)
B40: Take-away food or snack consumption
D42: 1 | E42: 2 | F42: 3 | G42: 4 | H42: 5 | I42: 6 | J42: 7 | K42: 8 | L42: 9 | M42: 10 | O42: 1 | P42: 2 | Q42: 3 | R42: 4 | S42: 5 | T42: 6 | U42: 7 | V42: 8 | W42: 9 | X42: 10 | Z42: 1 | AA42: 2 | AB42: 3 | AC42: 4 | AD42: 5 | AE42: 6 | AF42: 7 | AG42: 8 | AH42: 9 | AI42: 10 | AK42: 1 | AL42: 2 | AM42: 3 | AN42: 4 | AO42: 5 | AP42: 6 | AQ42: 7 | AR42: 8 | AS42: 9 | AT42: 10
D43: 11 | E43: 12 | F43: 13 | G43: 14 | H43: 15 | I43: 16 | J43: 17 | K43: 18 | L43: 19 | M43: 20 | O43: 11 | P43: 12 | Q43: 13 | R43: 14 | S43: 15 | T43: 16 | U43: 17 | V43: 18 | W43: 19 | X43: 20 | Z43: 11 | AA43: 12 | AB43: 13 | AC43: 14 | AD43: 15 | AE43: 16 | AF43: 17 | AG43: 18 | AH43: 19 | AI43: 20 | AK43: 11 | AL43: 12 | AM43: 13 | AN43: 14 | AO43: 15 | AP43: 16 | AQ43: 17 | AR43: 18 | AS43: 19 | AT43: 20
D44: 21 | E44: 22 | F44: 23 | G44: 24 | H44: 25 | I44: 26 | J44: 27 | K44: 28 | L44: 29 | M44: 30 | O44: 21 | P44: 22 | Q44: 23 | R44: 24 | S44: 25 | T44: 26 | U44: 27 | V44: 28 | W44: 29 | X44: 30 | Z44: 21 | AA44: 22 | AB44: 23 | AC44: 24 | AD44: 25 | AE44: 26 | AF44: 27 | AG44: 28 | AH44: 29 | AI44: 30 | AK44: 21 | AL44: 22 | AM44: 23 | AN44: 24 | AO44: 25 | AP44: 26 | AQ44: 27 | AR44: 28 | AS44: 29 | AT44: 30
D45: 31 | E45: 32 | F45: 33 | G45: 34 | H45: 35 | I45: 36 | J45: 37 | K45: 38 | L45: 39 | M45: 40 | O45: 31 | P45: 32 | Q45: 33 | R45: 34 | S45: 35 | T45: 36 | U45: 37 | V45: 38 | W45: 39 | X45: 40 | Z45: 31 | AA45: 32 | AB45: 33 | AC45: 34 | AD45: 35 | AE45: 36 | AF45: 37 | AG45: 38 | AH45: 39 | AI45: 40 | AK45: 31 | AL45: 32 | AM45: 33 | AN45: 34 | AO45: 35 | AP45: 36 | AQ45: 37 | AR45: 38 | AS45: 39 | AT45: 40
D46: 41 | E46: 42 | F46: 43 | G46: 44 | H46: 45 | I46: 46 | J46: 47 | K46: 48 | L46: 49 | M46: 50 | O46: 41 | P46: 42 | Q46: 43 | R46: 44 | S46: 45 | T46: 46 | U46: 47 | V46: 48 | W46: 49 | X46: 50 | Z46: 41 | AA46: 42 | AB46: 43 | AC46: 44 | AD46: 45 | AE46: 46 | AF46: 47 | AG46: 48 | AH46: 49 | AI46: 50 | AK46: 41 | AL46: 42 | AM46: 43 | AN46: 44 | AO46: 45 | AP46: 46 | AQ46: 47 | AR46: 48 | AS46: 49 | AT46: 50
D47: 51 | E47: 52 | F47: 53 | G47: 54 | H47: 55 | I47: 56 | J47: 57 | K47: 58 | L47: 59 | M47: 60 | O47: 51 | P47: 52 | Q47: 53 | R47: 54 | S47: 55 | T47: 56 | U47: 57 | V47: 58 | W47: 59 | X47: 60 | Z47: 51 | AA47: 52 | AB47: 53 | AC47: 54 | AD47: 55 | AE47: 56 | AF47: 57 | AG47: 58 | AH47: 59 | AI47: 60 | AK47: 51 | AL47: 52 | AM47: 53 | AN47: 54 | AO47: 55 | AP47: 56 | AQ47: 57 | AR47: 58 | AS47: 59 | AT47: 60
D48: 61 | E48: 62 | F48: 63 | G48: 64 | H48: 65 | I48: 66 | J48: 67 | K48: 68 | L48: 69 | M48: 70 | O48: 61 | P48: 62 | Q48: 63 | R48: 64 | S48: 65 | T48: 66 | U48: 67 | V48: 68 | W48: 69 | X48: 70 | Z48: 61 | AA48: 62 | AB48: 63 | AC48: 64 | AD48: 65 | AE48: 66 | AF48: 67 | AG48: 68 | AH48: 69 | AI48: 70 | AK48: 61 | AL48: 62 | AM48: 63 | AN48: 64 | AO48: 65 | AP48: 66 | AQ48: 67 | AR48: 68 | AS48: 69 | AT48: 70
D49: 71 | E49: 72 | F49: 73 | G49: 74 | H49: 75 | I49: 76 | J49: 77 | K49: 78 | L49: 79 | M49: 80 | O49: 71 | P49: 72 | Q49: 73 | R49: 74 | S49: 75 | T49: 76 | U49: 77 | V49: 78 | W49: 79 | X49: 80 | Z49: 71 | AA49: 72 | AB49: 73 | AC49: 74 | AD49: 75 | AE49: 76 | AF49: 77 | AG49: 78 | AH49: 79 | AI49: 80 | AK49: 71 | AL49: 72 | AM49: 73 | AN49: 74 | AO49: 75 | AP49: 76 | AQ49: 77 | AR49: 78 | AS49: 79 | AT49: 80
D50: 81 | E50: 82 | F50: 83 | G50: 84 | H50: 85 | I50: 86 | J50: 87 | K50: 88 | L50: 89 | M50: 90 | O50: 81 | P50: 82 | Q50: 83 | R50: 84 | S50: 85 | T50: 86 | U50: 87 | V50: 88 | W50: 89 | X50: 90 | Z50: 81 | AA50: 82 | AB50: 83 | AC50: 84 | AD50: 85 | AE50: 86 | AF50: 87 | AG50: 88 | AH50: 89 | AI50: 90 | AK50: 81 | AL50: 82 | AM50: 83 | AN50: 84 | AO50: 85 | AP50: 86 | AQ50: 87 | AR50: 88 | AS50: 89 | AT50: 90
D51: 91 | E51: 92 | F51: 93 | G51: 94 | H51: 95 | I51: 96 | J51: 97 | K51: 98 | L51: 99 | M51: 100 | O51: 91 | P51: 92 | Q51: 93 | R51: 94 | S51: 95 | T51: 96 | U51: 97 | V51: 98 | W51: 99 | X51: 100 | Z51: 91 | AA51: 92 | AB51: 93 | AC51: 94 | AD51: 95 | AE51: 96 | AF51: 97 | AG51: 98 | AH51: 99 | AI51: 100 | AK51: 91 | AL51: 92 | AM51: 93 | AN51: 94 | AO51: 95 | AP51: 96 | AQ51: 97 | AR51: 98 | AS51: 99 | AT51: 100
D54: Never | O54: ≤ 1 day/week | Z54: > 1 day/week
B56: Savoury or salty snack consumption
D58: 1 | E58: 2 | F58: 3 | G58: 4 | H58: 5 | I58: 6 | J58: 7 | K58: 8 | L58: 9 | M58: 10 | O58: 1 | P58: 2 | Q58: 3 | R58: 4 | S58: 5 | T58: 6 | U58: 7 | V58: 8 | W58: 9 | X58: 10 | Z58: 1 | AA58: 2 | AB58: 3 | AC58: 4 | AD58: 5 | AE58: 6 | AF58: 7 | AG58: 8 | AH58: 9 | AI58: 10 | AK58: 1 | AL58: 2 | AM58: 3 | AN58: 4 | AO58: 5 | AP58: 6 | AQ58: 7 | AR58: 8 | AS58: 9 | AT58: 10
D59: 11 | E59: 12 | F59: 13 | G59: 14 | H59: 15 | I59: 16 | J59: 17 | K59: 18 | L59: 19 | M59: 20 | O59: 11 | P59: 12 | Q59: 13 | R59: 14 | S59: 15 | T59: 16 | U59: 17 | V59: 18 | W59: 19 | X59: 20 | Z59: 11 | AA59: 12 | AB59: 13 | AC59: 14 | AD59: 15 | AE59: 16 | AF59: 17 | AG59: 18 | AH59: 19 | AI59: 20 | AK59: 11 | AL59: 12 | AM59: 13 | AN59: 14 | AO59: 15 | AP59: 16 | AQ59: 17 | AR59: 18 | AS59: 19 | AT59: 20
D60: 21 | E60: 22 | F60: 23 | G60: 24 | H60: 25 | I60: 26 | J60: 27 | K60: 28 | L60: 29 | M60: 30 | O60: 21 | P60: 22 | Q60: 23 | R60: 24 | S60: 25 | T60: 26 | U60: 27 | V60: 28 | W60: 29 | X60: 30 | Z60: 21 | AA60: 22 | AB60: 23 | AC60: 24 | AD60: 25 | AE60: 26 | AF60: 27 | AG60: 28 | AH60: 29 | AI60: 30 | AK60: 21 | AL60: 22 | AM60: 23 | AN60: 24 | AO60: 25 | AP60: 26 | AQ60: 27 | AR60: 28 | AS60: 29 | AT60: 30
D61: 31 | E61: 32 | F61: 33 | G61: 34 | H61: 35 | I61: 36 | J61: 37 | K61: 38 | L61: 39 | M61: 40 | O61: 31 | P61: 32 | Q61: 33 | R61: 34 | S61: 35 | T61: 36 | U61: 37 | V61: 38 | W61: 39 | X61: 40 | Z61: 31 | AA61: 32 | AB61: 33 | AC61: 34 | AD61: 35 | AE61: 36 | AF61: 37 | AG61: 38 | AH61: 39 | AI61: 40 | AK61: 31 | AL61: 32 | AM61: 33 | AN61: 34 | AO61: 35 | AP61: 36 | AQ61: 37 | AR61: 38 | AS61: 39 | AT61: 40
D62: 41 | E62: 42 | F62: 43 | G62: 44 | H62: 45 | I62: 46 | J62: 47 | K62: 48 | L62: 49 | M62: 50 | O62: 41 | P62: 42 | Q62: 43 | R62: 44 | S62: 45 | T62: 46 | U62: 47 | V62: 48 | W62: 49 | X62: 50 | Z62: 41 | AA62: 42 | AB62: 43 | AC62: 44 | AD62: 45 | AE62: 46 | AF62: 47 | AG62: 48 | AH62: 49 | AI62: 50 | AK62: 41 | AL62: 42 | AM62: 43 | AN62: 44 | AO62: 45 | AP62: 46 | AQ62: 47 | AR62: 48 | AS62: 49 | AT62: 50
D63: 51 | E63: 52 | F63: 53 | G63: 54 | H63: 55 | I63: 56 | J63: 57 | K63: 58 | L63: 59 | M63: 60 | O63: 51 | P63: 52 | Q63: 53 | R63: 54 | S63: 55 | T63: 56 | U63: 57 | V63: 58 | W63: 59 | X63: 60 | Z63: 51 | AA63: 52 | AB63: 53 | AC63: 54 | AD63: 55 | AE63: 56 | AF63: 57 | AG63: 58 | AH63: 59 | AI63: 60 | AK63: 51 | AL63: 52 | AM63: 53 | AN63: 54 | AO63: 55 | AP63: 56 | AQ63: 57 | AR63: 58 | AS63: 59 | AT63: 60
D64: 61 | E64: 62 | F64: 63 | G64: 64 | H64: 65 | I64: 66 | J64: 67 | K64: 68 | L64: 69 | M64: 70 | O64: 61 | P64: 62 | Q64: 63 | R64: 64 | S64: 65 | T64: 66 | U64: 67 | V64: 68 | W64: 69 | X64: 70 | Z64: 61 | AA64: 62 | AB64: 63 | AC64: 64 | AD64: 65 | AE64: 66 | AF64: 67 | AG64: 68 | AH64: 69 | AI64: 70 | AK64: 61 | AL64: 62 | AM64: 63 | AN64: 64 | AO64: 65 | AP64: 66 | AQ64: 67 | AR64: 68 | AS64: 69 | AT64: 70
D65: 71 | E65: 72 | F65: 73 | G65: 74 | H65: 75 | I65: 76 | J65: 77 | K65: 78 | L65: 79 | M65: 80 | O65: 71 | P65: 72 | Q65: 73 | R65: 74 | S65: 75 | T65: 76 | U65: 77 | V65: 78 | W65: 79 | X65: 80 | Z65: 71 | AA65: 72 | AB65: 73 | AC65: 74 | AD65: 75 | AE65: 76 | AF65: 77 | AG65: 78 | AH65: 79 | AI65: 80 | AK65: 71 | AL65: 72 | AM65: 73 | AN65: 74 | AO65: 75 | AP65: 76 | AQ65: 77 | AR65: 78 | AS65: 79 | AT65: 80
D66: 81 | E66: 82 | F66: 83 | G66: 84 | H66: 85 | I66: 86 | J66: 87 | K66: 88 | L66: 89 | M66: 90 | O66: 81 | P66: 82 | Q66: 83 | R66: 84 | S66: 85 | T66: 86 | U66: 87 | V66: 88 | W66: 89 | X66: 90 | Z66: 81 | AA66: 82 | AB66: 83 | AC66: 84 | AD66: 85 | AE66: 86 | AF66: 87 | AG66: 88 | AH66: 89 | AI66: 90 | AK66: 81 | AL66: 82 | AM66: 83 | AN66: 84 | AO66: 85 | AP66: 86 | AQ66: 87 | AR66: 88 | AS66: 89 | AT66: 90
D67: 91 | E67: 92 | F67: 93 | G67: 94 | H67: 95 | I67: 96 | J67: 97 | K67: 98 | L67: 99 | M67: 100 | O67: 91 | P67: 92 | Q67: 93 | R67: 94 | S67: 95 | T67: 96 | U67: 97 | V67: 98 | W67: 99 | X67: 100 | Z67: 91 | AA67: 92 | AB67: 93 | AC67: 94 | AD67: 95 | AE67: 96 | AF67: 97 | AG67: 98 | AH67: 99 | AI67: 100 | AK67: 91 | AL67: 92 | AM67: 93 | AN67: 94 | AO67: 95 | AP67: 96 | AQ67: 97 | AR67: 98 | AS67: 99 | AT67: 100
D70: Never | O70: ≤ 1 day/week | Z70: 2 days/week | AK70: 3+ days/week
B72: Sweet snack consumption
D74: 1 | E74: 2 | F74: 3 | G74: 4 | H74: 5 | I74: 6 | J74: 7 | K74: 8 | L74: 9 | M74: 10 | O74: 1 | P74: 2 | Q74: 3 | R74: 4 | S74: 5 | T74: 6 | U74: 7 | V74: 8 | W74: 9 | X74: 10 | Z74: 1 | AA74: 2 | AB74: 3 | AC74: 4 | AD74: 5 | AE74: 6 | AF74: 7 | AG74: 8 | AH74: 9 | AI74: 10 | AK74: 1 | AL74: 2 | AM74: 3 | AN74: 4 | AO74: 5 | AP74: 6 | AQ74: 7 | AR74: 8 | AS74: 9 | AT74: 10
D75: 11 | E75: 12 | F75: 13 | G75: 14 | H75: 15 | I75: 16 | J75: 17 | K75: 18 | L75: 19 | M75: 20 | O75: 11 | P75: 12 | Q75: 13 | R75: 14 | S75: 15 | T75: 16 | U75: 17 | V75: 18 | W75: 19 | X75: 20 | Z75: 11 | AA75: 12 | AB75: 13 | AC75: 14 | AD75: 15 | AE75: 16 | AF75: 17 | AG75: 18 | AH75: 19 | AI75: 20 | AK75: 11 | AL75: 12 | AM75: 13 | AN75: 14 | AO75: 15 | AP75: 16 | AQ75: 17 | AR75: 18 | AS75: 19 | AT75: 20
D76: 21 | E76: 22 | F76: 23 | G76: 24 | H76: 25 | I76: 26 | J76: 27 | K76: 28 | L76: 29 | M76: 30 | O76: 21 | P76: 22 | Q76: 23 | R76: 24 | S76: 25 | T76: 26 | U76: 27 | V76: 28 | W76: 29 | X76: 30 | Z76: 21 | AA76: 22 | AB76: 23 | AC76: 24 | AD76: 25 | AE76: 26 | AF76: 27 | AG76: 28 | AH76: 29 | AI76: 30 | AK76: 21 | AL76: 22 | AM76: 23 | AN76: 24 | AO76: 25 | AP76: 26 | AQ76: 27 | AR76: 28 | AS76: 29 | AT76: 30
D77: 31 | E77: 32 | F77: 33 | G77: 34 | H77: 35 | I77: 36 | J77: 37 | K77: 38 | L77: 39 | M77: 40 | O77: 31 | P77: 32 | Q77: 33 | R77: 34 | S77: 35 | T77: 36 | U77: 37 | V77: 38 | W77: 39 | X77: 40 | Z77: 31 | AA77: 32 | AB77: 33 | AC77: 34 | AD77: 35 | AE77: 36 | AF77: 37 | AG77: 38 | AH77: 39 | AI77: 40 | AK77: 31 | AL77: 32 | AM77: 33 | AN77: 34 | AO77: 35 | AP77: 36 | AQ77: 37 | AR77: 38 | AS77: 39 | AT77: 40
D78: 41 | E78: 42 | F78: 43 | G78: 44 | H78: 45 | I78: 46 | J78: 47 | K78: 48 | L78: 49 | M78: 50 | O78: 41 | P78: 42 | Q78: 43 | R78: 44 | S78: 45 | T78: 46 | U78: 47 | V78: 48 | W78: 49 | X78: 50 | Z78: 41 | AA78: 42 | AB78: 43 | AC78: 44 | AD78: 45 | AE78: 46 | AF78: 47 | AG78: 48 | AH78: 49 | AI78: 50 | AK78: 41 | AL78: 42 | AM78: 43 | AN78: 44 | AO78: 45 | AP78: 46 | AQ78: 47 | AR78: 48 | AS78: 49 | AT78: 50
D79: 51 | E79: 52 | F79: 53 | G79: 54 | H79: 55 | I79: 56 | J79: 57 | K79: 58 | L79: 59 | M79: 60 | O79: 51 | P79: 52 | Q79: 53 | R79: 54 | S79: 55 | T79: 56 | U79: 57 | V79: 58 | W79: 59 | X79: 60 | Z79: 51 | AA79: 52 | AB79: 53 | AC79: 54 | AD79: 55 | AE79: 56 | AF79: 57 | AG79: 58 | AH79: 59 | AI79: 60 | AK79: 51 | AL79: 52 | AM79: 53 | AN79: 54 | AO79: 55 | AP79: 56 | AQ79: 57 | AR79: 58 | AS79: 59 | AT79: 60
D80: 61 | E80: 62 | F80: 63 | G80: 64 | H80: 65 | I80: 66 | J80: 67 | K80: 68 | L80: 69 | M80: 70 | O80: 61 | P80: 62 | Q80: 63 | R80: 64 | S80: 65 | T80: 66 | U80: 67 | V80: 68 | W80: 69 | X80: 70 | Z80: 61 | AA80: 62 | AB80: 63 | AC80: 64 | AD80: 65 | AE80: 66 | AF80: 67 | AG80: 68 | AH80: 69 | AI80: 70 | AK80: 61 | AL80: 62 | AM80: 63 | AN80: 64 | AO80: 65 | AP80: 66 | AQ80: 67 | AR80: 68 | AS80: 69 | AT80: 70
D81: 71 | E81: 72 | F81: 73 | G81: 74 | H81: 75 | I81: 76 | J81: 77 | K81: 78 | L81: 79 | M81: 80 | O81: 71 | P81: 72 | Q81: 73 | R81: 74 | S81: 75 | T81: 76 | U81: 77 | V81: 78 | W81: 79 | X81: 80 | Z81: 71 | AA81: 72 | AB81: 73 | AC81: 74 | AD81: 75 | AE81: 76 | AF81: 77 | AG81: 78 | AH81: 79 | AI81: 80 | AK81: 71 | AL81: 72 | AM81: 73 | AN81: 74 | AO81: 75 | AP81: 76 | AQ81: 77 | AR81: 78 | AS81: 79 | AT81: 80
D82: 81 | E82: 82 | F82: 83 | G82: 84 | H82: 85 | I82: 86 | J82: 87 | K82: 88 | L82: 89 | M82: 90 | O82: 81 | P82: 82 | Q82: 83 | R82: 84 | S82: 85 | T82: 86 | U82: 87 | V82: 88 | W82: 89 | X82: 90 | Z82: 81 | AA82: 82 | AB82: 83 | AC82: 84 | AD82: 85 | AE82: 86 | AF82: 87 | AG82: 88 | AH82: 89 | AI82: 90 | AK82: 81 | AL82: 82 | AM82: 83 | AN82: 84 | AO82: 85 | AP82: 86 | AQ82: 87 | AR82: 88 | AS82: 89 | AT82: 90
D83: 91 | E83: 92 | F83: 93 | G83: 94 | H83: 95 | I83: 96 | J83: 97 | K83: 98 | L83: 99 | M83: 100 | O83: 91 | P83: 92 | Q83: 93 | R83: 94 | S83: 95 | T83: 96 | U83: 97 | V83: 98 | W83: 99 | X83: 100 | Z83: 91 | AA83: 92 | AB83: 93 | AC83: 94 | AD83: 95 | AE83: 96 | AF83: 97 | AG83: 98 | AH83: 99 | AI83: 100 | AK83: 91 | AL83: 92 | AM83: 93 | AN83: 94 | AO83: 95 | AP83: 96 | AQ83: 97 | AR83: 98 | AS83: 99 | AT83: 100
D86: Never | O86: ≤ 1 day/week | Z86: 2 days/week | AK86: 3+ days/week
B88: Compliance with physical activity guidelines
D90: 1 | E90: 2 | F90: 3 | G90: 4 | H90: 5 | I90: 6 | J90: 7 | K90: 8 | L90: 9 | M90: 10 | O90: 1 | P90: 2 | Q90: 3 | R90: 4 | S90: 5 | T90: 6 | U90: 7 | V90: 8 | W90: 9 | X90: 10 | Z90: 1 | AA90: 2 | AB90: 3 | AC90: 4 | AD90: 5 | AE90: 6 | AF90: 7 | AG90: 8 | AH90: 9 | AI90: 10 | AK90: 1 | AL90: 2 | AM90: 3 | AN90: 4 | AO90: 5 | AP90: 6 | AQ90: 7 | AR90: 8 | AS90: 9 | AT90: 10
D91: 11 | E91: 12 | F91: 13 | G91: 14 | H91: 15 | I91: 16 | J91: 17 | K91: 18 | L91: 19 | M91: 20 | O91: 11 | P91: 12 | Q91: 13 | R91: 14 | S91: 15 | T91: 16 | U91: 17 | V91: 18 | W91: 19 | X91: 20 | Z91: 11 | AA91: 12 | AB91: 13 | AC91: 14 | AD91: 15 | AE91: 16 | AF91: 17 | AG91: 18 | AH91: 19 | AI91: 20 | AK91: 11 | AL91: 12 | AM91: 13 | AN91: 14 | AO91: 15 | AP91: 16 | AQ91: 17 | AR91: 18 | AS91: 19 | AT91: 20
D92: 21 | E92: 22 | F92: 23 | G92: 24 | H92: 25 | I92: 26 | J92: 27 | K92: 28 | L92: 29 | M92: 30 | O92: 21 | P92: 22 | Q92: 23 | R92: 24 | S92: 25 | T92: 26 | U92: 27 | V92: 28 | W92: 29 | X92: 30 | Z92: 21 | AA92: 22 | AB92: 23 | AC92: 24 | AD92: 25 | AE92: 26 | AF92: 27 | AG92: 28 | AH92: 29 | AI92: 30 | AK92: 21 | AL92: 22 | AM92: 23 | AN92: 24 | AO92: 25 | AP92: 26 | AQ92: 27 | AR92: 28 | AS92: 29 | AT92: 30
D93: 31 | E93: 32 | F93: 33 | G93: 34 | H93: 35 | I93: 36 | J93: 37 | K93: 38 | L93: 39 | M93: 40 | O93: 31 | P93: 32 | Q93: 33 | R93: 34 | S93: 35 | T93: 36 | U93: 37 | V93: 38 | W93: 39 | X93: 40 | Z93: 31 | AA93: 32 | AB93: 33 | AC93: 34 | AD93: 35 | AE93: 36 | AF93: 37 | AG93: 38 | AH93: 39 | AI93: 40 | AK93: 31 | AL93: 32 | AM93: 33 | AN93: 34 | AO93: 35 | AP93: 36 | AQ93: 37 | AR93: 38 | AS93: 39 | AT93: 40
D94: 41 | E94: 42 | F94: 43 | G94: 44 | H94: 45 | I94: 46 | J94: 47 | K94: 48 | L94: 49 | M94: 50 | O94: 41 | P94: 42 | Q94: 43 | R94: 44 | S94: 45 | T94: 46 | U94: 47 | V94: 48 | W94: 49 | X94: 50 | Z94: 41 | AA94: 42 | AB94: 43 | AC94: 44 | AD94: 45 | AE94: 46 | AF94: 47 | AG94: 48 | AH94: 49 | AI94: 50 | AK94: 41 | AL94: 42 | AM94: 43 | AN94: 44 | AO94: 45 | AP94: 46 | AQ94: 47 | AR94: 48 | AS94: 49 | AT94: 50
D95: 51 | E95: 52 | F95: 53 | G95: 54 | H95: 55 | I95: 56 | J95: 57 | K95: 58 | L95: 59 | M95: 60 | O95: 51 | P95: 52 | Q95: 53 | R95: 54 | S95: 55 | T95: 56 | U95: 57 | V95: 58 | W95: 59 | X95: 60 | Z95: 51 | AA95: 52 | AB95: 53 | AC95: 54 | AD95: 55 | AE95: 56 | AF95: 57 | AG95: 58 | AH95: 59 | AI95: 60 | AK95: 51 | AL95: 52 | AM95: 53 | AN95: 54 | AO95: 55 | AP95: 56 | AQ95: 57 | AR95: 58 | AS95: 59 | AT95: 60
D96: 61 | E96: 62 | F96: 63 | G96: 64 | H96: 65 | I96: 66 | J96: 67 | K96: 68 | L96: 69 | M96: 70 | O96: 61 | P96: 62 | Q96: 63 | R96: 64 | S96: 65 | T96: 66 | U96: 67 | V96: 68 | W96: 69 | X96: 70 | Z96: 61 | AA96: 62 | AB96: 63 | AC96: 64 | AD96: 65 | AE96: 66 | AF96: 67 | AG96: 68 | AH96: 69 | AI96: 70 | AK96: 61 | AL96: 62 | AM96: 63 | AN96: 64 | AO96: 65 | AP96: 66 | AQ96: 67 | AR96: 68 | AS96: 69 | AT96: 70
D97: 71 | E97: 72 | F97: 73 | G97: 74 | H97: 75 | I97: 76 | J97: 77 | K97: 78 | L97: 79 | M97: 80 | O97: 71 | P97: 72 | Q97: 73 | R97: 74 | S97: 75 | T97: 76 | U97: 77 | V97: 78 | W97: 79 | X97: 80 | Z97: 71 | AA97: 72 | AB97: 73 | AC97: 74 | AD97: 75 | AE97: 76 | AF97: 77 | AG97: 78 | AH97: 79 | AI97: 80 | AK97: 71 | AL97: 72 | AM97: 73 | AN97: 74 | AO97: 75 | AP97: 76 | AQ97: 77 | AR97: 78 | AS97: 79 | AT97: 80
D98: 81 | E98: 82 | F98: 83 | G98: 84 | H98: 85 | I98: 86 | J98: 87 | K98: 88 | L98: 89 | M98: 90 | O98: 81 | P98: 82 | Q98: 83 | R98: 84 | S98: 85 | T98: 86 | U98: 87 | V98: 88 | W98: 89 | X98: 90 | Z98: 81 | AA98: 82 | AB98: 83 | AC98: 84 | AD98: 85 | AE98: 86 | AF98: 87 | AG98: 88 | AH98: 89 | AI98: 90 | AK98: 81 | AL98: 82 | AM98: 83 | AN98: 84 | AO98: 85 | AP98: 86 | AQ98: 87 | AR98: 88 | AS98: 89 | AT98: 90
D99: 91 | E99: 92 | F99: 93 | G99: 94 | H99: 95 | I99: 96 | J99: 97 | K99: 98 | L99: 99 | M99: 100 | O99: 91 | P99: 92 | Q99: 93 | R99: 94 | S99: 95 | T99: 96 | U99: 97 | V99: 98 | W99: 99 | X99: 100 | Z99: 91 | AA99: 92 | AB99: 93 | AC99: 94 | AD99: 95 | AE99: 96 | AF99: 97 | AG99: 98 | AH99: 99 | AI99: 100 | AK99: 91 | AL99: 92 | AM99: 93 | AN99: 94 | AO99: 95 | AP99: 96 | AQ99: 97 | AR99: 98 | AS99: 99 | AT99: 100
D102: Met guidelines | O102: Insufficient | Z102: Sedentary
B104: Time spent sitting on a typical weekday
D106: 1 | E106: 2 | F106: 3 | G106: 4 | H106: 5 | I106: 6 | J106: 7 | K106: 8 | L106: 9 | M106: 10 | O106: 1 | P106: 2 | Q106: 3 | R106: 4 | S106: 5 | T106: 6 | U106: 7 | V106: 8 | W106: 9 | X106: 10 | Z106: 1 | AA106: 2 | AB106: 3 | AC106: 4 | AD106: 5 | AE106: 6 | AF106: 7 | AG106: 8 | AH106: 9 | AI106: 10 | AK106: 1 | AL106: 2 | AM106: 3 | AN106: 4 | AO106: 5 | AP106: 6 | AQ106: 7 | AR106: 8 | AS106: 9 | AT106: 10
D107: 11 | E107: 12 | F107: 13 | G107: 14 | H107: 15 | I107: 16 | J107: 17 | K107: 18 | L107: 19 | M107: 20 | O107: 11 | P107: 12 | Q107: 13 | R107: 14 | S107: 15 | T107: 16 | U107: 17 | V107: 18 | W107: 19 | X107: 20 | Z107: 11 | AA107: 12 | AB107: 13 | AC107: 14 | AD107: 15 | AE107: 16 | AF107: 17 | AG107: 18 | AH107: 19 | AI107: 20 | AK107: 11 | AL107: 12 | AM107: 13 | AN107: 14 | AO107: 15 | AP107: 16 | AQ107: 17 | AR107: 18 | AS107: 19 | AT107: 20
D108: 21 | E108: 22 | F108: 23 | G108: 24 | H108: 25 | I108: 26 | J108: 27 | K108: 28 | L108: 29 | M108: 30 | O108: 21 | P108: 22 | Q108: 23 | R108: 24 | S108: 25 | T108: 26 | U108: 27 | V108: 28 | W108: 29 | X108: 30 | Z108: 21 | AA108: 22 | AB108: 23 | AC108: 24 | AD108: 25 | AE108: 26 | AF108: 27 | AG108: 28 | AH108: 29 | AI108: 30 | AK108: 21 | AL108: 22 | AM108: 23 | AN108: 24 | AO108: 25 | AP108: 26 | AQ108: 27 | AR108: 28 | AS108: 29 | AT108: 30
D109: 31 | E109: 32 | F109: 33 | G109: 34 | H109: 35 | I109: 36 | J109: 37 | K109: 38 | L109: 39 | M109: 40 | O109: 31 | P109: 32 | Q109: 33 | R109: 34 | S109: 35 | T109: 36 | U109: 37 | V109: 38 | W109: 39 | X109: 40 | Z109: 31 | AA109: 32 | AB109: 33 | AC109: 34 | AD109: 35 | AE109: 36 | AF109: 37 | AG109: 38 | AH109: 39 | AI109: 40 | AK109: 31 | AL109: 32 | AM109: 33 | AN109: 34 | AO109: 35 | AP109: 36 | AQ109: 37 | AR109: 38 | AS109: 39 | AT109: 40
D110: 41 | E110: 42 | F110: 43 | G110: 44 | H110: 45 | I110: 46 | J110: 47 | K110: 48 | L110: 49 | M110: 50 | O110: 41 | P110: 42 | Q110: 43 | R110: 44 | S110: 45 | T110: 46 | U110: 47 | V110: 48 | W110: 49 | X110: 50 | Z110: 41 | AA110: 42 | AB110: 43 | AC110: 44 | AD110: 45 | AE110: 46 | AF110: 47 | AG110: 48 | AH110: 49 | AI110: 50 | AK110: 41 | AL110: 42 | AM110: 43 | AN110: 44 | AO110: 45 | AP110: 46 | AQ110: 47 | AR110: 48 | AS110: 49 | AT110: 50
D111: 51 | E111: 52 | F111: 53 | G111: 54 | H111: 55 | I111: 56 | J111: 57 | K111: 58 | L111: 59 | M111: 60 | O111: 51 | P111: 52 | Q111: 53 | R111: 54 | S111: 55 | T111: 56 | U111: 57 | V111: 58 | W111: 59 | X111: 60 | Z111: 51 | AA111: 52 | AB111: 53 | AC111: 54 | AD111: 55 | AE111: 56 | AF111: 57 | AG111: 58 | AH111: 59 | AI111: 60 | AK111: 51 | AL111: 52 | AM111: 53 | AN111: 54 | AO111: 55 | AP111: 56 | AQ111: 57 | AR111: 58 | AS111: 59 | AT111: 60
D112: 61 | E112: 62 | F112: 63 | G112: 64 | H112: 65 | I112: 66 | J112: 67 | K112: 68 | L112: 69 | M112: 70 | O112: 61 | P112: 62 | Q112: 63 | R112: 64 | S112: 65 | T112: 66 | U112: 67 | V112: 68 | W112: 69 | X112: 70 | Z112: 61 | AA112: 62 | AB112: 63 | AC112: 64 | AD112: 65 | AE112: 66 | AF112: 67 | AG112: 68 | AH112: 69 | AI112: 70 | AK112: 61 | AL112: 62 | AM112: 63 | AN112: 64 | AO112: 65 | AP112: 66 | AQ112: 67 | AR112: 68 | AS112: 69 | AT112: 70
D113: 71 | E113: 72 | F113: 73 | G113: 74 | H113: 75 | I113: 76 | J113: 77 | K113: 78 | L113: 79 | M113: 80 | O113: 71 | P113: 72 | Q113: 73 | R113: 74 | S113: 75 | T113: 76 | U113: 77 | V113: 78 | W113: 79 | X113: 80 | Z113: 71 | AA113: 72 | AB113: 73 | AC113: 74 | AD113: 75 | AE113: 76 | AF113: 77 | AG113: 78 | AH113: 79 | AI113: 80 | AK113: 71 | AL113: 72 | AM113: 73 | AN113: 74 | AO113: 75 | AP113: 76 | AQ113: 77 | AR113: 78 | AS113: 79 | AT113: 80
D114: 81 | E114: 82 | F114: 83 | G114: 84 | H114: 85 | I114: 86 | J114: 87 | K114: 88 | L114: 89 | M114: 90 | O114: 81 | P114: 82 | Q114: 83 | R114: 84 | S114: 85 | T114: 86 | U114: 87 | V114: 88 | W114: 89 | X114: 90 | Z114: 81 | AA114: 82 | AB114: 83 | AC114: 84 | AD114: 85 | AE114: 86 | AF114: 87 | AG114: 88 | AH114: 89 | AI114: 90 | AK114: 81 | AL114: 82 | AM114: 83 | AN114: 84 | AO114: 85 | AP114: 86 | AQ114: 87 | AR114: 88 | AS114: 89 | AT114: 90
D115: 91 | E115: 92 | F115: 93 | G115: 94 | H115: 95 | I115: 96 | J115: 97 | K115: 98 | L115: 99 | M115: 100 | O115: 91 | P115: 92 | Q115: 93 | R115: 94 | S115: 95 | T115: 96 | U115: 97 | V115: 98 | W115: 99 | X115: 100 | Z115: 91 | AA115: 92 | AB115: 93 | AC115: 94 | AD115: 95 | AE115: 96 | AF115: 97 | AG115: 98 | AH115: 99 | AI115: 100 | AK115: 91 | AL115: 92 | AM115: 93 | AN115: 94 | AO115: 95 | AP115: 96 | AQ115: 97 | AR115: 98 | AS115: 99 | AT115: 100
D118: 4 to < 6 hours | O118: 6 to < 8 hours | Z118: ≥ 8 hours
B120: Time spent sitting on a typical weekend day
D122: 1 | E122: 2 | F122: 3 | G122: 4 | H122: 5 | I122: 6 | J122: 7 | K122: 8 | L122: 9 | M122: 10 | O122: 1 | P122: 2 | Q122: 3 | R122: 4 | S122: 5 | T122: 6 | U122: 7 | V122: 8 | W122: 9 | X122: 10 | Z122: 1 | AA122: 2 | AB122: 3 | AC122: 4 | AD122: 5 | AE122: 6 | AF122: 7 | AG122: 8 | AH122: 9 | AI122: 10 | AK122: 1 | AL122: 2 | AM122: 3 | AN122: 4 | AO122: 5 | AP122: 6 | AQ122: 7 | AR122: 8 | AS122: 9 | AT122: 10
D123: 11 | E123: 12 | F123: 13 | G123: 14 | H123: 15 | I123: 16 | J123: 17 | K123: 18 | L123: 19 | M123: 20 | O123: 11 | P123: 12 | Q123: 13 | R123: 14 | S123: 15 | T123: 16 | U123: 17 | V123: 18 | W123: 19 | X123: 20 | Z123: 11 | AA123: 12 | AB123: 13 | AC123: 14 | AD123: 15 | AE123: 16 | AF123: 17 | AG123: 18 | AH123: 19 | AI123: 20 | AK123: 11 | AL123: 12 | AM123: 13 | AN123: 14 | AO123: 15 | AP123: 16 | AQ123: 17 | AR123: 18 | AS123: 19 | AT123: 20
D124: 21 | E124: 22 | F124: 23 | G124: 24 | H124: 25 | I124: 26 | J124: 27 | K124: 28 | L124: 29 | M124: 30 | O124: 21 | P124: 22 | Q124: 23 | R124: 24 | S124: 25 | T124: 26 | U124: 27 | V124: 28 | W124: 29 | X124: 30 | Z124: 21 | AA124: 22 | AB124: 23 | AC124: 24 | AD124: 25 | AE124: 26 | AF124: 27 | AG124: 28 | AH124: 29 | AI124: 30 | AK124: 21 | AL124: 22 | AM124: 23 | AN124: 24 | AO124: 25 | AP124: 26 | AQ124: 27 | AR124: 28 | AS124: 29 | AT124: 30
D125: 31 | E125: 32 | F125: 33 | G125: 34 | H125: 35 | I125: 36 | J125: 37 | K125: 38 | L125: 39 | M125: 40 | O125: 31 | P125: 32 | Q125: 33 | R125: 34 | S125: 35 | T125: 36 | U125: 37 | V125: 38 | W125: 39 | X125: 40 | Z125: 31 | AA125: 32 | AB125: 33 | AC125: 34 | AD125: 35 | AE125: 36 | AF125: 37 | AG125: 38 | AH125: 39 | AI125: 40 | AK125: 31 | AL125: 32 | AM125: 33 | AN125: 34 | AO125: 35 | AP125: 36 | AQ125: 37 | AR125: 38 | AS125: 39 | AT125: 40
D126: 41 | E126: 42 | F126: 43 | G126: 44 | H126: 45 | I126: 46 | J126: 47 | K126: 48 | L126: 49 | M126: 50 | O126: 41 | P126: 42 | Q126: 43 | R126: 44 | S126: 45 | T126: 46 | U126: 47 | V126: 48 | W126: 49 | X126: 50 | Z126: 41 | AA126: 42 | AB126: 43 | AC126: 44 | AD126: 45 | AE126: 46 | AF126: 47 | AG126: 48 | AH126: 49 | AI126: 50 | AK126: 41 | AL126: 42 | AM126: 43 | AN126: 44 | AO126: 45 | AP126: 46 | AQ126: 47 | AR126: 48 | AS126: 49 | AT126: 50
D127: 51 | E127: 52 | F127: 53 | G127: 54 | H127: 55 | I127: 56 | J127: 57 | K127: 58 | L127: 59 | M127: 60 | O127: 51 | P127: 52 | Q127: 53 | R127: 54 | S127: 55 | T127: 56 | U127: 57 | V127: 58 | W127: 59 | X127: 60 | Z127: 51 | AA127: 52 | AB127: 53 | AC127: 54 | AD127: 55 | AE127: 56 | AF127: 57 | AG127: 58 | AH127: 59 | AI127: 60 | AK127: 51 | AL127: 52 | AM127: 53 | AN127: 54 | AO127: 55 | AP127: 56 | AQ127: 57 | AR127: 58 | AS127: 59 | AT127: 60
D128: 61 | E128: 62 | F128: 63 | G128: 64 | H128: 65 | I128: 66 | J128: 67 | K128: 68 | L128: 69 | M128: 70 | O128: 61 | P128: 62 | Q128: 63 | R128: 64 | S128: 65 | T128: 66 | U128: 67 | V128: 68 | W128: 69 | X128: 70 | Z128: 61 | AA128: 62 | AB128: 63 | AC128: 64 | AD128: 65 | AE128: 66 | AF128: 67 | AG128: 68 | AH128: 69 | AI128: 70 | AK128: 61 | AL128: 62 | AM128: 63 | AN128: 64 | AO128: 65 | AP128: 66 | AQ128: 67 | AR128: 68 | AS128: 69 | AT128: 70
D129: 71 | E129: 72 | F129: 73 | G129: 74 | H129: 75 | I129: 76 | J129: 77 | K129: 78 | L129: 79 | M129: 80 | O129: 71 | P129: 72 | Q129: 73 | R129: 74 | S129: 75 | T129: 76 | U129: 77 | V129: 78 | W129: 79 | X129: 80 | Z129: 71 | AA129: 72 | AB129: 73 | AC129: 74 | AD129: 75 | AE129: 76 | AF129: 77 | AG129: 78 | AH129: 79 | AI129: 80 | AK129: 71 | AL129: 72 | AM129: 73 | AN129: 74 | AO129: 75 | AP129: 76 | AQ129: 77 | AR129: 78 | AS129: 79 | AT129: 80
D130: 81 | E130: 82 | F130: 83 | G130: 84 | H130: 85 | I130: 86 | J130: 87 | K130: 88 | L130: 89 | M130: 90 | O130: 81 | P130: 82 | Q130: 83 | R130: 84 | S130: 85 | T130: 86 | U130: 87 | V130: 88 | W130: 89 | X130: 90 | Z130: 81 | AA130: 82 | AB130: 83 | AC130: 84 | AD130: 85 | AE130: 86 | AF130: 87 | AG130: 88 | AH130: 89 | AI130: 90 | AK130: 81 | AL130: 82 | AM130: 83 | AN130: 84 | AO130: 85 | AP130: 86 | AQ130: 87 | AR130: 88 | AS130: 89 | AT130: 90
D131: 91 | E131: 92 | F131: 93 | G131: 94 | H131: 95 | I131: 96 | J131: 97 | K131: 98 | L131: 99 | M131: 100 | O131: 91 | P131: 92 | Q131: 93 | R131: 94 | S131: 95 | T131: 96 | U131: 97 | V131: 98 | W131: 99 | X131: 100 | Z131: 91 | AA131: 92 | AB131: 93 | AC131: 94 | AD131: 95 | AE131: 96 | AF131: 97 | AG131: 98 | AH131: 99 | AI131: 100 | AK131: 91 | AL131: 92 | AM131: 93 | AN131: 94 | AO131: 95 | AP131: 96 | AQ131: 97 | AR131: 98 | AS131: 99 | AT131: 100
D134: 4 to < 6 hours | O134: 6 to < 8 hours | Z134: ≥ 8 hours
B136: Compliance with fruit and vegetable consumption guidelines
D138: 1 | E138: 2 | F138: 3 | G138: 4 | H138: 5 | I138: 6 | J138: 7 | K138: 8 | L138: 9 | M138: 10 | O138: 1 | P138: 2 | Q138: 3 | R138: 4 | S138: 5 | T138: 6 | U138: 7 | V138: 8 | W138: 9 | X138: 10
D139: 11 | E139: 12 | F139: 13 | G139: 14 | H139: 15 | I139: 16 | J139: 17 | K139: 18 | L139: 19 | M139: 20 | O139: 11 | P139: 12 | Q139: 13 | R139: 14 | S139: 15 | T139: 16 | U139: 17 | V139: 18 | W139: 19 | X139: 20
D140: 21 | E140: 22 | F140: 23 | G140: 24 | H140: 25 | I140: 26 | J140: 27 | K140: 28 | L140: 29 | M140: 30 | O140: 21 | P140: 22 | Q140: 23 | R140: 24 | S140: 25 | T140: 26 | U140: 27 | V140: 28 | W140: 29 | X140: 30
D141: 31 | E141: 32 | F141: 33 | G141: 34 | H141: 35 | I141: 36 | J141: 37 | K141: 38 | L141: 39 | M141: 40 | O141: 31 | P141: 32 | Q141: 33 | R141: 34 | S141: 35 | T141: 36 | U141: 37 | V141: 38 | W141: 39 | X141: 40
D142: 41 | E142: 42 | F142: 43 | G142: 44 | H142: 45 | I142: 46 | J142: 47 | K142: 48 | L142: 49 | M142: 50 | O142: 41 | P142: 42 | Q142: 43 | R142: 44 | S142: 45 | T142: 46 | U142: 47 | V142: 48 | W142: 49 | X142: 50
D143: 51 | E143: 52 | F143: 53 | G143: 54 | H143: 55 | I143: 56 | J143: 57 | K143: 58 | L143: 59 | M143: 60 | O143: 51 | P143: 52 | Q143: 53 | R143: 54 | S143: 55 | T143: 56 | U143: 57 | V143: 58 | W143: 59 | X143: 60
D144: 61 | E144: 62 | F144: 63 | G144: 64 | H144: 65 | I144: 66 | J144: 67 | K144: 68 | L144: 69 | M144: 70 | O144: 61 | P144: 62 | Q144: 63 | R144: 64 | S144: 65 | T144: 66 | U144: 67 | V144: 68 | W144: 69 | X144: 70
D145: 71 | E145: 72 | F145: 73 | G145: 74 | H145: 75 | I145: 76 | J145: 77 | K145: 78 | L145: 79 | M145: 80 | O145: 71 | P145: 72 | Q145: 73 | R145: 74 | S145: 75 | T145: 76 | U145: 77 | V145: 78 | W145: 79 | X145: 80
D146: 81 | E146: 82 | F146: 83 | G146: 84 | H146: 85 | I146: 86 | J146: 87 | K146: 88 | L146: 89 | M146: 90 | O146: 81 | P146: 82 | Q146: 83 | R146: 84 | S146: 85 | T146: 86 | U146: 87 | V146: 88 | W146: 89 | X146: 90
D147: 91 | E147: 92 | F147: 93 | G147: 94 | H147: 95 | I147: 96 | J147: 97 | K147: 98 | L147: 99 | M147: 100 | O147: 91 | P147: 92 | Q147: 93 | R147: 94 | S147: 95 | T147: 96 | U147: 97 | V147: 98 | W147: 99 | X147: 100
D150: Met vegetable consumption guidelines | O150: Met fruit consumption guidelines
B152: Usual consumption (in serves) of vegetable per day
D154: 1 | E154: 2 | F154: 3 | G154: 4 | H154: 5 | I154: 6 | J154: 7 | K154: 8 | L154: 9 | M154: 10 | O154: 1 | P154: 2 | Q154: 3 | R154: 4 | S154: 5 | T154: 6 | U154: 7 | V154: 8 | W154: 9 | X154: 10 | Z154: 1 | AA154: 2 | AB154: 3 | AC154: 4 | AD154: 5 | AE154: 6 | AF154: 7 | AG154: 8 | AH154: 9 | AI154: 10 | AK154: 1 | AL154: 2 | AM154: 3 | AN154: 4 | AO154: 5 | AP154: 6 | AQ154: 7 | AR154: 8 | AS154: 9 | AT154: 10
D155: 11 | E155: 12 | F155: 13 | G155: 14 | H155: 15 | I155: 16 | J155: 17 | K155: 18 | L155: 19 | M155: 20 | O155: 11 | P155: 12 | Q155: 13 | R155: 14 | S155: 15 | T155: 16 | U155: 17 | V155: 18 | W155: 19 | X155: 20 | Z155: 11 | AA155: 12 | AB155: 13 | AC155: 14 | AD155: 15 | AE155: 16 | AF155: 17 | AG155: 18 | AH155: 19 | AI155: 20 | AK155: 11 | AL155: 12 | AM155: 13 | AN155: 14 | AO155: 15 | AP155: 16 | AQ155: 17 | AR155: 18 | AS155: 19 | AT155: 20
D156: 21 | E156: 22 | F156: 23 | G156: 24 | H156: 25 | I156: 26 | J156: 27 | K156: 28 | L156: 29 | M156: 30 | O156: 21 | P156: 22 | Q156: 23 | R156: 24 | S156: 25 | T156: 26 | U156: 27 | V156: 28 | W156: 29 | X156: 30 | Z156: 21 | AA156: 22 | AB156: 23 | AC156: 24 | AD156: 25 | AE156: 26 | AF156: 27 | AG156: 28 | AH156: 29 | AI156: 30 | AK156: 21 | AL156: 22 | AM156: 23 | AN156: 24 | AO156: 25 | AP156: 26 | AQ156: 27 | AR156: 28 | AS156: 29 | AT156: 30
D157: 31 | E157: 32 | F157: 33 | G157: 34 | H157: 35 | I157: 36 | J157: 37 | K157: 38 | L157: 39 | M157: 40 | O157: 31 | P157: 32 | Q157: 33 | R157: 34 | S157: 35 | T157: 36 | U157: 37 | V157: 38 | W157: 39 | X157: 40 | Z157: 31 | AA157: 32 | AB157: 33 | AC157: 34 | AD157: 35 | AE157: 36 | AF157: 37 | AG157: 38 | AH157: 39 | AI157: 40 | AK157: 31 | AL157: 32 | AM157: 33 | AN157: 34 | AO157: 35 | AP157: 36 | AQ157: 37 | AR157: 38 | AS157: 39 | AT157: 40
D158: 41 | E158: 42 | F158: 43 | G158: 44 | H158: 45 | I158: 46 | J158: 47 | K158: 48 | L158: 49 | M158: 50 | O158: 41 | P158: 42 | Q158: 43 | R158: 44 | S158: 45 | T158: 46 | U158: 47 | V158: 48 | W158: 49 | X158: 50 | Z158: 41 | AA158: 42 | AB158: 43 | AC158: 44 | AD158: 45 | AE158: 46 | AF158: 47 | AG158: 48 | AH158: 49 | AI158: 50 | AK158: 41 | AL158: 42 | AM158: 43 | AN158: 44 | AO158: 45 | AP158: 46 | AQ158: 47 | AR158: 48 | AS158: 49 | AT158: 50
D159: 51 | E159: 52 | F159: 53 | G159: 54 | H159: 55 | I159: 56 | J159: 57 | K159: 58 | L159: 59 | M159: 60 | O159: 51 | P159: 52 | Q159: 53 | R159: 54 | S159: 55 | T159: 56 | U159: 57 | V159: 58 | W159: 59 | X159: 60 | Z159: 51 | AA159: 52 | AB159: 53 | AC159: 54 | AD159: 55 | AE159: 56 | AF159: 57 | AG159: 58 | AH159: 59 | AI159: 60 | AK159: 51 | AL159: 52 | AM159: 53 | AN159: 54 | AO159: 55 | AP159: 56 | AQ159: 57 | AR159: 58 | AS159: 59 | AT159: 60
D160: 61 | E160: 62 | F160: 63 | G160: 64 | H160: 65 | I160: 66 | J160: 67 | K160: 68 | L160: 69 | M160: 70 | O160: 61 | P160: 62 | Q160: 63 | R160: 64 | S160: 65 | T160: 66 | U160: 67 | V160: 68 | W160: 69 | X160: 70 | Z160: 61 | AA160: 62 | AB160: 63 | AC160: 64 | AD160: 65 | AE160: 66 | AF160: 67 | AG160: 68 | AH160: 69 | AI160: 70 | AK160: 61 | AL160: 62 | AM160: 63 | AN160: 64 | AO160: 65 | AP160: 66 | AQ160: 67 | AR160: 68 | AS160: 69 | AT160: 70
D161: 71 | E161: 72 | F161: 73 | G161: 74 | H161: 75 | I161: 76 | J161: 77 | K161: 78 | L161: 79 | M161: 80 | O161: 71 | P161: 72 | Q161: 73 | R161: 74 | S161: 75 | T161: 76 | U161: 77 | V161: 78 | W161: 79 | X161: 80 | Z161: 71 | AA161: 72 | AB161: 73 | AC161: 74 | AD161: 75 | AE161: 76 | AF161: 77 | AG161: 78 | AH161: 79 | AI161: 80 | AK161: 71 | AL161: 72 | AM161: 73 | AN161: 74 | AO161: 75 | AP161: 76 | AQ161: 77 | AR161: 78 | AS161: 79 | AT161: 80
D162: 81 | E162: 82 | F162: 83 | G162: 84 | H162: 85 | I162: 86 | J162: 87 | K162: 88 | L162: 89 | M162: 90 | O162: 81 | P162: 82 | Q162: 83 | R162: 84 | S162: 85 | T162: 86 | U162: 87 | V162: 88 | W162: 89 | X162: 90 | Z162: 81 | AA162: 82 | AB162: 83 | AC162: 84 | AD162: 85 | AE162: 86 | AF162: 87 | AG162: 88 | AH162: 89 | AI162: 90 | AK162: 81 | AL162: 82 | AM162: 83 | AN162: 84 | AO162: 85 | AP162: 86 | AQ162: 87 | AR162: 88 | AS162: 89 | AT162: 90
D163: 91 | E163: 92 | F163: 93 | G163: 94 | H163: 95 | I163: 96 | J163: 97 | K163: 98 | L163: 99 | M163: 100 | O163: 91 | P163: 92 | Q163: 93 | R163: 94 | S163: 95 | T163: 96 | U163: 97 | V163: 98 | W163: 99 | X163: 100 | Z163: 91 | AA163: 92 | AB163: 93 | AC163: 94 | AD163: 95 | AE163: 96 | AF163: 97 | AG163: 98 | AH163: 99 | AI163: 100 | AK163: 91 | AL163: 92 | AM163: 93 | AN163: 94 | AO163: 95 | AP163: 96 | AQ163: 97 | AR163: 98 | AS163: 99 | AT163: 100
D166: 5+ serves | O166: 3–4 serves | Z166: 1–2 serves | AK166: < 1 serve
B168: Usual consumption (in serves) of fruit per day
D170: 1 | E170: 2 | F170: 3 | G170: 4 | H170: 5 | I170: 6 | J170: 7 | K170: 8 | L170: 9 | M170: 10 | O170: 1 | P170: 2 | Q170: 3 | R170: 4 | S170: 5 | T170: 6 | U170: 7 | V170: 8 | W170: 9 | X170: 10 | AK170: 1 | AL170: 2 | AM170: 3 | AN170: 4 | AO170: 5 | AP170: 6 | AQ170: 7 | AR170: 8 | AS170: 9 | AT170: 10
D171: 11 | E171: 12 | F171: 13 | G171: 14 | H171: 15 | I171: 16 | J171: 17 | K171: 18 | L171: 19 | M171: 20 | O171: 11 | P171: 12 | Q171: 13 | R171: 14 | S171: 15 | T171: 16 | U171: 17 | V171: 18 | W171: 19 | X171: 20 | AK171: 11 | AL171: 12 | AM171: 13 | AN171: 14 | AO171: 15 | AP171: 16 | AQ171: 17 | AR171: 18 | AS171: 19 | AT171: 20
D172: 21 | E172: 22 | F172: 23 | G172: 24 | H172: 25 | I172: 26 | J172: 27 | K172: 28 | L172: 29 | M172: 30 | O172: 21 | P172: 22 | Q172: 23 | R172: 24 | S172: 25 | T172: 26 | U172: 27 | V172: 28 | W172: 29 | X172: 30 | AK172: 21 | AL172: 22 | AM172: 23 | AN172: 24 | AO172: 25 | AP172: 26 | AQ172: 27 | AR172: 28 | AS172: 29 | AT172: 30
D173: 31 | E173: 32 | F173: 33 | G173: 34 | H173: 35 | I173: 36 | J173: 37 | K173: 38 | L173: 39 | M173: 40 | O173: 31 | P173: 32 | Q173: 33 | R173: 34 | S173: 35 | T173: 36 | U173: 37 | V173: 38 | W173: 39 | X173: 40 | AK173: 31 | AL173: 32 | AM173: 33 | AN173: 34 | AO173: 35 | AP173: 36 | AQ173: 37 | AR173: 38 | AS173: 39 | AT173: 40
D174: 41 | E174: 42 | F174: 43 | G174: 44 | H174: 45 | I174: 46 | J174: 47 | K174: 48 | L174: 49 | M174: 50 | O174: 41 | P174: 42 | Q174: 43 | R174: 44 | S174: 45 | T174: 46 | U174: 47 | V174: 48 | W174: 49 | X174: 50 | AK174: 41 | AL174: 42 | AM174: 43 | AN174: 44 | AO174: 45 | AP174: 46 | AQ174: 47 | AR174: 48 | AS174: 49 | AT174: 50
D175: 51 | E175: 52 | F175: 53 | G175: 54 | H175: 55 | I175: 56 | J175: 57 | K175: 58 | L175: 59 | M175: 60 | O175: 51 | P175: 52 | Q175: 53 | R175: 54 | S175: 55 | T175: 56 | U175: 57 | V175: 58 | W175: 59 | X175: 60 | AK175: 51 | AL175: 52 | AM175: 53 | AN175: 54 | AO175: 55 | AP175: 56 | AQ175: 57 | AR175: 58 | AS175: 59 | AT175: 60
D176: 61 | E176: 62 | F176: 63 | G176: 64 | H176: 65 | I176: 66 | J176: 67 | K176: 68 | L176: 69 | M176: 70 | O176: 61 | P176: 62 | Q176: 63 | R176: 64 | S176: 65 | T176: 66 | U176: 67 | V176: 68 | W176: 69 | X176: 70 | AK176: 61 | AL176: 62 | AM176: 63 | AN176: 64 | AO176: 65 | AP176: 66 | AQ176: 67 | AR176: 68 | AS176: 69 | AT176: 70
D177: 71 | E177: 72 | F177: 73 | G177: 74 | H177: 75 | I177: 76 | J177: 77 | K177: 78 | L177: 79 | M177: 80 | O177: 71 | P177: 72 | Q177: 73 | R177: 74 | S177: 75 | T177: 76 | U177: 77 | V177: 78 | W177: 79 | X177: 80 | AK177: 71 | AL177: 72 | AM177: 73 | AN177: 74 | AO177: 75 | AP177: 76 | AQ177: 77 | AR177: 78 | AS177: 79 | AT177: 80
D178: 81 | E178: 82 | F178: 83 | G178: 84 | H178: 85 | I178: 86 | J178: 87 | K178: 88 | L178: 89 | M178: 90 | O178: 81 | P178: 82 | Q178: 83 | R178: 84 | S178: 85 | T178: 86 | U178: 87 | V178: 88 | W178: 89 | X178: 90 | AK178: 81 | AL178: 82 | AM178: 83 | AN178: 84 | AO178: 85 | AP178: 86 | AQ178: 87 | AR178: 88 | AS178: 89 | AT178: 90
D179: 91 | E179: 92 | F179: 93 | G179: 94 | H179: 95 | I179: 96 | J179: 97 | K179: 98 | L179: 99 | M179: 100 | O179: 91 | P179: 92 | Q179: 93 | R179: 94 | S179: 95 | T179: 96 | U179: 97 | V179: 98 | W179: 99 | X179: 100 | AK179: 91 | AL179: 92 | AM179: 93 | AN179: 94 | AO179: 95 | AP179: 96 | AQ179: 97 | AR179: 98 | AS179: 99 | AT179: 100
D182: ≥ 2 serves | O182: < 2 serves
B184: Smoking status
D186: 1 | E186: 2 | F186: 3 | G186: 4 | H186: 5 | I186: 6 | J186: 7 | K186: 8 | L186: 9 | M186: 10 | O186: 1 | P186: 2 | Q186: 3 | R186: 4 | S186: 5 | T186: 6 | U186: 7 | V186: 8 | W186: 9 | X186: 10 | Z186: 1 | AA186: 2 | AB186: 3 | AC186: 4 | AD186: 5 | AE186: 6 | AF186: 7 | AG186: 8 | AH186: 9 | AI186: 10 | AK186: 1 | AL186: 2 | AM186: 3 | AN186: 4 | AO186: 5 | AP186: 6 | AQ186: 7 | AR186: 8 | AS186: 9 | AT186: 10
D187: 11 | E187: 12 | F187: 13 | G187: 14 | H187: 15 | I187: 16 | J187: 17 | K187: 18 | L187: 19 | M187: 20 | O187: 11 | P187: 12 | Q187: 13 | R187: 14 | S187: 15 | T187: 16 | U187: 17 | V187: 18 | W187: 19 | X187: 20 | Z187: 11 | AA187: 12 | AB187: 13 | AC187: 14 | AD187: 15 | AE187: 16 | AF187: 17 | AG187: 18 | AH187: 19 | AI187: 20 | AK187: 11 | AL187: 12 | AM187: 13 | AN187: 14 | AO187: 15 | AP187: 16 | AQ187: 17 | AR187: 18 | AS187: 19 | AT187: 20
D188: 21 | E188: 22 | F188: 23 | G188: 24 | H188: 25 | I188: 26 | J188: 27 | K188: 28 | L188: 29 | M188: 30 | O188: 21 | P188: 22 | Q188: 23 | R188: 24 | S188: 25 | T188: 26 | U188: 27 | V188: 28 | W188: 29 | X188: 30 | Z188: 21 | AA188: 22 | AB188: 23 | AC188: 24 | AD188: 25 | AE188: 26 | AF188: 27 | AG188: 28 | AH188: 29 | AI188: 30 | AK188: 21 | AL188: 22 | AM188: 23 | AN188: 24 | AO188: 25 | AP188: 26 | AQ188: 27 | AR188: 28 | AS188: 29 | AT188: 30
D189: 31 | E189: 32 | F189: 33 | G189: 34 | H189: 35 | I189: 36 | J189: 37 | K189: 38 | L189: 39 | M189: 40 | O189: 31 | P189: 32 | Q189: 33 | R189: 34 | S189: 35 | T189: 36 | U189: 37 | V189: 38 | W189: 39 | X189: 40 | Z189: 31 | AA189: 32 | AB189: 33 | AC189: 34 | AD189: 35 | AE189: 36 | AF189: 37 | AG189: 38 | AH189: 39 | AI189: 40 | AK189: 31 | AL189: 32 | AM189: 33 | AN189: 34 | AO189: 35 | AP189: 36 | AQ189: 37 | AR189: 38 | AS189: 39 | AT189: 40
D190: 41 | E190: 42 | F190: 43 | G190: 44 | H190: 45 | I190: 46 | J190: 47 | K190: 48 | L190: 49 | M190: 50 | O190: 41 | P190: 42 | Q190: 43 | R190: 44 | S190: 45 | T190: 46 | U190: 47 | V190: 48 | W190: 49 | X190: 50 | Z190: 41 | AA190: 42 | AB190: 43 | AC190: 44 | AD190: 45 | AE190: 46 | AF190: 47 | AG190: 48 | AH190: 49 | AI190: 50 | AK190: 41 | AL190: 42 | AM190: 43 | AN190: 44 | AO190: 45 | AP190: 46 | AQ190: 47 | AR190: 48 | AS190: 49 | AT190: 50
D191: 51 | E191: 52 | F191: 53 | G191: 54 | H191: 55 | I191: 56 | J191: 57 | K191: 58 | L191: 59 | M191: 60 | O191: 51 | P191: 52 | Q191: 53 | R191: 54 | S191: 55 | T191: 56 | U191: 57 | V191: 58 | W191: 59 | X191: 60 | Z191: 51 | AA191: 52 | AB191: 53 | AC191: 54 | AD191: 55 | AE191: 56 | AF191: 57 | AG191: 58 | AH191: 59 | AI191: 60 | AK191: 51 | AL191: 52 | AM191: 53 | AN191: 54 | AO191: 55 | AP191: 56 | AQ191: 57 | AR191: 58 | AS191: 59 | AT191: 60
D192: 61 | E192: 62 | F192: 63 | G192: 64 | H192: 65 | I192: 66 | J192: 67 | K192: 68 | L192: 69 | M192: 70 | O192: 61 | P192: 62 | Q192: 63 | R192: 64 | S192: 65 | T192: 66 | U192: 67 | V192: 68 | W192: 69 | X192: 70 | Z192: 61 | AA192: 62 | AB192: 63 | AC192: 64 | AD192: 65 | AE192: 66 | AF192: 67 | AG192: 68 | AH192: 69 | AI192: 70 | AK192: 61 | AL192: 62 | AM192: 63 | AN192: 64 | AO192: 65 | AP192: 66 | AQ192: 67 | AR192: 68 | AS192: 69 | AT192: 70
D193: 71 | E193: 72 | F193: 73 | G193: 74 | H193: 75 | I193: 76 | J193: 77 | K193: 78 | L193: 79 | M193: 80 | O193: 71 | P193: 72 | Q193: 73 | R193: 74 | S193: 75 | T193: 76 | U193: 77 | V193: 78 | W193: 79 | X193: 80 | Z193: 71 | AA193: 72 | AB193: 73 | AC193: 74 | AD193: 75 | AE193: 76 | AF193: 77 | AG193: 78 | AH193: 79 | AI193: 80 | AK193: 71 | AL193: 72 | AM193: 73 | AN193: 74 | AO193: 75 | AP193: 76 | AQ193: 77 | AR193: 78 | AS193: 79 | AT193: 80
D194: 81 | E194: 82 | F194: 83 | G194: 84 | H194: 85 | I194: 86 | J194: 87 | K194: 88 | L194: 89 | M194: 90 | O194: 81 | P194: 82 | Q194: 83 | R194: 84 | S194: 85 | T194: 86 | U194: 87 | V194: 88 | W194: 89 | X194: 90 | Z194: 81 | AA194: 82 | AB194: 83 | AC194: 84 | AD194: 85 | AE194: 86 | AF194: 87 | AG194: 88 | AH194: 89 | AI194: 90 | AK194: 81 | AL194: 82 | AM194: 83 | AN194: 84 | AO194: 85 | AP194: 86 | AQ194: 87 | AR194: 88 | AS194: 89 | AT194: 90
D195: 91 | E195: 92 | F195: 93 | G195: 94 | H195: 95 | I195: 96 | J195: 97 | K195: 98 | L195: 99 | M195: 100 | O195: 91 | P195: 92 | Q195: 93 | R195: 94 | S195: 95 | T195: 96 | U195: 97 | V195: 98 | W195: 99 | X195: 100 | Z195: 91 | AA195: 92 | AB195: 93 | AC195: 94 | AD195: 95 | AE195: 96 | AF195: 97 | AG195: 98 | AH195: 99 | AI195: 100 | AK195: 91 | AL195: 92 | AM195: 93 | AN195: 94 | AO195: 95 | AP195: 96 | AQ195: 97 | AR195: 98 | AS195: 99 | AT195: 100
D198: Non-smoker | O198: Ex-smoker | Z198: Occasional smoker | AK198: Daily smoker
B200: Lifetime risk of alcohol-related harm
D202: 1 | E202: 2 | F202: 3 | G202: 4 | H202: 5 | I202: 6 | J202: 7 | K202: 8 | L202: 9 | M202: 10 | O202: 1 | P202: 2 | Q202: 3 | R202: 4 | S202: 5 | T202: 6 | U202: 7 | V202: 8 | W202: 9 | X202: 10 | Z202: 1 | AA202: 2 | AB202: 3 | AC202: 4 | AD202: 5 | AE202: 6 | AF202: 7 | AG202: 8 | AH202: 9 | AI202: 10 | AK202: 1 | AL202: 2 | AM202: 3 | AN202: 4 | AO202: 5 | AP202: 6 | AQ202: 7 | AR202: 8 | AS202: 9 | AT202: 10
D203: 11 | E203: 12 | F203: 13 | G203: 14 | H203: 15 | I203: 16 | J203: 17 | K203: 18 | L203: 19 | M203: 20 | O203: 11 | P203: 12 | Q203: 13 | R203: 14 | S203: 15 | T203: 16 | U203: 17 | V203: 18 | W203: 19 | X203: 20 | Z203: 11 | AA203: 12 | AB203: 13 | AC203: 14 | AD203: 15 | AE203: 16 | AF203: 17 | AG203: 18 | AH203: 19 | AI203: 20 | AK203: 11 | AL203: 12 | AM203: 13 | AN203: 14 | AO203: 15 | AP203: 16 | AQ203: 17 | AR203: 18 | AS203: 19 | AT203: 20
D204: 21 | E204: 22 | F204: 23 | G204: 24 | H204: 25 | I204: 26 | J204: 27 | K204: 28 | L204: 29 | M204: 30 | O204: 21 | P204: 22 | Q204: 23 | R204: 24 | S204: 25 | T204: 26 | U204: 27 | V204: 28 | W204: 29 | X204: 30 | Z204: 21 | AA204: 22 | AB204: 23 | AC204: 24 | AD204: 25 | AE204: 26 | AF204: 27 | AG204: 28 | AH204: 29 | AI204: 30 | AK204: 21 | AL204: 22 | AM204: 23 | AN204: 24 | AO204: 25 | AP204: 26 | AQ204: 27 | AR204: 28 | AS204: 29 | AT204: 30
D205: 31 | E205: 32 | F205: 33 | G205: 34 | H205: 35 | I205: 36 | J205: 37 | K205: 38 | L205: 39 | M205: 40 | O205: 31 | P205: 32 | Q205: 33 | R205: 34 | S205: 35 | T205: 36 | U205: 37 | V205: 38 | W205: 39 | X205: 40 | Z205: 31 | AA205: 32 | AB205: 33 | AC205: 34 | AD205: 35 | AE205: 36 | AF205: 37 | AG205: 38 | AH205: 39 | AI205: 40 | AK205: 31 | AL205: 32 | AM205: 33 | AN205: 34 | AO205: 35 | AP205: 36 | AQ205: 37 | AR205: 38 | AS205: 39 | AT205: 40
D206: 41 | E206: 42 | F206: 43 | G206: 44 | H206: 45 | I206: 46 | J206: 47 | K206: 48 | L206: 49 | M206: 50 | O206: 41 | P206: 42 | Q206: 43 | R206: 44 | S206: 45 | T206: 46 | U206: 47 | V206: 48 | W206: 49 | X206: 50 | Z206: 41 | AA206: 42 | AB206: 43 | AC206: 44 | AD206: 45 | AE206: 46 | AF206: 47 | AG206: 48 | AH206: 49 | AI206: 50 | AK206: 41 | AL206: 42 | AM206: 43 | AN206: 44 | AO206: 45 | AP206: 46 | AQ206: 47 | AR206: 48 | AS206: 49 | AT206: 50
D207: 51 | E207: 52 | F207: 53 | G207: 54 | H207: 55 | I207: 56 | J207: 57 | K207: 58 | L207: 59 | M207: 60 | O207: 51 | P207: 52 | Q207: 53 | R207: 54 | S207: 55 | T207: 56 | U207: 57 | V207: 58 | W207: 59 | X207: 60 | Z207: 51 | AA207: 52 | AB207: 53 | AC207: 54 | AD207: 55 | AE207: 56 | AF207: 57 | AG207: 58 | AH207: 59 | AI207: 60 | AK207: 51 | AL207: 52 | AM207: 53 | AN207: 54 | AO207: 55 | AP207: 56 | AQ207: 57 | AR207: 58 | AS207: 59 | AT207: 60
D208: 61 | E208: 62 | F208: 63 | G208: 64 | H208: 65 | I208: 66 | J208: 67 | K208: 68 | L208: 69 | M208: 70 | O208: 61 | P208: 62 | Q208: 63 | R208: 64 | S208: 65 | T208: 66 | U208: 67 | V208: 68 | W208: 69 | X208: 70 | Z208: 61 | AA208: 62 | AB208: 63 | AC208: 64 | AD208: 65 | AE208: 66 | AF208: 67 | AG208: 68 | AH208: 69 | AI208: 70 | AK208: 61 | AL208: 62 | AM208: 63 | AN208: 64 | AO208: 65 | AP208: 66 | AQ208: 67 | AR208: 68 | AS208: 69 | AT208: 70
D209: 71 | E209: 72 | F209: 73 | G209: 74 | H209: 75 | I209: 76 | J209: 77 | K209: 78 | L209: 79 | M209: 80 | O209: 71 | P209: 72 | Q209: 73 | R209: 74 | S209: 75 | T209: 76 | U209: 77 | V209: 78 | W209: 79 | X209: 80 | Z209: 71 | AA209: 72 | AB209: 73 | AC209: 74 | AD209: 75 | AE209: 76 | AF209: 77 | AG209: 78 | AH209: 79 | AI209: 80 | AK209: 71 | AL209: 72 | AM209: 73 | AN209: 74 | AO209: 75 | AP209: 76 | AQ209: 77 | AR209: 78 | AS209: 79 | AT209: 80
D210: 81 | E210: 82 | F210: 83 | G210: 84 | H210: 85 | I210: 86 | J210: 87 | K210: 88 | L210: 89 | M210: 90 | O210: 81 | P210: 82 | Q210: 83 | R210: 84 | S210: 85 | T210: 86 | U210: 87 | V210: 88 | W210: 89 | X210: 90 | Z210: 81 | AA210: 82 | AB210: 83 | AC210: 84 | AD210: 85 | AE210: 86 | AF210: 87 | AG210: 88 | AH210: 89 | AI210: 90 | AK210: 81 | AL210: 82 | AM210: 83 | AN210: 84 | AO210: 85 | AP210: 86 | AQ210: 87 | AR210: 88 | AS210: 89 | AT210: 90
D211: 91 | E211: 92 | F211: 93 | G211: 94 | H211: 95 | I211: 96 | J211: 97 | K211: 98 | L211: 99 | M211: 100 | O211: 91 | P211: 92 | Q211: 93 | R211: 94 | S211: 95 | T211: 96 | U211: 97 | V211: 98 | W211: 99 | X211: 100 | Z211: 91 | AA211: 92 | AB211: 93 | AC211: 94 | AD211: 95 | AE211: 96 | AF211: 97 | AG211: 98 | AH211: 99 | AI211: 100 | AK211: 91 | AL211: 92 | AM211: 93 | AN211: 94 | AO211: 95 | AP211: 96 | AQ211: 97 | AR211: 98 | AS211: 99 | AT211: 100
D214: Abstainer / No longer drinks alcohol | O214: Reduced risk | Z214: Increased risk: either yearly, monthly or weekly
B216: Risk of alcohol-related harm from a single occasion of drinking
D218: 1 | E218: 2 | F218: 3 | G218: 4 | H218: 5 | I218: 6 | J218: 7 | K218: 8 | L218: 9 | M218: 10 | O218: 1 | P218: 2 | Q218: 3 | R218: 4 | S218: 5 | T218: 6 | U218: 7 | V218: 8 | W218: 9 | X218: 10 | Z218: 1 | AA218: 2 | AB218: 3 | AC218: 4 | AD218: 5 | AE218: 6 | AF218: 7 | AG218: 8 | AH218: 9 | AI218: 10 | AK218: 1 | AL218: 2 | AM218: 3 | AN218: 4 | AO218: 5 | AP218: 6 | AQ218: 7 | AR218: 8 | AS218: 9 | AT218: 10
D219: 11 | E219: 12 | F219: 13 | G219: 14 | H219: 15 | I219: 16 | J219: 17 | K219: 18 | L219: 19 | M219: 20 | O219: 11 | P219: 12 | Q219: 13 | R219: 14 | S219: 15 | T219: 16 | U219: 17 | V219: 18 | W219: 19 | X219: 20 | Z219: 11 | AA219: 12 | AB219: 13 | AC219: 14 | AD219: 15 | AE219: 16 | AF219: 17 | AG219: 18 | AH219: 19 | AI219: 20 | AK219: 11 | AL219: 12 | AM219: 13 | AN219: 14 | AO219: 15 | AP219: 16 | AQ219: 17 | AR219: 18 | AS219: 19 | AT219: 20
D220: 21 | E220: 22 | F220: 23 | G220: 24 | H220: 25 | I220: 26 | J220: 27 | K220: 28 | L220: 29 | M220: 30 | O220: 21 | P220: 22 | Q220: 23 | R220: 24 | S220: 25 | T220: 26 | U220: 27 | V220: 28 | W220: 29 | X220: 30 | Z220: 21 | AA220: 22 | AB220: 23 | AC220: 24 | AD220: 25 | AE220: 26 | AF220: 27 | AG220: 28 | AH220: 29 | AI220: 30 | AK220: 21 | AL220: 22 | AM220: 23 | AN220: 24 | AO220: 25 | AP220: 26 | AQ220: 27 | AR220: 28 | AS220: 29 | AT220: 30
D221: 31 | E221: 32 | F221: 33 | G221: 34 | H221: 35 | I221: 36 | J221: 37 | K221: 38 | L221: 39 | M221: 40 | O221: 31 | P221: 32 | Q221: 33 | R221: 34 | S221: 35 | T221: 36 | U221: 37 | V221: 38 | W221: 39 | X221: 40 | Z221: 31 | AA221: 32 | AB221: 33 | AC221: 34 | AD221: 35 | AE221: 36 | AF221: 37 | AG221: 38 | AH221: 39 | AI221: 40 | AK221: 31 | AL221: 32 | AM221: 33 | AN221: 34 | AO221: 35 | AP221: 36 | AQ221: 37 | AR221: 38 | AS221: 39 | AT221: 40
D222: 41 | E222: 42 | F222: 43 | G222: 44 | H222: 45 | I222: 46 | J222: 47 | K222: 48 | L222: 49 | M222: 50 | O222: 41 | P222: 42 | Q222: 43 | R222: 44 | S222: 45 | T222: 46 | U222: 47 | V222: 48 | W222: 49 | X222: 50 | Z222: 41 | AA222: 42 | AB222: 43 | AC222: 44 | AD222: 45 | AE222: 46 | AF222: 47 | AG222: 48 | AH222: 49 | AI222: 50 | AK222: 41 | AL222: 42 | AM222: 43 | AN222: 44 | AO222: 45 | AP222: 46 | AQ222: 47 | AR222: 48 | AS222: 49 | AT222: 50
D223: 51 | E223: 52 | F223: 53 | G223: 54 | H223: 55 | I223: 56 | J223: 57 | K223: 58 | L223: 59 | M223: 60 | O223: 51 | P223: 52 | Q223: 53 | R223: 54 | S223: 55 | T223: 56 | U223: 57 | V223: 58 | W223: 59 | X223: 60 | Z223: 51 | AA223: 52 | AB223: 53 | AC223: 54 | AD223: 55 | AE223: 56 | AF223: 57 | AG223: 58 | AH223: 59 | AI223: 60 | AK223: 51 | AL223: 52 | AM223: 53 | AN223: 54 | AO223: 55 | AP223: 56 | AQ223: 57 | AR223: 58 | AS223: 59 | AT223: 60
D224: 61 | E224: 62 | F224: 63 | G224: 64 | H224: 65 | I224: 66 | J224: 67 | K224: 68 | L224: 69 | M224: 70 | O224: 61 | P224: 62 | Q224: 63 | R224: 64 | S224: 65 | T224: 66 | U224: 67 | V224: 68 | W224: 69 | X224: 70 | Z224: 61 | AA224: 62 | AB224: 63 | AC224: 64 | AD224: 65 | AE224: 66 | AF224: 67 | AG224: 68 | AH224: 69 | AI224: 70 | AK224: 61 | AL224: 62 | AM224: 63 | AN224: 64 | AO224: 65 | AP224: 66 | AQ224: 67 | AR224: 68 | AS224: 69 | AT224: 70
D225: 71 | E225: 72 | F225: 73 | G225: 74 | H225: 75 | I225: 76 | J225: 77 | K225: 78 | L225: 79 | M225: 80 | O225: 71 | P225: 72 | Q225: 73 | R225: 74 | S225: 75 | T225: 76 | U225: 77 | V225: 78 | W225: 79 | X225: 80 | Z225: 71 | AA225: 72 | AB225: 73 | AC225: 74 | AD225: 75 | AE225: 76 | AF225: 77 | AG225: 78 | AH225: 79 | AI225: 80 | AK225: 71 | AL225: 72 | AM225: 73 | AN225: 74 | AO225: 75 | AP225: 76 | AQ225: 77 | AR225: 78 | AS225: 79 | AT225: 80
D226: 81 | E226: 82 | F226: 83 | G226: 84 | H226: 85 | I226: 86 | J226: 87 | K226: 88 | L226: 89 | M226: 90 | O226: 81 | P226: 82 | Q226: 83 | R226: 84 | S226: 85 | T226: 86 | U226: 87 | V226: 88 | W226: 89 | X226: 90 | Z226: 81 | AA226: 82 | AB226: 83 | AC226: 84 | AD226: 85 | AE226: 86 | AF226: 87 | AG226: 88 | AH226: 89 | AI226: 90 | AK226: 81 | AL226: 82 | AM226: 83 | AN226: 84 | AO226: 85 | AP226: 86 | AQ226: 87 | AR226: 88 | AS226: 89 | AT226: 90
D227: 91 | E227: 92 | F227: 93 | G227: 94 | H227: 95 | I227: 96 | J227: 97 | K227: 98 | L227: 99 | M227: 100 | O227: 91 | P227: 92 | Q227: 93 | R227: 94 | S227: 95 | T227: 96 | U227: 97 | V227: 98 | W227: 99 | X227: 100 | Z227: 91 | AA227: 92 | AB227: 93 | AC227: 94 | AD227: 95 | AE227: 96 | AF227: 97 | AG227: 98 | AH227: 99 | AI227: 100 | AK227: 91 | AL227: 92 | AM227: 93 | AN227: 94 | AO227: 95 | AP227: 96 | AQ227: 97 | AR227: 98 | AS227: 99 | AT227: 100
D230: Abstainer / No longer drinks alcohol | O230: Reduced risk | Z230: Increased risk: either yearly, monthly or weekly
B232: Level of psychological distress
D234: 1 | E234: 2 | F234: 3 | G234: 4 | H234: 5 | I234: 6 | J234: 7 | K234: 8 | L234: 9 | M234: 10 | O234: 1 | P234: 2 | Q234: 3 | R234: 4 | S234: 5 | T234: 6 | U234: 7 | V234: 8 | W234: 9 | X234: 10 | Z234: 1 | AA234: 2 | AB234: 3 | AC234: 4 | AD234: 5 | AE234: 6 | AF234: 7 | AG234: 8 | AH234: 9 | AI234: 10 | AK234: 1 | AL234: 2 | AM234: 3 | AN234: 4 | AO234: 5 | AP234: 6 | AQ234: 7 | AR234: 8 | AS234: 9 | AT234: 10
D235: 11 | E235: 12 | F235: 13 | G235: 14 | H235: 15 | I235: 16 | J235: 17 | K235: 18 | L235: 19 | M235: 20 | O235: 11 | P235: 12 | Q235: 13 | R235: 14 | S235: 15 | T235: 16 | U235: 17 | V235: 18 | W235: 19 | X235: 20 | Z235: 11 | AA235: 12 | AB235: 13 | AC235: 14 | AD235: 15 | AE235: 16 | AF235: 17 | AG235: 18 | AH235: 19 | AI235: 20 | AK235: 11 | AL235: 12 | AM235: 13 | AN235: 14 | AO235: 15 | AP235: 16 | AQ235: 17 | AR235: 18 | AS235: 19 | AT235: 20
D236: 21 | E236: 22 | F236: 23 | G236: 24 | H236: 25 | I236: 26 | J236: 27 | K236: 28 | L236: 29 | M236: 30 | O236: 21 | P236: 22 | Q236: 23 | R236: 24 | S236: 25 | T236: 26 | U236: 27 | V236: 28 | W236: 29 | X236: 30 | Z236: 21 | AA236: 22 | AB236: 23 | AC236: 24 | AD236: 25 | AE236: 26 | AF236: 27 | AG236: 28 | AH236: 29 | AI236: 30 | AK236: 21 | AL236: 22 | AM236: 23 | AN236: 24 | AO236: 25 | AP236: 26 | AQ236: 27 | AR236: 28 | AS236: 29 | AT236: 30
D237: 31 | E237: 32 | F237: 33 | G237: 34 | H237: 35 | I237: 36 | J237: 37 | K237: 38 | L237: 39 | M237: 40 | O237: 31 | P237: 32 | Q237: 33 | R237: 34 | S237: 35 | T237: 36 | U237: 37 | V237: 38 | W237: 39 | X237: 40 | Z237: 31 | AA237: 32 | AB237: 33 | AC237: 34 | AD237: 35 | AE237: 36 | AF237: 37 | AG237: 38 | AH237: 39 | AI237: 40 | AK237: 31 | AL237: 32 | AM237: 33 | AN237: 34 | AO237: 35 | AP237: 36 | AQ237: 37 | AR237: 38 | AS237: 39 | AT237: 40
D238: 41 | E238: 42 | F238: 43 | G238: 44 | H238: 45 | I238: 46 | J238: 47 | K238: 48 | L238: 49 | M238: 50 | O238: 41 | P238: 42 | Q238: 43 | R238: 44 | S238: 45 | T238: 46 | U238: 47 | V238: 48 | W238: 49 | X238: 50 | Z238: 41 | AA238: 42 | AB238: 43 | AC238: 44 | AD238: 45 | AE238: 46 | AF238: 47 | AG238: 48 | AH238: 49 | AI238: 50 | AK238: 41 | AL238: 42 | AM238: 43 | AN238: 44 | AO238: 45 | AP238: 46 | AQ238: 47 | AR238: 48 | AS238: 49 | AT238: 50
D239: 51 | E239: 52 | F239: 53 | G239: 54 | H239: 55 | I239: 56 | J239: 57 | K239: 58 | L239: 59 | M239: 60 | O239: 51 | P239: 52 | Q239: 53 | R239: 54 | S239: 55 | T239: 56 | U239: 57 | V239: 58 | W239: 59 | X239: 60 | Z239: 51 | AA239: 52 | AB239: 53 | AC239: 54 | AD239: 55 | AE239: 56 | AF239: 57 | AG239: 58 | AH239: 59 | AI239: 60 | AK239: 51 | AL239: 52 | AM239: 53 | AN239: 54 | AO239: 55 | AP239: 56 | AQ239: 57 | AR239: 58 | AS239: 59 | AT239: 60
D240: 61 | E240: 62 | F240: 63 | G240: 64 | H240: 65 | I240: 66 | J240: 67 | K240: 68 | L240: 69 | M240: 70 | O240: 61 | P240: 62 | Q240: 63 | R240: 64 | S240: 65 | T240: 66 | U240: 67 | V240: 68 | W240: 69 | X240: 70 | Z240: 61 | AA240: 62 | AB240: 63 | AC240: 64 | AD240: 65 | AE240: 66 | AF240: 67 | AG240: 68 | AH240: 69 | AI240: 70 | AK240: 61 | AL240: 62 | AM240: 63 | AN240: 64 | AO240: 65 | AP240: 66 | AQ240: 67 | AR240: 68 | AS240: 69 | AT240: 70
D241: 71 | E241: 72 | F241: 73 | G241: 74 | H241: 75 | I241: 76 | J241: 77 | K241: 78 | L241: 79 | M241: 80 | O241: 71 | P241: 72 | Q241: 73 | R241: 74 | S241: 75 | T241: 76 | U241: 77 | V241: 78 | W241: 79 | X241: 80 | Z241: 71 | AA241: 72 | AB241: 73 | AC241: 74 | AD241: 75 | AE241: 76 | AF241: 77 | AG241: 78 | AH241: 79 | AI241: 80 | AK241: 71 | AL241: 72 | AM241: 73 | AN241: 74 | AO241: 75 | AP241: 76 | AQ241: 77 | AR241: 78 | AS241: 79 | AT241: 80
D242: 81 | E242: 82 | F242: 83 | G242: 84 | H242: 85 | I242: 86 | J242: 87 | K242: 88 | L242: 89 | M242: 90 | O242: 81 | P242: 82 | Q242: 83 | R242: 84 | S242: 85 | T242: 86 | U242: 87 | V242: 88 | W242: 89 | X242: 90 | Z242: 81 | AA242: 82 | AB242: 83 | AC242: 84 | AD242: 85 | AE242: 86 | AF242: 87 | AG242: 88 | AH242: 89 | AI242: 90 | AK242: 81 | AL242: 82 | AM242: 83 | AN242: 84 | AO242: 85 | AP242: 86 | AQ242: 87 | AR242: 88 | AS242: 89 | AT242: 90
D243: 91 | E243: 92 | F243: 93 | G243: 94 | H243: 95 | I243: 96 | J243: 97 | K243: 98 | L243: 99 | M243: 100 | O243: 91 | P243: 92 | Q243: 93 | R243: 94 | S243: 95 | T243: 96 | U243: 97 | V243: 98 | W243: 99 | X243: 100 | Z243: 91 | AA243: 92 | AB243: 93 | AC243: 94 | AD243: 95 | AE243: 96 | AF243: 97 | AG243: 98 | AH243: 99 | AI243: 100 | AK243: 91 | AL243: 92 | AM243: 93 | AN243: 94 | AO243: 95 | AP243: 96 | AQ243: 97 | AR243: 98 | AS243: 99 | AT243: 100
D246: Low (K10 < 16) | O246: Moderate (K10 16–21) | Z246: High (K10 22–29) | AK246: Very high (K10 30+)
B248: Diagnosed with anxiety or depression
D250: 1 | E250: 2 | F250: 3 | G250: 4 | H250: 5 | I250: 6 | J250: 7 | K250: 8 | L250: 9 | M250: 10 | O250: 1 | P250: 2 | Q250: 3 | R250: 4 | S250: 5 | T250: 6 | U250: 7 | V250: 8 | W250: 9 | X250: 10 | Z250: 1 | AA250: 2 | AB250: 3 | AC250: 4 | AD250: 5 | AE250: 6 | AF250: 7 | AG250: 8 | AH250: 9 | AI250: 10
D251: 11 | E251: 12 | F251: 13 | G251: 14 | H251: 15 | I251: 16 | J251: 17 | K251: 18 | L251: 19 | M251: 20 | O251: 11 | P251: 12 | Q251: 13 | R251: 14 | S251: 15 | T251: 16 | U251: 17 | V251: 18 | W251: 19 | X251: 20 | Z251: 11 | AA251: 12 | AB251: 13 | AC251: 14 | AD251: 15 | AE251: 16 | AF251: 17 | AG251: 18 | AH251: 19 | AI251: 20
D252: 21 | E252: 22 | F252: 23 | G252: 24 | H252: 25 | I252: 26 | J252: 27 | K252: 28 | L252: 29 | M252: 30 | O252: 21 | P252: 22 | Q252: 23 | R252: 24 | S252: 25 | T252: 26 | U252: 27 | V252: 28 | W252: 29 | X252: 30 | Z252: 21 | AA252: 22 | AB252: 23 | AC252: 24 | AD252: 25 | AE252: 26 | AF252: 27 | AG252: 28 | AH252: 29 | AI252: 30
D253: 31 | E253: 32 | F253: 33 | G253: 34 | H253: 35 | I253: 36 | J253: 37 | K253: 38 | L253: 39 | M253: 40 | O253: 31 | P253: 32 | Q253: 33 | R253: 34 | S253: 35 | T253: 36 | U253: 37 | V253: 38 | W253: 39 | X253: 40 | Z253: 31 | AA253: 32 | AB253: 33 | AC253: 34 | AD253: 35 | AE253: 36 | AF253: 37 | AG253: 38 | AH253: 39 | AI253: 40
D254: 41 | E254: 42 | F254: 43 | G254: 44 | H254: 45 | I254: 46 | J254: 47 | K254: 48 | L254: 49 | M254: 50 | O254: 41 | P254: 42 | Q254: 43 | R254: 44 | S254: 45 | T254: 46 | U254: 47 | V254: 48 | W254: 49 | X254: 50 | Z254: 41 | AA254: 42 | AB254: 43 | AC254: 44 | AD254: 45 | AE254: 46 | AF254: 47 | AG254: 48 | AH254: 49 | AI254: 50
D255: 51 | E255: 52 | F255: 53 | G255: 54 | H255: 55 | I255: 56 | J255: 57 | K255: 58 | L255: 59 | M255: 60 | O255: 51 | P255: 52 | Q255: 53 | R255: 54 | S255: 55 | T255: 56 | U255: 57 | V255: 58 | W255: 59 | X255: 60 | Z255: 51 | AA255: 52 | AB255: 53 | AC255: 54 | AD255: 55 | AE255: 56 | AF255: 57 | AG255: 58 | AH255: 59 | AI255: 60
D256: 61 | E256: 62 | F256: 63 | G256: 64 | H256: 65 | I256: 66 | J256: 67 | K256: 68 | L256: 69 | M256: 70 | O256: 61 | P256: 62 | Q256: 63 | R256: 64 | S256: 65 | T256: 66 | U256: 67 | V256: 68 | W256: 69 | X256: 70 | Z256: 61 | AA256: 62 | AB256: 63 | AC256: 64 | AD256: 65 | AE256: 66 | AF256: 67 | AG256: 68 | AH256: 69 | AI256: 70
D257: 71 | E257: 72 | F257: 73 | G257: 74 | H257: 75 | I257: 76 | J257: 77 | K257: 78 | L257: 79 | M257: 80 | O257: 71 | P257: 72 | Q257: 73 | R257: 74 | S257: 75 | T257: 76 | U257: 77 | V257: 78 | W257: 79 | X257: 80 | Z257: 71 | AA257: 72 | AB257: 73 | AC257: 74 | AD257: 75 | AE257: 76 | AF257: 77 | AG257: 78 | AH257: 79 | AI257: 80
D258: 81 | E258: 82 | F258: 83 | G258: 84 | H258: 85 | I258: 86 | J258: 87 | K258: 88 | L258: 89 | M258: 90 | O258: 81 | P258: 82 | Q258: 83 | R258: 84 | S258: 85 | T258: 86 | U258: 87 | V258: 88 | W258: 89 | X258: 90 | Z258: 81 | AA258: 82 | AB258: 83 | AC258: 84 | AD258: 85 | AE258: 86 | AF258: 87 | AG258: 88 | AH258: 89 | AI258: 90
D259: 91 | E259: 92 | F259: 93 | G259: 94 | H259: 95 | I259: 96 | J259: 97 | K259: 98 | L259: 99 | M259: 100 | O259: 91 | P259: 92 | Q259: 93 | R259: 94 | S259: 95 | T259: 96 | U259: 97 | V259: 98 | W259: 99 | X259: 100 | Z259: 91 | AA259: 92 | AB259: 93 | AC259: 94 | AD259: 95 | AE259: 96 | AF259: 97 | AG259: 98 | AH259: 99 | AI259: 100
D262: Diagnosed with anxiety or depression in the last year | O262: Diagnosed with anxiety or depression in the last year | Z262: Prior to last 12 months
B264: Self-reported health status
D266: 1 | E266: 2 | F266: 3 | G266: 4 | H266: 5 | I266: 6 | J266: 7 | K266: 8 | L266: 9 | M266: 10 | O266: 1 | P266: 2 | Q266: 3 | R266: 4 | S266: 5 | T266: 6 | U266: 7 | V266: 8 | W266: 9 | X266: 10 | Z266: 1 | AA266: 2 | AB266: 3 | AC266: 4 | AD266: 5 | AE266: 6 | AF266: 7 | AG266: 8 | AH266: 9 | AI266: 10 | AK266: 1 | AL266: 2 | AM266: 3 | AN266: 4 | AO266: 5 | AP266: 6 | AQ266: 7 | AR266: 8 | AS266: 9 | AT266: 10
D267: 11 | E267: 12 | F267: 13 | G267: 14 | H267: 15 | I267: 16 | J267: 17 | K267: 18 | L267: 19 | M267: 20 | O267: 11 | P267: 12 | Q267: 13 | R267: 14 | S267: 15 | T267: 16 | U267: 17 | V267: 18 | W267: 19 | X267: 20 | Z267: 11 | AA267: 12 | AB267: 13 | AC267: 14 | AD267: 15 | AE267: 16 | AF267: 17 | AG267: 18 | AH267: 19 | AI267: 20 | AK267: 11 | AL267: 12 | AM267: 13 | AN267: 14 | AO267: 15 | AP267: 16 | AQ267: 17 | AR267: 18 | AS267: 19 | AT267: 20
D268: 21 | E268: 22 | F268: 23 | G268: 24 | H268: 25 | I268: 26 | J268: 27 | K268: 28 | L268: 29 | M268: 30 | O268: 21 | P268: 22 | Q268: 23 | R268: 24 | S268: 25 | T268: 26 | U268: 27 | V268: 28 | W268: 29 | X268: 30 | Z268: 21 | AA268: 22 | AB268: 23 | AC268: 24 | AD268: 25 | AE268: 26 | AF268: 27 | AG268: 28 | AH268: 29 | AI268: 30 | AK268: 21 | AL268: 22 | AM268: 23 | AN268: 24 | AO268: 25 | AP268: 26 | AQ268: 27 | AR268: 28 | AS268: 29 | AT268: 30
D269: 31 | E269: 32 | F269: 33 | G269: 34 | H269: 35 | I269: 36 | J269: 37 | K269: 38 | L269: 39 | M269: 40 | O269: 31 | P269: 32 | Q269: 33 | R269: 34 | S269: 35 | T269: 36 | U269: 37 | V269: 38 | W269: 39 | X269: 40 | Z269: 31 | AA269: 32 | AB269: 33 | AC269: 34 | AD269: 35 | AE269: 36 | AF269: 37 | AG269: 38 | AH269: 39 | AI269: 40 | AK269: 31 | AL269: 32 | AM269: 33 | AN269: 34 | AO269: 35 | AP269: 36 | AQ269: 37 | AR269: 38 | AS269: 39 | AT269: 40
D270: 41 | E270: 42 | F270: 43 | G270: 44 | H270: 45 | I270: 46 | J270: 47 | K270: 48 | L270: 49 | M270: 50 | O270: 41 | P270: 42 | Q270: 43 | R270: 44 | S270: 45 | T270: 46 | U270: 47 | V270: 48 | W270: 49 | X270: 50 | Z270: 41 | AA270: 42 | AB270: 43 | AC270: 44 | AD270: 45 | AE270: 46 | AF270: 47 | AG270: 48 | AH270: 49 | AI270: 50 | AK270: 41 | AL270: 42 | AM270: 43 | AN270: 44 | AO270: 45 | AP270: 46 | AQ270: 47 | AR270: 48 | AS270: 49 | AT270: 50
D271: 51 | E271: 52 | F271: 53 | G271: 54 | H271: 55 | I271: 56 | J271: 57 | K271: 58 | L271: 59 | M271: 60 | O271: 51 | P271: 52 | Q271: 53 | R271: 54 | S271: 55 | T271: 56 | U271: 57 | V271: 58 | W271: 59 | X271: 60 | Z271: 51 | AA271: 52 | AB271: 53 | AC271: 54 | AD271: 55 | AE271: 56 | AF271: 57 | AG271: 58 | AH271: 59 | AI271: 60 | AK271: 51 | AL271: 52 | AM271: 53 | AN271: 54 | AO271: 55 | AP271: 56 | AQ271: 57 | AR271: 58 | AS271: 59 | AT271: 60
... 185 more rows

Sheet Infographic-Social Capital
B2: Men
B8: Contact with others - number of people spoken to in last 24 hours
D10: 1 | E10: 2 | F10: 3 | G10: 4 | H10: 5 | I10: 6 | J10: 7 | K10: 8 | L10: 9 | M10: 10 | O10: 1 | P10: 2 | Q10: 3 | R10: 4 | S10: 5 | T10: 6 | U10: 7 | V10: 8 | W10: 9 | X10: 10 | Z10: 1 | AA10: 2 | AB10: 3 | AC10: 4 | AD10: 5 | AE10: 6 | AF10: 7 | AG10: 8 | AH10: 9 | AI10: 10 | AK10: 1 | AL10: 2 | AM10: 3 | AN10: 4 | AO10: 5 | AP10: 6 | AQ10: 7 | AR10: 8 | AS10: 9 | AT10: 10
D11: 11 | E11: 12 | F11: 13 | G11: 14 | H11: 15 | I11: 16 | J11: 17 | K11: 18 | L11: 19 | M11: 20 | O11: 11 | P11: 12 | Q11: 13 | R11: 14 | S11: 15 | T11: 16 | U11: 17 | V11: 18 | W11: 19 | X11: 20 | Z11: 11 | AA11: 12 | AB11: 13 | AC11: 14 | AD11: 15 | AE11: 16 | AF11: 17 | AG11: 18 | AH11: 19 | AI11: 20 | AK11: 11 | AL11: 12 | AM11: 13 | AN11: 14 | AO11: 15 | AP11: 16 | AQ11: 17 | AR11: 18 | AS11: 19 | AT11: 20
D12: 21 | E12: 22 | F12: 23 | G12: 24 | H12: 25 | I12: 26 | J12: 27 | K12: 28 | L12: 29 | M12: 30 | O12: 21 | P12: 22 | Q12: 23 | R12: 24 | S12: 25 | T12: 26 | U12: 27 | V12: 28 | W12: 29 | X12: 30 | Z12: 21 | AA12: 22 | AB12: 23 | AC12: 24 | AD12: 25 | AE12: 26 | AF12: 27 | AG12: 28 | AH12: 29 | AI12: 30 | AK12: 21 | AL12: 22 | AM12: 23 | AN12: 24 | AO12: 25 | AP12: 26 | AQ12: 27 | AR12: 28 | AS12: 29 | AT12: 30
D13: 31 | E13: 32 | F13: 33 | G13: 34 | H13: 35 | I13: 36 | J13: 37 | K13: 38 | L13: 39 | M13: 40 | O13: 31 | P13: 32 | Q13: 33 | R13: 34 | S13: 35 | T13: 36 | U13: 37 | V13: 38 | W13: 39 | X13: 40 | Z13: 31 | AA13: 32 | AB13: 33 | AC13: 34 | AD13: 35 | AE13: 36 | AF13: 37 | AG13: 38 | AH13: 39 | AI13: 40 | AK13: 31 | AL13: 32 | AM13: 33 | AN13: 34 | AO13: 35 | AP13: 36 | AQ13: 37 | AR13: 38 | AS13: 39 | AT13: 40
D14: 41 | E14: 42 | F14: 43 | G14: 44 | H14: 45 | I14: 46 | J14: 47 | K14: 48 | L14: 49 | M14: 50 | O14: 41 | P14: 42 | Q14: 43 | R14: 44 | S14: 45 | T14: 46 | U14: 47 | V14: 48 | W14: 49 | X14: 50 | Z14: 41 | AA14: 42 | AB14: 43 | AC14: 44 | AD14: 45 | AE14: 46 | AF14: 47 | AG14: 48 | AH14: 49 | AI14: 50 | AK14: 41 | AL14: 42 | AM14: 43 | AN14: 44 | AO14: 45 | AP14: 46 | AQ14: 47 | AR14: 48 | AS14: 49 | AT14: 50
D15: 51 | E15: 52 | F15: 53 | G15: 54 | H15: 55 | I15: 56 | J15: 57 | K15: 58 | L15: 59 | M15: 60 | O15: 51 | P15: 52 | Q15: 53 | R15: 54 | S15: 55 | T15: 56 | U15: 57 | V15: 58 | W15: 59 | X15: 60 | Z15: 51 | AA15: 52 | AB15: 53 | AC15: 54 | AD15: 55 | AE15: 56 | AF15: 57 | AG15: 58 | AH15: 59 | AI15: 60 | AK15: 51 | AL15: 52 | AM15: 53 | AN15: 54 | AO15: 55 | AP15: 56 | AQ15: 57 | AR15: 58 | AS15: 59 | AT15: 60
D16: 61 | E16: 62 | F16: 63 | G16: 64 | H16: 65 | I16: 66 | J16: 67 | K16: 68 | L16: 69 | M16: 70 | O16: 61 | P16: 62 | Q16: 63 | R16: 64 | S16: 65 | T16: 66 | U16: 67 | V16: 68 | W16: 69 | X16: 70 | Z16: 61 | AA16: 62 | AB16: 63 | AC16: 64 | AD16: 65 | AE16: 66 | AF16: 67 | AG16: 68 | AH16: 69 | AI16: 70 | AK16: 61 | AL16: 62 | AM16: 63 | AN16: 64 | AO16: 65 | AP16: 66 | AQ16: 67 | AR16: 68 | AS16: 69 | AT16: 70
D17: 71 | E17: 72 | F17: 73 | G17: 74 | H17: 75 | I17: 76 | J17: 77 | K17: 78 | L17: 79 | M17: 80 | O17: 71 | P17: 72 | Q17: 73 | R17: 74 | S17: 75 | T17: 76 | U17: 77 | V17: 78 | W17: 79 | X17: 80 | Z17: 71 | AA17: 72 | AB17: 73 | AC17: 74 | AD17: 75 | AE17: 76 | AF17: 77 | AG17: 78 | AH17: 79 | AI17: 80 | AK17: 71 | AL17: 72 | AM17: 73 | AN17: 74 | AO17: 75 | AP17: 76 | AQ17: 77 | AR17: 78 | AS17: 79 | AT17: 80
D18: 81 | E18: 82 | F18: 83 | G18: 84 | H18: 85 | I18: 86 | J18: 87 | K18: 88 | L18: 89 | M18: 90 | O18: 81 | P18: 82 | Q18: 83 | R18: 84 | S18: 85 | T18: 86 | U18: 87 | V18: 88 | W18: 89 | X18: 90 | Z18: 81 | AA18: 82 | AB18: 83 | AC18: 84 | AD18: 85 | AE18: 86 | AF18: 87 | AG18: 88 | AH18: 89 | AI18: 90 | AK18: 81 | AL18: 82 | AM18: 83 | AN18: 84 | AO18: 85 | AP18: 86 | AQ18: 87 | AR18: 88 | AS18: 89 | AT18: 90
D19: 91 | E19: 92 | F19: 93 | G19: 94 | H19: 95 | I19: 96 | J19: 97 | K19: 98 | L19: 99 | M19: 100 | O19: 91 | P19: 92 | Q19: 93 | R19: 94 | S19: 95 | T19: 96 | U19: 97 | V19: 98 | W19: 99 | X19: 100 | Z19: 91 | AA19: 92 | AB19: 93 | AC19: 94 | AD19: 95 | AE19: 96 | AF19: 97 | AG19: 98 | AH19: 99 | AI19: 100 | AK19: 91 | AL19: 92 | AM19: 93 | AN19: 94 | AO19: 95 | AP19: 96 | AQ19: 97 | AR19: 98 | AS19: 99 | AT19: 100
D22: None | O22: 1–4 | Z22: 5–9 | AK22: 10, or more
B24: Source of support
D26: 1 | E26: 2 | F26: 3 | G26: 4 | H26: 5 | I26: 6 | J26: 7 | K26: 8 | L26: 9 | M26: 10 | O26: 1 | P26: 2 | Q26: 3 | R26: 4 | S26: 5 | T26: 6 | U26: 7 | V26: 8 | W26: 9 | X26: 10 | Z26: 1 | AA26: 2 | AB26: 3 | AC26: 4 | AD26: 5 | AE26: 6 | AF26: 7 | AG26: 8 | AH26: 9 | AI26: 10 | AK26: 1 | AL26: 2 | AM26: 3 | AN26: 4 | AO26: 5 | AP26: 6 | AQ26: 7 | AR26: 8 | AS26: 9 | AT26: 10
D27: 11 | E27: 12 | F27: 13 | G27: 14 | H27: 15 | I27: 16 | J27: 17 | K27: 18 | L27: 19 | M27: 20 | O27: 11 | P27: 12 | Q27: 13 | R27: 14 | S27: 15 | T27: 16 | U27: 17 | V27: 18 | W27: 19 | X27: 20 | Z27: 11 | AA27: 12 | AB27: 13 | AC27: 14 | AD27: 15 | AE27: 16 | AF27: 17 | AG27: 18 | AH27: 19 | AI27: 20 | AK27: 11 | AL27: 12 | AM27: 13 | AN27: 14 | AO27: 15 | AP27: 16 | AQ27: 17 | AR27: 18 | AS27: 19 | AT27: 20
D28: 21 | E28: 22 | F28: 23 | G28: 24 | H28: 25 | I28: 26 | J28: 27 | K28: 28 | L28: 29 | M28: 30 | O28: 21 | P28: 22 | Q28: 23 | R28: 24 | S28: 25 | T28: 26 | U28: 27 | V28: 28 | W28: 29 | X28: 30 | Z28: 21 | AA28: 22 | AB28: 23 | AC28: 24 | AD28: 25 | AE28: 26 | AF28: 27 | AG28: 28 | AH28: 29 | AI28: 30 | AK28: 21 | AL28: 22 | AM28: 23 | AN28: 24 | AO28: 25 | AP28: 26 | AQ28: 27 | AR28: 28 | AS28: 29 | AT28: 30
D29: 31 | E29: 32 | F29: 33 | G29: 34 | H29: 35 | I29: 36 | J29: 37 | K29: 38 | L29: 39 | M29: 40 | O29: 31 | P29: 32 | Q29: 33 | R29: 34 | S29: 35 | T29: 36 | U29: 37 | V29: 38 | W29: 39 | X29: 40 | Z29: 31 | AA29: 32 | AB29: 33 | AC29: 34 | AD29: 35 | AE29: 36 | AF29: 37 | AG29: 38 | AH29: 39 | AI29: 40 | AK29: 31 | AL29: 32 | AM29: 33 | AN29: 34 | AO29: 35 | AP29: 36 | AQ29: 37 | AR29: 38 | AS29: 39 | AT29: 40
D30: 41 | E30: 42 | F30: 43 | G30: 44 | H30: 45 | I30: 46 | J30: 47 | K30: 48 | L30: 49 | M30: 50 | O30: 41 | P30: 42 | Q30: 43 | R30: 44 | S30: 45 | T30: 46 | U30: 47 | V30: 48 | W30: 49 | X30: 50 | Z30: 41 | AA30: 42 | AB30: 43 | AC30: 44 | AD30: 45 | AE30: 46 | AF30: 47 | AG30: 48 | AH30: 49 | AI30: 50 | AK30: 41 | AL30: 42 | AM30: 43 | AN30: 44 | AO30: 45 | AP30: 46 | AQ30: 47 | AR30: 48 | AS30: 49 | AT30: 50
D31: 51 | E31: 52 | F31: 53 | G31: 54 | H31: 55 | I31: 56 | J31: 57 | K31: 58 | L31: 59 | M31: 60 | O31: 51 | P31: 52 | Q31: 53 | R31: 54 | S31: 55 | T31: 56 | U31: 57 | V31: 58 | W31: 59 | X31: 60 | Z31: 51 | AA31: 52 | AB31: 53 | AC31: 54 | AD31: 55 | AE31: 56 | AF31: 57 | AG31: 58 | AH31: 59 | AI31: 60 | AK31: 51 | AL31: 52 | AM31: 53 | AN31: 54 | AO31: 55 | AP31: 56 | AQ31: 57 | AR31: 58 | AS31: 59 | AT31: 60
D32: 61 | E32: 62 | F32: 63 | G32: 64 | H32: 65 | I32: 66 | J32: 67 | K32: 68 | L32: 69 | M32: 70 | O32: 61 | P32: 62 | Q32: 63 | R32: 64 | S32: 65 | T32: 66 | U32: 67 | V32: 68 | W32: 69 | X32: 70 | Z32: 61 | AA32: 62 | AB32: 63 | AC32: 64 | AD32: 65 | AE32: 66 | AF32: 67 | AG32: 68 | AH32: 69 | AI32: 70 | AK32: 61 | AL32: 62 | AM32: 63 | AN32: 64 | AO32: 65 | AP32: 66 | AQ32: 67 | AR32: 68 | AS32: 69 | AT32: 70
D33: 71 | E33: 72 | F33: 73 | G33: 74 | H33: 75 | I33: 76 | J33: 77 | K33: 78 | L33: 79 | M33: 80 | O33: 71 | P33: 72 | Q33: 73 | R33: 74 | S33: 75 | T33: 76 | U33: 77 | V33: 78 | W33: 79 | X33: 80 | Z33: 71 | AA33: 72 | AB33: 73 | AC33: 74 | AD33: 75 | AE33: 76 | AF33: 77 | AG33: 78 | AH33: 79 | AI33: 80 | AK33: 71 | AL33: 72 | AM33: 73 | AN33: 74 | AO33: 75 | AP33: 76 | AQ33: 77 | AR33: 78 | AS33: 79 | AT33: 80
D34: 81 | E34: 82 | F34: 83 | G34: 84 | H34: 85 | I34: 86 | J34: 87 | K34: 88 | L34: 89 | M34: 90 | O34: 81 | P34: 82 | Q34: 83 | R34: 84 | S34: 85 | T34: 86 | U34: 87 | V34: 88 | W34: 89 | X34: 90 | Z34: 81 | AA34: 82 | AB34: 83 | AC34: 84 | AD34: 85 | AE34: 86 | AF34: 87 | AG34: 88 | AH34: 89 | AI34: 90 | AK34: 81 | AL34: 82 | AM34: 83 | AN34: 84 | AO34: 85 | AP34: 86 | AQ34: 87 | AR34: 88 | AS34: 89 | AT34: 90
D35: 91 | E35: 92 | F35: 93 | G35: 94 | H35: 95 | I35: 96 | J35: 97 | K35: 98 | L35: 99 | M35: 100 | O35: 91 | P35: 92 | Q35: 93 | R35: 94 | S35: 95 | T35: 96 | U35: 97 | V35: 98 | W35: 99 | X35: 100 | Z35: 91 | AA35: 92 | AB35: 93 | AC35: 94 | AD35: 95 | AE35: 96 | AF35: 97 | AG35: 98 | AH35: 99 | AI35: 100 | AK35: 91 | AL35: 92 | AM35: 93 | AN35: 94 | AO35: 95 | AP35: 96 | AQ35: 97 | AR35: 98 | AS35: 99 | AT35: 100
D38: Family | O38: Friends | Z38: Neighbours | AK38: No help available
B40: Source of support: social and emotional support you need
D42: 1 | E42: 2 | F42: 3 | G42: 4 | H42: 5 | I42: 6 | J42: 7 | K42: 8 | L42: 9 | M42: 10 | AK42: 1 | AL42: 2 | AM42: 3 | AN42: 4 | AO42: 5 | AP42: 6 | AQ42: 7 | AR42: 8 | AS42: 9 | AT42: 10
D43: 11 | E43: 12 | F43: 13 | G43: 14 | H43: 15 | I43: 16 | J43: 17 | K43: 18 | L43: 19 | M43: 20 | AK43: 11 | AL43: 12 | AM43: 13 | AN43: 14 | AO43: 15 | AP43: 16 | AQ43: 17 | AR43: 18 | AS43: 19 | AT43: 20
D44: 21 | E44: 22 | F44: 23 | G44: 24 | H44: 25 | I44: 26 | J44: 27 | K44: 28 | L44: 29 | M44: 30 | AK44: 21 | AL44: 22 | AM44: 23 | AN44: 24 | AO44: 25 | AP44: 26 | AQ44: 27 | AR44: 28 | AS44: 29 | AT44: 30
D45: 31 | E45: 32 | F45: 33 | G45: 34 | H45: 35 | I45: 36 | J45: 37 | K45: 38 | L45: 39 | M45: 40 | AK45: 31 | AL45: 32 | AM45: 33 | AN45: 34 | AO45: 35 | AP45: 36 | AQ45: 37 | AR45: 38 | AS45: 39 | AT45: 40
D46: 41 | E46: 42 | F46: 43 | G46: 44 | H46: 45 | I46: 46 | J46: 47 | K46: 48 | L46: 49 | M46: 50 | AK46: 41 | AL46: 42 | AM46: 43 | AN46: 44 | AO46: 45 | AP46: 46 | AQ46: 47 | AR46: 48 | AS46: 49 | AT46: 50
D47: 51 | E47: 52 | F47: 53 | G47: 54 | H47: 55 | I47: 56 | J47: 57 | K47: 58 | L47: 59 | M47: 60 | AK47: 51 | AL47: 52 | AM47: 53 | AN47: 54 | AO47: 55 | AP47: 56 | AQ47: 57 | AR47: 58 | AS47: 59 | AT47: 60
D48: 61 | E48: 62 | F48: 63 | G48: 64 | H48: 65 | I48: 66 | J48: 67 | K48: 68 | L48: 69 | M48: 70 | AK48: 61 | AL48: 62 | AM48: 63 | AN48: 64 | AO48: 65 | AP48: 66 | AQ48: 67 | AR48: 68 | AS48: 69 | AT48: 70
D49: 71 | E49: 72 | F49: 73 | G49: 74 | H49: 75 | I49: 76 | J49: 77 | K49: 78 | L49: 79 | M49: 80 | AK49: 71 | AL49: 72 | AM49: 73 | AN49: 74 | AO49: 75 | AP49: 76 | AQ49: 77 | AR49: 78 | AS49: 79 | AT49: 80
D50: 81 | E50: 82 | F50: 83 | G50: 84 | H50: 85 | I50: 86 | J50: 87 | K50: 88 | L50: 89 | M50: 90 | AK50: 81 | AL50: 82 | AM50: 83 | AN50: 84 | AO50: 85 | AP50: 86 | AQ50: 87 | AR50: 88 | AS50: 89 | AT50: 90
D51: 91 | E51: 92 | F51: 93 | G51: 94 | H51: 95 | I51: 96 | J51: 97 | K51: 98 | L51: 99 | M51: 100 | AK51: 91 | AL51: 92 | AM51: 93 | AN51: 94 | AO51: 95 | AP51: 96 | AQ51: 97 | AR51: 98 | AS51: 99 | AT51: 100
D53: Always or usually
B55: Ability to raise $2,000 within 2 days in an emergency
D57: 1 | E57: 2 | F57: 3 | G57: 4 | H57: 5 | I57: 6 | J57: 7 | K57: 8 | L57: 9 | M57: 10 | AK57: 1 | AL57: 2 | AM57: 3 | AN57: 4 | AO57: 5 | AP57: 6 | AQ57: 7 | AR57: 8 | AS57: 9 | AT57: 10
D58: 11 | E58: 12 | F58: 13 | G58: 14 | H58: 15 | I58: 16 | J58: 17 | K58: 18 | L58: 19 | M58: 20 | AK58: 11 | AL58: 12 | AM58: 13 | AN58: 14 | AO58: 15 | AP58: 16 | AQ58: 17 | AR58: 18 | AS58: 19 | AT58: 20
D59: 21 | E59: 22 | F59: 23 | G59: 24 | H59: 25 | I59: 26 | J59: 27 | K59: 28 | L59: 29 | M59: 30 | AK59: 21 | AL59: 22 | AM59: 23 | AN59: 24 | AO59: 25 | AP59: 26 | AQ59: 27 | AR59: 28 | AS59: 29 | AT59: 30
D60: 31 | E60: 32 | F60: 33 | G60: 34 | H60: 35 | I60: 36 | J60: 37 | K60: 38 | L60: 39 | M60: 40 | AK60: 31 | AL60: 32 | AM60: 33 | AN60: 34 | AO60: 35 | AP60: 36 | AQ60: 37 | AR60: 38 | AS60: 39 | AT60: 40
D61: 41 | E61: 42 | F61: 43 | G61: 44 | H61: 45 | I61: 46 | J61: 47 | K61: 48 | L61: 49 | M61: 50 | AK61: 41 | AL61: 42 | AM61: 43 | AN61: 44 | AO61: 45 | AP61: 46 | AQ61: 47 | AR61: 48 | AS61: 49 | AT61: 50
D62: 51 | E62: 52 | F62: 53 | G62: 54 | H62: 55 | I62: 56 | J62: 57 | K62: 58 | L62: 59 | M62: 60 | AK62: 51 | AL62: 52 | AM62: 53 | AN62: 54 | AO62: 55 | AP62: 56 | AQ62: 57 | AR62: 58 | AS62: 59 | AT62: 60
D63: 61 | E63: 62 | F63: 63 | G63: 64 | H63: 65 | I63: 66 | J63: 67 | K63: 68 | L63: 69 | M63: 70 | AK63: 61 | AL63: 62 | AM63: 63 | AN63: 64 | AO63: 65 | AP63: 66 | AQ63: 67 | AR63: 68 | AS63: 69 | AT63: 70
D64: 71 | E64: 72 | F64: 73 | G64: 74 | H64: 75 | I64: 76 | J64: 77 | K64: 78 | L64: 79 | M64: 80 | AK64: 71 | AL64: 72 | AM64: 73 | AN64: 74 | AO64: 75 | AP64: 76 | AQ64: 77 | AR64: 78 | AS64: 79 | AT64: 80
D65: 81 | E65: 82 | F65: 83 | G65: 84 | H65: 85 | I65: 86 | J65: 87 | K65: 88 | L65: 89 | M65: 90 | AK65: 81 | AL65: 82 | AM65: 83 | AN65: 84 | AO65: 85 | AP65: 86 | AQ65: 87 | AR65: 88 | AS65: 89 | AT65: 90
D66: 91 | E66: 92 | F66: 93 | G66: 94 | H66: 95 | I66: 96 | J66: 97 | K66: 98 | L66: 99 | M66: 100 | AK66: 91 | AL66: 92 | AM66: 93 | AN66: 94 | AO66: 95 | AP66: 96 | AQ66: 97 | AR66: 98 | AS66: 99 | AT66: 100
B70: Relatives, or friends can care for you (or your children) in an emergency
D72: 1 | E72: 2 | F72: 3 | G72: 4 | H72: 5 | I72: 6 | J72: 7 | K72: 8 | L72: 9 | M72: 10 | AK72: 1 | AL72: 2 | AM72: 3 | AN72: 4 | AO72: 5 | AP72: 6 | AQ72: 7 | AR72: 8 | AS72: 9 | AT72: 10
D73: 11 | E73: 12 | F73: 13 | G73: 14 | H73: 15 | I73: 16 | J73: 17 | K73: 18 | L73: 19 | M73: 20 | AK73: 11 | AL73: 12 | AM73: 13 | AN73: 14 | AO73: 15 | AP73: 16 | AQ73: 17 | AR73: 18 | AS73: 19 | AT73: 20
D74: 21 | E74: 22 | F74: 23 | G74: 24 | H74: 25 | I74: 26 | J74: 27 | K74: 28 | L74: 29 | M74: 30 | AK74: 21 | AL74: 22 | AM74: 23 | AN74: 24 | AO74: 25 | AP74: 26 | AQ74: 27 | AR74: 28 | AS74: 29 | AT74: 30
D75: 31 | E75: 32 | F75: 33 | G75: 34 | H75: 35 | I75: 36 | J75: 37 | K75: 38 | L75: 39 | M75: 40 | AK75: 31 | AL75: 32 | AM75: 33 | AN75: 34 | AO75: 35 | AP75: 36 | AQ75: 37 | AR75: 38 | AS75: 39 | AT75: 40
D76: 41 | E76: 42 | F76: 43 | G76: 44 | H76: 45 | I76: 46 | J76: 47 | K76: 48 | L76: 49 | M76: 50 | AK76: 41 | AL76: 42 | AM76: 43 | AN76: 44 | AO76: 45 | AP76: 46 | AQ76: 47 | AR76: 48 | AS76: 49 | AT76: 50
D77: 51 | E77: 52 | F77: 53 | G77: 54 | H77: 55 | I77: 56 | J77: 57 | K77: 58 | L77: 59 | M77: 60 | AK77: 51 | AL77: 52 | AM77: 53 | AN77: 54 | AO77: 55 | AP77: 56 | AQ77: 57 | AR77: 58 | AS77: 59 | AT77: 60
D78: 61 | E78: 62 | F78: 63 | G78: 64 | H78: 65 | I78: 66 | J78: 67 | K78: 68 | L78: 69 | M78: 70 | AK78: 61 | AL78: 62 | AM78: 63 | AN78: 64 | AO78: 65 | AP78: 66 | AQ78: 67 | AR78: 68 | AS78: 69 | AT78: 70
D79: 71 | E79: 72 | F79: 73 | G79: 74 | H79: 75 | I79: 76 | J79: 77 | K79: 78 | L79: 79 | M79: 80 | AK79: 71 | AL79: 72 | AM79: 73 | AN79: 74 | AO79: 75 | AP79: 76 | AQ79: 77 | AR79: 78 | AS79: 79 | AT79: 80
D80: 81 | E80: 82 | F80: 83 | G80: 84 | H80: 85 | I80: 86 | J80: 87 | K80: 88 | L80: 89 | M80: 90 | AK80: 81 | AL80: 82 | AM80: 83 | AN80: 84 | AO80: 85 | AP80: 86 | AQ80: 87 | AR80: 88 | AS80: 89 | AT80: 90
D81: 91 | E81: 92 | F81: 93 | G81: 94 | H81: 95 | I81: 96 | J81: 97 | K81: 98 | L81: 99 | M81: 100 | AK81: 91 | AL81: 92 | AM81: 93 | AN81: 94 | AO81: 95 | AP81: 96 | AQ81: 97 | AR81: 98 | AS81: 99 | AT81: 100
B84: Experienced food insecurity
D86: 1 | E86: 2 | F86: 3 | G86: 4 | H86: 5 | I86: 6 | J86: 7 | K86: 8 | L86: 9 | M86: 10 | AK86: 1 | AL86: 2 | AM86: 3 | AN86: 4 | AO86: 5 | AP86: 6 | AQ86: 7 | AR86: 8 | AS86: 9 | AT86: 10
D87: 11 | E87: 12 | F87: 13 | G87: 14 | H87: 15 | I87: 16 | J87: 17 | K87: 18 | L87: 19 | M87: 20 | AK87: 11 | AL87: 12 | AM87: 13 | AN87: 14 | AO87: 15 | AP87: 16 | AQ87: 17 | AR87: 18 | AS87: 19 | AT87: 20
D88: 21 | E88: 22 | F88: 23 | G88: 24 | H88: 25 | I88: 26 | J88: 27 | K88: 28 | L88: 29 | M88: 30 | AK88: 21 | AL88: 22 | AM88: 23 | AN88: 24 | AO88: 25 | AP88: 26 | AQ88: 27 | AR88: 28 | AS88: 29 | AT88: 30
D89: 31 | E89: 32 | F89: 33 | G89: 34 | H89: 35 | I89: 36 | J89: 37 | K89: 38 | L89: 39 | M89: 40 | AK89: 31 | AL89: 32 | AM89: 33 | AN89: 34 | AO89: 35 | AP89: 36 | AQ89: 37 | AR89: 38 | AS89: 39 | AT89: 40
D90: 41 | E90: 42 | F90: 43 | G90: 44 | H90: 45 | I90: 46 | J90: 47 | K90: 48 | L90: 49 | M90: 50 | AK90: 41 | AL90: 42 | AM90: 43 | AN90: 44 | AO90: 45 | AP90: 46 | AQ90: 47 | AR90: 48 | AS90: 49 | AT90: 50
D91: 51 | E91: 52 | F91: 53 | G91: 54 | H91: 55 | I91: 56 | J91: 57 | K91: 58 | L91: 59 | M91: 60 | AK91: 51 | AL91: 52 | AM91: 53 | AN91: 54 | AO91: 55 | AP91: 56 | AQ91: 57 | AR91: 58 | AS91: 59 | AT91: 60
D92: 61 | E92: 62 | F92: 63 | G92: 64 | H92: 65 | I92: 66 | J92: 67 | K92: 68 | L92: 69 | M92: 70 | AK92: 61 | AL92: 62 | AM92: 63 | AN92: 64 | AO92: 65 | AP92: 66 | AQ92: 67 | AR92: 68 | AS92: 69 | AT92: 70
D93: 71 | E93: 72 | F93: 73 | G93: 74 | H93: 75 | I93: 76 | J93: 77 | K93: 78 | L93: 79 | M93: 80 | AK93: 71 | AL93: 72 | AM93: 73 | AN93: 74 | AO93: 75 | AP93: 76 | AQ93: 77 | AR93: 78 | AS93: 79 | AT93: 80
D94: 81 | E94: 82 | F94: 83 | G94: 84 | H94: 85 | I94: 86 | J94: 87 | K94: 88 | L94: 89 | M94: 90 | AK94: 81 | AL94: 82 | AM94: 83 | AN94: 84 | AO94: 85 | AP94: 86 | AQ94: 87 | AR94: 88 | AS94: 89 | AT94: 90
D95: 91 | E95: 92 | F95: 93 | G95: 94 | H95: 95 | I95: 96 | J95: 97 | K95: 98 | L95: 99 | M95: 100 | AK95: 91 | AL95: 92 | AM95: 93 | AN95: 94 | AO95: 95 | AP95: 96 | AQ95: 97 | AR95: 98 | AS95: 99 | AT95: 100
B99: Reliance on low-cost food for children
D101: 1 | E101: 2 | F101: 3 | G101: 4 | H101: 5 | I101: 6 | J101: 7 | K101: 8 | L101: 9 | M101: 10 | O101: 1 | P101: 2 | Q101: 3 | R101: 4 | S101: 5 | T101: 6 | U101: 7 | V101: 8 | W101: 9 | X101: 10 | Z101: 1 | AA101: 2 | AB101: 3 | AC101: 4 | AD101: 5 | AE101: 6 | AF101: 7 | AG101: 8 | AH101: 9 | AI101: 10 | AK101: 1 | AL101: 2 | AM101: 3 | AN101: 4 | AO101: 5 | AP101: 6 | AQ101: 7 | AR101: 8 | AS101: 9 | AT101: 10
D102: 11 | E102: 12 | F102: 13 | G102: 14 | H102: 15 | I102: 16 | J102: 17 | K102: 18 | L102: 19 | M102: 20 | O102: 11 | P102: 12 | Q102: 13 | R102: 14 | S102: 15 | T102: 16 | U102: 17 | V102: 18 | W102: 19 | X102: 20 | Z102: 11 | AA102: 12 | AB102: 13 | AC102: 14 | AD102: 15 | AE102: 16 | AF102: 17 | AG102: 18 | AH102: 19 | AI102: 20 | AK102: 11 | AL102: 12 | AM102: 13 | AN102: 14 | AO102: 15 | AP102: 16 | AQ102: 17 | AR102: 18 | AS102: 19 | AT102: 20
D103: 21 | E103: 22 | F103: 23 | G103: 24 | H103: 25 | I103: 26 | J103: 27 | K103: 28 | L103: 29 | M103: 30 | O103: 21 | P103: 22 | Q103: 23 | R103: 24 | S103: 25 | T103: 26 | U103: 27 | V103: 28 | W103: 29 | X103: 30 | Z103: 21 | AA103: 22 | AB103: 23 | AC103: 24 | AD103: 25 | AE103: 26 | AF103: 27 | AG103: 28 | AH103: 29 | AI103: 30 | AK103: 21 | AL103: 22 | AM103: 23 | AN103: 24 | AO103: 25 | AP103: 26 | AQ103: 27 | AR103: 28 | AS103: 29 | AT103: 30
D104: 31 | E104: 32 | F104: 33 | G104: 34 | H104: 35 | I104: 36 | J104: 37 | K104: 38 | L104: 39 | M104: 40 | O104: 31 | P104: 32 | Q104: 33 | R104: 34 | S104: 35 | T104: 36 | U104: 37 | V104: 38 | W104: 39 | X104: 40 | Z104: 31 | AA104: 32 | AB104: 33 | AC104: 34 | AD104: 35 | AE104: 36 | AF104: 37 | AG104: 38 | AH104: 39 | AI104: 40 | AK104: 31 | AL104: 32 | AM104: 33 | AN104: 34 | AO104: 35 | AP104: 36 | AQ104: 37 | AR104: 38 | AS104: 39 | AT104: 40
D105: 41 | E105: 42 | F105: 43 | G105: 44 | H105: 45 | I105: 46 | J105: 47 | K105: 48 | L105: 49 | M105: 50 | O105: 41 | P105: 42 | Q105: 43 | R105: 44 | S105: 45 | T105: 46 | U105: 47 | V105: 48 | W105: 49 | X105: 50 | Z105: 41 | AA105: 42 | AB105: 43 | AC105: 44 | AD105: 45 | AE105: 46 | AF105: 47 | AG105: 48 | AH105: 49 | AI105: 50 | AK105: 41 | AL105: 42 | AM105: 43 | AN105: 44 | AO105: 45 | AP105: 46 | AQ105: 47 | AR105: 48 | AS105: 49 | AT105: 50
D106: 51 | E106: 52 | F106: 53 | G106: 54 | H106: 55 | I106: 56 | J106: 57 | K106: 58 | L106: 59 | M106: 60 | O106: 51 | P106: 52 | Q106: 53 | R106: 54 | S106: 55 | T106: 56 | U106: 57 | V106: 58 | W106: 59 | X106: 60 | Z106: 51 | AA106: 52 | AB106: 53 | AC106: 54 | AD106: 55 | AE106: 56 | AF106: 57 | AG106: 58 | AH106: 59 | AI106: 60 | AK106: 51 | AL106: 52 | AM106: 53 | AN106: 54 | AO106: 55 | AP106: 56 | AQ106: 57 | AR106: 58 | AS106: 59 | AT106: 60
D107: 61 | E107: 62 | F107: 63 | G107: 64 | H107: 65 | I107: 66 | J107: 67 | K107: 68 | L107: 69 | M107: 70 | O107: 61 | P107: 62 | Q107: 63 | R107: 64 | S107: 65 | T107: 66 | U107: 67 | V107: 68 | W107: 69 | X107: 70 | Z107: 61 | AA107: 62 | AB107: 63 | AC107: 64 | AD107: 65 | AE107: 66 | AF107: 67 | AG107: 68 | AH107: 69 | AI107: 70 | AK107: 61 | AL107: 62 | AM107: 63 | AN107: 64 | AO107: 65 | AP107: 66 | AQ107: 67 | AR107: 68 | AS107: 69 | AT107: 70
D108: 71 | E108: 72 | F108: 73 | G108: 74 | H108: 75 | I108: 76 | J108: 77 | K108: 78 | L108: 79 | M108: 80 | O108: 71 | P108: 72 | Q108: 73 | R108: 74 | S108: 75 | T108: 76 | U108: 77 | V108: 78 | W108: 79 | X108: 80 | Z108: 71 | AA108: 72 | AB108: 73 | AC108: 74 | AD108: 75 | AE108: 76 | AF108: 77 | AG108: 78 | AH108: 79 | AI108: 80 | AK108: 71 | AL108: 72 | AM108: 73 | AN108: 74 | AO108: 75 | AP108: 76 | AQ108: 77 | AR108: 78 | AS108: 79 | AT108: 80
D109: 81 | E109: 82 | F109: 83 | G109: 84 | H109: 85 | I109: 86 | J109: 87 | K109: 88 | L109: 89 | M109: 90 | O109: 81 | P109: 82 | Q109: 83 | R109: 84 | S109: 85 | T109: 86 | U109: 87 | V109: 88 | W109: 89 | X109: 90 | Z109: 81 | AA109: 82 | AB109: 83 | AC109: 84 | AD109: 85 | AE109: 86 | AF109: 87 | AG109: 88 | AH109: 89 | AI109: 90 | AK109: 81 | AL109: 82 | AM109: 83 | AN109: 84 | AO109: 85 | AP109: 86 | AQ109: 87 | AR109: 88 | AS109: 89 | AT109: 90
D110: 91 | E110: 92 | F110: 93 | G110: 94 | H110: 95 | I110: 96 | J110: 97 | K110: 98 | L110: 99 | M110: 100 | O110: 91 | P110: 92 | Q110: 93 | R110: 94 | S110: 95 | T110: 96 | U110: 97 | V110: 98 | W110: 99 | X110: 100 | Z110: 91 | AA110: 92 | AB110: 93 | AC110: 94 | AD110: 95 | AE110: 96 | AF110: 97 | AG110: 98 | AH110: 99 | AI110: 100 | AK110: 91 | AL110: 92 | AM110: 93 | AN110: 94 | AO110: 95 | AP110: 96 | AQ110: 97 | AR110: 98 | AS110: 99 | AT110: 100
D113: Never, or not often | O113: Sometimes | Z113: Yes, definitely
B115: Membership of an organised group
D117: 1 | E117: 2 | F117: 3 | G117: 4 | H117: 5 | I117: 6 | J117: 7 | K117: 8 | L117: 9 | M117: 10 | O117: 1 | P117: 2 | Q117: 3 | R117: 4 | S117: 5 | T117: 6 | U117: 7 | V117: 8 | W117: 9 | X117: 10 | Z117: 1 | AA117: 2 | AB117: 3 | AC117: 4 | AD117: 5 | AE117: 6 | AF117: 7 | AG117: 8 | AH117: 9 | AI117: 10 | AK117: 1 | AL117: 2 | AM117: 3 | AN117: 4 | AO117: 5 | AP117: 6 | AQ117: 7 | AR117: 8 | AS117: 9 | AT117: 10
D118: 11 | E118: 12 | F118: 13 | G118: 14 | H118: 15 | I118: 16 | J118: 17 | K118: 18 | L118: 19 | M118: 20 | O118: 11 | P118: 12 | Q118: 13 | R118: 14 | S118: 15 | T118: 16 | U118: 17 | V118: 18 | W118: 19 | X118: 20 | Z118: 11 | AA118: 12 | AB118: 13 | AC118: 14 | AD118: 15 | AE118: 16 | AF118: 17 | AG118: 18 | AH118: 19 | AI118: 20 | AK118: 11 | AL118: 12 | AM118: 13 | AN118: 14 | AO118: 15 | AP118: 16 | AQ118: 17 | AR118: 18 | AS118: 19 | AT118: 20
D119: 21 | E119: 22 | F119: 23 | G119: 24 | H119: 25 | I119: 26 | J119: 27 | K119: 28 | L119: 29 | M119: 30 | O119: 21 | P119: 22 | Q119: 23 | R119: 24 | S119: 25 | T119: 26 | U119: 27 | V119: 28 | W119: 29 | X119: 30 | Z119: 21 | AA119: 22 | AB119: 23 | AC119: 24 | AD119: 25 | AE119: 26 | AF119: 27 | AG119: 28 | AH119: 29 | AI119: 30 | AK119: 21 | AL119: 22 | AM119: 23 | AN119: 24 | AO119: 25 | AP119: 26 | AQ119: 27 | AR119: 28 | AS119: 29 | AT119: 30
D120: 31 | E120: 32 | F120: 33 | G120: 34 | H120: 35 | I120: 36 | J120: 37 | K120: 38 | L120: 39 | M120: 40 | O120: 31 | P120: 32 | Q120: 33 | R120: 34 | S120: 35 | T120: 36 | U120: 37 | V120: 38 | W120: 39 | X120: 40 | Z120: 31 | AA120: 32 | AB120: 33 | AC120: 34 | AD120: 35 | AE120: 36 | AF120: 37 | AG120: 38 | AH120: 39 | AI120: 40 | AK120: 31 | AL120: 32 | AM120: 33 | AN120: 34 | AO120: 35 | AP120: 36 | AQ120: 37 | AR120: 38 | AS120: 39 | AT120: 40
D121: 41 | E121: 42 | F121: 43 | G121: 44 | H121: 45 | I121: 46 | J121: 47 | K121: 48 | L121: 49 | M121: 50 | O121: 41 | P121: 42 | Q121: 43 | R121: 44 | S121: 45 | T121: 46 | U121: 47 | V121: 48 | W121: 49 | X121: 50 | Z121: 41 | AA121: 42 | AB121: 43 | AC121: 44 | AD121: 45 | AE121: 46 | AF121: 47 | AG121: 48 | AH121: 49 | AI121: 50 | AK121: 41 | AL121: 42 | AM121: 43 | AN121: 44 | AO121: 45 | AP121: 46 | AQ121: 47 | AR121: 48 | AS121: 49 | AT121: 50
D122: 51 | E122: 52 | F122: 53 | G122: 54 | H122: 55 | I122: 56 | J122: 57 | K122: 58 | L122: 59 | M122: 60 | O122: 51 | P122: 52 | Q122: 53 | R122: 54 | S122: 55 | T122: 56 | U122: 57 | V122: 58 | W122: 59 | X122: 60 | Z122: 51 | AA122: 52 | AB122: 53 | AC122: 54 | AD122: 55 | AE122: 56 | AF122: 57 | AG122: 58 | AH122: 59 | AI122: 60 | AK122: 51 | AL122: 52 | AM122: 53 | AN122: 54 | AO122: 55 | AP122: 56 | AQ122: 57 | AR122: 58 | AS122: 59 | AT122: 60
D123: 61 | E123: 62 | F123: 63 | G123: 64 | H123: 65 | I123: 66 | J123: 67 | K123: 68 | L123: 69 | M123: 70 | O123: 61 | P123: 62 | Q123: 63 | R123: 64 | S123: 65 | T123: 66 | U123: 67 | V123: 68 | W123: 69 | X123: 70 | Z123: 61 | AA123: 62 | AB123: 63 | AC123: 64 | AD123: 65 | AE123: 66 | AF123: 67 | AG123: 68 | AH123: 69 | AI123: 70 | AK123: 61 | AL123: 62 | AM123: 63 | AN123: 64 | AO123: 65 | AP123: 66 | AQ123: 67 | AR123: 68 | AS123: 69 | AT123: 70
D124: 71 | E124: 72 | F124: 73 | G124: 74 | H124: 75 | I124: 76 | J124: 77 | K124: 78 | L124: 79 | M124: 80 | O124: 71 | P124: 72 | Q124: 73 | R124: 74 | S124: 75 | T124: 76 | U124: 77 | V124: 78 | W124: 79 | X124: 80 | Z124: 71 | AA124: 72 | AB124: 73 | AC124: 74 | AD124: 75 | AE124: 76 | AF124: 77 | AG124: 78 | AH124: 79 | AI124: 80 | AK124: 71 | AL124: 72 | AM124: 73 | AN124: 74 | AO124: 75 | AP124: 76 | AQ124: 77 | AR124: 78 | AS124: 79 | AT124: 80
D125: 81 | E125: 82 | F125: 83 | G125: 84 | H125: 85 | I125: 86 | J125: 87 | K125: 88 | L125: 89 | M125: 90 | O125: 81 | P125: 82 | Q125: 83 | R125: 84 | S125: 85 | T125: 86 | U125: 87 | V125: 88 | W125: 89 | X125: 90 | Z125: 81 | AA125: 82 | AB125: 83 | AC125: 84 | AD125: 85 | AE125: 86 | AF125: 87 | AG125: 88 | AH125: 89 | AI125: 90 | AK125: 81 | AL125: 82 | AM125: 83 | AN125: 84 | AO125: 85 | AP125: 86 | AQ125: 87 | AR125: 88 | AS125: 89 | AT125: 90
D126: 91 | E126: 92 | F126: 93 | G126: 94 | H126: 95 | I126: 96 | J126: 97 | K126: 98 | L126: 99 | M126: 100 | O126: 91 | P126: 92 | Q126: 93 | R126: 94 | S126: 95 | T126: 96 | U126: 97 | V126: 98 | W126: 99 | X126: 100 | Z126: 91 | AA126: 92 | AB126: 93 | AC126: 94 | AD126: 95 | AE126: 96 | AF126: 97 | AG126: 98 | AH126: 99 | AI126: 100 | AK126: 91 | AL126: 92 | AM126: 93 | AN126: 94 | AO126: 95 | AP126: 96 | AQ126: 97 | AR126: 98 | AS126: 99 | AT126: 100
D129: Sports | O129: Religious | Z129: School | AK129: Professional
D131: 1 | E131: 2 | F131: 3 | G131: 4 | H131: 5 | I131: 6 | J131: 7 | K131: 8 | L131: 9 | M131: 10
D132: 11 | E132: 12 | F132: 13 | G132: 14 | H132: 15 | I132: 16 | J132: 17 | K132: 18 | L132: 19 | M132: 20
D133: 21 | E133: 22 | F133: 23 | G133: 24 | H133: 25 | I133: 26 | J133: 27 | K133: 28 | L133: 29 | M133: 30
D134: 31 | E134: 32 | F134: 33 | G134: 34 | H134: 35 | I134: 36 | J134: 37 | K134: 38 | L134: 39 | M134: 40
D135: 41 | E135: 42 | F135: 43 | G135: 44 | H135: 45 | I135: 46 | J135: 47 | K135: 48 | L135: 49 | M135: 50
D136: 51 | E136: 52 | F136: 53 | G136: 54 | H136: 55 | I136: 56 | J136: 57 | K136: 58 | L136: 59 | M136: 60
D137: 61 | E137: 62 | F137: 63 | G137: 64 | H137: 65 | I137: 66 | J137: 67 | K137: 68 | L137: 69 | M137: 70
D138: 71 | E138: 72 | F138: 73 | G138: 74 | H138: 75 | I138: 76 | J138: 77 | K138: 78 | L138: 79 | M138: 80
D139: 81 | E139: 82 | F139: 83 | G139: 84 | H139: 85 | I139: 86 | J139: 87 | K139: 88 | L139: 89 | M139: 90
D140: 91 | E140: 92 | F140: 93 | G140: 94 | H140: 95 | I140: 96 | J140: 97 | K140: 98 | L140: 99 | M140: 100
D143: Other
B145: Feeling of safety - feel safe walking down the street at night
D147: 1 | E147: 2 | F147: 3 | G147: 4 | H147: 5 | I147: 6 | J147: 7 | K147: 8 | L147: 9 | M147: 10 | O147: 1 | P147: 2 | Q147: 3 | R147: 4 | S147: 5 | T147: 6 | U147: 7 | V147: 8 | W147: 9 | X147: 10 | Z147: 1 | AA147: 2 | AB147: 3 | AC147: 4 | AD147: 5 | AE147: 6 | AF147: 7 | AG147: 8 | AH147: 9 | AI147: 10 | AK147: 1 | AL147: 2 | AM147: 3 | AN147: 4 | AO147: 5 | AP147: 6 | AQ147: 7 | AR147: 8 | AS147: 9 | AT147: 10
D148: 11 | E148: 12 | F148: 13 | G148: 14 | H148: 15 | I148: 16 | J148: 17 | K148: 18 | L148: 19 | M148: 20 | O148: 11 | P148: 12 | Q148: 13 | R148: 14 | S148: 15 | T148: 16 | U148: 17 | V148: 18 | W148: 19 | X148: 20 | Z148: 11 | AA148: 12 | AB148: 13 | AC148: 14 | AD148: 15 | AE148: 16 | AF148: 17 | AG148: 18 | AH148: 19 | AI148: 20 | AK148: 11 | AL148: 12 | AM148: 13 | AN148: 14 | AO148: 15 | AP148: 16 | AQ148: 17 | AR148: 18 | AS148: 19 | AT148: 20
D149: 21 | E149: 22 | F149: 23 | G149: 24 | H149: 25 | I149: 26 | J149: 27 | K149: 28 | L149: 29 | M149: 30 | O149: 21 | P149: 22 | Q149: 23 | R149: 24 | S149: 25 | T149: 26 | U149: 27 | V149: 28 | W149: 29 | X149: 30 | Z149: 21 | AA149: 22 | AB149: 23 | AC149: 24 | AD149: 25 | AE149: 26 | AF149: 27 | AG149: 28 | AH149: 29 | AI149: 30 | AK149: 21 | AL149: 22 | AM149: 23 | AN149: 24 | AO149: 25 | AP149: 26 | AQ149: 27 | AR149: 28 | AS149: 29 | AT149: 30
D150: 31 | E150: 32 | F150: 33 | G150: 34 | H150: 35 | I150: 36 | J150: 37 | K150: 38 | L150: 39 | M150: 40 | O150: 31 | P150: 32 | Q150: 33 | R150: 34 | S150: 35 | T150: 36 | U150: 37 | V150: 38 | W150: 39 | X150: 40 | Z150: 31 | AA150: 32 | AB150: 33 | AC150: 34 | AD150: 35 | AE150: 36 | AF150: 37 | AG150: 38 | AH150: 39 | AI150: 40 | AK150: 31 | AL150: 32 | AM150: 33 | AN150: 34 | AO150: 35 | AP150: 36 | AQ150: 37 | AR150: 38 | AS150: 39 | AT150: 40
D151: 41 | E151: 42 | F151: 43 | G151: 44 | H151: 45 | I151: 46 | J151: 47 | K151: 48 | L151: 49 | M151: 50 | O151: 41 | P151: 42 | Q151: 43 | R151: 44 | S151: 45 | T151: 46 | U151: 47 | V151: 48 | W151: 49 | X151: 50 | Z151: 41 | AA151: 42 | AB151: 43 | AC151: 44 | AD151: 45 | AE151: 46 | AF151: 47 | AG151: 48 | AH151: 49 | AI151: 50 | AK151: 41 | AL151: 42 | AM151: 43 | AN151: 44 | AO151: 45 | AP151: 46 | AQ151: 47 | AR151: 48 | AS151: 49 | AT151: 50
D152: 51 | E152: 52 | F152: 53 | G152: 54 | H152: 55 | I152: 56 | J152: 57 | K152: 58 | L152: 59 | M152: 60 | O152: 51 | P152: 52 | Q152: 53 | R152: 54 | S152: 55 | T152: 56 | U152: 57 | V152: 58 | W152: 59 | X152: 60 | Z152: 51 | AA152: 52 | AB152: 53 | AC152: 54 | AD152: 55 | AE152: 56 | AF152: 57 | AG152: 58 | AH152: 59 | AI152: 60 | AK152: 51 | AL152: 52 | AM152: 53 | AN152: 54 | AO152: 55 | AP152: 56 | AQ152: 57 | AR152: 58 | AS152: 59 | AT152: 60
D153: 61 | E153: 62 | F153: 63 | G153: 64 | H153: 65 | I153: 66 | J153: 67 | K153: 68 | L153: 69 | M153: 70 | O153: 61 | P153: 62 | Q153: 63 | R153: 64 | S153: 65 | T153: 66 | U153: 67 | V153: 68 | W153: 69 | X153: 70 | Z153: 61 | AA153: 62 | AB153: 63 | AC153: 64 | AD153: 65 | AE153: 66 | AF153: 67 | AG153: 68 | AH153: 69 | AI153: 70 | AK153: 61 | AL153: 62 | AM153: 63 | AN153: 64 | AO153: 65 | AP153: 66 | AQ153: 67 | AR153: 68 | AS153: 69 | AT153: 70
D154: 71 | E154: 72 | F154: 73 | G154: 74 | H154: 75 | I154: 76 | J154: 77 | K154: 78 | L154: 79 | M154: 80 | O154: 71 | P154: 72 | Q154: 73 | R154: 74 | S154: 75 | T154: 76 | U154: 77 | V154: 78 | W154: 79 | X154: 80 | Z154: 71 | AA154: 72 | AB154: 73 | AC154: 74 | AD154: 75 | AE154: 76 | AF154: 77 | AG154: 78 | AH154: 79 | AI154: 80 | AK154: 71 | AL154: 72 | AM154: 73 | AN154: 74 | AO154: 75 | AP154: 76 | AQ154: 77 | AR154: 78 | AS154: 79 | AT154: 80
D155: 81 | E155: 82 | F155: 83 | G155: 84 | H155: 85 | I155: 86 | J155: 87 | K155: 88 | L155: 89 | M155: 90 | O155: 81 | P155: 82 | Q155: 83 | R155: 84 | S155: 85 | T155: 86 | U155: 87 | V155: 88 | W155: 89 | X155: 90 | Z155: 81 | AA155: 82 | AB155: 83 | AC155: 84 | AD155: 85 | AE155: 86 | AF155: 87 | AG155: 88 | AH155: 89 | AI155: 90 | AK155: 81 | AL155: 82 | AM155: 83 | AN155: 84 | AO155: 85 | AP155: 86 | AQ155: 87 | AR155: 88 | AS155: 89 | AT155: 90
D156: 91 | E156: 92 | F156: 93 | G156: 94 | H156: 95 | I156: 96 | J156: 97 | K156: 98 | L156: 99 | M156: 100 | O156: 91 | P156: 92 | Q156: 93 | R156: 94 | S156: 95 | T156: 96 | U156: 97 | V156: 98 | W156: 99 | X156: 100 | Z156: 91 | AA156: 92 | AB156: 93 | AC156: 94 | AD156: 95 | AE156: 96 | AF156: 97 | AG156: 98 | AH156: 99 | AI156: 100 | AK156: 91 | AL156: 92 | AM156: 93 | AN156: 94 | AO156: 95 | AP156: 96 | AQ156: 97 | AR156: 98 | AS156: 99 | AT156: 100
D159: Never, or not often | O159: Sometimes | Z159: Yes, definitely
B161: Feeling of trust - most people can be trusted
D163: 1 | E163: 2 | F163: 3 | G163: 4 | H163: 5 | I163: 6 | J163: 7 | K163: 8 | L163: 9 | M163: 10 | O163: 1 | P163: 2 | Q163: 3 | R163: 4 | S163: 5 | T163: 6 | U163: 7 | V163: 8 | W163: 9 | X163: 10 | Z163: 1 | AA163: 2 | AB163: 3 | AC163: 4 | AD163: 5 | AE163: 6 | AF163: 7 | AG163: 8 | AH163: 9 | AI163: 10 | AK163: 1 | AL163: 2 | AM163: 3 | AN163: 4 | AO163: 5 | AP163: 6 | AQ163: 7 | AR163: 8 | AS163: 9 | AT163: 10
D164: 11 | E164: 12 | F164: 13 | G164: 14 | H164: 15 | I164: 16 | J164: 17 | K164: 18 | L164: 19 | M164: 20 | O164: 11 | P164: 12 | Q164: 13 | R164: 14 | S164: 15 | T164: 16 | U164: 17 | V164: 18 | W164: 19 | X164: 20 | Z164: 11 | AA164: 12 | AB164: 13 | AC164: 14 | AD164: 15 | AE164: 16 | AF164: 17 | AG164: 18 | AH164: 19 | AI164: 20 | AK164: 11 | AL164: 12 | AM164: 13 | AN164: 14 | AO164: 15 | AP164: 16 | AQ164: 17 | AR164: 18 | AS164: 19 | AT164: 20
D165: 21 | E165: 22 | F165: 23 | G165: 24 | H165: 25 | I165: 26 | J165: 27 | K165: 28 | L165: 29 | M165: 30 | O165: 21 | P165: 22 | Q165: 23 | R165: 24 | S165: 25 | T165: 26 | U165: 27 | V165: 28 | W165: 29 | X165: 30 | Z165: 21 | AA165: 22 | AB165: 23 | AC165: 24 | AD165: 25 | AE165: 26 | AF165: 27 | AG165: 28 | AH165: 29 | AI165: 30 | AK165: 21 | AL165: 22 | AM165: 23 | AN165: 24 | AO165: 25 | AP165: 26 | AQ165: 27 | AR165: 28 | AS165: 29 | AT165: 30
D166: 31 | E166: 32 | F166: 33 | G166: 34 | H166: 35 | I166: 36 | J166: 37 | K166: 38 | L166: 39 | M166: 40 | O166: 31 | P166: 32 | Q166: 33 | R166: 34 | S166: 35 | T166: 36 | U166: 37 | V166: 38 | W166: 39 | X166: 40 | Z166: 31 | AA166: 32 | AB166: 33 | AC166: 34 | AD166: 35 | AE166: 36 | AF166: 37 | AG166: 38 | AH166: 39 | AI166: 40 | AK166: 31 | AL166: 32 | AM166: 33 | AN166: 34 | AO166: 35 | AP166: 36 | AQ166: 37 | AR166: 38 | AS166: 39 | AT166: 40
D167: 41 | E167: 42 | F167: 43 | G167: 44 | H167: 45 | I167: 46 | J167: 47 | K167: 48 | L167: 49 | M167: 50 | O167: 41 | P167: 42 | Q167: 43 | R167: 44 | S167: 45 | T167: 46 | U167: 47 | V167: 48 | W167: 49 | X167: 50 | Z167: 41 | AA167: 42 | AB167: 43 | AC167: 44 | AD167: 45 | AE167: 46 | AF167: 47 | AG167: 48 | AH167: 49 | AI167: 50 | AK167: 41 | AL167: 42 | AM167: 43 | AN167: 44 | AO167: 45 | AP167: 46 | AQ167: 47 | AR167: 48 | AS167: 49 | AT167: 50
D168: 51 | E168: 52 | F168: 53 | G168: 54 | H168: 55 | I168: 56 | J168: 57 | K168: 58 | L168: 59 | M168: 60 | O168: 51 | P168: 52 | Q168: 53 | R168: 54 | S168: 55 | T168: 56 | U168: 57 | V168: 58 | W168: 59 | X168: 60 | Z168: 51 | AA168: 52 | AB168: 53 | AC168: 54 | AD168: 55 | AE168: 56 | AF168: 57 | AG168: 58 | AH168: 59 | AI168: 60 | AK168: 51 | AL168: 52 | AM168: 53 | AN168: 54 | AO168: 55 | AP168: 56 | AQ168: 57 | AR168: 58 | AS168: 59 | AT168: 60
D169: 61 | E169: 62 | F169: 63 | G169: 64 | H169: 65 | I169: 66 | J169: 67 | K169: 68 | L169: 69 | M169: 70 | O169: 61 | P169: 62 | Q169: 63 | R169: 64 | S169: 65 | T169: 66 | U169: 67 | V169: 68 | W169: 69 | X169: 70 | Z169: 61 | AA169: 62 | AB169: 63 | AC169: 64 | AD169: 65 | AE169: 66 | AF169: 67 | AG169: 68 | AH169: 69 | AI169: 70 | AK169: 61 | AL169: 62 | AM169: 63 | AN169: 64 | AO169: 65 | AP169: 66 | AQ169: 67 | AR169: 68 | AS169: 69 | AT169: 70
D170: 71 | E170: 72 | F170: 73 | G170: 74 | H170: 75 | I170: 76 | J170: 77 | K170: 78 | L170: 79 | M170: 80 | O170: 71 | P170: 72 | Q170: 73 | R170: 74 | S170: 75 | T170: 76 | U170: 77 | V170: 78 | W170: 79 | X170: 80 | Z170: 71 | AA170: 72 | AB170: 73 | AC170: 74 | AD170: 75 | AE170: 76 | AF170: 77 | AG170: 78 | AH170: 79 | AI170: 80 | AK170: 71 | AL170: 72 | AM170: 73 | AN170: 74 | AO170: 75 | AP170: 76 | AQ170: 77 | AR170: 78 | AS170: 79 | AT170: 80
D171: 81 | E171: 82 | F171: 83 | G171: 84 | H171: 85 | I171: 86 | J171: 87 | K171: 88 | L171: 89 | M171: 90 | O171: 81 | P171: 82 | Q171: 83 | R171: 84 | S171: 85 | T171: 86 | U171: 87 | V171: 88 | W171: 89 | X171: 90 | Z171: 81 | AA171: 82 | AB171: 83 | AC171: 84 | AD171: 85 | AE171: 86 | AF171: 87 | AG171: 88 | AH171: 89 | AI171: 90 | AK171: 81 | AL171: 82 | AM171: 83 | AN171: 84 | AO171: 85 | AP171: 86 | AQ171: 87 | AR171: 88 | AS171: 89 | AT171: 90
D172: 91 | E172: 92 | F172: 93 | G172: 94 | H172: 95 | I172: 96 | J172: 97 | K172: 98 | L172: 99 | M172: 100 | O172: 91 | P172: 92 | Q172: 93 | R172: 94 | S172: 95 | T172: 96 | U172: 97 | V172: 98 | W172: 99 | X172: 100 | Z172: 91 | AA172: 92 | AB172: 93 | AC172: 94 | AD172: 95 | AE172: 96 | AF172: 97 | AG172: 98 | AH172: 99 | AI172: 100 | AK172: 91 | AL172: 92 | AM172: 93 | AN172: 94 | AO172: 95 | AP172: 96 | AQ172: 97 | AR172: 98 | AS172: 99 | AT172: 100
D175: Never, or not often | O175: Sometimes | Z175: Yes, definitely
B177: Tolerance of diversity - multiculturalism makes life better in your area
D179: 1 | E179: 2 | F179: 3 | G179: 4 | H179: 5 | I179: 6 | J179: 7 | K179: 8 | L179: 9 | M179: 10 | O179: 1 | P179: 2 | Q179: 3 | R179: 4 | S179: 5 | T179: 6 | U179: 7 | V179: 8 | W179: 9 | X179: 10 | Z179: 1 | AA179: 2 | AB179: 3 | AC179: 4 | AD179: 5 | AE179: 6 | AF179: 7 | AG179: 8 | AH179: 9 | AI179: 10 | AK179: 1 | AL179: 2 | AM179: 3 | AN179: 4 | AO179: 5 | AP179: 6 | AQ179: 7 | AR179: 8 | AS179: 9 | AT179: 10
D180: 11 | E180: 12 | F180: 13 | G180: 14 | H180: 15 | I180: 16 | J180: 17 | K180: 18 | L180: 19 | M180: 20 | O180: 11 | P180: 12 | Q180: 13 | R180: 14 | S180: 15 | T180: 16 | U180: 17 | V180: 18 | W180: 19 | X180: 20 | Z180: 11 | AA180: 12 | AB180: 13 | AC180: 14 | AD180: 15 | AE180: 16 | AF180: 17 | AG180: 18 | AH180: 19 | AI180: 20 | AK180: 11 | AL180: 12 | AM180: 13 | AN180: 14 | AO180: 15 | AP180: 16 | AQ180: 17 | AR180: 18 | AS180: 19 | AT180: 20
D181: 21 | E181: 22 | F181: 23 | G181: 24 | H181: 25 | I181: 26 | J181: 27 | K181: 28 | L181: 29 | M181: 30 | O181: 21 | P181: 22 | Q181: 23 | R181: 24 | S181: 25 | T181: 26 | U181: 27 | V181: 28 | W181: 29 | X181: 30 | Z181: 21 | AA181: 22 | AB181: 23 | AC181: 24 | AD181: 25 | AE181: 26 | AF181: 27 | AG181: 28 | AH181: 29 | AI181: 30 | AK181: 21 | AL181: 22 | AM181: 23 | AN181: 24 | AO181: 25 | AP181: 26 | AQ181: 27 | AR181: 28 | AS181: 29 | AT181: 30
D182: 31 | E182: 32 | F182: 33 | G182: 34 | H182: 35 | I182: 36 | J182: 37 | K182: 38 | L182: 39 | M182: 40 | O182: 31 | P182: 32 | Q182: 33 | R182: 34 | S182: 35 | T182: 36 | U182: 37 | V182: 38 | W182: 39 | X182: 40 | Z182: 31 | AA182: 32 | AB182: 33 | AC182: 34 | AD182: 35 | AE182: 36 | AF182: 37 | AG182: 38 | AH182: 39 | AI182: 40 | AK182: 31 | AL182: 32 | AM182: 33 | AN182: 34 | AO182: 35 | AP182: 36 | AQ182: 37 | AR182: 38 | AS182: 39 | AT182: 40
D183: 41 | E183: 42 | F183: 43 | G183: 44 | H183: 45 | I183: 46 | J183: 47 | K183: 48 | L183: 49 | M183: 50 | O183: 41 | P183: 42 | Q183: 43 | R183: 44 | S183: 45 | T183: 46 | U183: 47 | V183: 48 | W183: 49 | X183: 50 | Z183: 41 | AA183: 42 | AB183: 43 | AC183: 44 | AD183: 45 | AE183: 46 | AF183: 47 | AG183: 48 | AH183: 49 | AI183: 50 | AK183: 41 | AL183: 42 | AM183: 43 | AN183: 44 | AO183: 45 | AP183: 46 | AQ183: 47 | AR183: 48 | AS183: 49 | AT183: 50
D184: 51 | E184: 52 | F184: 53 | G184: 54 | H184: 55 | I184: 56 | J184: 57 | K184: 58 | L184: 59 | M184: 60 | O184: 51 | P184: 52 | Q184: 53 | R184: 54 | S184: 55 | T184: 56 | U184: 57 | V184: 58 | W184: 59 | X184: 60 | Z184: 51 | AA184: 52 | AB184: 53 | AC184: 54 | AD184: 55 | AE184: 56 | AF184: 57 | AG184: 58 | AH184: 59 | AI184: 60 | AK184: 51 | AL184: 52 | AM184: 53 | AN184: 54 | AO184: 55 | AP184: 56 | AQ184: 57 | AR184: 58 | AS184: 59 | AT184: 60
D185: 61 | E185: 62 | F185: 63 | G185: 64 | H185: 65 | I185: 66 | J185: 67 | K185: 68 | L185: 69 | M185: 70 | O185: 61 | P185: 62 | Q185: 63 | R185: 64 | S185: 65 | T185: 66 | U185: 67 | V185: 68 | W185: 69 | X185: 70 | Z185: 61 | AA185: 62 | AB185: 63 | AC185: 64 | AD185: 65 | AE185: 66 | AF185: 67 | AG185: 68 | AH185: 69 | AI185: 70 | AK185: 61 | AL185: 62 | AM185: 63 | AN185: 64 | AO185: 65 | AP185: 66 | AQ185: 67 | AR185: 68 | AS185: 69 | AT185: 70
D186: 71 | E186: 72 | F186: 73 | G186: 74 | H186: 75 | I186: 76 | J186: 77 | K186: 78 | L186: 79 | M186: 80 | O186: 71 | P186: 72 | Q186: 73 | R186: 74 | S186: 75 | T186: 76 | U186: 77 | V186: 78 | W186: 79 | X186: 80 | Z186: 71 | AA186: 72 | AB186: 73 | AC186: 74 | AD186: 75 | AE186: 76 | AF186: 77 | AG186: 78 | AH186: 79 | AI186: 80 | AK186: 71 | AL186: 72 | AM186: 73 | AN186: 74 | AO186: 75 | AP186: 76 | AQ186: 77 | AR186: 78 | AS186: 79 | AT186: 80
D187: 81 | E187: 82 | F187: 83 | G187: 84 | H187: 85 | I187: 86 | J187: 87 | K187: 88 | L187: 89 | M187: 90 | O187: 81 | P187: 82 | Q187: 83 | R187: 84 | S187: 85 | T187: 86 | U187: 87 | V187: 88 | W187: 89 | X187: 90 | Z187: 81 | AA187: 82 | AB187: 83 | AC187: 84 | AD187: 85 | AE187: 86 | AF187: 87 | AG187: 88 | AH187: 89 | AI187: 90 | AK187: 81 | AL187: 82 | AM187: 83 | AN187: 84 | AO187: 85 | AP187: 86 | AQ187: 87 | AR187: 88 | AS187: 89 | AT187: 90
D188: 91 | E188: 92 | F188: 93 | G188: 94 | H188: 95 | I188: 96 | J188: 97 | K188: 98 | L188: 99 | M188: 100 | O188: 91 | P188: 92 | Q188: 93 | R188: 94 | S188: 95 | T188: 96 | U188: 97 | V188: 98 | W188: 99 | X188: 100 | Z188: 91 | AA188: 92 | AB188: 93 | AC188: 94 | AD188: 95 | AE188: 96 | AF188: 97 | AG188: 98 | AH188: 99 | AI188: 100 | AK188: 91 | AL188: 92 | AM188: 93 | AN188: 94 | AO188: 95 | AP188: 96 | AQ188: 97 | AR188: 98 | AS188: 99 | AT188: 100
D191: Never, or not often | O191: Sometimes | Z191: Yes, definitely | AK191: Not applicable
B193: Feeling valued by society
D195: 1 | E195: 2 | F195: 3 | G195: 4 | H195: 5 | I195: 6 | J195: 7 | K195: 8 | L195: 9 | M195: 10 | O195: 1 | P195: 2 | Q195: 3 | R195: 4 | S195: 5 | T195: 6 | U195: 7 | V195: 8 | W195: 9 | X195: 10 | Z195: 1 | AA195: 2 | AB195: 3 | AC195: 4 | AD195: 5 | AE195: 6 | AF195: 7 | AG195: 8 | AH195: 9 | AI195: 10 | AK195: 1 | AL195: 2 | AM195: 3 | AN195: 4 | AO195: 5 | AP195: 6 | AQ195: 7 | AR195: 8 | AS195: 9 | AT195: 10
D196: 11 | E196: 12 | F196: 13 | G196: 14 | H196: 15 | I196: 16 | J196: 17 | K196: 18 | L196: 19 | M196: 20 | O196: 11 | P196: 12 | Q196: 13 | R196: 14 | S196: 15 | T196: 16 | U196: 17 | V196: 18 | W196: 19 | X196: 20 | Z196: 11 | AA196: 12 | AB196: 13 | AC196: 14 | AD196: 15 | AE196: 16 | AF196: 17 | AG196: 18 | AH196: 19 | AI196: 20 | AK196: 11 | AL196: 12 | AM196: 13 | AN196: 14 | AO196: 15 | AP196: 16 | AQ196: 17 | AR196: 18 | AS196: 19 | AT196: 20
D197: 21 | E197: 22 | F197: 23 | G197: 24 | H197: 25 | I197: 26 | J197: 27 | K197: 28 | L197: 29 | M197: 30 | O197: 21 | P197: 22 | Q197: 23 | R197: 24 | S197: 25 | T197: 26 | U197: 27 | V197: 28 | W197: 29 | X197: 30 | Z197: 21 | AA197: 22 | AB197: 23 | AC197: 24 | AD197: 25 | AE197: 26 | AF197: 27 | AG197: 28 | AH197: 29 | AI197: 30 | AK197: 21 | AL197: 22 | AM197: 23 | AN197: 24 | AO197: 25 | AP197: 26 | AQ197: 27 | AR197: 28 | AS197: 29 | AT197: 30
D198: 31 | E198: 32 | F198: 33 | G198: 34 | H198: 35 | I198: 36 | J198: 37 | K198: 38 | L198: 39 | M198: 40 | O198: 31 | P198: 32 | Q198: 33 | R198: 34 | S198: 35 | T198: 36 | U198: 37 | V198: 38 | W198: 39 | X198: 40 | Z198: 31 | AA198: 32 | AB198: 33 | AC198: 34 | AD198: 35 | AE198: 36 | AF198: 37 | AG198: 38 | AH198: 39 | AI198: 40 | AK198: 31 | AL198: 32 | AM198: 33 | AN198: 34 | AO198: 35 | AP198: 36 | AQ198: 37 | AR198: 38 | AS198: 39 | AT198: 40
D199: 41 | E199: 42 | F199: 43 | G199: 44 | H199: 45 | I199: 46 | J199: 47 | K199: 48 | L199: 49 | M199: 50 | O199: 41 | P199: 42 | Q199: 43 | R199: 44 | S199: 45 | T199: 46 | U199: 47 | V199: 48 | W199: 49 | X199: 50 | Z199: 41 | AA199: 42 | AB199: 43 | AC199: 44 | AD199: 45 | AE199: 46 | AF199: 47 | AG199: 48 | AH199: 49 | AI199: 50 | AK199: 41 | AL199: 42 | AM199: 43 | AN199: 44 | AO199: 45 | AP199: 46 | AQ199: 47 | AR199: 48 | AS199: 49 | AT199: 50
D200: 51 | E200: 52 | F200: 53 | G200: 54 | H200: 55 | I200: 56 | J200: 57 | K200: 58 | L200: 59 | M200: 60 | O200: 51 | P200: 52 | Q200: 53 | R200: 54 | S200: 55 | T200: 56 | U200: 57 | V200: 58 | W200: 59 | X200: 60 | Z200: 51 | AA200: 52 | AB200: 53 | AC200: 54 | AD200: 55 | AE200: 56 | AF200: 57 | AG200: 58 | AH200: 59 | AI200: 60 | AK200: 51 | AL200: 52 | AM200: 53 | AN200: 54 | AO200: 55 | AP200: 56 | AQ200: 57 | AR200: 58 | AS200: 59 | AT200: 60
D201: 61 | E201: 62 | F201: 63 | G201: 64 | H201: 65 | I201: 66 | J201: 67 | K201: 68 | L201: 69 | M201: 70 | O201: 61 | P201: 62 | Q201: 63 | R201: 64 | S201: 65 | T201: 66 | U201: 67 | V201: 68 | W201: 69 | X201: 70 | Z201: 61 | AA201: 62 | AB201: 63 | AC201: 64 | AD201: 65 | AE201: 66 | AF201: 67 | AG201: 68 | AH201: 69 | AI201: 70 | AK201: 61 | AL201: 62 | AM201: 63 | AN201: 64 | AO201: 65 | AP201: 66 | AQ201: 67 | AR201: 68 | AS201: 69 | AT201: 70
D202: 71 | E202: 72 | F202: 73 | G202: 74 | H202: 75 | I202: 76 | J202: 77 | K202: 78 | L202: 79 | M202: 80 | O202: 71 | P202: 72 | Q202: 73 | R202: 74 | S202: 75 | T202: 76 | U202: 77 | V202: 78 | W202: 79 | X202: 80 | Z202: 71 | AA202: 72 | AB202: 73 | AC202: 74 | AD202: 75 | AE202: 76 | AF202: 77 | AG202: 78 | AH202: 79 | AI202: 80 | AK202: 71 | AL202: 72 | AM202: 73 | AN202: 74 | AO202: 75 | AP202: 76 | AQ202: 77 | AR202: 78 | AS202: 79 | AT202: 80
D203: 81 | E203: 82 | F203: 83 | G203: 84 | H203: 85 | I203: 86 | J203: 87 | K203: 88 | L203: 89 | M203: 90 | O203: 81 | P203: 82 | Q203: 83 | R203: 84 | S203: 85 | T203: 86 | U203: 87 | V203: 88 | W203: 89 | X203: 90 | Z203: 81 | AA203: 82 | AB203: 83 | AC203: 84 | AD203: 85 | AE203: 86 | AF203: 87 | AG203: 88 | AH203: 89 | AI203: 90 | AK203: 81 | AL203: 82 | AM203: 83 | AN203: 84 | AO203: 85 | AP203: 86 | AQ203: 87 | AR203: 88 | AS203: 89 | AT203: 90
D204: 91 | E204: 92 | F204: 93 | G204: 94 | H204: 95 | I204: 96 | J204: 97 | K204: 98 | L204: 99 | M204: 100 | O204: 91 | P204: 92 | Q204: 93 | R204: 94 | S204: 95 | T204: 96 | U204: 97 | V204: 98 | W204: 99 | X204: 100 | Z204: 91 | AA204: 92 | AB204: 93 | AC204: 94 | AD204: 95 | AE204: 96 | AF204: 97 | AG204: 98 | AH204: 99 | AI204: 100 | AK204: 91 | AL204: 92 | AM204: 93 | AN204: 94 | AO204: 95 | AP204: 96 | AQ204: 97 | AR204: 98 | AS204: 99 | AT204: 100
D207: Never, or not often | O207: Sometimes | Z207: Yes, definitely
B209: Have a real say on issues important to them
D211: 1 | E211: 2 | F211: 3 | G211: 4 | H211: 5 | I211: 6 | J211: 7 | K211: 8 | L211: 9 | M211: 10 | O211: 1 | P211: 2 | Q211: 3 | R211: 4 | S211: 5 | T211: 6 | U211: 7 | V211: 8 | W211: 9 | X211: 10 | Z211: 1 | AA211: 2 | AB211: 3 | AC211: 4 | AD211: 5 | AE211: 6 | AF211: 7 | AG211: 8 | AH211: 9 | AI211: 10 | AK211: 1 | AL211: 2 | AM211: 3 | AN211: 4 | AO211: 5 | AP211: 6 | AQ211: 7 | AR211: 8 | AS211: 9 | AT211: 10
D212: 11 | E212: 12 | F212: 13 | G212: 14 | H212: 15 | I212: 16 | J212: 17 | K212: 18 | L212: 19 | M212: 20 | O212: 11 | P212: 12 | Q212: 13 | R212: 14 | S212: 15 | T212: 16 | U212: 17 | V212: 18 | W212: 19 | X212: 20 | Z212: 11 | AA212: 12 | AB212: 13 | AC212: 14 | AD212: 15 | AE212: 16 | AF212: 17 | AG212: 18 | AH212: 19 | AI212: 20 | AK212: 11 | AL212: 12 | AM212: 13 | AN212: 14 | AO212: 15 | AP212: 16 | AQ212: 17 | AR212: 18 | AS212: 19 | AT212: 20
D213: 21 | E213: 22 | F213: 23 | G213: 24 | H213: 25 | I213: 26 | J213: 27 | K213: 28 | L213: 29 | M213: 30 | O213: 21 | P213: 22 | Q213: 23 | R213: 24 | S213: 25 | T213: 26 | U213: 27 | V213: 28 | W213: 29 | X213: 30 | Z213: 21 | AA213: 22 | AB213: 23 | AC213: 24 | AD213: 25 | AE213: 26 | AF213: 27 | AG213: 28 | AH213: 29 | AI213: 30 | AK213: 21 | AL213: 22 | AM213: 23 | AN213: 24 | AO213: 25 | AP213: 26 | AQ213: 27 | AR213: 28 | AS213: 29 | AT213: 30
D214: 31 | E214: 32 | F214: 33 | G214: 34 | H214: 35 | I214: 36 | J214: 37 | K214: 38 | L214: 39 | M214: 40 | O214: 31 | P214: 32 | Q214: 33 | R214: 34 | S214: 35 | T214: 36 | U214: 37 | V214: 38 | W214: 39 | X214: 40 | Z214: 31 | AA214: 32 | AB214: 33 | AC214: 34 | AD214: 35 | AE214: 36 | AF214: 37 | AG214: 38 | AH214: 39 | AI214: 40 | AK214: 31 | AL214: 32 | AM214: 33 | AN214: 34 | AO214: 35 | AP214: 36 | AQ214: 37 | AR214: 38 | AS214: 39 | AT214: 40
D215: 41 | E215: 42 | F215: 43 | G215: 44 | H215: 45 | I215: 46 | J215: 47 | K215: 48 | L215: 49 | M215: 50 | O215: 41 | P215: 42 | Q215: 43 | R215: 44 | S215: 45 | T215: 46 | U215: 47 | V215: 48 | W215: 49 | X215: 50 | Z215: 41 | AA215: 42 | AB215: 43 | AC215: 44 | AD215: 45 | AE215: 46 | AF215: 47 | AG215: 48 | AH215: 49 | AI215: 50 | AK215: 41 | AL215: 42 | AM215: 43 | AN215: 44 | AO215: 45 | AP215: 46 | AQ215: 47 | AR215: 48 | AS215: 49 | AT215: 50
D216: 51 | E216: 52 | F216: 53 | G216: 54 | H216: 55 | I216: 56 | J216: 57 | K216: 58 | L216: 59 | M216: 60 | O216: 51 | P216: 52 | Q216: 53 | R216: 54 | S216: 55 | T216: 56 | U216: 57 | V216: 58 | W216: 59 | X216: 60 | Z216: 51 | AA216: 52 | AB216: 53 | AC216: 54 | AD216: 55 | AE216: 56 | AF216: 57 | AG216: 58 | AH216: 59 | AI216: 60 | AK216: 51 | AL216: 52 | AM216: 53 | AN216: 54 | AO216: 55 | AP216: 56 | AQ216: 57 | AR216: 58 | AS216: 59 | AT216: 60
D217: 61 | E217: 62 | F217: 63 | G217: 64 | H217: 65 | I217: 66 | J217: 67 | K217: 68 | L217: 69 | M217: 70 | O217: 61 | P217: 62 | Q217: 63 | R217: 64 | S217: 65 | T217: 66 | U217: 67 | V217: 68 | W217: 69 | X217: 70 | Z217: 61 | AA217: 62 | AB217: 63 | AC217: 64 | AD217: 65 | AE217: 66 | AF217: 67 | AG217: 68 | AH217: 69 | AI217: 70 | AK217: 61 | AL217: 62 | AM217: 63 | AN217: 64 | AO217: 65 | AP217: 66 | AQ217: 67 | AR217: 68 | AS217: 69 | AT217: 70
D218: 71 | E218: 72 | F218: 73 | G218: 74 | H218: 75 | I218: 76 | J218: 77 | K218: 78 | L218: 79 | M218: 80 | O218: 71 | P218: 72 | Q218: 73 | R218: 74 | S218: 75 | T218: 76 | U218: 77 | V218: 78 | W218: 79 | X218: 80 | Z218: 71 | AA218: 72 | AB218: 73 | AC218: 74 | AD218: 75 | AE218: 76 | AF218: 77 | AG218: 78 | AH218: 79 | AI218: 80 | AK218: 71 | AL218: 72 | AM218: 73 | AN218: 74 | AO218: 75 | AP218: 76 | AQ218: 77 | AR218: 78 | AS218: 79 | AT218: 80
D219: 81 | E219: 82 | F219: 83 | G219: 84 | H219: 85 | I219: 86 | J219: 87 | K219: 88 | L219: 89 | M219: 90 | O219: 81 | P219: 82 | Q219: 83 | R219: 84 | S219: 85 | T219: 86 | U219: 87 | V219: 88 | W219: 89 | X219: 90 | Z219: 81 | AA219: 82 | AB219: 83 | AC219: 84 | AD219: 85 | AE219: 86 | AF219: 87 | AG219: 88 | AH219: 89 | AI219: 90 | AK219: 81 | AL219: 82 | AM219: 83 | AN219: 84 | AO219: 85 | AP219: 86 | AQ219: 87 | AR219: 88 | AS219: 89 | AT219: 90
D220: 91 | E220: 92 | F220: 93 | G220: 94 | H220: 95 | I220: 96 | J220: 97 | K220: 98 | L220: 99 | M220: 100 | O220: 91 | P220: 92 | Q220: 93 | R220: 94 | S220: 95 | T220: 96 | U220: 97 | V220: 98 | W220: 99 | X220: 100 | Z220: 91 | AA220: 92 | AB220: 93 | AC220: 94 | AD220: 95 | AE220: 96 | AF220: 97 | AG220: 98 | AH220: 99 | AI220: 100 | AK220: 91 | AL220: 92 | AM220: 93 | AN220: 94 | AO220: 95 | AP220: 96 | AQ220: 97 | AR220: 98 | AS220: 99 | AT220: 100
D223: Never, or not often | O223: Sometimes | Z223: Yes, definitely
B225: Helps out a local group as a volunteer
D227: 1 | E227: 2 | F227: 3 | G227: 4 | H227: 5 | I227: 6 | J227: 7 | K227: 8 | L227: 9 | M227: 10 | AK227: 1 | AL227: 2 | AM227: 3 | AN227: 4 | AO227: 5 | AP227: 6 | AQ227: 7 | AR227: 8 | AS227: 9 | AT227: 10
D228: 11 | E228: 12 | F228: 13 | G228: 14 | H228: 15 | I228: 16 | J228: 17 | K228: 18 | L228: 19 | M228: 20 | AK228: 11 | AL228: 12 | AM228: 13 | AN228: 14 | AO228: 15 | AP228: 16 | AQ228: 17 | AR228: 18 | AS228: 19 | AT228: 20
D229: 21 | E229: 22 | F229: 23 | G229: 24 | H229: 25 | I229: 26 | J229: 27 | K229: 28 | L229: 29 | M229: 30 | AK229: 21 | AL229: 22 | AM229: 23 | AN229: 24 | AO229: 25 | AP229: 26 | AQ229: 27 | AR229: 28 | AS229: 29 | AT229: 30
D230: 31 | E230: 32 | F230: 33 | G230: 34 | H230: 35 | I230: 36 | J230: 37 | K230: 38 | L230: 39 | M230: 40 | AK230: 31 | AL230: 32 | AM230: 33 | AN230: 34 | AO230: 35 | AP230: 36 | AQ230: 37 | AR230: 38 | AS230: 39 | AT230: 40
D231: 41 | E231: 42 | F231: 43 | G231: 44 | H231: 45 | I231: 46 | J231: 47 | K231: 48 | L231: 49 | M231: 50 | AK231: 41 | AL231: 42 | AM231: 43 | AN231: 44 | AO231: 45 | AP231: 46 | AQ231: 47 | AR231: 48 | AS231: 49 | AT231: 50
D232: 51 | E232: 52 | F232: 53 | G232: 54 | H232: 55 | I232: 56 | J232: 57 | K232: 58 | L232: 59 | M232: 60 | AK232: 51 | AL232: 52 | AM232: 53 | AN232: 54 | AO232: 55 | AP232: 56 | AQ232: 57 | AR232: 58 | AS232: 59 | AT232: 60
D233: 61 | E233: 62 | F233: 63 | G233: 64 | H233: 65 | I233: 66 | J233: 67 | K233: 68 | L233: 69 | M233: 70 | AK233: 61 | AL233: 62 | AM233: 63 | AN233: 64 | AO233: 65 | AP233: 66 | AQ233: 67 | AR233: 68 | AS233: 69 | AT233: 70
D234: 71 | E234: 72 | F234: 73 | G234: 74 | H234: 75 | I234: 76 | J234: 77 | K234: 78 | L234: 79 | M234: 80 | AK234: 71 | AL234: 72 | AM234: 73 | AN234: 74 | AO234: 75 | AP234: 76 | AQ234: 77 | AR234: 78 | AS234: 79 | AT234: 80
D235: 81 | E235: 82 | F235: 83 | G235: 84 | H235: 85 | I235: 86 | J235: 87 | K235: 88 | L235: 89 | M235: 90 | AK235: 81 | AL235: 82 | AM235: 83 | AN235: 84 | AO235: 85 | AP235: 86 | AQ235: 87 | AR235: 88 | AS235: 89 | AT235: 90
D236: 91 | E236: 92 | F236: 93 | G236: 94 | H236: 95 | I236: 96 | J236: 97 | K236: 98 | L236: 99 | M236: 100 | AK236: 91 | AL236: 92 | AM236: 93 | AN236: 94 | AO236: 95 | AP236: 96 | AQ236: 97 | AR236: 98 | AS236: 99 | AT236: 100
B240: Neighbourhood tenure (years)
D242: 1 | E242: 2 | F242: 3 | G242: 4 | H242: 5 | I242: 6 | J242: 7 | K242: 8 | L242: 9 | M242: 10 | O242: 1 | P242: 2 | Q242: 3 | R242: 4 | S242: 5 | T242: 6 | U242: 7 | V242: 8 | W242: 9 | X242: 10 | Z242: 1 | AA242: 2 | AB242: 3 | AC242: 4 | AD242: 5 | AE242: 6 | AF242: 7 | AG242: 8 | AH242: 9 | AI242: 10 | AK242: 1 | AL242: 2 | AM242: 3 | AN242: 4 | AO242: 5 | AP242: 6 | AQ242: 7 | AR242: 8 | AS242: 9 | AT242: 10
D243: 11 | E243: 12 | F243: 13 | G243: 14 | H243: 15 | I243: 16 | J243: 17 | K243: 18 | L243: 19 | M243: 20 | O243: 11 | P243: 12 | Q243: 13 | R243: 14 | S243: 15 | T243: 16 | U243: 17 | V243: 18 | W243: 19 | X243: 20 | Z243: 11 | AA243: 12 | AB243: 13 | AC243: 14 | AD243: 15 | AE243: 16 | AF243: 17 | AG243: 18 | AH243: 19 | AI243: 20 | AK243: 11 | AL243: 12 | AM243: 13 | AN243: 14 | AO243: 15 | AP243: 16 | AQ243: 17 | AR243: 18 | AS243: 19 | AT243: 20
D244: 21 | E244: 22 | F244: 23 | G244: 24 | H244: 25 | I244: 26 | J244: 27 | K244: 28 | L244: 29 | M244: 30 | O244: 21 | P244: 22 | Q244: 23 | R244: 24 | S244: 25 | T244: 26 | U244: 27 | V244: 28 | W244: 29 | X244: 30 | Z244: 21 | AA244: 22 | AB244: 23 | AC244: 24 | AD244: 25 | AE244: 26 | AF244: 27 | AG244: 28 | AH244: 29 | AI244: 30 | AK244: 21 | AL244: 22 | AM244: 23 | AN244: 24 | AO244: 25 | AP244: 26 | AQ244: 27 | AR244: 28 | AS244: 29 | AT244: 30
D245: 31 | E245: 32 | F245: 33 | G245: 34 | H245: 35 | I245: 36 | J245: 37 | K245: 38 | L245: 39 | M245: 40 | O245: 31 | P245: 32 | Q245: 33 | R245: 34 | S245: 35 | T245: 36 | U245: 37 | V245: 38 | W245: 39 | X245: 40 | Z245: 31 | AA245: 32 | AB245: 33 | AC245: 34 | AD245: 35 | AE245: 36 | AF245: 37 | AG245: 38 | AH245: 39 | AI245: 40 | AK245: 31 | AL245: 32 | AM245: 33 | AN245: 34 | AO245: 35 | AP245: 36 | AQ245: 37 | AR245: 38 | AS245: 39 | AT245: 40
D246: 41 | E246: 42 | F246: 43 | G246: 44 | H246: 45 | I246: 46 | J246: 47 | K246: 48 | L246: 49 | M246: 50 | O246: 41 | P246: 42 | Q246: 43 | R246: 44 | S246: 45 | T246: 46 | U246: 47 | V246: 48 | W246: 49 | X246: 50 | Z246: 41 | AA246: 42 | AB246: 43 | AC246: 44 | AD246: 45 | AE246: 46 | AF246: 47 | AG246: 48 | AH246: 49 | AI246: 50 | AK246: 41 | AL246: 42 | AM246: 43 | AN246: 44 | AO246: 45 | AP246: 46 | AQ246: 47 | AR246: 48 | AS246: 49 | AT246: 50
D247: 51 | E247: 52 | F247: 53 | G247: 54 | H247: 55 | I247: 56 | J247: 57 | K247: 58 | L247: 59 | M247: 60 | O247: 51 | P247: 52 | Q247: 53 | R247: 54 | S247: 55 | T247: 56 | U247: 57 | V247: 58 | W247: 59 | X247: 60 | Z247: 51 | AA247: 52 | AB247: 53 | AC247: 54 | AD247: 55 | AE247: 56 | AF247: 57 | AG247: 58 | AH247: 59 | AI247: 60 | AK247: 51 | AL247: 52 | AM247: 53 | AN247: 54 | AO247: 55 | AP247: 56 | AQ247: 57 | AR247: 58 | AS247: 59 | AT247: 60
D248: 61 | E248: 62 | F248: 63 | G248: 64 | H248: 65 | I248: 66 | J248: 67 | K248: 68 | L248: 69 | M248: 70 | O248: 61 | P248: 62 | Q248: 63 | R248: 64 | S248: 65 | T248: 66 | U248: 67 | V248: 68 | W248: 69 | X248: 70 | Z248: 61 | AA248: 62 | AB248: 63 | AC248: 64 | AD248: 65 | AE248: 66 | AF248: 67 | AG248: 68 | AH248: 69 | AI248: 70 | AK248: 61 | AL248: 62 | AM248: 63 | AN248: 64 | AO248: 65 | AP248: 66 | AQ248: 67 | AR248: 68 | AS248: 69 | AT248: 70
D249: 71 | E249: 72 | F249: 73 | G249: 74 | H249: 75 | I249: 76 | J249: 77 | K249: 78 | L249: 79 | M249: 80 | O249: 71 | P249: 72 | Q249: 73 | R249: 74 | S249: 75 | T249: 76 | U249: 77 | V249: 78 | W249: 79 | X249: 80 | Z249: 71 | AA249: 72 | AB249: 73 | AC249: 74 | AD249: 75 | AE249: 76 | AF249: 77 | AG249: 78 | AH249: 79 | AI249: 80 | AK249: 71 | AL249: 72 | AM249: 73 | AN249: 74 | AO249: 75 | AP249: 76 | AQ249: 77 | AR249: 78 | AS249: 79 | AT249: 80
D250: 81 | E250: 82 | F250: 83 | G250: 84 | H250: 85 | I250: 86 | J250: 87 | K250: 88 | L250: 89 | M250: 90 | O250: 81 | P250: 82 | Q250: 83 | R250: 84 | S250: 85 | T250: 86 | U250: 87 | V250: 88 | W250: 89 | X250: 90 | Z250: 81 | AA250: 82 | AB250: 83 | AC250: 84 | AD250: 85 | AE250: 86 | AF250: 87 | AG250: 88 | AH250: 89 | AI250: 90 | AK250: 81 | AL250: 82 | AM250: 83 | AN250: 84 | AO250: 85 | AP250: 86 | AQ250: 87 | AR250: 88 | AS250: 89 | AT250: 90
D251: 91 | E251: 92 | F251: 93 | G251: 94 | H251: 95 | I251: 96 | J251: 97 | K251: 98 | L251: 99 | M251: 100 | O251: 91 | P251: 92 | Q251: 93 | R251: 94 | S251: 95 | T251: 96 | U251: 97 | V251: 98 | W251: 99 | X251: 100 | Z251: 91 | AA251: 92 | AB251: 93 | AC251: 94 | AD251: 95 | AE251: 96 | AF251: 97 | AG251: 98 | AH251: 99 | AI251: 100 | AK251: 91 | AL251: 92 | AM251: 93 | AN251: 94 | AO251: 95 | AP251: 96 | AQ251: 97 | AR251: 98 | AS251: 99 | AT251: 100
D254: < 1 year | O254: > 1 but ≤ 5 years | Z254: > 5 but ≤ 10 years | AK254: > 10 years
B256: Home ownership status
D258: 1 | E258: 2 | F258: 3 | G258: 4 | H258: 5 | I258: 6 | J258: 7 | K258: 8 | L258: 9 | M258: 10 | O258: 1 | P258: 2 | Q258: 3 | R258: 4 | S258: 5 | T258: 6 | U258: 7 | V258: 8 | W258: 9 | X258: 10 | Z258: 1 | AA258: 2 | AB258: 3 | AC258: 4 | AD258: 5 | AE258: 6 | AF258: 7 | AG258: 8 | AH258: 9 | AI258: 10 | AK258: 1 | AL258: 2 | AM258: 3 | AN258: 4 | AO258: 5 | AP258: 6 | AQ258: 7 | AR258: 8 | AS258: 9 | AT258: 10
D259: 11 | E259: 12 | F259: 13 | G259: 14 | H259: 15 | I259: 16 | J259: 17 | K259: 18 | L259: 19 | M259: 20 | O259: 11 | P259: 12 | Q259: 13 | R259: 14 | S259: 15 | T259: 16 | U259: 17 | V259: 18 | W259: 19 | X259: 20 | Z259: 11 | AA259: 12 | AB259: 13 | AC259: 14 | AD259: 15 | AE259: 16 | AF259: 17 | AG259: 18 | AH259: 19 | AI259: 20 | AK259: 11 | AL259: 12 | AM259: 13 | AN259: 14 | AO259: 15 | AP259: 16 | AQ259: 17 | AR259: 18 | AS259: 19 | AT259: 20
D260: 21 | E260: 22 | F260: 23 | G260: 24 | H260: 25 | I260: 26 | J260: 27 | K260: 28 | L260: 29 | M260: 30 | O260: 21 | P260: 22 | Q260: 23 | R260: 24 | S260: 25 | T260: 26 | U260: 27 | V260: 28 | W260: 29 | X260: 30 | Z260: 21 | AA260: 22 | AB260: 23 | AC260: 24 | AD260: 25 | AE260: 26 | AF260: 27 | AG260: 28 | AH260: 29 | AI260: 30 | AK260: 21 | AL260: 22 | AM260: 23 | AN260: 24 | AO260: 25 | AP260: 26 | AQ260: 27 | AR260: 28 | AS260: 29 | AT260: 30
D261: 31 | E261: 32 | F261: 33 | G261: 34 | H261: 35 | I261: 36 | J261: 37 | K261: 38 | L261: 39 | M261: 40 | O261: 31 | P261: 32 | Q261: 33 | R261: 34 | S261: 35 | T261: 36 | U261: 37 | V261: 38 | W261: 39 | X261: 40 | Z261: 31 | AA261: 32 | AB261: 33 | AC261: 34 | AD261: 35 | AE261: 36 | AF261: 37 | AG261: 38 | AH261: 39 | AI261: 40 | AK261: 31 | AL261: 32 | AM261: 33 | AN261: 34 | AO261: 35 | AP261: 36 | AQ261: 37 | AR261: 38 | AS261: 39 | AT261: 40
D262: 41 | E262: 42 | F262: 43 | G262: 44 | H262: 45 | I262: 46 | J262: 47 | K262: 48 | L262: 49 | M262: 50 | O262: 41 | P262: 42 | Q262: 43 | R262: 44 | S262: 45 | T262: 46 | U262: 47 | V262: 48 | W262: 49 | X262: 50 | Z262: 41 | AA262: 42 | AB262: 43 | AC262: 44 | AD262: 45 | AE262: 46 | AF262: 47 | AG262: 48 | AH262: 49 | AI262: 50 | AK262: 41 | AL262: 42 | AM262: 43 | AN262: 44 | AO262: 45 | AP262: 46 | AQ262: 47 | AR262: 48 | AS262: 49 | AT262: 50
D263: 51 | E263: 52 | F263: 53 | G263: 54 | H263: 55 | I263: 56 | J263: 57 | K263: 58 | L263: 59 | M263: 60 | O263: 51 | P263: 52 | Q263: 53 | R263: 54 | S263: 55 | T263: 56 | U263: 57 | V263: 58 | W263: 59 | X263: 60 | Z263: 51 | AA263: 52 | AB263: 53 | AC263: 54 | AD263: 55 | AE263: 56 | AF263: 57 | AG263: 58 | AH263: 59 | AI263: 60 | AK263: 51 | AL263: 52 | AM263: 53 | AN263: 54 | AO263: 55 | AP263: 56 | AQ263: 57 | AR263: 58 | AS263: 59 | AT263: 60
D264: 61 | E264: 62 | F264: 63 | G264: 64 | H264: 65 | I264: 66 | J264: 67 | K264: 68 | L264: 69 | M264: 70 | O264: 61 | P264: 62 | Q264: 63 | R264: 64 | S264: 65 | T264: 66 | U264: 67 | V264: 68 | W264: 69 | X264: 70 | Z264: 61 | AA264: 62 | AB264: 63 | AC264: 64 | AD264: 65 | AE264: 66 | AF264: 67 | AG264: 68 | AH264: 69 | AI264: 70 | AK264: 61 | AL264: 62 | AM264: 63 | AN264: 64 | AO264: 65 | AP264: 66 | AQ264: 67 | AR264: 68 | AS264: 69 | AT264: 70
D265: 71 | E265: 72 | F265: 73 | G265: 74 | H265: 75 | I265: 76 | J265: 77 | K265: 78 | L265: 79 | M265: 80 | O265: 71 | P265: 72 | Q265: 73 | R265: 74 | S265: 75 | T265: 76 | U265: 77 | V265: 78 | W265: 79 | X265: 80 | Z265: 71 | AA265: 72 | AB265: 73 | AC265: 74 | AD265: 75 | AE265: 76 | AF265: 77 | AG265: 78 | AH265: 79 | AI265: 80 | AK265: 71 | AL265: 72 | AM265: 73 | AN265: 74 | AO265: 75 | AP265: 76 | AQ265: 77 | AR265: 78 | AS265: 79 | AT265: 80
D266: 81 | E266: 82 | F266: 83 | G266: 84 | H266: 85 | I266: 86 | J266: 87 | K266: 88 | L266: 89 | M266: 90 | O266: 81 | P266: 82 | Q266: 83 | R266: 84 | S266: 85 | T266: 86 | U266: 87 | V266: 88 | W266: 89 | X266: 90 | Z266: 81 | AA266: 82 | AB266: 83 | AC266: 84 | AD266: 85 | AE266: 86 | AF266: 87 | AG266: 88 | AH266: 89 | AI266: 90 | AK266: 81 | AL266: 82 | AM266: 83 | AN266: 84 | AO266: 85 | AP266: 86 | AQ266: 87 | AR266: 88 | AS266: 89 | AT266: 90
D267: 91 | E267: 92 | F267: 93 | G267: 94 | H267: 95 | I267: 96 | J267: 97 | K267: 98 | L267: 99 | M267: 100 | O267: 91 | P267: 92 | Q267: 93 | R267: 94 | S267: 95 | T267: 96 | U267: 97 | V267: 98 | W267: 99 | X267: 100 | Z267: 91 | AA267: 92 | AB267: 93 | AC267: 94 | AD267: 95 | AE267: 96 | AF267: 97 | AG267: 98 | AH267: 99 | AI267: 100 | AK267: 91 | AL267: 92 | AM267: 93 | AN267: 94 | AO267: 95 | AP267: 96 | AQ267: 97 | AR267: 98 | AS267: 99 | AT267: 100
D270: Owned, no mortgage | O270: Owned with mortgage | Z270: Rented | AK270: Other
... 14 more rows

Sheet 2019 Victorian Estimates
C14: Men | H14: Women | M14: People
E15: 95% CI | J15: 95% CI | O15: 95% CI
C16: % | E16: LL | F16: UL | H16: % | J16: LL | K16: UL | M16: % | O16: LL | P16: UL
B17: OBESITY - BMI
B18: Underweight (BMI < 18.5) | C18: =SUMIFS(SummaryData!$D:$D,SummaryData!$A:$A,$B$17,SummaryData!$B:$B,$B18,SummaryData!$C:$C,$C$14) -> 1.051886 | E18: =SUMIFS(SummaryData!$E:$E,SummaryData!$A:$A,$B$17,SummaryData!$B:$B,$B18,SummaryData!$C:$C,$C$14) -> 0.6803203 | F18: =SUMIFS(SummaryData!$F:$F,SummaryData!$A:$A,$B$17,SummaryData!$B:$B,$B18,SummaryData!$C:$C,$C$14) -> 1.62307 | H18: =SUMIFS(SummaryData!$D:$D,SummaryData!$A:$A,$B$17,SummaryData!$B:$B,$B18,SummaryData!$C:$C,$H$14) -> 2.587314 | J18: =SUMIFS(SummaryData!$E:$E,SummaryData!$A:$A,$B$17,SummaryData!$B:$B,$B18,SummaryData!$C:$C,$H$14) -> 1.894387 | K18: =SUMIFS(SummaryData!$F:$F,SummaryData!$A:$A,$B$17,SummaryData!$B:$B,$B18,SummaryData!$C:$C,$H$14) -> 3.524594 | M18: =SUMIFS(SummaryData!$D:$D,SummaryData!$A:$A,$B$17,SummaryData!$B:$B,$B18,SummaryData!$C:$C,$M$14) -> 1.821629 | O18: =SUMIFS(SummaryData!$E:$E,SummaryData!$A:$A,$B$17,SummaryData!$B:$B,$B18,SummaryData!$C:$C,$M$14) -> 1.413378 | P18: =SUMIFS(SummaryData!$F:$F,SummaryData!$A:$A,$B$17,SummaryData!$B:$B,$B18,SummaryData!$C:$C,$M$14) -> 2.344997
B19: Normal range (18.5 ≥ BMI < 25) | C19: =SUMIFS(SummaryData!$D:$D,SummaryData!$A:$A,$B$17,SummaryData!$B:$B,$B19,SummaryData!$C:$C,$C$14) -> 34.00574 | E19: =SUMIFS(SummaryData!$E:$E,SummaryData!$A:$A,$B$17,SummaryData!$B:$B,$B19,SummaryData!$C:$C,$C$14) -> 31.88171 | F19: =SUMIFS(SummaryData!$F:$F,SummaryData!$A:$A,$B$17,SummaryData!$B:$B,$B19,SummaryData!$C:$C,$C$14) -> 36.1961 | H19: =SUMIFS(SummaryData!$D:$D,SummaryData!$A:$A,$B$17,SummaryData!$B:$B,$B19,SummaryData!$C:$C,$H$14) -> 39.36279 | J19: =SUMIFS(SummaryData!$E:$E,SummaryData!$A:$A,$B$17,SummaryData!$B:$B,$B19,SummaryData!$C:$C,$H$14) -> 37.15972 | K19: =SUMIFS(SummaryData!$F:$F,SummaryData!$A:$A,$B$17,SummaryData!$B:$B,$B19,SummaryData!$C:$C,$H$14) -> 41.60999 | M19: =SUMIFS(SummaryData!$D:$D,SummaryData!$A:$A,$B$17,SummaryData!$B:$B,$B19,SummaryData!$C:$C,$M$14) -> 36.77658 | O19: =SUMIFS(SummaryData!$E:$E,SummaryData!$A:$A,$B$17,SummaryData!$B:$B,$B19,SummaryData!$C:$C,$M$14) -> 35.24803 | P19: =SUMIFS(SummaryData!$F:$F,SummaryData!$A:$A,$B$17,SummaryData!$B:$B,$B19,SummaryData!$C:$C,$M$14) -> 38.33216
B20: Overweight, but not obese (25 ≥ BMI < 30) | C20: =SUMIFS(SummaryData!$D:$D,SummaryData!$A:$A,$B$17,SummaryData!$B:$B,$B20,SummaryData!$C:$C,$C$14) -> 37.89058 | E20: =SUMIFS(SummaryData!$E:$E,SummaryData!$A:$A,$B$17,SummaryData!$B:$B,$B20,SummaryData!$C:$C,$C$14) -> 35.73172 | F20: =SUMIFS(SummaryData!$F:$F,SummaryData!$A:$A,$B$17,SummaryData!$B:$B,$B20,SummaryData!$C:$C,$C$14) -> 40.09848 | H20: =SUMIFS(SummaryData!$D:$D,SummaryData!$A:$A,$B$17,SummaryData!$B:$B,$B20,SummaryData!$C:$C,$H$14) -> 25.09076 | J20: =SUMIFS(SummaryData!$E:$E,SummaryData!$A:$A,$B$17,SummaryData!$B:$B,$B20,SummaryData!$C:$C,$H$14) -> 23.19538 | K20: =SUMIFS(SummaryData!$F:$F,SummaryData!$A:$A,$B$17,SummaryData!$B:$B,$B20,SummaryData!$C:$C,$H$14) -> 27.08639 | M20: =SUMIFS(SummaryData!$D:$D,SummaryData!$A:$A,$B$17,SummaryData!$B:$B,$B20,SummaryData!$C:$C,$M$14) -> 31.32688 | O20: =SUMIFS(SummaryData!$E:$E,SummaryData!$A:$A,$B$17,SummaryData!$B:$B,$B20,SummaryData!$C:$C,$M$14) -> 29.87737 | P20: =SUMIFS(SummaryData!$F:$F,SummaryData!$A:$A,$B$17,SummaryData!$B:$B,$B20,SummaryData!$C:$C,$M$14) -> 32.81381
B21: Obese (BMI ≥ 30) | C21: =SUMIFS(SummaryData!$D:$D,SummaryData!$A:$A,$B$17,SummaryData!$B:$B,$B21,SummaryData!$C:$C,$C$14) -> 20.68839 | E21: =SUMIFS(SummaryData!$E:$E,SummaryData!$A:$A,$B$17,SummaryData!$B:$B,$B21,SummaryData!$C:$C,$C$14) -> 18.87329 | F21: =SUMIFS(SummaryData!$F:$F,SummaryData!$A:$A,$B$17,SummaryData!$B:$B,$B21,SummaryData!$C:$C,$C$14) -> 22.62936 | H21: =SUMIFS(SummaryData!$D:$D,SummaryData!$A:$A,$B$17,SummaryData!$B:$B,$B21,SummaryData!$C:$C,$H$14) -> 19.81932 | J21: =SUMIFS(SummaryData!$E:$E,SummaryData!$A:$A,$B$17,SummaryData!$B:$B,$B21,SummaryData!$C:$C,$H$14) -> 18.10368 | K21: =SUMIFS(SummaryData!$F:$F,SummaryData!$A:$A,$B$17,SummaryData!$B:$B,$B21,SummaryData!$C:$C,$H$14) -> 21.65455 | M21: =SUMIFS(SummaryData!$D:$D,SummaryData!$A:$A,$B$17,SummaryData!$B:$B,$B21,SummaryData!$C:$C,$M$14) -> 20.27401 | O21: =SUMIFS(SummaryData!$E:$E,SummaryData!$A:$A,$B$17,SummaryData!$B:$B,$B21,SummaryData!$C:$C,$M$14) -> 19.01888 | P21: =SUMIFS(SummaryData!$F:$F,SummaryData!$A:$A,$B$17,SummaryData!$B:$B,$B21,SummaryData!$C:$C,$M$14) -> 21.58987
B22: OBESITY - Overweight category
B23: Overweight (BMI ≥ 25) | C23: =SUMIFS(SummaryData!$D:$D,SummaryData!$A:$A,$B$22,SummaryData!$B:$B,$B23,SummaryData!$C:$C,$C$14) -> 58.57897 | E23: =SUMIFS(SummaryData!$E:$E,SummaryData!$A:$A,$B$22,SummaryData!$B:$B,$B23,SummaryData!$C:$C,$C$14) -> 56.33165 | F23: =SUMIFS(SummaryData!$F:$F,SummaryData!$A:$A,$B$22,SummaryData!$B:$B,$B23,SummaryData!$C:$C,$C$14) -> 60.79114 | H23: =SUMIFS(SummaryData!$D:$D,SummaryData!$A:$A,$B$22,SummaryData!$B:$B,$B23,SummaryData!$C:$C,$H$14) -> 44.91007 | J23: =SUMIFS(SummaryData!$E:$E,SummaryData!$A:$A,$B$22,SummaryData!$B:$B,$B23,SummaryData!$C:$C,$H$14) -> 42.69058 | K23: =SUMIFS(SummaryData!$F:$F,SummaryData!$A:$A,$B$22,SummaryData!$B:$B,$B23,SummaryData!$C:$C,$H$14) -> 47.15002 | M23: =SUMIFS(SummaryData!$D:$D,SummaryData!$A:$A,$B$22,SummaryData!$B:$B,$B23,SummaryData!$C:$C,$M$14) -> 51.60089 | O23: =SUMIFS(SummaryData!$E:$E,SummaryData!$A:$A,$B$22,SummaryData!$B:$B,$B23,SummaryData!$C:$C,$M$14) -> 50.0155 | P23: =SUMIFS(SummaryData!$F:$F,SummaryData!$A:$A,$B$22,SummaryData!$B:$B,$B23,SummaryData!$C:$C,$M$14) -> 53.18306
B24: Not-overweight (Not pre-obese/obese) | C24: =SUMIFS(SummaryData!$D:$D,SummaryData!$A:$A,$B$22,SummaryData!$B:$B,$B24,SummaryData!$C:$C,$C$14) -> 35.05763 | E24: =SUMIFS(SummaryData!$E:$E,SummaryData!$A:$A,$B$22,SummaryData!$B:$B,$B24,SummaryData!$C:$C,$C$14) -> 32.92526 | F24: =SUMIFS(SummaryData!$F:$F,SummaryData!$A:$A,$B$22,SummaryData!$B:$B,$B24,SummaryData!$C:$C,$C$14) -> 37.2514 | H24: =SUMIFS(SummaryData!$D:$D,SummaryData!$A:$A,$B$22,SummaryData!$B:$B,$B24,SummaryData!$C:$C,$H$14) -> 41.9501 | J24: =SUMIFS(SummaryData!$E:$E,SummaryData!$A:$A,$B$22,SummaryData!$B:$B,$B24,SummaryData!$C:$C,$H$14) -> 39.72356 | K24: =SUMIFS(SummaryData!$F:$F,SummaryData!$A:$A,$B$22,SummaryData!$B:$B,$B24,SummaryData!$C:$C,$H$14) -> 44.20992 | M24: =SUMIFS(SummaryData!$D:$D,SummaryData!$A:$A,$B$22,SummaryData!$B:$B,$B24,SummaryData!$C:$C,$M$14) -> 38.59821 | O24: =SUMIFS(SummaryData!$E:$E,SummaryData!$A:$A,$B$22,SummaryData!$B:$B,$B24,SummaryData!$C:$C,$M$14) -> 37.05669 | P24: =SUMIFS(SummaryData!$F:$F,SummaryData!$A:$A,$B$22,SummaryData!$B:$B,$B24,SummaryData!$C:$C,$M$14) -> 40.16293
B25: OBESITY - Extended BMI category
B26: Overweight, but not obese (25 ≥ BMI < 30) | C26: =SUMIFS(SummaryData!$D:$D,SummaryData!$A:$A,$B$25,SummaryData!$B:$B,$B26,SummaryData!$C:$C,$C$14) -> 37.89058 | E26: =SUMIFS(SummaryData!$E:$E,SummaryData!$A:$A,$B$25,SummaryData!$B:$B,$B26,SummaryData!$C:$C,$C$14) -> 35.73172 | F26: =SUMIFS(SummaryData!$F:$F,SummaryData!$A:$A,$B$25,SummaryData!$B:$B,$B26,SummaryData!$C:$C,$C$14) -> 40.09848 | H26: =SUMIFS(SummaryData!$D:$D,SummaryData!$A:$A,$B$25,SummaryData!$B:$B,$B26,SummaryData!$C:$C,$H$14) -> 25.09076 | J26: =SUMIFS(SummaryData!$E:$E,SummaryData!$A:$A,$B$25,SummaryData!$B:$B,$B26,SummaryData!$C:$C,$H$14) -> 23.19538 | K26: =SUMIFS(SummaryData!$F:$F,SummaryData!$A:$A,$B$25,SummaryData!$B:$B,$B26,SummaryData!$C:$C,$H$14) -> 27.08639 | M26: =SUMIFS(SummaryData!$D:$D,SummaryData!$A:$A,$B$25,SummaryData!$B:$B,$B26,SummaryData!$C:$C,$M$14) -> 31.32688 | O26: =SUMIFS(SummaryData!$E:$E,SummaryData!$A:$A,$B$25,SummaryData!$B:$B,$B26,SummaryData!$C:$C,$M$14) -> 29.87737 | P26: =SUMIFS(SummaryData!$F:$F,SummaryData!$A:$A,$B$25,SummaryData!$B:$B,$B26,SummaryData!$C:$C,$M$14) -> 32.81381
B27: Obese Class I (30 ≥ BMI < 35) | C27: =SUMIFS(SummaryData!$D:$D,SummaryData!$A:$A,$B$25,SummaryData!$B:$B,$B27,SummaryData!$C:$C,$C$14) -> 14.00546 | E27: =SUMIFS(SummaryData!$E:$E,SummaryData!$A:$A,$B$25,SummaryData!$B:$B,$B27,SummaryData!$C:$C,$C$14) -> 12.48472 | F27: =SUMIFS(SummaryData!$F:$F,SummaryData!$A:$A,$B$25,SummaryData!$B:$B,$B27,SummaryData!$C:$C,$C$14) -> 15.67825 | H27: =SUMIFS(SummaryData!$D:$D,SummaryData!$A:$A,$B$25,SummaryData!$B:$B,$B27,SummaryData!$C:$C,$H$14) -> 11.5396 | J27: =SUMIFS(SummaryData!$E:$E,SummaryData!$A:$A,$B$25,SummaryData!$B:$B,$B27,SummaryData!$C:$C,$H$14) -> 10.2104 | K27: =SUMIFS(SummaryData!$F:$F,SummaryData!$A:$A,$B$25,SummaryData!$B:$B,$B27,SummaryData!$C:$C,$H$14) -> 13.01675 | M27: =SUMIFS(SummaryData!$D:$D,SummaryData!$A:$A,$B$25,SummaryData!$B:$B,$B27,SummaryData!$C:$C,$M$14) -> 12.79524 | O27: =SUMIFS(SummaryData!$E:$E,SummaryData!$A:$A,$B$25,SummaryData!$B:$B,$B27,SummaryData!$C:$C,$M$14) -> 11.77207 | P27: =SUMIFS(SummaryData!$F:$F,SummaryData!$A:$A,$B$25,SummaryData!$B:$B,$B27,SummaryData!$C:$C,$M$14) -> 13.89333
B28: Obese Class II (35 ≥ BMI < 40) | C28: =SUMIFS(SummaryData!$D:$D,SummaryData!$A:$A,$B$25,SummaryData!$B:$B,$B28,SummaryData!$C:$C,$C$14) -> 4.253445 | E28: =SUMIFS(SummaryData!$E:$E,SummaryData!$A:$A,$B$25,SummaryData!$B:$B,$B28,SummaryData!$C:$C,$C$14) -> 3.43405 | F28: =SUMIFS(SummaryData!$F:$F,SummaryData!$A:$A,$B$25,SummaryData!$B:$B,$B28,SummaryData!$C:$C,$C$14) -> 5.257711 | H28: =SUMIFS(SummaryData!$D:$D,SummaryData!$A:$A,$B$25,SummaryData!$B:$B,$B28,SummaryData!$C:$C,$H$14) -> 4.901528 | J28: =SUMIFS(SummaryData!$E:$E,SummaryData!$A:$A,$B$25,SummaryData!$B:$B,$B28,SummaryData!$C:$C,$H$14) -> 4.019416 | K28: =SUMIFS(SummaryData!$F:$F,SummaryData!$A:$A,$B$25,SummaryData!$B:$B,$B28,SummaryData!$C:$C,$H$14) -> 5.965198 | M28: =SUMIFS(SummaryData!$D:$D,SummaryData!$A:$A,$B$25,SummaryData!$B:$B,$B28,SummaryData!$C:$C,$M$14) -> 4.585977 | O28: =SUMIFS(SummaryData!$E:$E,SummaryData!$A:$A,$B$25,SummaryData!$B:$B,$B28,SummaryData!$C:$C,$M$14) -> 3.963641 | P28: =SUMIFS(SummaryData!$F:$F,SummaryData!$A:$A,$B$25,SummaryData!$B:$B,$B28,SummaryData!$C:$C,$M$14) -> 5.300634
B29: Obese Class III (BMI ≥ 40) | C29: =SUMIFS(SummaryData!$D:$D,SummaryData!$A:$A,$B$25,SummaryData!$B:$B,$B29,SummaryData!$C:$C,$C$14) -> 2.429486 | E29: =SUMIFS(SummaryData!$E:$E,SummaryData!$A:$A,$B$25,SummaryData!$B:$B,$B29,SummaryData!$C:$C,$C$14) -> 1.724191 | F29: =SUMIFS(SummaryData!$F:$F,SummaryData!$A:$A,$B$25,SummaryData!$B:$B,$B29,SummaryData!$C:$C,$C$14) -> 3.413266 | H29: =SUMIFS(SummaryData!$D:$D,SummaryData!$A:$A,$B$25,SummaryData!$B:$B,$B29,SummaryData!$C:$C,$H$14) -> 3.378187 | J29: =SUMIFS(SummaryData!$E:$E,SummaryData!$A:$A,$B$25,SummaryData!$B:$B,$B29,SummaryData!$C:$C,$H$14) -> 2.593536 | K29: =SUMIFS(SummaryData!$F:$F,SummaryData!$A:$A,$B$25,SummaryData!$B:$B,$B29,SummaryData!$C:$C,$H$14) -> 4.389531 | M29: =SUMIFS(SummaryData!$D:$D,SummaryData!$A:$A,$B$25,SummaryData!$B:$B,$B29,SummaryData!$C:$C,$M$14) -> 2.892787 | O29: =SUMIFS(SummaryData!$E:$E,SummaryData!$A:$A,$B$25,SummaryData!$B:$B,$B29,SummaryData!$C:$C,$M$14) -> 2.353023 | P29: =SUMIFS(SummaryData!$F:$F,SummaryData!$A:$A,$B$25,SummaryData!$B:$B,$B29,SummaryData!$C:$C,$M$14) -> 3.551865
B30: OBESITY - Frequency of consumption of take-away food or snacks
B31: Never | C31: =SUMIFS(SummaryData!$D:$D,SummaryData!$A:$A,$B$30,SummaryData!$B:$B,$B31,SummaryData!$C:$C,$C$14) -> 9.487686 | E31: =SUMIFS(SummaryData!$E:$E,SummaryData!$A:$A,$B$30,SummaryData!$B:$B,$B31,SummaryData!$C:$C,$C$14) -> 8.356923 | F31: =SUMIFS(SummaryData!$F:$F,SummaryData!$A:$A,$B$30,SummaryData!$B:$B,$B31,SummaryData!$C:$C,$C$14) -> 10.7535 | H31: =SUMIFS(SummaryData!$D:$D,SummaryData!$A:$A,$B$30,SummaryData!$B:$B,$B31,SummaryData!$C:$C,$H$14) -> 13.23763 | J31: =SUMIFS(SummaryData!$E:$E,SummaryData!$A:$A,$B$30,SummaryData!$B:$B,$B31,SummaryData!$C:$C,$H$14) -> 11.97679 | K31: =SUMIFS(SummaryData!$F:$F,SummaryData!$A:$A,$B$30,SummaryData!$B:$B,$B31,SummaryData!$C:$C,$H$14) -> 14.60917 | M31: =SUMIFS(SummaryData!$D:$D,SummaryData!$A:$A,$B$30,SummaryData!$B:$B,$B31,SummaryData!$C:$C,$M$14) -> 11.58571 | O31: =SUMIFS(SummaryData!$E:$E,SummaryData!$A:$A,$B$30,SummaryData!$B:$B,$B31,SummaryData!$C:$C,$M$14) -> 10.71649 | P31: =SUMIFS(SummaryData!$F:$F,SummaryData!$A:$A,$B$30,SummaryData!$B:$B,$B31,SummaryData!$C:$C,$M$14) -> 12.51555
B32: ≤ 1 day/week | C32: =SUMIFS(SummaryData!$D:$D,SummaryData!$A:$A,$B$30,SummaryData!$B:$B,$B32,SummaryData!$C:$C,$C$14) -> 65.80203 | E32: =SUMIFS(SummaryData!$E:$E,SummaryData!$A:$A,$B$30,SummaryData!$B:$B,$B32,SummaryData!$C:$C,$C$14) -> 63.62187 | F32: =SUMIFS(SummaryData!$F:$F,SummaryData!$A:$A,$B$30,SummaryData!$B:$B,$B32,SummaryData!$C:$C,$C$14) -> 67.91743 | H32: =SUMIFS(SummaryData!$D:$D,SummaryData!$A:$A,$B$30,SummaryData!$B:$B,$B32,SummaryData!$C:$C,$H$14) -> 73.01023 | J32: =SUMIFS(SummaryData!$E:$E,SummaryData!$A:$A,$B$30,SummaryData!$B:$B,$B32,SummaryData!$C:$C,$H$14) -> 70.87564 | K32: =SUMIFS(SummaryData!$F:$F,SummaryData!$A:$A,$B$30,SummaryData!$B:$B,$B32,SummaryData!$C:$C,$H$14) -> 75.04346 | M32: =SUMIFS(SummaryData!$D:$D,SummaryData!$A:$A,$B$30,SummaryData!$B:$B,$B32,SummaryData!$C:$C,$M$14) -> 69.05808 | O32: =SUMIFS(SummaryData!$E:$E,SummaryData!$A:$A,$B$30,SummaryData!$B:$B,$B32,SummaryData!$C:$C,$M$14) -> 67.53975 | P32: =SUMIFS(SummaryData!$F:$F,SummaryData!$A:$A,$B$30,SummaryData!$B:$B,$B32,SummaryData!$C:$C,$M$14) -> 70.53636
B33: > 1 day/week | C33: =SUMIFS(SummaryData!$D:$D,SummaryData!$A:$A,$B$30,SummaryData!$B:$B,$B33,SummaryData!$C:$C,$C$14) -> 24.3254 | E33: =SUMIFS(SummaryData!$E:$E,SummaryData!$A:$A,$B$30,SummaryData!$B:$B,$B33,SummaryData!$C:$C,$C$14) -> 22.4382 | F33: =SUMIFS(SummaryData!$F:$F,SummaryData!$A:$A,$B$30,SummaryData!$B:$B,$B33,SummaryData!$C:$C,$C$14) -> 26.31747 | H33: =SUMIFS(SummaryData!$D:$D,SummaryData!$A:$A,$B$30,SummaryData!$B:$B,$B33,SummaryData!$C:$C,$H$14) -> 13.08491 | J33: =SUMIFS(SummaryData!$E:$E,SummaryData!$A:$A,$B$30,SummaryData!$B:$B,$B33,SummaryData!$C:$C,$H$14) -> 11.4325 | K33: =SUMIFS(SummaryData!$F:$F,SummaryData!$A:$A,$B$30,SummaryData!$B:$B,$B33,SummaryData!$C:$C,$H$14) -> 14.93589 | M33: =SUMIFS(SummaryData!$D:$D,SummaryData!$A:$A,$B$30,SummaryData!$B:$B,$B33,SummaryData!$C:$C,$M$14) -> 18.77631 | O33: =SUMIFS(SummaryData!$E:$E,SummaryData!$A:$A,$B$30,SummaryData!$B:$B,$B33,SummaryData!$C:$C,$M$14) -> 17.50312 | P33: =SUMIFS(SummaryData!$F:$F,SummaryData!$A:$A,$B$30,SummaryData!$B:$B,$B33,SummaryData!$C:$C,$M$14) -> 20.11951
B34: OBESITY - Freqency of consuming savoury or salty snacks per week
B35: Never | C35: =SUMIFS(SummaryData!$D:$D,SummaryData!$A:$A,$B$34,SummaryData!$B:$B,$B35,SummaryData!$C:$C,$C$14) -> 11.66833 | E35: =SUMIFS(SummaryData!$E:$E,SummaryData!$A:$A,$B$34,SummaryData!$B:$B,$B35,SummaryData!$C:$C,$C$14) -> 10.34098 | F35: =SUMIFS(SummaryData!$F:$F,SummaryData!$A:$A,$B$34,SummaryData!$B:$B,$B35,SummaryData!$C:$C,$C$14) -> 13.14108 | H35: =SUMIFS(SummaryData!$D:$D,SummaryData!$A:$A,$B$34,SummaryData!$B:$B,$B35,SummaryData!$C:$C,$H$14) -> 11.34804 | J35: =SUMIFS(SummaryData!$E:$E,SummaryData!$A:$A,$B$34,SummaryData!$B:$B,$B35,SummaryData!$C:$C,$H$14) -> 10.08338 | K35: =SUMIFS(SummaryData!$F:$F,SummaryData!$A:$A,$B$34,SummaryData!$B:$B,$B35,SummaryData!$C:$C,$H$14) -> 12.74883 | M35: =SUMIFS(SummaryData!$D:$D,SummaryData!$A:$A,$B$34,SummaryData!$B:$B,$B35,SummaryData!$C:$C,$M$14) -> 11.46833 | O35: =SUMIFS(SummaryData!$E:$E,SummaryData!$A:$A,$B$34,SummaryData!$B:$B,$B35,SummaryData!$C:$C,$M$14) -> 10.54937 | P35: =SUMIFS(SummaryData!$F:$F,SummaryData!$A:$A,$B$34,SummaryData!$B:$B,$B35,SummaryData!$C:$C,$M$14) -> 12.45619
B36: ≤ 1 day/week | C36: =SUMIFS(SummaryData!$D:$D,SummaryData!$A:$A,$B$34,SummaryData!$B:$B,$B36,SummaryData!$C:$C,$C$14) -> 48.60673 | E36: =SUMIFS(SummaryData!$E:$E,SummaryData!$A:$A,$B$34,SummaryData!$B:$B,$B36,SummaryData!$C:$C,$C$14) -> 46.32405 | F36: =SUMIFS(SummaryData!$F:$F,SummaryData!$A:$A,$B$34,SummaryData!$B:$B,$B36,SummaryData!$C:$C,$C$14) -> 50.89522 | H36: =SUMIFS(SummaryData!$D:$D,SummaryData!$A:$A,$B$34,SummaryData!$B:$B,$B36,SummaryData!$C:$C,$H$14) -> 49.06935 | J36: =SUMIFS(SummaryData!$E:$E,SummaryData!$A:$A,$B$34,SummaryData!$B:$B,$B36,SummaryData!$C:$C,$H$14) -> 46.79764 | K36: =SUMIFS(SummaryData!$F:$F,SummaryData!$A:$A,$B$34,SummaryData!$B:$B,$B36,SummaryData!$C:$C,$H$14) -> 51.34492 | M36: =SUMIFS(SummaryData!$D:$D,SummaryData!$A:$A,$B$34,SummaryData!$B:$B,$B36,SummaryData!$C:$C,$M$14) -> 48.84158 | O36: =SUMIFS(SummaryData!$E:$E,SummaryData!$A:$A,$B$34,SummaryData!$B:$B,$B36,SummaryData!$C:$C,$M$14) -> 47.24108 | P36: =SUMIFS(SummaryData!$F:$F,SummaryData!$A:$A,$B$34,SummaryData!$B:$B,$B36,SummaryData!$C:$C,$M$14) -> 50.44446
B37: 2 days/week | C37: =SUMIFS(SummaryData!$D:$D,SummaryData!$A:$A,$B$34,SummaryData!$B:$B,$B37,SummaryData!$C:$C,$C$14) -> 15.73467 | E37: =SUMIFS(SummaryData!$E:$E,SummaryData!$A:$A,$B$34,SummaryData!$B:$B,$B37,SummaryData!$C:$C,$C$14) -> 14.12764 | F37: =SUMIFS(SummaryData!$F:$F,SummaryData!$A:$A,$B$34,SummaryData!$B:$B,$B37,SummaryData!$C:$C,$C$14) -> 17.48727 | H37: =SUMIFS(SummaryData!$D:$D,SummaryData!$A:$A,$B$34,SummaryData!$B:$B,$B37,SummaryData!$C:$C,$H$14) -> 14.06186 | J37: =SUMIFS(SummaryData!$E:$E,SummaryData!$A:$A,$B$34,SummaryData!$B:$B,$B37,SummaryData!$C:$C,$H$14) -> 12.5261 | K37: =SUMIFS(SummaryData!$F:$F,SummaryData!$A:$A,$B$34,SummaryData!$B:$B,$B37,SummaryData!$C:$C,$H$14) -> 15.75199 | M37: =SUMIFS(SummaryData!$D:$D,SummaryData!$A:$A,$B$34,SummaryData!$B:$B,$B37,SummaryData!$C:$C,$M$14) -> 14.90985 | O37: =SUMIFS(SummaryData!$E:$E,SummaryData!$A:$A,$B$34,SummaryData!$B:$B,$B37,SummaryData!$C:$C,$M$14) -> 13.79048 | P37: =SUMIFS(SummaryData!$F:$F,SummaryData!$A:$A,$B$34,SummaryData!$B:$B,$B37,SummaryData!$C:$C,$M$14) -> 16.10311
B38: 3+ days/week | C38: =SUMIFS(SummaryData!$D:$D,SummaryData!$A:$A,$B$34,SummaryData!$B:$B,$B38,SummaryData!$C:$C,$C$14) -> 23.10134 | E38: =SUMIFS(SummaryData!$E:$E,SummaryData!$A:$A,$B$34,SummaryData!$B:$B,$B38,SummaryData!$C:$C,$C$14) -> 21.2294 | F38: =SUMIFS(SummaryData!$F:$F,SummaryData!$A:$A,$B$34,SummaryData!$B:$B,$B38,SummaryData!$C:$C,$C$14) -> 25.08578 | H38: =SUMIFS(SummaryData!$D:$D,SummaryData!$A:$A,$B$34,SummaryData!$B:$B,$B38,SummaryData!$C:$C,$H$14) -> 24.74922 | J38: =SUMIFS(SummaryData!$E:$E,SummaryData!$A:$A,$B$34,SummaryData!$B:$B,$B38,SummaryData!$C:$C,$H$14) -> 22.7359 | K38: =SUMIFS(SummaryData!$F:$F,SummaryData!$A:$A,$B$34,SummaryData!$B:$B,$B38,SummaryData!$C:$C,$H$14) -> 26.87882 | M38: =SUMIFS(SummaryData!$D:$D,SummaryData!$A:$A,$B$34,SummaryData!$B:$B,$B38,SummaryData!$C:$C,$M$14) -> 23.95292 | O38: =SUMIFS(SummaryData!$E:$E,SummaryData!$A:$A,$B$34,SummaryData!$B:$B,$B38,SummaryData!$C:$C,$M$14) -> 22.57099 | P38: =SUMIFS(SummaryData!$F:$F,SummaryData!$A:$A,$B$34,SummaryData!$B:$B,$B38,SummaryData!$C:$C,$M$14) -> 25.39172
B39: OBESITY - Freqency of consuming sweet snacks per week
B40: Never | C40: =SUMIFS(SummaryData!$D:$D,SummaryData!$A:$A,$B$39,SummaryData!$B:$B,$B40,SummaryData!$C:$C,$C$14) -> 7.224168 | E40: =SUMIFS(SummaryData!$E:$E,SummaryData!$A:$A,$B$39,SummaryData!$B:$B,$B40,SummaryData!$C:$C,$C$14) -> 6.086301 | F40: =SUMIFS(SummaryData!$F:$F,SummaryData!$A:$A,$B$39,SummaryData!$B:$B,$B40,SummaryData!$C:$C,$C$14) -> 8.555386 | H40: =SUMIFS(SummaryData!$D:$D,SummaryData!$A:$A,$B$39,SummaryData!$B:$B,$B40,SummaryData!$C:$C,$H$14) -> 4.684843 | J40: =SUMIFS(SummaryData!$E:$E,SummaryData!$A:$A,$B$39,SummaryData!$B:$B,$B40,SummaryData!$C:$C,$H$14) -> 3.865882 | K40: =SUMIFS(SummaryData!$F:$F,SummaryData!$A:$A,$B$39,SummaryData!$B:$B,$B40,SummaryData!$C:$C,$H$14) -> 5.667069 | M40: =SUMIFS(SummaryData!$D:$D,SummaryData!$A:$A,$B$39,SummaryData!$B:$B,$B40,SummaryData!$C:$C,$M$14) -> 5.975018 | O40: =SUMIFS(SummaryData!$E:$E,SummaryData!$A:$A,$B$39,SummaryData!$B:$B,$B40,SummaryData!$C:$C,$M$14) -> 5.25011 | P40: =SUMIFS(SummaryData!$F:$F,SummaryData!$A:$A,$B$39,SummaryData!$B:$B,$B40,SummaryData!$C:$C,$M$14) -> 6.792843
B41: ≤ 1 day/week | C41: =SUMIFS(SummaryData!$D:$D,SummaryData!$A:$A,$B$39,SummaryData!$B:$B,$B41,SummaryData!$C:$C,$C$14) -> 34.62328 | E41: =SUMIFS(SummaryData!$E:$E,SummaryData!$A:$A,$B$39,SummaryData!$B:$B,$B41,SummaryData!$C:$C,$C$14) -> 32.4936 | F41: =SUMIFS(SummaryData!$F:$F,SummaryData!$A:$A,$B$39,SummaryData!$B:$B,$B41,SummaryData!$C:$C,$C$14) -> 36.81642 | H41: =SUMIFS(SummaryData!$D:$D,SummaryData!$A:$A,$B$39,SummaryData!$B:$B,$B41,SummaryData!$C:$C,$H$14) -> 34.1154 | J41: =SUMIFS(SummaryData!$E:$E,SummaryData!$A:$A,$B$39,SummaryData!$B:$B,$B41,SummaryData!$C:$C,$H$14) -> 31.96157 | K41: =SUMIFS(SummaryData!$F:$F,SummaryData!$A:$A,$B$39,SummaryData!$B:$B,$B41,SummaryData!$C:$C,$H$14) -> 36.33687 | M41: =SUMIFS(SummaryData!$D:$D,SummaryData!$A:$A,$B$39,SummaryData!$B:$B,$B41,SummaryData!$C:$C,$M$14) -> 34.46887 | O41: =SUMIFS(SummaryData!$E:$E,SummaryData!$A:$A,$B$39,SummaryData!$B:$B,$B41,SummaryData!$C:$C,$M$14) -> 32.95551 | P41: =SUMIFS(SummaryData!$F:$F,SummaryData!$A:$A,$B$39,SummaryData!$B:$B,$B41,SummaryData!$C:$C,$M$14) -> 36.0144
B42: 2 days/week | C42: =SUMIFS(SummaryData!$D:$D,SummaryData!$A:$A,$B$39,SummaryData!$B:$B,$B42,SummaryData!$C:$C,$C$14) -> 14.93821 | E42: =SUMIFS(SummaryData!$E:$E,SummaryData!$A:$A,$B$39,SummaryData!$B:$B,$B42,SummaryData!$C:$C,$C$14) -> 13.35481 | F42: =SUMIFS(SummaryData!$F:$F,SummaryData!$A:$A,$B$39,SummaryData!$B:$B,$B42,SummaryData!$C:$C,$C$14) -> 16.67321 | H42: =SUMIFS(SummaryData!$D:$D,SummaryData!$A:$A,$B$39,SummaryData!$B:$B,$B42,SummaryData!$C:$C,$H$14) -> 15.09187 | J42: =SUMIFS(SummaryData!$E:$E,SummaryData!$A:$A,$B$39,SummaryData!$B:$B,$B42,SummaryData!$C:$C,$H$14) -> 13.5035 | K42: =SUMIFS(SummaryData!$F:$F,SummaryData!$A:$A,$B$39,SummaryData!$B:$B,$B42,SummaryData!$C:$C,$H$14) -> 16.83073 | M42: =SUMIFS(SummaryData!$D:$D,SummaryData!$A:$A,$B$39,SummaryData!$B:$B,$B42,SummaryData!$C:$C,$M$14) -> 14.85701 | O42: =SUMIFS(SummaryData!$E:$E,SummaryData!$A:$A,$B$39,SummaryData!$B:$B,$B42,SummaryData!$C:$C,$M$14) -> 13.73583 | P42: =SUMIFS(SummaryData!$F:$F,SummaryData!$A:$A,$B$39,SummaryData!$B:$B,$B42,SummaryData!$C:$C,$M$14) -> 16.05268
B43: 3+ days/week | C43: =SUMIFS(SummaryData!$D:$D,SummaryData!$A:$A,$B$39,SummaryData!$B:$B,$B43,SummaryData!$C:$C,$C$14) -> 42.23245 | E43: =SUMIFS(SummaryData!$E:$E,SummaryData!$A:$A,$B$39,SummaryData!$B:$B,$B43,SummaryData!$C:$C,$C$14) -> 40.01451 | F43: =SUMIFS(SummaryData!$F:$F,SummaryData!$A:$A,$B$39,SummaryData!$B:$B,$B43,SummaryData!$C:$C,$C$14) -> 44.48217 | H43: =SUMIFS(SummaryData!$D:$D,SummaryData!$A:$A,$B$39,SummaryData!$B:$B,$B43,SummaryData!$C:$C,$H$14) -> 45.38752 | J43: =SUMIFS(SummaryData!$E:$E,SummaryData!$A:$A,$B$39,SummaryData!$B:$B,$B43,SummaryData!$C:$C,$H$14) -> 43.11378 | K43: =SUMIFS(SummaryData!$F:$F,SummaryData!$A:$A,$B$39,SummaryData!$B:$B,$B43,SummaryData!$C:$C,$H$14) -> 47.68065 | M43: =SUMIFS(SummaryData!$D:$D,SummaryData!$A:$A,$B$39,SummaryData!$B:$B,$B43,SummaryData!$C:$C,$M$14) -> 43.77798 | O43: =SUMIFS(SummaryData!$E:$E,SummaryData!$A:$A,$B$39,SummaryData!$B:$B,$B43,SummaryData!$C:$C,$M$14) -> 42.19483 | P43: =SUMIFS(SummaryData!$F:$F,SummaryData!$A:$A,$B$39,SummaryData!$B:$B,$B43,SummaryData!$C:$C,$M$14) -> 45.3739
B44: PHYSICAL ACTIVITY - Compliance with physical activity guidelines
B45: Sedentary | C45: =SUMIFS(SummaryData!$D:$D,SummaryData!$A:$A,$B$44,SummaryData!$B:$B,$B45,SummaryData!$C:$C,$C$14) -> 1.846456 | E45: =SUMIFS(SummaryData!$E:$E,SummaryData!$A:$A,$B$44,SummaryData!$B:$B,$B45,SummaryData!$C:$C,$C$14) -> 1.306371 | F45: =SUMIFS(SummaryData!$F:$F,SummaryData!$A:$A,$B$44,SummaryData!$B:$B,$B45,SummaryData!$C:$C,$C$14) -> 2.603935 | H45: =SUMIFS(SummaryData!$D:$D,SummaryData!$A:$A,$B$44,SummaryData!$B:$B,$B45,SummaryData!$C:$C,$H$14) -> 1.795267 | J45: =SUMIFS(SummaryData!$E:$E,SummaryData!$A:$A,$B$44,SummaryData!$B:$B,$B45,SummaryData!$C:$C,$H$14) -> 1.345133 | K45: =SUMIFS(SummaryData!$F:$F,SummaryData!$A:$A,$B$44,SummaryData!$B:$B,$B45,SummaryData!$C:$C,$H$14) -> 2.392381 | M45: =SUMIFS(SummaryData!$D:$D,SummaryData!$A:$A,$B$44,SummaryData!$B:$B,$B45,SummaryData!$C:$C,$M$14) -> 1.821734 | O45: =SUMIFS(SummaryData!$E:$E,SummaryData!$A:$A,$B$44,SummaryData!$B:$B,$B45,SummaryData!$C:$C,$M$14) -> 1.459235 | P45: =SUMIFS(SummaryData!$F:$F,SummaryData!$A:$A,$B$44,SummaryData!$B:$B,$B45,SummaryData!$C:$C,$M$14) -> 2.272209
B46: Insufficient | C46: =SUMIFS(SummaryData!$D:$D,SummaryData!$A:$A,$B$44,SummaryData!$B:$B,$B46,SummaryData!$C:$C,$C$14) -> 43.07779 | E46: =SUMIFS(SummaryData!$E:$E,SummaryData!$A:$A,$B$44,SummaryData!$B:$B,$B46,SummaryData!$C:$C,$C$14) -> 40.84534 | F46: =SUMIFS(SummaryData!$F:$F,SummaryData!$A:$A,$B$44,SummaryData!$B:$B,$B46,SummaryData!$C:$C,$C$14) -> 45.33874 | H46: =SUMIFS(SummaryData!$D:$D,SummaryData!$A:$A,$B$44,SummaryData!$B:$B,$B46,SummaryData!$C:$C,$H$14) -> 46.27687 | J46: =SUMIFS(SummaryData!$E:$E,SummaryData!$A:$A,$B$44,SummaryData!$B:$B,$B46,SummaryData!$C:$C,$H$14) -> 43.99985 | K46: =SUMIFS(SummaryData!$F:$F,SummaryData!$A:$A,$B$44,SummaryData!$B:$B,$B46,SummaryData!$C:$C,$H$14) -> 48.56952 | M46: =SUMIFS(SummaryData!$D:$D,SummaryData!$A:$A,$B$44,SummaryData!$B:$B,$B46,SummaryData!$C:$C,$M$14) -> 44.43455 | O46: =SUMIFS(SummaryData!$E:$E,SummaryData!$A:$A,$B$44,SummaryData!$B:$B,$B46,SummaryData!$C:$C,$M$14) -> 42.84736 | P46: =SUMIFS(SummaryData!$F:$F,SummaryData!$A:$A,$B$44,SummaryData!$B:$B,$B46,SummaryData!$C:$C,$M$14) -> 46.03317
B47: Met guidelines | C47: =SUMIFS(SummaryData!$D:$D,SummaryData!$A:$A,$B$44,SummaryData!$B:$B,$B47,SummaryData!$C:$C,$C$14) -> 53.02193 | E47: =SUMIFS(SummaryData!$E:$E,SummaryData!$A:$A,$B$44,SummaryData!$B:$B,$B47,SummaryData!$C:$C,$C$14) -> 50.74844 | F47: =SUMIFS(SummaryData!$F:$F,SummaryData!$A:$A,$B$44,SummaryData!$B:$B,$B47,SummaryData!$C:$C,$C$14) -> 55.28295 | H47: =SUMIFS(SummaryData!$D:$D,SummaryData!$A:$A,$B$44,SummaryData!$B:$B,$B47,SummaryData!$C:$C,$H$14) -> 48.73778 | J47: =SUMIFS(SummaryData!$E:$E,SummaryData!$A:$A,$B$44,SummaryData!$B:$B,$B47,SummaryData!$C:$C,$H$14) -> 46.45923 | K47: =SUMIFS(SummaryData!$F:$F,SummaryData!$A:$A,$B$44,SummaryData!$B:$B,$B47,SummaryData!$C:$C,$H$14) -> 51.02159 | M47: =SUMIFS(SummaryData!$D:$D,SummaryData!$A:$A,$B$44,SummaryData!$B:$B,$B47,SummaryData!$C:$C,$M$14) -> 51.05829 | O47: =SUMIFS(SummaryData!$E:$E,SummaryData!$A:$A,$B$44,SummaryData!$B:$B,$B47,SummaryData!$C:$C,$M$14) -> 49.45815 | P47: =SUMIFS(SummaryData!$F:$F,SummaryData!$A:$A,$B$44,SummaryData!$B:$B,$B47,SummaryData!$C:$C,$M$14) -> 52.65625
B48: PHYSICAL ACTIVITY - Time spent sitting on a typical week day
B49: < 2 hours | C49: =SUMIFS(SummaryData!$D:$D,SummaryData!$A:$A,$B$48,SummaryData!$B:$B,$B49,SummaryData!$C:$C,$C$14) -> 5.650112 | E49: =SUMIFS(SummaryData!$E:$E,SummaryData!$A:$A,$B$48,SummaryData!$B:$B,$B49,SummaryData!$C:$C,$C$14) -> 4.67863 | F49: =SUMIFS(SummaryData!$F:$F,SummaryData!$A:$A,$B$48,SummaryData!$B:$B,$B49,SummaryData!$C:$C,$C$14) -> 6.808906 | H49: =SUMIFS(SummaryData!$D:$D,SummaryData!$A:$A,$B$48,SummaryData!$B:$B,$B49,SummaryData!$C:$C,$H$14) -> 8.000663 | J49: =SUMIFS(SummaryData!$E:$E,SummaryData!$A:$A,$B$48,SummaryData!$B:$B,$B49,SummaryData!$C:$C,$H$14) -> 6.782891 | K49: =SUMIFS(SummaryData!$F:$F,SummaryData!$A:$A,$B$48,SummaryData!$B:$B,$B49,SummaryData!$C:$C,$H$14) -> 9.414987 | M49: =SUMIFS(SummaryData!$D:$D,SummaryData!$A:$A,$B$48,SummaryData!$B:$B,$B49,SummaryData!$C:$C,$M$14) -> 6.862648 | O49: =SUMIFS(SummaryData!$E:$E,SummaryData!$A:$A,$B$48,SummaryData!$B:$B,$B49,SummaryData!$C:$C,$M$14) -> 6.069764 | P49: =SUMIFS(SummaryData!$F:$F,SummaryData!$A:$A,$B$48,SummaryData!$B:$B,$B49,SummaryData!$C:$C,$M$14) -> 7.750558
B50: 2 to < 4 hours | C50: =SUMIFS(SummaryData!$D:$D,SummaryData!$A:$A,$B$48,SummaryData!$B:$B,$B50,SummaryData!$C:$C,$C$14) -> 23.38434 | E50: =SUMIFS(SummaryData!$E:$E,SummaryData!$A:$A,$B$48,SummaryData!$B:$B,$B50,SummaryData!$C:$C,$C$14) -> 21.48562 | F50: =SUMIFS(SummaryData!$F:$F,SummaryData!$A:$A,$B$48,SummaryData!$B:$B,$B50,SummaryData!$C:$C,$C$14) -> 25.39658 | H50: =SUMIFS(SummaryData!$D:$D,SummaryData!$A:$A,$B$48,SummaryData!$B:$B,$B50,SummaryData!$C:$C,$H$14) -> 25.70912 | J50: =SUMIFS(SummaryData!$E:$E,SummaryData!$A:$A,$B$48,SummaryData!$B:$B,$B50,SummaryData!$C:$C,$H$14) -> 23.81204 | K50: =SUMIFS(SummaryData!$F:$F,SummaryData!$A:$A,$B$48,SummaryData!$B:$B,$B50,SummaryData!$C:$C,$H$14) -> 27.70238 | M50: =SUMIFS(SummaryData!$D:$D,SummaryData!$A:$A,$B$48,SummaryData!$B:$B,$B50,SummaryData!$C:$C,$M$14) -> 24.61631 | O50: =SUMIFS(SummaryData!$E:$E,SummaryData!$A:$A,$B$48,SummaryData!$B:$B,$B50,SummaryData!$C:$C,$M$14) -> 23.26568 | P50: =SUMIFS(SummaryData!$F:$F,SummaryData!$A:$A,$B$48,SummaryData!$B:$B,$B50,SummaryData!$C:$C,$M$14) -> 26.01877
B51: 4 to < 6 hours | C51: =SUMIFS(SummaryData!$D:$D,SummaryData!$A:$A,$B$48,SummaryData!$B:$B,$B51,SummaryData!$C:$C,$C$14) -> 25.74658 | E51: =SUMIFS(SummaryData!$E:$E,SummaryData!$A:$A,$B$48,SummaryData!$B:$B,$B51,SummaryData!$C:$C,$C$14) -> 23.82117 | F51: =SUMIFS(SummaryData!$F:$F,SummaryData!$A:$A,$B$48,SummaryData!$B:$B,$B51,SummaryData!$C:$C,$C$14) -> 27.77088 | H51: =SUMIFS(SummaryData!$D:$D,SummaryData!$A:$A,$B$48,SummaryData!$B:$B,$B51,SummaryData!$C:$C,$H$14) -> 26.02362 | J51: =SUMIFS(SummaryData!$E:$E,SummaryData!$A:$A,$B$48,SummaryData!$B:$B,$B51,SummaryData!$C:$C,$H$14) -> 24.07111 | K51: =SUMIFS(SummaryData!$F:$F,SummaryData!$A:$A,$B$48,SummaryData!$B:$B,$B51,SummaryData!$C:$C,$H$14) -> 28.07594 | M51: =SUMIFS(SummaryData!$D:$D,SummaryData!$A:$A,$B$48,SummaryData!$B:$B,$B51,SummaryData!$C:$C,$M$14) -> 25.91831 | O51: =SUMIFS(SummaryData!$E:$E,SummaryData!$A:$A,$B$48,SummaryData!$B:$B,$B51,SummaryData!$C:$C,$M$14) -> 24.54343 | P51: =SUMIFS(SummaryData!$F:$F,SummaryData!$A:$A,$B$48,SummaryData!$B:$B,$B51,SummaryData!$C:$C,$M$14) -> 27.34229
B52: 6 to < 8 hours | C52: =SUMIFS(SummaryData!$D:$D,SummaryData!$A:$A,$B$48,SummaryData!$B:$B,$B52,SummaryData!$C:$C,$C$14) -> 15.25737 | E52: =SUMIFS(SummaryData!$E:$E,SummaryData!$A:$A,$B$48,SummaryData!$B:$B,$B52,SummaryData!$C:$C,$C$14) -> 13.68253 | F52: =SUMIFS(SummaryData!$F:$F,SummaryData!$A:$A,$B$48,SummaryData!$B:$B,$B52,SummaryData!$C:$C,$C$14) -> 16.97783 | H52: =SUMIFS(SummaryData!$D:$D,SummaryData!$A:$A,$B$48,SummaryData!$B:$B,$B52,SummaryData!$C:$C,$H$14) -> 13.32631 | J52: =SUMIFS(SummaryData!$E:$E,SummaryData!$A:$A,$B$48,SummaryData!$B:$B,$B52,SummaryData!$C:$C,$H$14) -> 11.79938 | K52: =SUMIFS(SummaryData!$F:$F,SummaryData!$A:$A,$B$48,SummaryData!$B:$B,$B52,SummaryData!$C:$C,$H$14) -> 15.0172 | M52: =SUMIFS(SummaryData!$D:$D,SummaryData!$A:$A,$B$48,SummaryData!$B:$B,$B52,SummaryData!$C:$C,$M$14) -> 14.23335 | O52: =SUMIFS(SummaryData!$E:$E,SummaryData!$A:$A,$B$48,SummaryData!$B:$B,$B52,SummaryData!$C:$C,$M$14) -> 13.13253 | P52: =SUMIFS(SummaryData!$F:$F,SummaryData!$A:$A,$B$48,SummaryData!$B:$B,$B52,SummaryData!$C:$C,$M$14) -> 15.41007
B53: ≥ 8 hours | C53: =SUMIFS(SummaryData!$D:$D,SummaryData!$A:$A,$B$48,SummaryData!$B:$B,$B53,SummaryData!$C:$C,$C$14) -> 27.44068 | E53: =SUMIFS(SummaryData!$E:$E,SummaryData!$A:$A,$B$48,SummaryData!$B:$B,$B53,SummaryData!$C:$C,$C$14) -> 25.38362 | F53: =SUMIFS(SummaryData!$F:$F,SummaryData!$A:$A,$B$48,SummaryData!$B:$B,$B53,SummaryData!$C:$C,$C$14) -> 29.59831 | H53: =SUMIFS(SummaryData!$D:$D,SummaryData!$A:$A,$B$48,SummaryData!$B:$B,$B53,SummaryData!$C:$C,$H$14) -> 21.39784 | J53: =SUMIFS(SummaryData!$E:$E,SummaryData!$A:$A,$B$48,SummaryData!$B:$B,$B53,SummaryData!$C:$C,$H$14) -> 19.55144 | K53: =SUMIFS(SummaryData!$F:$F,SummaryData!$A:$A,$B$48,SummaryData!$B:$B,$B53,SummaryData!$C:$C,$H$14) -> 23.36796 | M53: =SUMIFS(SummaryData!$D:$D,SummaryData!$A:$A,$B$48,SummaryData!$B:$B,$B53,SummaryData!$C:$C,$M$14) -> 24.27763 | O53: =SUMIFS(SummaryData!$E:$E,SummaryData!$A:$A,$B$48,SummaryData!$B:$B,$B53,SummaryData!$C:$C,$M$14) -> 22.90099 | P53: =SUMIFS(SummaryData!$F:$F,SummaryData!$A:$A,$B$48,SummaryData!$B:$B,$B53,SummaryData!$C:$C,$M$14) -> 25.70942
B54: PHYSICAL ACTIVITY - Time spent sitting on a typical weekend day
B55: < 2 hours | C55: =SUMIFS(SummaryData!$D:$D,SummaryData!$A:$A,$B$54,SummaryData!$B:$B,$B55,SummaryData!$C:$C,$C$14) -> 22.423229 | E55: =SUMIFS(SummaryData!$E:$E,SummaryData!$A:$A,$B$54,SummaryData!$B:$B,$B55,SummaryData!$C:$C,$C$14) -> 19.663606 | F55: =SUMIFS(SummaryData!$F:$F,SummaryData!$A:$A,$B$54,SummaryData!$B:$B,$B55,SummaryData!$C:$C,$C$14) -> 25.537416 | H55: =SUMIFS(SummaryData!$D:$D,SummaryData!$A:$A,$B$54,SummaryData!$B:$B,$B55,SummaryData!$C:$C,$H$14) -> 17.443802 | J55: =SUMIFS(SummaryData!$E:$E,SummaryData!$A:$A,$B$54,SummaryData!$B:$B,$B55,SummaryData!$C:$C,$H$14) -> 14.992933 | K55: =SUMIFS(SummaryData!$F:$F,SummaryData!$A:$A,$B$54,SummaryData!$B:$B,$B55,SummaryData!$C:$C,$H$14) -> 20.252398 | M55: =SUMIFS(SummaryData!$D:$D,SummaryData!$A:$A,$B$54,SummaryData!$B:$B,$B55,SummaryData!$C:$C,$M$14) -> 19.937347 | O55: =SUMIFS(SummaryData!$E:$E,SummaryData!$A:$A,$B$54,SummaryData!$B:$B,$B55,SummaryData!$C:$C,$M$14) -> 18.052896 | P55: =SUMIFS(SummaryData!$F:$F,SummaryData!$A:$A,$B$54,SummaryData!$B:$B,$B55,SummaryData!$C:$C,$M$14) -> 21.998902
B56: 2 to < 4 hours | C56: =SUMIFS(SummaryData!$D:$D,SummaryData!$A:$A,$B$54,SummaryData!$B:$B,$B56,SummaryData!$C:$C,$C$14) -> 29.24914 | E56: =SUMIFS(SummaryData!$E:$E,SummaryData!$A:$A,$B$54,SummaryData!$B:$B,$B56,SummaryData!$C:$C,$C$14) -> 27.24679 | F56: =SUMIFS(SummaryData!$F:$F,SummaryData!$A:$A,$B$54,SummaryData!$B:$B,$B56,SummaryData!$C:$C,$C$14) -> 31.33525 | H56: =SUMIFS(SummaryData!$D:$D,SummaryData!$A:$A,$B$54,SummaryData!$B:$B,$B56,SummaryData!$C:$C,$H$14) -> 35.7771 | J56: =SUMIFS(SummaryData!$E:$E,SummaryData!$A:$A,$B$54,SummaryData!$B:$B,$B56,SummaryData!$C:$C,$H$14) -> 33.62928 | K56: =SUMIFS(SummaryData!$F:$F,SummaryData!$A:$A,$B$54,SummaryData!$B:$B,$B56,SummaryData!$C:$C,$H$14) -> 37.9836 | M56: =SUMIFS(SummaryData!$D:$D,SummaryData!$A:$A,$B$54,SummaryData!$B:$B,$B56,SummaryData!$C:$C,$M$14) -> 32.48187 | O56: =SUMIFS(SummaryData!$E:$E,SummaryData!$A:$A,$B$54,SummaryData!$B:$B,$B56,SummaryData!$C:$C,$M$14) -> 31.01148 | P56: =SUMIFS(SummaryData!$F:$F,SummaryData!$A:$A,$B$54,SummaryData!$B:$B,$B56,SummaryData!$C:$C,$M$14) -> 33.98763
B57: 4 to < 6 hours | C57: =SUMIFS(SummaryData!$D:$D,SummaryData!$A:$A,$B$54,SummaryData!$B:$B,$B57,SummaryData!$C:$C,$C$14) -> 30.43896 | E57: =SUMIFS(SummaryData!$E:$E,SummaryData!$A:$A,$B$54,SummaryData!$B:$B,$B57,SummaryData!$C:$C,$C$14) -> 28.3983 | F57: =SUMIFS(SummaryData!$F:$F,SummaryData!$A:$A,$B$54,SummaryData!$B:$B,$B57,SummaryData!$C:$C,$C$14) -> 32.55958 | H57: =SUMIFS(SummaryData!$D:$D,SummaryData!$A:$A,$B$54,SummaryData!$B:$B,$B57,SummaryData!$C:$C,$H$14) -> 29.33997 | J57: =SUMIFS(SummaryData!$E:$E,SummaryData!$A:$A,$B$54,SummaryData!$B:$B,$B57,SummaryData!$C:$C,$H$14) -> 27.28001 | K57: =SUMIFS(SummaryData!$F:$F,SummaryData!$A:$A,$B$54,SummaryData!$B:$B,$B57,SummaryData!$C:$C,$H$14) -> 31.48812 | M57: =SUMIFS(SummaryData!$D:$D,SummaryData!$A:$A,$B$54,SummaryData!$B:$B,$B57,SummaryData!$C:$C,$M$14) -> 29.75196 | O57: =SUMIFS(SummaryData!$E:$E,SummaryData!$A:$A,$B$54,SummaryData!$B:$B,$B57,SummaryData!$C:$C,$M$14) -> 28.30773 | P57: =SUMIFS(SummaryData!$F:$F,SummaryData!$A:$A,$B$54,SummaryData!$B:$B,$B57,SummaryData!$C:$C,$M$14) -> 31.23777
B58: 6 to < 8 hours | C58: =SUMIFS(SummaryData!$D:$D,SummaryData!$A:$A,$B$54,SummaryData!$B:$B,$B58,SummaryData!$C:$C,$C$14) -> 14.23839 | E58: =SUMIFS(SummaryData!$E:$E,SummaryData!$A:$A,$B$54,SummaryData!$B:$B,$B58,SummaryData!$C:$C,$C$14) -> 12.67974 | F58: =SUMIFS(SummaryData!$F:$F,SummaryData!$A:$A,$B$54,SummaryData!$B:$B,$B58,SummaryData!$C:$C,$C$14) -> 15.95364 | H58: =SUMIFS(SummaryData!$D:$D,SummaryData!$A:$A,$B$54,SummaryData!$B:$B,$B58,SummaryData!$C:$C,$H$14) -> 9.627039 | J58: =SUMIFS(SummaryData!$E:$E,SummaryData!$A:$A,$B$54,SummaryData!$B:$B,$B58,SummaryData!$C:$C,$H$14) -> 8.377003 | K58: =SUMIFS(SummaryData!$F:$F,SummaryData!$A:$A,$B$54,SummaryData!$B:$B,$B58,SummaryData!$C:$C,$H$14) -> 11.04113 | M58: =SUMIFS(SummaryData!$D:$D,SummaryData!$A:$A,$B$54,SummaryData!$B:$B,$B58,SummaryData!$C:$C,$M$14) -> 11.99641 | O58: =SUMIFS(SummaryData!$E:$E,SummaryData!$A:$A,$B$54,SummaryData!$B:$B,$B58,SummaryData!$C:$C,$M$14) -> 10.98042 | P58: =SUMIFS(SummaryData!$F:$F,SummaryData!$A:$A,$B$54,SummaryData!$B:$B,$B58,SummaryData!$C:$C,$M$14) -> 13.09258
B59: ≥ 8 hours | C59: =SUMIFS(SummaryData!$D:$D,SummaryData!$A:$A,$B$54,SummaryData!$B:$B,$B59,SummaryData!$C:$C,$C$14) -> 16.34455 | E59: =SUMIFS(SummaryData!$E:$E,SummaryData!$A:$A,$B$54,SummaryData!$B:$B,$B59,SummaryData!$C:$C,$C$14) -> 14.61313 | F59: =SUMIFS(SummaryData!$F:$F,SummaryData!$A:$A,$B$54,SummaryData!$B:$B,$B59,SummaryData!$C:$C,$C$14) -> 18.2373 | H59: =SUMIFS(SummaryData!$D:$D,SummaryData!$A:$A,$B$54,SummaryData!$B:$B,$B59,SummaryData!$C:$C,$H$14) -> 9.436527 | J59: =SUMIFS(SummaryData!$E:$E,SummaryData!$A:$A,$B$54,SummaryData!$B:$B,$B59,SummaryData!$C:$C,$H$14) -> 8.164212 | K59: =SUMIFS(SummaryData!$F:$F,SummaryData!$A:$A,$B$54,SummaryData!$B:$B,$B59,SummaryData!$C:$C,$H$14) -> 10.88362 | M59: =SUMIFS(SummaryData!$D:$D,SummaryData!$A:$A,$B$54,SummaryData!$B:$B,$B59,SummaryData!$C:$C,$M$14) -> 12.87261 | O59: =SUMIFS(SummaryData!$E:$E,SummaryData!$A:$A,$B$54,SummaryData!$B:$B,$B59,SummaryData!$C:$C,$M$14) -> 11.78507 | P59: =SUMIFS(SummaryData!$F:$F,SummaryData!$A:$A,$B$54,SummaryData!$B:$B,$B59,SummaryData!$C:$C,$M$14) -> 14.04453
B60: FRUIT and VEG CONSUMPTION - Compliance with fruit and vegetable consumption guidelines
B61: Met fruit and vegetable consumption guidelines | C61: =SUMIFS(SummaryData!$D:$D,SummaryData!$A:$A,$B$60,SummaryData!$B:$B,$B61,SummaryData!$C:$C,$C$14) -> 0.9782744 | E61: =SUMIFS(SummaryData!$E:$E,SummaryData!$A:$A,$B$60,SummaryData!$B:$B,$B61,SummaryData!$C:$C,$C$14) -> 0.6623727 | F61: =SUMIFS(SummaryData!$F:$F,SummaryData!$A:$A,$B$60,SummaryData!$B:$B,$B61,SummaryData!$C:$C,$C$14) -> 1.442649 | H61: =SUMIFS(SummaryData!$D:$D,SummaryData!$A:$A,$B$60,SummaryData!$B:$B,$B61,SummaryData!$C:$C,$H$14) -> 6.090277 | J61: =SUMIFS(SummaryData!$E:$E,SummaryData!$A:$A,$B$60,SummaryData!$B:$B,$B61,SummaryData!$C:$C,$H$14) -> 5.130792 | K61: =SUMIFS(SummaryData!$F:$F,SummaryData!$A:$A,$B$60,SummaryData!$B:$B,$B61,SummaryData!$C:$C,$H$14) -> 7.215543 | M61: =SUMIFS(SummaryData!$D:$D,SummaryData!$A:$A,$B$60,SummaryData!$B:$B,$B61,SummaryData!$C:$C,$M$14) -> 3.578151 | O61: =SUMIFS(SummaryData!$E:$E,SummaryData!$A:$A,$B$60,SummaryData!$B:$B,$B61,SummaryData!$C:$C,$M$14) -> 3.066826 | P61: =SUMIFS(SummaryData!$F:$F,SummaryData!$A:$A,$B$60,SummaryData!$B:$B,$B61,SummaryData!$C:$C,$M$14) -> 4.171059
B62: Met vegetable consumption guidelines only^^ | C62: =SUMIFS(SummaryData!$D:$D,SummaryData!$A:$A,$B$60,SummaryData!$B:$B,$B62,SummaryData!$C:$C,$C$14) -> 1.786278 | E62: =SUMIFS(SummaryData!$E:$E,SummaryData!$A:$A,$B$60,SummaryData!$B:$B,$B62,SummaryData!$C:$C,$C$14) -> 1.358147 | F62: =SUMIFS(SummaryData!$F:$F,SummaryData!$A:$A,$B$60,SummaryData!$B:$B,$B62,SummaryData!$C:$C,$C$14) -> 2.346161 | H62: =SUMIFS(SummaryData!$D:$D,SummaryData!$A:$A,$B$60,SummaryData!$B:$B,$B62,SummaryData!$C:$C,$H$14) -> 9.378516 | J62: =SUMIFS(SummaryData!$E:$E,SummaryData!$A:$A,$B$60,SummaryData!$B:$B,$B62,SummaryData!$C:$C,$H$14) -> 8.19362 | K62: =SUMIFS(SummaryData!$F:$F,SummaryData!$A:$A,$B$60,SummaryData!$B:$B,$B62,SummaryData!$C:$C,$H$14) -> 10.71476 | M62: =SUMIFS(SummaryData!$D:$D,SummaryData!$A:$A,$B$60,SummaryData!$B:$B,$B62,SummaryData!$C:$C,$M$14) -> 5.674812 | O62: =SUMIFS(SummaryData!$E:$E,SummaryData!$A:$A,$B$60,SummaryData!$B:$B,$B62,SummaryData!$C:$C,$M$14) -> 5.029001 | P62: =SUMIFS(SummaryData!$F:$F,SummaryData!$A:$A,$B$60,SummaryData!$B:$B,$B62,SummaryData!$C:$C,$M$14) -> 6.39797
B63: Met fruit consumption guidelines only^^ | C63: =SUMIFS(SummaryData!$D:$D,SummaryData!$A:$A,$B$60,SummaryData!$B:$B,$B63,SummaryData!$C:$C,$C$14) -> 36.5823 | E63: =SUMIFS(SummaryData!$E:$E,SummaryData!$A:$A,$B$60,SummaryData!$B:$B,$B63,SummaryData!$C:$C,$C$14) -> 34.42718 | F63: =SUMIFS(SummaryData!$F:$F,SummaryData!$A:$A,$B$60,SummaryData!$B:$B,$B63,SummaryData!$C:$C,$C$14) -> 38.79253 | H63: =SUMIFS(SummaryData!$D:$D,SummaryData!$A:$A,$B$60,SummaryData!$B:$B,$B63,SummaryData!$C:$C,$H$14) -> 44.44688 | J63: =SUMIFS(SummaryData!$E:$E,SummaryData!$A:$A,$B$60,SummaryData!$B:$B,$B63,SummaryData!$C:$C,$H$14) -> 42.19696 | K63: =SUMIFS(SummaryData!$F:$F,SummaryData!$A:$A,$B$60,SummaryData!$B:$B,$B63,SummaryData!$C:$C,$H$14) -> 46.7198 | M63: =SUMIFS(SummaryData!$D:$D,SummaryData!$A:$A,$B$60,SummaryData!$B:$B,$B63,SummaryData!$C:$C,$M$14) -> 40.62766 | O63: =SUMIFS(SummaryData!$E:$E,SummaryData!$A:$A,$B$60,SummaryData!$B:$B,$B63,SummaryData!$C:$C,$M$14) -> 39.07334 | P63: =SUMIFS(SummaryData!$F:$F,SummaryData!$A:$A,$B$60,SummaryData!$B:$B,$B63,SummaryData!$C:$C,$M$14) -> 42.20097
B64: Did not meet fruit and vegetable consumption guidelines | C64: =SUMIFS(SummaryData!$D:$D,SummaryData!$A:$A,$B$60,SummaryData!$B:$B,$B64,SummaryData!$C:$C,$C$14) -> 58.61562 | E64: =SUMIFS(SummaryData!$E:$E,SummaryData!$A:$A,$B$60,SummaryData!$B:$B,$B64,SummaryData!$C:$C,$C$14) -> 56.36009 | F64: =SUMIFS(SummaryData!$F:$F,SummaryData!$A:$A,$B$60,SummaryData!$B:$B,$B64,SummaryData!$C:$C,$C$14) -> 60.83558 | H64: =SUMIFS(SummaryData!$D:$D,SummaryData!$A:$A,$B$60,SummaryData!$B:$B,$B64,SummaryData!$C:$C,$H$14) -> 49.19904 | J64: =SUMIFS(SummaryData!$E:$E,SummaryData!$A:$A,$B$60,SummaryData!$B:$B,$B64,SummaryData!$C:$C,$H$14) -> 46.91587 | K64: =SUMIFS(SummaryData!$F:$F,SummaryData!$A:$A,$B$60,SummaryData!$B:$B,$B64,SummaryData!$C:$C,$H$14) -> 51.48555 | M64: =SUMIFS(SummaryData!$D:$D,SummaryData!$A:$A,$B$60,SummaryData!$B:$B,$B64,SummaryData!$C:$C,$M$14) -> 53.65378 | O64: =SUMIFS(SummaryData!$E:$E,SummaryData!$A:$A,$B$60,SummaryData!$B:$B,$B64,SummaryData!$C:$C,$M$14) -> 52.05233 | P64: =SUMIFS(SummaryData!$F:$F,SummaryData!$A:$A,$B$60,SummaryData!$B:$B,$B64,SummaryData!$C:$C,$M$14) -> 55.24772
B65: FRUIT and VEG CONSUMPTION - Usual serves of vegetable/day
B66: <1 serve | C66: =SUMIFS(SummaryData!$D:$D,SummaryData!$A:$A,$B$65,SummaryData!$B:$B,$B66,SummaryData!$C:$C,$C$14) -> 11.70064 | E66: =SUMIFS(SummaryData!$E:$E,SummaryData!$A:$A,$B$65,SummaryData!$B:$B,$B66,SummaryData!$C:$C,$C$14) -> 10.30708 | F66: =SUMIFS(SummaryData!$F:$F,SummaryData!$A:$A,$B$65,SummaryData!$B:$B,$B66,SummaryData!$C:$C,$C$14) -> 13.25476 | H66: =SUMIFS(SummaryData!$D:$D,SummaryData!$A:$A,$B$65,SummaryData!$B:$B,$B66,SummaryData!$C:$C,$H$14) -> 6.662939 | J66: =SUMIFS(SummaryData!$E:$E,SummaryData!$A:$A,$B$65,SummaryData!$B:$B,$B66,SummaryData!$C:$C,$H$14) -> 5.549871 | K66: =SUMIFS(SummaryData!$F:$F,SummaryData!$A:$A,$B$65,SummaryData!$B:$B,$B66,SummaryData!$C:$C,$H$14) -> 7.98038 | M66: =SUMIFS(SummaryData!$D:$D,SummaryData!$A:$A,$B$65,SummaryData!$B:$B,$B66,SummaryData!$C:$C,$M$14) -> 9.184026 | O66: =SUMIFS(SummaryData!$E:$E,SummaryData!$A:$A,$B$65,SummaryData!$B:$B,$B66,SummaryData!$C:$C,$M$14) -> 8.275684 | P66: =SUMIFS(SummaryData!$F:$F,SummaryData!$A:$A,$B$65,SummaryData!$B:$B,$B66,SummaryData!$C:$C,$M$14) -> 10.181
B67: 1–2 serves | C67: =SUMIFS(SummaryData!$D:$D,SummaryData!$A:$A,$B$65,SummaryData!$B:$B,$B67,SummaryData!$C:$C,$C$14) -> 64.28047 | E67: =SUMIFS(SummaryData!$E:$E,SummaryData!$A:$A,$B$65,SummaryData!$B:$B,$B67,SummaryData!$C:$C,$C$14) -> 62.0677 | F67: =SUMIFS(SummaryData!$F:$F,SummaryData!$A:$A,$B$65,SummaryData!$B:$B,$B67,SummaryData!$C:$C,$C$14) -> 66.43396 | H67: =SUMIFS(SummaryData!$D:$D,SummaryData!$A:$A,$B$65,SummaryData!$B:$B,$B67,SummaryData!$C:$C,$H$14) -> 51.42724 | J67: =SUMIFS(SummaryData!$E:$E,SummaryData!$A:$A,$B$65,SummaryData!$B:$B,$B67,SummaryData!$C:$C,$H$14) -> 49.15378 | K67: =SUMIFS(SummaryData!$F:$F,SummaryData!$A:$A,$B$65,SummaryData!$B:$B,$B67,SummaryData!$C:$C,$H$14) -> 53.69481 | M67: =SUMIFS(SummaryData!$D:$D,SummaryData!$A:$A,$B$65,SummaryData!$B:$B,$B67,SummaryData!$C:$C,$M$14) -> 57.297 | O67: =SUMIFS(SummaryData!$E:$E,SummaryData!$A:$A,$B$65,SummaryData!$B:$B,$B67,SummaryData!$C:$C,$M$14) -> 55.70455 | P67: =SUMIFS(SummaryData!$F:$F,SummaryData!$A:$A,$B$65,SummaryData!$B:$B,$B67,SummaryData!$C:$C,$M$14) -> 58.87447
B68: 3–4 serves | C68: =SUMIFS(SummaryData!$D:$D,SummaryData!$A:$A,$B$65,SummaryData!$B:$B,$B68,SummaryData!$C:$C,$C$14) -> 16.10056 | E68: =SUMIFS(SummaryData!$E:$E,SummaryData!$A:$A,$B$65,SummaryData!$B:$B,$B68,SummaryData!$C:$C,$C$14) -> 14.53093 | F68: =SUMIFS(SummaryData!$F:$F,SummaryData!$A:$A,$B$65,SummaryData!$B:$B,$B68,SummaryData!$C:$C,$C$14) -> 17.80441 | H68: =SUMIFS(SummaryData!$D:$D,SummaryData!$A:$A,$B$65,SummaryData!$B:$B,$B68,SummaryData!$C:$C,$H$14) -> 28.96985 | J68: =SUMIFS(SummaryData!$E:$E,SummaryData!$A:$A,$B$65,SummaryData!$B:$B,$B68,SummaryData!$C:$C,$H$14) -> 26.99255 | K68: =SUMIFS(SummaryData!$F:$F,SummaryData!$A:$A,$B$65,SummaryData!$B:$B,$B68,SummaryData!$C:$C,$H$14) -> 31.03043 | M68: =SUMIFS(SummaryData!$D:$D,SummaryData!$A:$A,$B$65,SummaryData!$B:$B,$B68,SummaryData!$C:$C,$M$14) -> 22.90206 | O68: =SUMIFS(SummaryData!$E:$E,SummaryData!$A:$A,$B$65,SummaryData!$B:$B,$B68,SummaryData!$C:$C,$M$14) -> 21.60681 | P68: =SUMIFS(SummaryData!$F:$F,SummaryData!$A:$A,$B$65,SummaryData!$B:$B,$B68,SummaryData!$C:$C,$M$14) -> 24.25092
B69: 5+ serves | C69: =SUMIFS(SummaryData!$D:$D,SummaryData!$A:$A,$B$65,SummaryData!$B:$B,$B69,SummaryData!$C:$C,$C$14) -> 4.061512 | E69: =SUMIFS(SummaryData!$E:$E,SummaryData!$A:$A,$B$65,SummaryData!$B:$B,$B69,SummaryData!$C:$C,$C$14) -> 3.237333 | F69: =SUMIFS(SummaryData!$F:$F,SummaryData!$A:$A,$B$65,SummaryData!$B:$B,$B69,SummaryData!$C:$C,$C$14) -> 5.084489 | H69: =SUMIFS(SummaryData!$D:$D,SummaryData!$A:$A,$B$65,SummaryData!$B:$B,$B69,SummaryData!$C:$C,$H$14) -> 9.378516 | J69: =SUMIFS(SummaryData!$E:$E,SummaryData!$A:$A,$B$65,SummaryData!$B:$B,$B69,SummaryData!$C:$C,$H$14) -> 8.193619 | K69: =SUMIFS(SummaryData!$F:$F,SummaryData!$A:$A,$B$65,SummaryData!$B:$B,$B69,SummaryData!$C:$C,$H$14) -> 10.71476 | M69: =SUMIFS(SummaryData!$D:$D,SummaryData!$A:$A,$B$65,SummaryData!$B:$B,$B69,SummaryData!$C:$C,$M$14) -> 6.831095 | O69: =SUMIFS(SummaryData!$E:$E,SummaryData!$A:$A,$B$65,SummaryData!$B:$B,$B69,SummaryData!$C:$C,$M$14) -> 6.092293 | P69: =SUMIFS(SummaryData!$F:$F,SummaryData!$A:$A,$B$65,SummaryData!$B:$B,$B69,SummaryData!$C:$C,$M$14) -> 7.65219
B70: FRUIT and VEG CONSUMPTION - Usual serves of fruit/day
B71: <2 serves | C71: =SUMIFS(SummaryData!$D:$D,SummaryData!$A:$A,$B$70,SummaryData!$B:$B,$B71,SummaryData!$C:$C,$C$14) -> 61.33084 | E71: =SUMIFS(SummaryData!$E:$E,SummaryData!$A:$A,$B$70,SummaryData!$B:$B,$B71,SummaryData!$C:$C,$C$14) -> 59.09486 | F71: =SUMIFS(SummaryData!$F:$F,SummaryData!$A:$A,$B$70,SummaryData!$B:$B,$B71,SummaryData!$C:$C,$C$14) -> 63.52004 | H71: =SUMIFS(SummaryData!$D:$D,SummaryData!$A:$A,$B$70,SummaryData!$B:$B,$B71,SummaryData!$C:$C,$H$14) -> 53.9338 | J71: =SUMIFS(SummaryData!$E:$E,SummaryData!$A:$A,$B$70,SummaryData!$B:$B,$B71,SummaryData!$C:$C,$H$14) -> 51.6549 | K71: =SUMIFS(SummaryData!$F:$F,SummaryData!$A:$A,$B$70,SummaryData!$B:$B,$B71,SummaryData!$C:$C,$H$14) -> 56.19637 | M71: =SUMIFS(SummaryData!$D:$D,SummaryData!$A:$A,$B$70,SummaryData!$B:$B,$B71,SummaryData!$C:$C,$M$14) -> 57.42506 | O71: =SUMIFS(SummaryData!$E:$E,SummaryData!$A:$A,$B$70,SummaryData!$B:$B,$B71,SummaryData!$C:$C,$M$14) -> 55.83933 | P71: =SUMIFS(SummaryData!$F:$F,SummaryData!$A:$A,$B$70,SummaryData!$B:$B,$B71,SummaryData!$C:$C,$M$14) -> 58.99566
B72: ≥ 2 serves | C72: =SUMIFS(SummaryData!$D:$D,SummaryData!$A:$A,$B$70,SummaryData!$B:$B,$B72,SummaryData!$C:$C,$C$14) -> 36.5823 | E72: =SUMIFS(SummaryData!$E:$E,SummaryData!$A:$A,$B$70,SummaryData!$B:$B,$B72,SummaryData!$C:$C,$C$14) -> 34.42718 | F72: =SUMIFS(SummaryData!$F:$F,SummaryData!$A:$A,$B$70,SummaryData!$B:$B,$B72,SummaryData!$C:$C,$C$14) -> 38.79253 | H72: =SUMIFS(SummaryData!$D:$D,SummaryData!$A:$A,$B$70,SummaryData!$B:$B,$B72,SummaryData!$C:$C,$H$14) -> 44.44688 | J72: =SUMIFS(SummaryData!$E:$E,SummaryData!$A:$A,$B$70,SummaryData!$B:$B,$B72,SummaryData!$C:$C,$H$14) -> 42.19696 | K72: =SUMIFS(SummaryData!$F:$F,SummaryData!$A:$A,$B$70,SummaryData!$B:$B,$B72,SummaryData!$C:$C,$H$14) -> 46.7198 | M72: =SUMIFS(SummaryData!$D:$D,SummaryData!$A:$A,$B$70,SummaryData!$B:$B,$B72,SummaryData!$C:$C,$M$14) -> 40.62766 | O72: =SUMIFS(SummaryData!$E:$E,SummaryData!$A:$A,$B$70,SummaryData!$B:$B,$B72,SummaryData!$C:$C,$M$14) -> 39.07334 | P72: =SUMIFS(SummaryData!$F:$F,SummaryData!$A:$A,$B$70,SummaryData!$B:$B,$B72,SummaryData!$C:$C,$M$14) -> 42.20097
B73: SMOKING - Smoking status
B74: Daily smoker | C74: =SUMIFS(SummaryData!$D:$D,SummaryData!$A:$A,$B$73,SummaryData!$B:$B,$B74,SummaryData!$C:$C,$C$14) -> 14.53529 | E74: =SUMIFS(SummaryData!$E:$E,SummaryData!$A:$A,$B$73,SummaryData!$B:$B,$B74,SummaryData!$C:$C,$C$14) -> 12.94819 | F74: =SUMIFS(SummaryData!$F:$F,SummaryData!$A:$A,$B$73,SummaryData!$B:$B,$B74,SummaryData!$C:$C,$C$14) -> 16.28054 | H74: =SUMIFS(SummaryData!$D:$D,SummaryData!$A:$A,$B$73,SummaryData!$B:$B,$B74,SummaryData!$C:$C,$H$14) -> 10.27071 | J74: =SUMIFS(SummaryData!$E:$E,SummaryData!$A:$A,$B$73,SummaryData!$B:$B,$B74,SummaryData!$C:$C,$H$14) -> 8.80007 | K74: =SUMIFS(SummaryData!$F:$F,SummaryData!$A:$A,$B$73,SummaryData!$B:$B,$B74,SummaryData!$C:$C,$H$14) -> 11.95489 | M74: =SUMIFS(SummaryData!$D:$D,SummaryData!$A:$A,$B$73,SummaryData!$B:$B,$B74,SummaryData!$C:$C,$M$14) -> 12.40846 | O74: =SUMIFS(SummaryData!$E:$E,SummaryData!$A:$A,$B$73,SummaryData!$B:$B,$B74,SummaryData!$C:$C,$M$14) -> 11.31509 | P74: =SUMIFS(SummaryData!$F:$F,SummaryData!$A:$A,$B$73,SummaryData!$B:$B,$B74,SummaryData!$C:$C,$M$14) -> 13.59128
B75: Occasional smoker | C75: =SUMIFS(SummaryData!$D:$D,SummaryData!$A:$A,$B$73,SummaryData!$B:$B,$B75,SummaryData!$C:$C,$C$14) -> 5.103787 | E75: =SUMIFS(SummaryData!$E:$E,SummaryData!$A:$A,$B$73,SummaryData!$B:$B,$B75,SummaryData!$C:$C,$C$14) -> 4.140194 | F75: =SUMIFS(SummaryData!$F:$F,SummaryData!$A:$A,$B$73,SummaryData!$B:$B,$B75,SummaryData!$C:$C,$C$14) -> 6.276963 | H75: =SUMIFS(SummaryData!$D:$D,SummaryData!$A:$A,$B$73,SummaryData!$B:$B,$B75,SummaryData!$C:$C,$H$14) -> 3.805056 | J75: =SUMIFS(SummaryData!$E:$E,SummaryData!$A:$A,$B$73,SummaryData!$B:$B,$B75,SummaryData!$C:$C,$H$14) -> 2.947346 | K75: =SUMIFS(SummaryData!$F:$F,SummaryData!$A:$A,$B$73,SummaryData!$B:$B,$B75,SummaryData!$C:$C,$H$14) -> 4.899766 | M75: =SUMIFS(SummaryData!$D:$D,SummaryData!$A:$A,$B$73,SummaryData!$B:$B,$B75,SummaryData!$C:$C,$M$14) -> 4.506669 | O75: =SUMIFS(SummaryData!$E:$E,SummaryData!$A:$A,$B$73,SummaryData!$B:$B,$B75,SummaryData!$C:$C,$M$14) -> 3.842021 | P75: =SUMIFS(SummaryData!$F:$F,SummaryData!$A:$A,$B$73,SummaryData!$B:$B,$B75,SummaryData!$C:$C,$M$14) -> 5.279984
B76: Current smoker (Daily + Occassional) | C76: =SUMIFS(SummaryData!$D:$D,SummaryData!$A:$A,$B$73,SummaryData!$B:$B,$B76,SummaryData!$C:$C,$C$14) -> 19.63908 | E76: =SUMIFS(SummaryData!$E:$E,SummaryData!$A:$A,$B$73,SummaryData!$B:$B,$B76,SummaryData!$C:$C,$C$14) -> 17.83602 | F76: =SUMIFS(SummaryData!$F:$F,SummaryData!$A:$A,$B$73,SummaryData!$B:$B,$B76,SummaryData!$C:$C,$C$14) -> 21.57655 | H76: =SUMIFS(SummaryData!$D:$D,SummaryData!$A:$A,$B$73,SummaryData!$B:$B,$B76,SummaryData!$C:$C,$H$14) -> 14.07576 | J76: =SUMIFS(SummaryData!$E:$E,SummaryData!$A:$A,$B$73,SummaryData!$B:$B,$B76,SummaryData!$C:$C,$H$14) -> 12.39712 | K76: =SUMIFS(SummaryData!$F:$F,SummaryData!$A:$A,$B$73,SummaryData!$B:$B,$B76,SummaryData!$C:$C,$H$14) -> 15.94034 | M76: =SUMIFS(SummaryData!$D:$D,SummaryData!$A:$A,$B$73,SummaryData!$B:$B,$B76,SummaryData!$C:$C,$M$14) -> 16.91513 | O76: =SUMIFS(SummaryData!$E:$E,SummaryData!$A:$A,$B$73,SummaryData!$B:$B,$B76,SummaryData!$C:$C,$M$14) -> 15.67267 | P76: =SUMIFS(SummaryData!$F:$F,SummaryData!$A:$A,$B$73,SummaryData!$B:$B,$B76,SummaryData!$C:$C,$M$14) -> 18.23478
B77: Ex-smoker | C77: =SUMIFS(SummaryData!$D:$D,SummaryData!$A:$A,$B$73,SummaryData!$B:$B,$B77,SummaryData!$C:$C,$C$14) -> 27.5021 | E77: =SUMIFS(SummaryData!$E:$E,SummaryData!$A:$A,$B$73,SummaryData!$B:$B,$B77,SummaryData!$C:$C,$C$14) -> 25.58654 | F77: =SUMIFS(SummaryData!$F:$F,SummaryData!$A:$A,$B$73,SummaryData!$B:$B,$B77,SummaryData!$C:$C,$C$14) -> 29.50422 | H77: =SUMIFS(SummaryData!$D:$D,SummaryData!$A:$A,$B$73,SummaryData!$B:$B,$B77,SummaryData!$C:$C,$H$14) -> 21.80722 | J77: =SUMIFS(SummaryData!$E:$E,SummaryData!$A:$A,$B$73,SummaryData!$B:$B,$B77,SummaryData!$C:$C,$H$14) -> 20.1027 | K77: =SUMIFS(SummaryData!$F:$F,SummaryData!$A:$A,$B$73,SummaryData!$B:$B,$B77,SummaryData!$C:$C,$H$14) -> 23.61354 | M77: =SUMIFS(SummaryData!$D:$D,SummaryData!$A:$A,$B$73,SummaryData!$B:$B,$B77,SummaryData!$C:$C,$M$14) -> 24.41158 | O77: =SUMIFS(SummaryData!$E:$E,SummaryData!$A:$A,$B$73,SummaryData!$B:$B,$B77,SummaryData!$C:$C,$M$14) -> 23.10702 | P77: =SUMIFS(SummaryData!$F:$F,SummaryData!$A:$A,$B$73,SummaryData!$B:$B,$B77,SummaryData!$C:$C,$M$14) -> 25.76511
B78: Non-smoker | C78: =SUMIFS(SummaryData!$D:$D,SummaryData!$A:$A,$B$73,SummaryData!$B:$B,$B78,SummaryData!$C:$C,$C$14) -> 52.1682 | E78: =SUMIFS(SummaryData!$E:$E,SummaryData!$A:$A,$B$73,SummaryData!$B:$B,$B78,SummaryData!$C:$C,$C$14) -> 49.89524 | F78: =SUMIFS(SummaryData!$F:$F,SummaryData!$A:$A,$B$73,SummaryData!$B:$B,$B78,SummaryData!$C:$C,$C$14) -> 54.43222 | H78: =SUMIFS(SummaryData!$D:$D,SummaryData!$A:$A,$B$73,SummaryData!$B:$B,$B78,SummaryData!$C:$C,$H$14) -> 63.01888 | J78: =SUMIFS(SummaryData!$E:$E,SummaryData!$A:$A,$B$73,SummaryData!$B:$B,$B78,SummaryData!$C:$C,$H$14) -> 60.78015 | K78: =SUMIFS(SummaryData!$F:$F,SummaryData!$A:$A,$B$73,SummaryData!$B:$B,$B78,SummaryData!$C:$C,$H$14) -> 65.20299 | M78: =SUMIFS(SummaryData!$D:$D,SummaryData!$A:$A,$B$73,SummaryData!$B:$B,$B78,SummaryData!$C:$C,$M$14) -> 57.77256 | O78: =SUMIFS(SummaryData!$E:$E,SummaryData!$A:$A,$B$73,SummaryData!$B:$B,$B78,SummaryData!$C:$C,$M$14) -> 56.17644 | P78: =SUMIFS(SummaryData!$F:$F,SummaryData!$A:$A,$B$73,SummaryData!$B:$B,$B78,SummaryData!$C:$C,$M$14) -> 59.3526
B79: ALCOHOL CONSUMPTION - Lifetime risk of alcohol-related harm
B80: Abstainer / No longer drinks alcohol | C80: =SUMIFS(SummaryData!$D:$D,SummaryData!$A:$A,$B$79,SummaryData!$B:$B,$B80,SummaryData!$C:$C,$C$14) -> 16.42914 | E80: =SUMIFS(SummaryData!$E:$E,SummaryData!$A:$A,$B$79,SummaryData!$B:$B,$B80,SummaryData!$C:$C,$C$14) -> 14.78349 | F80: =SUMIFS(SummaryData!$F:$F,SummaryData!$A:$A,$B$79,SummaryData!$B:$B,$B80,SummaryData!$C:$C,$C$14) -> 18.21882 | H80: =SUMIFS(SummaryData!$D:$D,SummaryData!$A:$A,$B$79,SummaryData!$B:$B,$B80,SummaryData!$C:$C,$H$14) -> 25.20411 | J80: =SUMIFS(SummaryData!$E:$E,SummaryData!$A:$A,$B$79,SummaryData!$B:$B,$B80,SummaryData!$C:$C,$H$14) -> 23.35804 | K80: =SUMIFS(SummaryData!$F:$F,SummaryData!$A:$A,$B$79,SummaryData!$B:$B,$B80,SummaryData!$C:$C,$H$14) -> 27.14441 | M80: =SUMIFS(SummaryData!$D:$D,SummaryData!$A:$A,$B$79,SummaryData!$B:$B,$B80,SummaryData!$C:$C,$M$14) -> 21.11492 | O80: =SUMIFS(SummaryData!$E:$E,SummaryData!$A:$A,$B$79,SummaryData!$B:$B,$B80,SummaryData!$C:$C,$M$14) -> 19.85678 | P80: =SUMIFS(SummaryData!$F:$F,SummaryData!$A:$A,$B$79,SummaryData!$B:$B,$B80,SummaryData!$C:$C,$M$14) -> 22.43048
B81: Reduced risk | C81: =SUMIFS(SummaryData!$D:$D,SummaryData!$A:$A,$B$79,SummaryData!$B:$B,$B81,SummaryData!$C:$C,$C$14) -> 12.28163 | E81: =SUMIFS(SummaryData!$E:$E,SummaryData!$A:$A,$B$79,SummaryData!$B:$B,$B81,SummaryData!$C:$C,$C$14) -> 10.83113 | F81: =SUMIFS(SummaryData!$F:$F,SummaryData!$A:$A,$B$79,SummaryData!$B:$B,$B81,SummaryData!$C:$C,$C$14) -> 13.89611 | H81: =SUMIFS(SummaryData!$D:$D,SummaryData!$A:$A,$B$79,SummaryData!$B:$B,$B81,SummaryData!$C:$C,$H$14) -> 21.67036 | J81: =SUMIFS(SummaryData!$E:$E,SummaryData!$A:$A,$B$79,SummaryData!$B:$B,$B81,SummaryData!$C:$C,$H$14) -> 19.85883 | K81: =SUMIFS(SummaryData!$F:$F,SummaryData!$A:$A,$B$79,SummaryData!$B:$B,$B81,SummaryData!$C:$C,$H$14) -> 23.59848 | M81: =SUMIFS(SummaryData!$D:$D,SummaryData!$A:$A,$B$79,SummaryData!$B:$B,$B81,SummaryData!$C:$C,$M$14) -> 17.21146 | O81: =SUMIFS(SummaryData!$E:$E,SummaryData!$A:$A,$B$79,SummaryData!$B:$B,$B81,SummaryData!$C:$C,$M$14) -> 16.03733 | P81: =SUMIFS(SummaryData!$F:$F,SummaryData!$A:$A,$B$79,SummaryData!$B:$B,$B81,SummaryData!$C:$C,$M$14) -> 18.45267
B82: Increased risk: either yearly, monthly or weekly | C82: =SUMIFS(SummaryData!$D:$D,SummaryData!$A:$A,$B$79,SummaryData!$B:$B,$B82,SummaryData!$C:$C,$C$14) -> 68.85987 | E82: =SUMIFS(SummaryData!$E:$E,SummaryData!$A:$A,$B$79,SummaryData!$B:$B,$B82,SummaryData!$C:$C,$C$14) -> 66.68296 | F82: =SUMIFS(SummaryData!$F:$F,SummaryData!$A:$A,$B$79,SummaryData!$B:$B,$B82,SummaryData!$C:$C,$C$14) -> 70.9565 | H82: =SUMIFS(SummaryData!$D:$D,SummaryData!$A:$A,$B$79,SummaryData!$B:$B,$B82,SummaryData!$C:$C,$H$14) -> 51.35558 | J82: =SUMIFS(SummaryData!$E:$E,SummaryData!$A:$A,$B$79,SummaryData!$B:$B,$B82,SummaryData!$C:$C,$H$14) -> 49.11634 | K82: =SUMIFS(SummaryData!$F:$F,SummaryData!$A:$A,$B$79,SummaryData!$B:$B,$B82,SummaryData!$C:$C,$H$14) -> 53.58939 | M82: =SUMIFS(SummaryData!$D:$D,SummaryData!$A:$A,$B$79,SummaryData!$B:$B,$B82,SummaryData!$C:$C,$M$14) -> 59.57324 | O82: =SUMIFS(SummaryData!$E:$E,SummaryData!$A:$A,$B$79,SummaryData!$B:$B,$B82,SummaryData!$C:$C,$M$14) -> 58.00755 | P82: =SUMIFS(SummaryData!$F:$F,SummaryData!$A:$A,$B$79,SummaryData!$B:$B,$B82,SummaryData!$C:$C,$M$14) -> 61.11968
B84: Exceeds 2 std drinks per day, yearly | C84: =SUMIFS(SummaryData!$D:$D,SummaryData!$A:$A,$B$79,SummaryData!$B:$B,$B84,SummaryData!$C:$C,$C$14) -> 17.06085 | E84: =SUMIFS(SummaryData!$E:$E,SummaryData!$A:$A,$B$79,SummaryData!$B:$B,$B84,SummaryData!$C:$C,$C$14) -> 15.43215 | F84: =SUMIFS(SummaryData!$F:$F,SummaryData!$A:$A,$B$79,SummaryData!$B:$B,$B84,SummaryData!$C:$C,$C$14) -> 18.82319 | H84: =SUMIFS(SummaryData!$D:$D,SummaryData!$A:$A,$B$79,SummaryData!$B:$B,$B84,SummaryData!$C:$C,$H$14) -> 19.36522 | J84: =SUMIFS(SummaryData!$E:$E,SummaryData!$A:$A,$B$79,SummaryData!$B:$B,$B84,SummaryData!$C:$C,$H$14) -> 17.59544 | K84: =SUMIFS(SummaryData!$F:$F,SummaryData!$A:$A,$B$79,SummaryData!$B:$B,$B84,SummaryData!$C:$C,$H$14) -> 21.26707 | M84: =SUMIFS(SummaryData!$D:$D,SummaryData!$A:$A,$B$79,SummaryData!$B:$B,$B84,SummaryData!$C:$C,$M$14) -> 18.22295 | O84: =SUMIFS(SummaryData!$E:$E,SummaryData!$A:$A,$B$79,SummaryData!$B:$B,$B84,SummaryData!$C:$C,$M$14) -> 17.01361 | P84: =SUMIFS(SummaryData!$F:$F,SummaryData!$A:$A,$B$79,SummaryData!$B:$B,$B84,SummaryData!$C:$C,$M$14) -> 19.49806
B85: Exceeds 2 std drinks per day, monthly | C85: =SUMIFS(SummaryData!$D:$D,SummaryData!$A:$A,$B$79,SummaryData!$B:$B,$B85,SummaryData!$C:$C,$C$14) -> 19.17533 | E85: =SUMIFS(SummaryData!$E:$E,SummaryData!$A:$A,$B$79,SummaryData!$B:$B,$B85,SummaryData!$C:$C,$C$14) -> 17.44931 | F85: =SUMIFS(SummaryData!$F:$F,SummaryData!$A:$A,$B$79,SummaryData!$B:$B,$B85,SummaryData!$C:$C,$C$14) -> 21.02859 | H85: =SUMIFS(SummaryData!$D:$D,SummaryData!$A:$A,$B$79,SummaryData!$B:$B,$B85,SummaryData!$C:$C,$H$14) -> 17.38588 | J85: =SUMIFS(SummaryData!$E:$E,SummaryData!$A:$A,$B$79,SummaryData!$B:$B,$B85,SummaryData!$C:$C,$H$14) -> 15.67385 | K85: =SUMIFS(SummaryData!$F:$F,SummaryData!$A:$A,$B$79,SummaryData!$B:$B,$B85,SummaryData!$C:$C,$H$14) -> 19.24224 | M85: =SUMIFS(SummaryData!$D:$D,SummaryData!$A:$A,$B$79,SummaryData!$B:$B,$B85,SummaryData!$C:$C,$M$14) -> 17.97717 | O85: =SUMIFS(SummaryData!$E:$E,SummaryData!$A:$A,$B$79,SummaryData!$B:$B,$B85,SummaryData!$C:$C,$M$14) -> 16.7688 | P85: =SUMIFS(SummaryData!$F:$F,SummaryData!$A:$A,$B$79,SummaryData!$B:$B,$B85,SummaryData!$C:$C,$M$14) -> 19.25248
B86: Exceeds 2 std drinks per day, weekly | C86: =SUMIFS(SummaryData!$D:$D,SummaryData!$A:$A,$B$79,SummaryData!$B:$B,$B86,SummaryData!$C:$C,$C$14) -> 32.62369 | E86: =SUMIFS(SummaryData!$E:$E,SummaryData!$A:$A,$B$79,SummaryData!$B:$B,$B86,SummaryData!$C:$C,$C$14) -> 30.50264 | F86: =SUMIFS(SummaryData!$F:$F,SummaryData!$A:$A,$B$79,SummaryData!$B:$B,$B86,SummaryData!$C:$C,$C$14) -> 34.81835 | H86: =SUMIFS(SummaryData!$D:$D,SummaryData!$A:$A,$B$79,SummaryData!$B:$B,$B86,SummaryData!$C:$C,$H$14) -> 14.60447 | J86: =SUMIFS(SummaryData!$E:$E,SummaryData!$A:$A,$B$79,SummaryData!$B:$B,$B86,SummaryData!$C:$C,$H$14) -> 13.05172 | K86: =SUMIFS(SummaryData!$F:$F,SummaryData!$A:$A,$B$79,SummaryData!$B:$B,$B86,SummaryData!$C:$C,$H$14) -> 16.30732 | M86: =SUMIFS(SummaryData!$D:$D,SummaryData!$A:$A,$B$79,SummaryData!$B:$B,$B86,SummaryData!$C:$C,$M$14) -> 23.37311 | O86: =SUMIFS(SummaryData!$E:$E,SummaryData!$A:$A,$B$79,SummaryData!$B:$B,$B86,SummaryData!$C:$C,$M$14) -> 22.03029 | P86: =SUMIFS(SummaryData!$F:$F,SummaryData!$A:$A,$B$79,SummaryData!$B:$B,$B86,SummaryData!$C:$C,$M$14) -> 24.77178
B87: ALCOHOL CONSUMPTION - Risk of alcohol-related injury from a single occasion of drinking
B88: Abstainer / No longer drinks alcohol | C88: =SUMIFS(SummaryData!$D:$D,SummaryData!$A:$A,$B$87,SummaryData!$B:$B,$B88,SummaryData!$C:$C,$C$14) -> 16.42914 | E88: =SUMIFS(SummaryData!$E:$E,SummaryData!$A:$A,$B$87,SummaryData!$B:$B,$B88,SummaryData!$C:$C,$C$14) -> 14.78349 | F88: =SUMIFS(SummaryData!$F:$F,SummaryData!$A:$A,$B$87,SummaryData!$B:$B,$B88,SummaryData!$C:$C,$C$14) -> 18.21882 | H88: =SUMIFS(SummaryData!$D:$D,SummaryData!$A:$A,$B$87,SummaryData!$B:$B,$B88,SummaryData!$C:$C,$H$14) -> 25.20411 | J88: =SUMIFS(SummaryData!$E:$E,SummaryData!$A:$A,$B$87,SummaryData!$B:$B,$B88,SummaryData!$C:$C,$H$14) -> 23.35804 | K88: =SUMIFS(SummaryData!$F:$F,SummaryData!$A:$A,$B$87,SummaryData!$B:$B,$B88,SummaryData!$C:$C,$H$14) -> 27.14441 | M88: =SUMIFS(SummaryData!$D:$D,SummaryData!$A:$A,$B$87,SummaryData!$B:$B,$B88,SummaryData!$C:$C,$M$14) -> 21.11492 | O88: =SUMIFS(SummaryData!$E:$E,SummaryData!$A:$A,$B$87,SummaryData!$B:$B,$B88,SummaryData!$C:$C,$M$14) -> 19.85678 | P88: =SUMIFS(SummaryData!$F:$F,SummaryData!$A:$A,$B$87,SummaryData!$B:$B,$B88,SummaryData!$C:$C,$M$14) -> 22.43048
B89: Reduced risk | C89: =SUMIFS(SummaryData!$D:$D,SummaryData!$A:$A,$B$87,SummaryData!$B:$B,$B89,SummaryData!$C:$C,$C$14) -> 28.85077 | E89: =SUMIFS(SummaryData!$E:$E,SummaryData!$A:$A,$B$87,SummaryData!$B:$B,$B89,SummaryData!$C:$C,$C$14) -> 26.88124 | F89: =SUMIFS(SummaryData!$F:$F,SummaryData!$A:$A,$B$87,SummaryData!$B:$B,$B89,SummaryData!$C:$C,$C$14) -> 30.9036 | H89: =SUMIFS(SummaryData!$D:$D,SummaryData!$A:$A,$B$87,SummaryData!$B:$B,$B89,SummaryData!$C:$C,$H$14) -> 40.82217 | J89: =SUMIFS(SummaryData!$E:$E,SummaryData!$A:$A,$B$87,SummaryData!$B:$B,$B89,SummaryData!$C:$C,$H$14) -> 38.62605 | K89: =SUMIFS(SummaryData!$F:$F,SummaryData!$A:$A,$B$87,SummaryData!$B:$B,$B89,SummaryData!$C:$C,$H$14) -> 43.05557 | M89: =SUMIFS(SummaryData!$D:$D,SummaryData!$A:$A,$B$87,SummaryData!$B:$B,$B89,SummaryData!$C:$C,$M$14) -> 35.03229 | O89: =SUMIFS(SummaryData!$E:$E,SummaryData!$A:$A,$B$87,SummaryData!$B:$B,$B89,SummaryData!$C:$C,$M$14) -> 33.5533 | P89: =SUMIFS(SummaryData!$F:$F,SummaryData!$A:$A,$B$87,SummaryData!$B:$B,$B89,SummaryData!$C:$C,$M$14) -> 36.54061
B90: Increased risk: either yearly, monthly or weekly | C90: =SUMIFS(SummaryData!$D:$D,SummaryData!$A:$A,$B$87,SummaryData!$B:$B,$B90,SummaryData!$C:$C,$C$14) -> 52.95137 | E90: =SUMIFS(SummaryData!$E:$E,SummaryData!$A:$A,$B$87,SummaryData!$B:$B,$B90,SummaryData!$C:$C,$C$14) -> 50.71324 | F90: =SUMIFS(SummaryData!$F:$F,SummaryData!$A:$A,$B$87,SummaryData!$B:$B,$B90,SummaryData!$C:$C,$C$14) -> 55.17769 | H90: =SUMIFS(SummaryData!$D:$D,SummaryData!$A:$A,$B$87,SummaryData!$B:$B,$B90,SummaryData!$C:$C,$H$14) -> 33.16963 | J90: =SUMIFS(SummaryData!$E:$E,SummaryData!$A:$A,$B$87,SummaryData!$B:$B,$B90,SummaryData!$C:$C,$H$14) -> 31.05553 | K90: =SUMIFS(SummaryData!$F:$F,SummaryData!$A:$A,$B$87,SummaryData!$B:$B,$B90,SummaryData!$C:$C,$H$14) -> 35.35384 | M90: =SUMIFS(SummaryData!$D:$D,SummaryData!$A:$A,$B$87,SummaryData!$B:$B,$B90,SummaryData!$C:$C,$M$14) -> 42.58067 | O90: =SUMIFS(SummaryData!$E:$E,SummaryData!$A:$A,$B$87,SummaryData!$B:$B,$B90,SummaryData!$C:$C,$M$14) -> 41.03042 | P90: =SUMIFS(SummaryData!$F:$F,SummaryData!$A:$A,$B$87,SummaryData!$B:$B,$B90,SummaryData!$C:$C,$M$14) -> 44.14565
B92: Exceeds 4 std drinks per day, yearly | C92: =SUMIFS(SummaryData!$D:$D,SummaryData!$A:$A,$B$87,SummaryData!$B:$B,$B92,SummaryData!$C:$C,$C$14) -> 18.7 | E92: =SUMIFS(SummaryData!$E:$E,SummaryData!$A:$A,$B$87,SummaryData!$B:$B,$B92,SummaryData!$C:$C,$C$14) -> 16.9 | F92: =SUMIFS(SummaryData!$F:$F,SummaryData!$A:$A,$B$87,SummaryData!$B:$B,$B92,SummaryData!$C:$C,$C$14) -> 20.5 | H92: =SUMIFS(SummaryData!$D:$D,SummaryData!$A:$A,$B$87,SummaryData!$B:$B,$B92,SummaryData!$C:$C,$H$14) -> 16.6 | J92: =SUMIFS(SummaryData!$E:$E,SummaryData!$A:$A,$B$87,SummaryData!$B:$B,$B92,SummaryData!$C:$C,$H$14) -> 14.9 | K92: =SUMIFS(SummaryData!$F:$F,SummaryData!$A:$A,$B$87,SummaryData!$B:$B,$B92,SummaryData!$C:$C,$H$14) -> 18.4 | M92: =SUMIFS(SummaryData!$D:$D,SummaryData!$A:$A,$B$87,SummaryData!$B:$B,$B92,SummaryData!$C:$C,$M$14) -> 17.4 | O92: =SUMIFS(SummaryData!$E:$E,SummaryData!$A:$A,$B$87,SummaryData!$B:$B,$B92,SummaryData!$C:$C,$M$14) -> 16.2 | P92: =SUMIFS(SummaryData!$F:$F,SummaryData!$A:$A,$B$87,SummaryData!$B:$B,$B92,SummaryData!$C:$C,$M$14) -> 18.7
B93: Exceeds 4 std drinks per day, monthly | C93: =SUMIFS(SummaryData!$D:$D,SummaryData!$A:$A,$B$87,SummaryData!$B:$B,$B93,SummaryData!$C:$C,$C$14) -> 16.3 | E93: =SUMIFS(SummaryData!$E:$E,SummaryData!$A:$A,$B$87,SummaryData!$B:$B,$B93,SummaryData!$C:$C,$C$14) -> 14.7 | F93: =SUMIFS(SummaryData!$F:$F,SummaryData!$A:$A,$B$87,SummaryData!$B:$B,$B93,SummaryData!$C:$C,$C$14) -> 18 | H93: =SUMIFS(SummaryData!$D:$D,SummaryData!$A:$A,$B$87,SummaryData!$B:$B,$B93,SummaryData!$C:$C,$H$14) -> 11.3 | J93: =SUMIFS(SummaryData!$E:$E,SummaryData!$A:$A,$B$87,SummaryData!$B:$B,$B93,SummaryData!$C:$C,$H$14) -> 9.9 | K93: =SUMIFS(SummaryData!$F:$F,SummaryData!$A:$A,$B$87,SummaryData!$B:$B,$B93,SummaryData!$C:$C,$H$14) -> 13 | M93: =SUMIFS(SummaryData!$D:$D,SummaryData!$A:$A,$B$87,SummaryData!$B:$B,$B93,SummaryData!$C:$C,$M$14) -> 13.6 | O93: =SUMIFS(SummaryData!$E:$E,SummaryData!$A:$A,$B$87,SummaryData!$B:$B,$B93,SummaryData!$C:$C,$M$14) -> 12.5 | P93: =SUMIFS(SummaryData!$F:$F,SummaryData!$A:$A,$B$87,SummaryData!$B:$B,$B93,SummaryData!$C:$C,$M$14) -> 14.8
B94: Exceeds 4 std drinks per day, weekly | C94: =SUMIFS(SummaryData!$D:$D,SummaryData!$A:$A,$B$87,SummaryData!$B:$B,$B94,SummaryData!$C:$C,$C$14) -> 18 | E94: =SUMIFS(SummaryData!$E:$E,SummaryData!$A:$A,$B$87,SummaryData!$B:$B,$B94,SummaryData!$C:$C,$C$14) -> 16.3 | F94: =SUMIFS(SummaryData!$F:$F,SummaryData!$A:$A,$B$87,SummaryData!$B:$B,$B94,SummaryData!$C:$C,$C$14) -> 19.9 | H94: =SUMIFS(SummaryData!$D:$D,SummaryData!$A:$A,$B$87,SummaryData!$B:$B,$B94,SummaryData!$C:$C,$H$14) -> 5.2 | J94: =SUMIFS(SummaryData!$E:$E,SummaryData!$A:$A,$B$87,SummaryData!$B:$B,$B94,SummaryData!$C:$C,$H$14) -> 4.3 | K94: =SUMIFS(SummaryData!$F:$F,SummaryData!$A:$A,$B$87,SummaryData!$B:$B,$B94,SummaryData!$C:$C,$H$14) -> 6.4 | M94: =SUMIFS(SummaryData!$D:$D,SummaryData!$A:$A,$B$87,SummaryData!$B:$B,$B94,SummaryData!$C:$C,$M$14) -> 11.5 | O94: =SUMIFS(SummaryData!$E:$E,SummaryData!$A:$A,$B$87,SummaryData!$B:$B,$B94,SummaryData!$C:$C,$M$14) -> 10.5 | P94: =SUMIFS(SummaryData!$F:$F,SummaryData!$A:$A,$B$87,SummaryData!$B:$B,$B94,SummaryData!$C:$C,$M$14) -> 12.6
B95: MENTAL HEALTH and WELLBEING - Level of psychological distress
B96: Low (K10 < 16) | C96: =SUMIFS(SummaryData!$D:$D,SummaryData!$A:$A,$B$95,SummaryData!$B:$B,$B96,SummaryData!$C:$C,$C$14) -> 53.09528 | E96: =SUMIFS(SummaryData!$E:$E,SummaryData!$A:$A,$B$95,SummaryData!$B:$B,$B96,SummaryData!$C:$C,$C$14) -> 50.79733 | F96: =SUMIFS(SummaryData!$F:$F,SummaryData!$A:$A,$B$95,SummaryData!$B:$B,$B96,SummaryData!$C:$C,$C$14) -> 55.38017 | H96: =SUMIFS(SummaryData!$D:$D,SummaryData!$A:$A,$B$95,SummaryData!$B:$B,$B96,SummaryData!$C:$C,$H$14) -> 47.73169 | J96: =SUMIFS(SummaryData!$E:$E,SummaryData!$A:$A,$B$95,SummaryData!$B:$B,$B96,SummaryData!$C:$C,$H$14) -> 45.52161 | K96: =SUMIFS(SummaryData!$F:$F,SummaryData!$A:$A,$B$95,SummaryData!$B:$B,$B96,SummaryData!$C:$C,$H$14) -> 49.95068 | M96: =SUMIFS(SummaryData!$D:$D,SummaryData!$A:$A,$B$95,SummaryData!$B:$B,$B96,SummaryData!$C:$C,$M$14) -> 50.5191 | O96: =SUMIFS(SummaryData!$E:$E,SummaryData!$A:$A,$B$95,SummaryData!$B:$B,$B96,SummaryData!$C:$C,$M$14) -> 48.92616 | P96: =SUMIFS(SummaryData!$F:$F,SummaryData!$A:$A,$B$95,SummaryData!$B:$B,$B96,SummaryData!$C:$C,$M$14) -> 52.11099
B97: Moderate (K10 16–21) | C97: =SUMIFS(SummaryData!$D:$D,SummaryData!$A:$A,$B$95,SummaryData!$B:$B,$B97,SummaryData!$C:$C,$C$14) -> 25.14826 | E97: =SUMIFS(SummaryData!$E:$E,SummaryData!$A:$A,$B$95,SummaryData!$B:$B,$B97,SummaryData!$C:$C,$C$14) -> 23.21566 | F97: =SUMIFS(SummaryData!$F:$F,SummaryData!$A:$A,$B$95,SummaryData!$B:$B,$B97,SummaryData!$C:$C,$C$14) -> 27.18477 | H97: =SUMIFS(SummaryData!$D:$D,SummaryData!$A:$A,$B$95,SummaryData!$B:$B,$B97,SummaryData!$C:$C,$H$14) -> 25.66762 | J97: =SUMIFS(SummaryData!$E:$E,SummaryData!$A:$A,$B$95,SummaryData!$B:$B,$B97,SummaryData!$C:$C,$H$14) -> 23.70937 | K97: =SUMIFS(SummaryData!$F:$F,SummaryData!$A:$A,$B$95,SummaryData!$B:$B,$B97,SummaryData!$C:$C,$H$14) -> 27.72882 | M97: =SUMIFS(SummaryData!$D:$D,SummaryData!$A:$A,$B$95,SummaryData!$B:$B,$B97,SummaryData!$C:$C,$M$14) -> 25.522 | O97: =SUMIFS(SummaryData!$E:$E,SummaryData!$A:$A,$B$95,SummaryData!$B:$B,$B97,SummaryData!$C:$C,$M$14) -> 24.1395 | P97: =SUMIFS(SummaryData!$F:$F,SummaryData!$A:$A,$B$95,SummaryData!$B:$B,$B97,SummaryData!$C:$C,$M$14) -> 26.95554
B98: High (K10 22–29) | C98: =SUMIFS(SummaryData!$D:$D,SummaryData!$A:$A,$B$95,SummaryData!$B:$B,$B98,SummaryData!$C:$C,$C$14) -> 10.65483 | E98: =SUMIFS(SummaryData!$E:$E,SummaryData!$A:$A,$B$95,SummaryData!$B:$B,$B98,SummaryData!$C:$C,$C$14) -> 9.238113 | F98: =SUMIFS(SummaryData!$F:$F,SummaryData!$A:$A,$B$95,SummaryData!$B:$B,$B98,SummaryData!$C:$C,$C$14) -> 12.25947 | H98: =SUMIFS(SummaryData!$D:$D,SummaryData!$A:$A,$B$95,SummaryData!$B:$B,$B98,SummaryData!$C:$C,$H$14) -> 14.60443 | J98: =SUMIFS(SummaryData!$E:$E,SummaryData!$A:$A,$B$95,SummaryData!$B:$B,$B98,SummaryData!$C:$C,$H$14) -> 12.90326 | K98: =SUMIFS(SummaryData!$F:$F,SummaryData!$A:$A,$B$95,SummaryData!$B:$B,$B98,SummaryData!$C:$C,$H$14) -> 16.48743 | M98: =SUMIFS(SummaryData!$D:$D,SummaryData!$A:$A,$B$95,SummaryData!$B:$B,$B98,SummaryData!$C:$C,$M$14) -> 12.47139 | O98: =SUMIFS(SummaryData!$E:$E,SummaryData!$A:$A,$B$95,SummaryData!$B:$B,$B98,SummaryData!$C:$C,$M$14) -> 11.35717 | P98: =SUMIFS(SummaryData!$F:$F,SummaryData!$A:$A,$B$95,SummaryData!$B:$B,$B98,SummaryData!$C:$C,$M$14) -> 13.67806
B99: Very high (K10 30+) | C99: =SUMIFS(SummaryData!$D:$D,SummaryData!$A:$A,$B$95,SummaryData!$B:$B,$B99,SummaryData!$C:$C,$C$14) -> 4.977781 | E99: =SUMIFS(SummaryData!$E:$E,SummaryData!$A:$A,$B$95,SummaryData!$B:$B,$B99,SummaryData!$C:$C,$C$14) -> 3.929644 | F99: =SUMIFS(SummaryData!$F:$F,SummaryData!$A:$A,$B$95,SummaryData!$B:$B,$B99,SummaryData!$C:$C,$C$14) -> 6.287188 | H99: =SUMIFS(SummaryData!$D:$D,SummaryData!$A:$A,$B$95,SummaryData!$B:$B,$B99,SummaryData!$C:$C,$H$14) -> 6.41227 | J99: =SUMIFS(SummaryData!$E:$E,SummaryData!$A:$A,$B$95,SummaryData!$B:$B,$B99,SummaryData!$C:$C,$H$14) -> 5.321554 | K99: =SUMIFS(SummaryData!$F:$F,SummaryData!$A:$A,$B$95,SummaryData!$B:$B,$B99,SummaryData!$C:$C,$H$14) -> 7.70834 | M99: =SUMIFS(SummaryData!$D:$D,SummaryData!$A:$A,$B$95,SummaryData!$B:$B,$B99,SummaryData!$C:$C,$M$14) -> 5.601978 | O99: =SUMIFS(SummaryData!$E:$E,SummaryData!$A:$A,$B$95,SummaryData!$B:$B,$B99,SummaryData!$C:$C,$M$14) -> 4.850934 | P99: =SUMIFS(SummaryData!$F:$F,SummaryData!$A:$A,$B$95,SummaryData!$B:$B,$B99,SummaryData!$C:$C,$M$14) -> 6.461407
B100: High / very high (K10 22+) | C100: =SUMIFS(SummaryData!$D:$D,SummaryData!$A:$A,$B$95,SummaryData!$B:$B,$B100,SummaryData!$C:$C,$C$14) -> 15.63262 | E100: =SUMIFS(SummaryData!$E:$E,SummaryData!$A:$A,$B$95,SummaryData!$B:$B,$B100,SummaryData!$C:$C,$C$14) -> 13.90218 | F100: =SUMIFS(SummaryData!$F:$F,SummaryData!$A:$A,$B$95,SummaryData!$B:$B,$B100,SummaryData!$C:$C,$C$14) -> 17.53457 | H100: =SUMIFS(SummaryData!$D:$D,SummaryData!$A:$A,$B$95,SummaryData!$B:$B,$B100,SummaryData!$C:$C,$H$14) -> 21.0167 | J100: =SUMIFS(SummaryData!$E:$E,SummaryData!$A:$A,$B$95,SummaryData!$B:$B,$B100,SummaryData!$C:$C,$H$14) -> 19.10387 | K100: =SUMIFS(SummaryData!$F:$F,SummaryData!$A:$A,$B$95,SummaryData!$B:$B,$B100,SummaryData!$C:$C,$H$14) -> 23.06644 | M100: =SUMIFS(SummaryData!$D:$D,SummaryData!$A:$A,$B$95,SummaryData!$B:$B,$B100,SummaryData!$C:$C,$M$14) -> 18.07337 | O100: =SUMIFS(SummaryData!$E:$E,SummaryData!$A:$A,$B$95,SummaryData!$B:$B,$B100,SummaryData!$C:$C,$M$14) -> 16.77862 | P100: =SUMIFS(SummaryData!$F:$F,SummaryData!$A:$A,$B$95,SummaryData!$B:$B,$B100,SummaryData!$C:$C,$M$14) -> 19.44468
B101: MENTAL HEALTH and WELLBEING - Diagnosed with anxiety or depression
B102: Ever diagnosed with anxiety or depression | C102: =SUMIFS(SummaryData!$D:$D,SummaryData!$A:$A,$B$101,SummaryData!$B:$B,$B102,SummaryData!$C:$C,$C$14) -> 23.69793 | E102: =SUMIFS(SummaryData!$E:$E,SummaryData!$A:$A,$B$101,SummaryData!$B:$B,$B102,SummaryData!$C:$C,$C$14) -> 21.73876 | F102: =SUMIFS(SummaryData!$F:$F,SummaryData!$A:$A,$B$101,SummaryData!$B:$B,$B102,SummaryData!$C:$C,$C$14) -> 25.7755 | H102: =SUMIFS(SummaryData!$D:$D,SummaryData!$A:$A,$B$101,SummaryData!$B:$B,$B102,SummaryData!$C:$C,$H$14) -> 35.971 | J102: =SUMIFS(SummaryData!$E:$E,SummaryData!$A:$A,$B$101,SummaryData!$B:$B,$B102,SummaryData!$C:$C,$H$14) -> 33.76538 | K102: =SUMIFS(SummaryData!$F:$F,SummaryData!$A:$A,$B$101,SummaryData!$B:$B,$B102,SummaryData!$C:$C,$H$14) -> 38.23751 | M102: =SUMIFS(SummaryData!$D:$D,SummaryData!$A:$A,$B$101,SummaryData!$B:$B,$B102,SummaryData!$C:$C,$M$14) -> 29.76431 | O102: =SUMIFS(SummaryData!$E:$E,SummaryData!$A:$A,$B$101,SummaryData!$B:$B,$B102,SummaryData!$C:$C,$M$14) -> 28.27851 | P102: =SUMIFS(SummaryData!$F:$F,SummaryData!$A:$A,$B$101,SummaryData!$B:$B,$B102,SummaryData!$C:$C,$M$14) -> 31.29411
B103: Diagnosed with anxiety or depression in the last year | C103: =SUMIFS(SummaryData!$D:$D,SummaryData!$A:$A,$B$101,SummaryData!$B:$B,$B103,SummaryData!$C:$C,$C$14) -> 11.3977 | E103: =SUMIFS(SummaryData!$E:$E,SummaryData!$A:$A,$B$101,SummaryData!$B:$B,$B103,SummaryData!$C:$C,$C$14) -> 9.892724 | F103: =SUMIFS(SummaryData!$F:$F,SummaryData!$A:$A,$B$101,SummaryData!$B:$B,$B103,SummaryData!$C:$C,$C$14) -> 13.09834 | H103: =SUMIFS(SummaryData!$D:$D,SummaryData!$A:$A,$B$101,SummaryData!$B:$B,$B103,SummaryData!$C:$C,$H$14) -> 18.78209 | J103: =SUMIFS(SummaryData!$E:$E,SummaryData!$A:$A,$B$101,SummaryData!$B:$B,$B103,SummaryData!$C:$C,$H$14) -> 16.94753 | K103: =SUMIFS(SummaryData!$F:$F,SummaryData!$A:$A,$B$101,SummaryData!$B:$B,$B103,SummaryData!$C:$C,$H$14) -> 20.76558 | M103: =SUMIFS(SummaryData!$D:$D,SummaryData!$A:$A,$B$101,SummaryData!$B:$B,$B103,SummaryData!$C:$C,$M$14) -> 14.94965 | O103: =SUMIFS(SummaryData!$E:$E,SummaryData!$A:$A,$B$101,SummaryData!$B:$B,$B103,SummaryData!$C:$C,$M$14) -> 13.7601 | P103: =SUMIFS(SummaryData!$F:$F,SummaryData!$A:$A,$B$101,SummaryData!$B:$B,$B103,SummaryData!$C:$C,$M$14) -> 16.22269
B104: Prior to last 12 months | C104: =SUMIFS(SummaryData!$D:$D,SummaryData!$A:$A,$B$101,SummaryData!$B:$B,$B104,SummaryData!$C:$C,$C$14) -> 11.95321 | E104: =SUMIFS(SummaryData!$E:$E,SummaryData!$A:$A,$B$101,SummaryData!$B:$B,$B104,SummaryData!$C:$C,$C$14) -> 10.54931 | F104: =SUMIFS(SummaryData!$F:$F,SummaryData!$A:$A,$B$101,SummaryData!$B:$B,$B104,SummaryData!$C:$C,$C$14) -> 13.5157 | H104: =SUMIFS(SummaryData!$D:$D,SummaryData!$A:$A,$B$101,SummaryData!$B:$B,$B104,SummaryData!$C:$C,$H$14) -> 17.07366 | J104: =SUMIFS(SummaryData!$E:$E,SummaryData!$A:$A,$B$101,SummaryData!$B:$B,$B104,SummaryData!$C:$C,$H$14) -> 15.41546 | K104: =SUMIFS(SummaryData!$F:$F,SummaryData!$A:$A,$B$101,SummaryData!$B:$B,$B104,SummaryData!$C:$C,$H$14) -> 18.87043 | M104: =SUMIFS(SummaryData!$D:$D,SummaryData!$A:$A,$B$101,SummaryData!$B:$B,$B104,SummaryData!$C:$C,$M$14) -> 14.55723 | O104: =SUMIFS(SummaryData!$E:$E,SummaryData!$A:$A,$B$101,SummaryData!$B:$B,$B104,SummaryData!$C:$C,$M$14) -> 13.46204 | P104: =SUMIFS(SummaryData!$F:$F,SummaryData!$A:$A,$B$101,SummaryData!$B:$B,$B104,SummaryData!$C:$C,$M$14) -> 15.72532
B105: Never been diagnosed | C105: =SUMIFS(SummaryData!$D:$D,SummaryData!$A:$A,$B$101,SummaryData!$B:$B,$B105,SummaryData!$C:$C,$C$14) -> 75.73362 | E105: =SUMIFS(SummaryData!$E:$E,SummaryData!$A:$A,$B$101,SummaryData!$B:$B,$B105,SummaryData!$C:$C,$C$14) -> 73.64003 | F105: =SUMIFS(SummaryData!$F:$F,SummaryData!$A:$A,$B$101,SummaryData!$B:$B,$B105,SummaryData!$C:$C,$C$14) -> 77.71126 | H105: =SUMIFS(SummaryData!$D:$D,SummaryData!$A:$A,$B$101,SummaryData!$B:$B,$B105,SummaryData!$C:$C,$H$14) -> 63.62633 | J105: =SUMIFS(SummaryData!$E:$E,SummaryData!$A:$A,$B$101,SummaryData!$B:$B,$B105,SummaryData!$C:$C,$H$14) -> 61.35747 | K105: =SUMIFS(SummaryData!$F:$F,SummaryData!$A:$A,$B$101,SummaryData!$B:$B,$B105,SummaryData!$C:$C,$H$14) -> 65.83615 | M105: =SUMIFS(SummaryData!$D:$D,SummaryData!$A:$A,$B$101,SummaryData!$B:$B,$B105,SummaryData!$C:$C,$M$14) -> 69.75447 | O105: =SUMIFS(SummaryData!$E:$E,SummaryData!$A:$A,$B$101,SummaryData!$B:$B,$B105,SummaryData!$C:$C,$M$14) -> 68.21881 | P105: =SUMIFS(SummaryData!$F:$F,SummaryData!$A:$A,$B$101,SummaryData!$B:$B,$B105,SummaryData!$C:$C,$M$14) -> 71.2472
B106: MENTAL HEALTH and WELLBEING - Sought professional help for a mental health problem in the previous year
B107: Sought professional help for a mental health related problem | C107: =SUMIFS(SummaryData!$D:$D,SummaryData!$A:$A,$B$106,SummaryData!$B:$B,$B107,SummaryData!$C:$C,$C$14) -> 13.95947 | E107: =SUMIFS(SummaryData!$E:$E,SummaryData!$A:$A,$B$106,SummaryData!$B:$B,$B107,SummaryData!$C:$C,$C$14) -> 12.34994 | F107: =SUMIFS(SummaryData!$F:$F,SummaryData!$A:$A,$B$106,SummaryData!$B:$B,$B107,SummaryData!$C:$C,$C$14) -> 15.74108 | H107: =SUMIFS(SummaryData!$D:$D,SummaryData!$A:$A,$B$106,SummaryData!$B:$B,$B107,SummaryData!$C:$C,$H$14) -> 23.81657 | J107: =SUMIFS(SummaryData!$E:$E,SummaryData!$A:$A,$B$106,SummaryData!$B:$B,$B107,SummaryData!$C:$C,$H$14) -> 21.81711 | K107: =SUMIFS(SummaryData!$F:$F,SummaryData!$A:$A,$B$106,SummaryData!$B:$B,$B107,SummaryData!$C:$C,$H$14) -> 25.93849 | M107: =SUMIFS(SummaryData!$D:$D,SummaryData!$A:$A,$B$106,SummaryData!$B:$B,$B107,SummaryData!$C:$C,$M$14) -> 18.74823 | O107: =SUMIFS(SummaryData!$E:$E,SummaryData!$A:$A,$B$106,SummaryData!$B:$B,$B107,SummaryData!$C:$C,$M$14) -> 17.45062 | P107: =SUMIFS(SummaryData!$F:$F,SummaryData!$A:$A,$B$106,SummaryData!$B:$B,$B107,SummaryData!$C:$C,$M$14) -> 20.11882
B108: MENTAL HEALTH and WELLBEING - Self-reported health status
B109: Excellent / very good | C109: =SUMIFS(SummaryData!$D:$D,SummaryData!$A:$A,$B$108,SummaryData!$B:$B,$B109,SummaryData!$C:$C,$C$14) -> 40.00843 | E109: =SUMIFS(SummaryData!$E:$E,SummaryData!$A:$A,$B$108,SummaryData!$B:$B,$B109,SummaryData!$C:$C,$C$14) -> 37.79518 | F109: =SUMIFS(SummaryData!$F:$F,SummaryData!$A:$A,$B$108,SummaryData!$B:$B,$B109,SummaryData!$C:$C,$C$14) -> 42.26323 | H109: =SUMIFS(SummaryData!$D:$D,SummaryData!$A:$A,$B$108,SummaryData!$B:$B,$B109,SummaryData!$C:$C,$H$14) -> 40.47749 | J109: =SUMIFS(SummaryData!$E:$E,SummaryData!$A:$A,$B$108,SummaryData!$B:$B,$B109,SummaryData!$C:$C,$H$14) -> 38.25133 | K109: =SUMIFS(SummaryData!$F:$F,SummaryData!$A:$A,$B$108,SummaryData!$B:$B,$B109,SummaryData!$C:$C,$H$14) -> 42.74352 | M109: =SUMIFS(SummaryData!$D:$D,SummaryData!$A:$A,$B$108,SummaryData!$B:$B,$B109,SummaryData!$C:$C,$M$14) -> 40.42741 | O109: =SUMIFS(SummaryData!$E:$E,SummaryData!$A:$A,$B$108,SummaryData!$B:$B,$B109,SummaryData!$C:$C,$M$14) -> 38.85926 | P109: =SUMIFS(SummaryData!$F:$F,SummaryData!$A:$A,$B$108,SummaryData!$B:$B,$B109,SummaryData!$C:$C,$M$14) -> 42.01535
B110: Good | C110: =SUMIFS(SummaryData!$D:$D,SummaryData!$A:$A,$B$108,SummaryData!$B:$B,$B110,SummaryData!$C:$C,$C$14) -> 36.57 | E110: =SUMIFS(SummaryData!$E:$E,SummaryData!$A:$A,$B$108,SummaryData!$B:$B,$B110,SummaryData!$C:$C,$C$14) -> 34.41038 | F110: =SUMIFS(SummaryData!$F:$F,SummaryData!$A:$A,$B$108,SummaryData!$B:$B,$B110,SummaryData!$C:$C,$C$14) -> 38.785 | H110: =SUMIFS(SummaryData!$D:$D,SummaryData!$A:$A,$B$108,SummaryData!$B:$B,$B110,SummaryData!$C:$C,$H$14) -> 38.09737 | J110: =SUMIFS(SummaryData!$E:$E,SummaryData!$A:$A,$B$108,SummaryData!$B:$B,$B110,SummaryData!$C:$C,$H$14) -> 35.90119 | K110: =SUMIFS(SummaryData!$F:$F,SummaryData!$A:$A,$B$108,SummaryData!$B:$B,$B110,SummaryData!$C:$C,$H$14) -> 40.34335 | M110: =SUMIFS(SummaryData!$D:$D,SummaryData!$A:$A,$B$108,SummaryData!$B:$B,$B110,SummaryData!$C:$C,$M$14) -> 37.25443 | O110: =SUMIFS(SummaryData!$E:$E,SummaryData!$A:$A,$B$108,SummaryData!$B:$B,$B110,SummaryData!$C:$C,$M$14) -> 35.71646 | P110: =SUMIFS(SummaryData!$F:$F,SummaryData!$A:$A,$B$108,SummaryData!$B:$B,$B110,SummaryData!$C:$C,$M$14) -> 38.81864
B111: Fair/poor | C111: =SUMIFS(SummaryData!$D:$D,SummaryData!$A:$A,$B$108,SummaryData!$B:$B,$B111,SummaryData!$C:$C,$C$14) -> 22.68685 | E111: =SUMIFS(SummaryData!$E:$E,SummaryData!$A:$A,$B$108,SummaryData!$B:$B,$B111,SummaryData!$C:$C,$C$14) -> 20.77423 | F111: =SUMIFS(SummaryData!$F:$F,SummaryData!$A:$A,$B$108,SummaryData!$B:$B,$B111,SummaryData!$C:$C,$C$14) -> 24.7206 | H111: =SUMIFS(SummaryData!$D:$D,SummaryData!$A:$A,$B$108,SummaryData!$B:$B,$B111,SummaryData!$C:$C,$H$14) -> 21.18606 | J111: =SUMIFS(SummaryData!$E:$E,SummaryData!$A:$A,$B$108,SummaryData!$B:$B,$B111,SummaryData!$C:$C,$H$14) -> 19.36526 | K111: =SUMIFS(SummaryData!$F:$F,SummaryData!$A:$A,$B$108,SummaryData!$B:$B,$B111,SummaryData!$C:$C,$H$14) -> 23.12895 | M111: =SUMIFS(SummaryData!$D:$D,SummaryData!$A:$A,$B$108,SummaryData!$B:$B,$B111,SummaryData!$C:$C,$M$14) -> 21.83104 | O111: =SUMIFS(SummaryData!$E:$E,SummaryData!$A:$A,$B$108,SummaryData!$B:$B,$B111,SummaryData!$C:$C,$M$14) -> 20.51287 | P111: =SUMIFS(SummaryData!$F:$F,SummaryData!$A:$A,$B$108,SummaryData!$B:$B,$B111,SummaryData!$C:$C,$M$14) -> 23.20917
B112: MENTAL HEALTH and WELLBEING - Life satisfaction
B113: Low or medium (0–6) | C113: =SUMIFS(SummaryData!$D:$D,SummaryData!$A:$A,$B$112,SummaryData!$B:$B,$B113,SummaryData!$C:$C,$C$14) -> 24.35715 | E113: =SUMIFS(SummaryData!$E:$E,SummaryData!$A:$A,$B$112,SummaryData!$B:$B,$B113,SummaryData!$C:$C,$C$14) -> 22.36721 | F113: =SUMIFS(SummaryData!$F:$F,SummaryData!$A:$A,$B$112,SummaryData!$B:$B,$B113,SummaryData!$C:$C,$C$14) -> 26.46378 | H113: =SUMIFS(SummaryData!$D:$D,SummaryData!$A:$A,$B$112,SummaryData!$B:$B,$B113,SummaryData!$C:$C,$H$14) -> 22.60397 | J113: =SUMIFS(SummaryData!$E:$E,SummaryData!$A:$A,$B$112,SummaryData!$B:$B,$B113,SummaryData!$C:$C,$H$14) -> 20.65763 | K113: =SUMIFS(SummaryData!$F:$F,SummaryData!$A:$A,$B$112,SummaryData!$B:$B,$B113,SummaryData!$C:$C,$H$14) -> 24.67666 | M113: =SUMIFS(SummaryData!$D:$D,SummaryData!$A:$A,$B$112,SummaryData!$B:$B,$B113,SummaryData!$C:$C,$M$14) -> 23.3667 | O113: =SUMIFS(SummaryData!$E:$E,SummaryData!$A:$A,$B$112,SummaryData!$B:$B,$B113,SummaryData!$C:$C,$M$14) -> 21.97363 | P113: =SUMIFS(SummaryData!$F:$F,SummaryData!$A:$A,$B$112,SummaryData!$B:$B,$B113,SummaryData!$C:$C,$M$14) -> 24.81999
B114: High (7–8) | C114: =SUMIFS(SummaryData!$D:$D,SummaryData!$A:$A,$B$112,SummaryData!$B:$B,$B114,SummaryData!$C:$C,$C$14) -> 49.9702 | E114: =SUMIFS(SummaryData!$E:$E,SummaryData!$A:$A,$B$112,SummaryData!$B:$B,$B114,SummaryData!$C:$C,$C$14) -> 47.67745 | F114: =SUMIFS(SummaryData!$F:$F,SummaryData!$A:$A,$B$112,SummaryData!$B:$B,$B114,SummaryData!$C:$C,$C$14) -> 52.26307 | H114: =SUMIFS(SummaryData!$D:$D,SummaryData!$A:$A,$B$112,SummaryData!$B:$B,$B114,SummaryData!$C:$C,$H$14) -> 50.3347 | J114: =SUMIFS(SummaryData!$E:$E,SummaryData!$A:$A,$B$112,SummaryData!$B:$B,$B114,SummaryData!$C:$C,$H$14) -> 48.045 | K114: =SUMIFS(SummaryData!$F:$F,SummaryData!$A:$A,$B$112,SummaryData!$B:$B,$B114,SummaryData!$C:$C,$H$14) -> 52.62299 | M114: =SUMIFS(SummaryData!$D:$D,SummaryData!$A:$A,$B$112,SummaryData!$B:$B,$B114,SummaryData!$C:$C,$M$14) -> 50.19045 | O114: =SUMIFS(SummaryData!$E:$E,SummaryData!$A:$A,$B$112,SummaryData!$B:$B,$B114,SummaryData!$C:$C,$M$14) -> 48.57963 | P114: =SUMIFS(SummaryData!$F:$F,SummaryData!$A:$A,$B$112,SummaryData!$B:$B,$B114,SummaryData!$C:$C,$M$14) -> 51.80088
B115: Very high (9–10) | C115: =SUMIFS(SummaryData!$D:$D,SummaryData!$A:$A,$B$112,SummaryData!$B:$B,$B115,SummaryData!$C:$C,$C$14) -> 24.10495 | E115: =SUMIFS(SummaryData!$E:$E,SummaryData!$A:$A,$B$112,SummaryData!$B:$B,$B115,SummaryData!$C:$C,$C$14) -> 22.28876 | F115: =SUMIFS(SummaryData!$F:$F,SummaryData!$A:$A,$B$112,SummaryData!$B:$B,$B115,SummaryData!$C:$C,$C$14) -> 26.01959 | H115: =SUMIFS(SummaryData!$D:$D,SummaryData!$A:$A,$B$112,SummaryData!$B:$B,$B115,SummaryData!$C:$C,$H$14) -> 25.79115 | J115: =SUMIFS(SummaryData!$E:$E,SummaryData!$A:$A,$B$112,SummaryData!$B:$B,$B115,SummaryData!$C:$C,$H$14) -> 23.89499 | K115: =SUMIFS(SummaryData!$F:$F,SummaryData!$A:$A,$B$112,SummaryData!$B:$B,$B115,SummaryData!$C:$C,$H$14) -> 27.78285 | M115: =SUMIFS(SummaryData!$D:$D,SummaryData!$A:$A,$B$112,SummaryData!$B:$B,$B115,SummaryData!$C:$C,$M$14) -> 24.96931 | O115: =SUMIFS(SummaryData!$E:$E,SummaryData!$A:$A,$B$112,SummaryData!$B:$B,$B115,SummaryData!$C:$C,$M$14) -> 23.65539 | P115: =SUMIFS(SummaryData!$F:$F,SummaryData!$A:$A,$B$112,SummaryData!$B:$B,$B115,SummaryData!$C:$C,$M$14) -> 26.33104
B116: MENTAL HEALTH and WELLBEING - Feeling of life being worthwhile
B117: Low or medium (0–6) | C117: =SUMIFS(SummaryData!$D:$D,SummaryData!$A:$A,$B$116,SummaryData!$B:$B,$B117,SummaryData!$C:$C,$C$14) -> 21.17717 | E117: =SUMIFS(SummaryData!$E:$E,SummaryData!$A:$A,$B$116,SummaryData!$B:$B,$B117,SummaryData!$C:$C,$C$14) -> 19.25678 | F117: =SUMIFS(SummaryData!$F:$F,SummaryData!$A:$A,$B$116,SummaryData!$B:$B,$B117,SummaryData!$C:$C,$C$14) -> 23.23397 | H117: =SUMIFS(SummaryData!$D:$D,SummaryData!$A:$A,$B$116,SummaryData!$B:$B,$B117,SummaryData!$C:$C,$H$14) -> 18.00179 | J117: =SUMIFS(SummaryData!$E:$E,SummaryData!$A:$A,$B$116,SummaryData!$B:$B,$B117,SummaryData!$C:$C,$H$14) -> 16.19514 | K117: =SUMIFS(SummaryData!$F:$F,SummaryData!$A:$A,$B$116,SummaryData!$B:$B,$B117,SummaryData!$C:$C,$H$14) -> 19.96197 | M117: =SUMIFS(SummaryData!$D:$D,SummaryData!$A:$A,$B$116,SummaryData!$B:$B,$B117,SummaryData!$C:$C,$M$14) -> 19.4611 | O117: =SUMIFS(SummaryData!$E:$E,SummaryData!$A:$A,$B$116,SummaryData!$B:$B,$B117,SummaryData!$C:$C,$M$14) -> 18.14219 | P117: =SUMIFS(SummaryData!$F:$F,SummaryData!$A:$A,$B$116,SummaryData!$B:$B,$B117,SummaryData!$C:$C,$M$14) -> 20.85146
B118: High (7–8) | C118: =SUMIFS(SummaryData!$D:$D,SummaryData!$A:$A,$B$116,SummaryData!$B:$B,$B118,SummaryData!$C:$C,$C$14) -> 46.54204 | E118: =SUMIFS(SummaryData!$E:$E,SummaryData!$A:$A,$B$116,SummaryData!$B:$B,$B118,SummaryData!$C:$C,$C$14) -> 44.26719 | F118: =SUMIFS(SummaryData!$F:$F,SummaryData!$A:$A,$B$116,SummaryData!$B:$B,$B118,SummaryData!$C:$C,$C$14) -> 48.83136 | H118: =SUMIFS(SummaryData!$D:$D,SummaryData!$A:$A,$B$116,SummaryData!$B:$B,$B118,SummaryData!$C:$C,$H$14) -> 43.34265 | J118: =SUMIFS(SummaryData!$E:$E,SummaryData!$A:$A,$B$116,SummaryData!$B:$B,$B118,SummaryData!$C:$C,$H$14) -> 41.097 | K118: =SUMIFS(SummaryData!$F:$F,SummaryData!$A:$A,$B$116,SummaryData!$B:$B,$B118,SummaryData!$C:$C,$H$14) -> 45.61597 | M118: =SUMIFS(SummaryData!$D:$D,SummaryData!$A:$A,$B$116,SummaryData!$B:$B,$B118,SummaryData!$C:$C,$M$14) -> 44.85424 | O118: =SUMIFS(SummaryData!$E:$E,SummaryData!$A:$A,$B$116,SummaryData!$B:$B,$B118,SummaryData!$C:$C,$M$14) -> 43.26167 | P118: =SUMIFS(SummaryData!$F:$F,SummaryData!$A:$A,$B$116,SummaryData!$B:$B,$B118,SummaryData!$C:$C,$M$14) -> 46.45742
B119: Very high (9–10) | C119: =SUMIFS(SummaryData!$D:$D,SummaryData!$A:$A,$B$116,SummaryData!$B:$B,$B119,SummaryData!$C:$C,$C$14) -> 29.97552 | E119: =SUMIFS(SummaryData!$E:$E,SummaryData!$A:$A,$B$116,SummaryData!$B:$B,$B119,SummaryData!$C:$C,$C$14) -> 27.95794 | F119: =SUMIFS(SummaryData!$F:$F,SummaryData!$A:$A,$B$116,SummaryData!$B:$B,$B119,SummaryData!$C:$C,$C$14) -> 32.07387 | H119: =SUMIFS(SummaryData!$D:$D,SummaryData!$A:$A,$B$116,SummaryData!$B:$B,$B119,SummaryData!$C:$C,$H$14) -> 36.40497 | J119: =SUMIFS(SummaryData!$E:$E,SummaryData!$A:$A,$B$116,SummaryData!$B:$B,$B119,SummaryData!$C:$C,$H$14) -> 34.2649 | K119: =SUMIFS(SummaryData!$F:$F,SummaryData!$A:$A,$B$116,SummaryData!$B:$B,$B119,SummaryData!$C:$C,$H$14) -> 38.60022 | M119: =SUMIFS(SummaryData!$D:$D,SummaryData!$A:$A,$B$116,SummaryData!$B:$B,$B119,SummaryData!$C:$C,$M$14) -> 33.31838 | O119: =SUMIFS(SummaryData!$E:$E,SummaryData!$A:$A,$B$116,SummaryData!$B:$B,$B119,SummaryData!$C:$C,$M$14) -> 31.8464 | P119: =SUMIFS(SummaryData!$F:$F,SummaryData!$A:$A,$B$116,SummaryData!$B:$B,$B119,SummaryData!$C:$C,$M$14) -> 34.82363
B120: MORBIDITY STATUS (based on 8 common chronic diseases - including asthma)
B121: No chronic disease | C121: =SUMIFS(SummaryData!$D:$D,SummaryData!$A:$A,$B$120,SummaryData!$B:$B,$B121,SummaryData!$C:$C,$C$14) -> 45.55844 | E121: =SUMIFS(SummaryData!$E:$E,SummaryData!$A:$A,$B$120,SummaryData!$B:$B,$B121,SummaryData!$C:$C,$C$14) -> 43.36336 | F121: =SUMIFS(SummaryData!$F:$F,SummaryData!$A:$A,$B$120,SummaryData!$B:$B,$B121,SummaryData!$C:$C,$C$14) -> 47.7709 | H121: =SUMIFS(SummaryData!$D:$D,SummaryData!$A:$A,$B$120,SummaryData!$B:$B,$B121,SummaryData!$C:$C,$H$14) -> 36.05742 | J121: =SUMIFS(SummaryData!$E:$E,SummaryData!$A:$A,$B$120,SummaryData!$B:$B,$B121,SummaryData!$C:$C,$H$14) -> 33.8936 | K121: =SUMIFS(SummaryData!$F:$F,SummaryData!$A:$A,$B$120,SummaryData!$B:$B,$B121,SummaryData!$C:$C,$H$14) -> 38.2794 | M121: =SUMIFS(SummaryData!$D:$D,SummaryData!$A:$A,$B$120,SummaryData!$B:$B,$B121,SummaryData!$C:$C,$M$14) -> 40.86807 | O121: =SUMIFS(SummaryData!$E:$E,SummaryData!$A:$A,$B$120,SummaryData!$B:$B,$B121,SummaryData!$C:$C,$M$14) -> 39.32511 | P121: =SUMIFS(SummaryData!$F:$F,SummaryData!$A:$A,$B$120,SummaryData!$B:$B,$B121,SummaryData!$C:$C,$M$14) -> 42.42923
B122: One chronic disease | C122: =SUMIFS(SummaryData!$D:$D,SummaryData!$A:$A,$B$120,SummaryData!$B:$B,$B122,SummaryData!$C:$C,$C$14) -> 31.33611 | E122: =SUMIFS(SummaryData!$E:$E,SummaryData!$A:$A,$B$120,SummaryData!$B:$B,$B122,SummaryData!$C:$C,$C$14) -> 29.25592 | F122: =SUMIFS(SummaryData!$F:$F,SummaryData!$A:$A,$B$120,SummaryData!$B:$B,$B122,SummaryData!$C:$C,$C$14) -> 33.49417 | H122: =SUMIFS(SummaryData!$D:$D,SummaryData!$A:$A,$B$120,SummaryData!$B:$B,$B122,SummaryData!$C:$C,$H$14) -> 32.42405 | J122: =SUMIFS(SummaryData!$E:$E,SummaryData!$A:$A,$B$120,SummaryData!$B:$B,$B122,SummaryData!$C:$C,$H$14) -> 30.28857 | K122: =SUMIFS(SummaryData!$F:$F,SummaryData!$A:$A,$B$120,SummaryData!$B:$B,$B122,SummaryData!$C:$C,$H$14) -> 34.6353 | M122: =SUMIFS(SummaryData!$D:$D,SummaryData!$A:$A,$B$120,SummaryData!$B:$B,$B122,SummaryData!$C:$C,$M$14) -> 31.61363 | O122: =SUMIFS(SummaryData!$E:$E,SummaryData!$A:$A,$B$120,SummaryData!$B:$B,$B122,SummaryData!$C:$C,$M$14) -> 30.12909 | P122: =SUMIFS(SummaryData!$F:$F,SummaryData!$A:$A,$B$120,SummaryData!$B:$B,$B122,SummaryData!$C:$C,$M$14) -> 33.13664
B123: Two or more chronic diseases | C123: =SUMIFS(SummaryData!$D:$D,SummaryData!$A:$A,$B$120,SummaryData!$B:$B,$B123,SummaryData!$C:$C,$C$14) -> 23.10546 | E123: =SUMIFS(SummaryData!$E:$E,SummaryData!$A:$A,$B$120,SummaryData!$B:$B,$B123,SummaryData!$C:$C,$C$14) -> 21.36033 | F123: =SUMIFS(SummaryData!$F:$F,SummaryData!$A:$A,$B$120,SummaryData!$B:$B,$B123,SummaryData!$C:$C,$C$14) -> 24.94793 | H123: =SUMIFS(SummaryData!$D:$D,SummaryData!$A:$A,$B$120,SummaryData!$B:$B,$B123,SummaryData!$C:$C,$H$14) -> 31.51852 | J123: =SUMIFS(SummaryData!$E:$E,SummaryData!$A:$A,$B$120,SummaryData!$B:$B,$B123,SummaryData!$C:$C,$H$14) -> 29.57313 | K123: =SUMIFS(SummaryData!$F:$F,SummaryData!$A:$A,$B$120,SummaryData!$B:$B,$B123,SummaryData!$C:$C,$H$14) -> 33.53096 | M123: =SUMIFS(SummaryData!$D:$D,SummaryData!$A:$A,$B$120,SummaryData!$B:$B,$B123,SummaryData!$C:$C,$M$14) -> 27.5183 | O123: =SUMIFS(SummaryData!$E:$E,SummaryData!$A:$A,$B$120,SummaryData!$B:$B,$B123,SummaryData!$C:$C,$M$14) -> 26.2101 | P123: =SUMIFS(SummaryData!$F:$F,SummaryData!$A:$A,$B$120,SummaryData!$B:$B,$B123,SummaryData!$C:$C,$M$14) -> 28.86625
B124: MORBIDITY STATUS (based on 7 common chronic diseases - excluding asthma)
B125: No chronic disease | C125: =SUMIFS(SummaryData!$D:$D,SummaryData!$A:$A,$B$124,SummaryData!$B:$B,$B125,SummaryData!$C:$C,$C$14) -> 54.95202 | E125: =SUMIFS(SummaryData!$E:$E,SummaryData!$A:$A,$B$124,SummaryData!$B:$B,$B125,SummaryData!$C:$C,$C$14) -> 52.81964 | F125: =SUMIFS(SummaryData!$F:$F,SummaryData!$A:$A,$B$124,SummaryData!$B:$B,$B125,SummaryData!$C:$C,$C$14) -> 57.06636 | H125: =SUMIFS(SummaryData!$D:$D,SummaryData!$A:$A,$B$124,SummaryData!$B:$B,$B125,SummaryData!$C:$C,$H$14) -> 42.69319 | J125: =SUMIFS(SummaryData!$E:$E,SummaryData!$A:$A,$B$124,SummaryData!$B:$B,$B125,SummaryData!$C:$C,$H$14) -> 40.4729 | K125: =SUMIFS(SummaryData!$F:$F,SummaryData!$A:$A,$B$124,SummaryData!$B:$B,$B125,SummaryData!$C:$C,$H$14) -> 44.94332 | M125: =SUMIFS(SummaryData!$D:$D,SummaryData!$A:$A,$B$124,SummaryData!$B:$B,$B125,SummaryData!$C:$C,$M$14) -> 48.9153 | O125: =SUMIFS(SummaryData!$E:$E,SummaryData!$A:$A,$B$124,SummaryData!$B:$B,$B125,SummaryData!$C:$C,$M$14) -> 47.37235 | P125: =SUMIFS(SummaryData!$F:$F,SummaryData!$A:$A,$B$124,SummaryData!$B:$B,$B125,SummaryData!$C:$C,$M$14) -> 50.46033
B126: One chronic disease | C126: =SUMIFS(SummaryData!$D:$D,SummaryData!$A:$A,$B$124,SummaryData!$B:$B,$B126,SummaryData!$C:$C,$C$14) -> 28.36266 | E126: =SUMIFS(SummaryData!$E:$E,SummaryData!$A:$A,$B$124,SummaryData!$B:$B,$B126,SummaryData!$C:$C,$C$14) -> 26.36335 | F126: =SUMIFS(SummaryData!$F:$F,SummaryData!$A:$A,$B$124,SummaryData!$B:$B,$B126,SummaryData!$C:$C,$C$14) -> 30.45089 | H126: =SUMIFS(SummaryData!$D:$D,SummaryData!$A:$A,$B$124,SummaryData!$B:$B,$B126,SummaryData!$C:$C,$H$14) -> 35.22558 | J126: =SUMIFS(SummaryData!$E:$E,SummaryData!$A:$A,$B$124,SummaryData!$B:$B,$B126,SummaryData!$C:$C,$H$14) -> 33.01809 | K126: =SUMIFS(SummaryData!$F:$F,SummaryData!$A:$A,$B$124,SummaryData!$B:$B,$B126,SummaryData!$C:$C,$H$14) -> 37.49803 | M126: =SUMIFS(SummaryData!$D:$D,SummaryData!$A:$A,$B$124,SummaryData!$B:$B,$B126,SummaryData!$C:$C,$M$14) -> 31.49173 | O126: =SUMIFS(SummaryData!$E:$E,SummaryData!$A:$A,$B$124,SummaryData!$B:$B,$B126,SummaryData!$C:$C,$M$14) -> 29.99788 | P126: =SUMIFS(SummaryData!$F:$F,SummaryData!$A:$A,$B$124,SummaryData!$B:$B,$B126,SummaryData!$C:$C,$M$14) -> 33.02488
B127: Two or more chronic diseases | C127: =SUMIFS(SummaryData!$D:$D,SummaryData!$A:$A,$B$124,SummaryData!$B:$B,$B127,SummaryData!$C:$C,$C$14) -> 16.68532 | E127: =SUMIFS(SummaryData!$E:$E,SummaryData!$A:$A,$B$124,SummaryData!$B:$B,$B127,SummaryData!$C:$C,$C$14) -> 15.27443 | F127: =SUMIFS(SummaryData!$F:$F,SummaryData!$A:$A,$B$124,SummaryData!$B:$B,$B127,SummaryData!$C:$C,$C$14) -> 18.19854 | H127: =SUMIFS(SummaryData!$D:$D,SummaryData!$A:$A,$B$124,SummaryData!$B:$B,$B127,SummaryData!$C:$C,$H$14) -> 22.08124 | J127: =SUMIFS(SummaryData!$E:$E,SummaryData!$A:$A,$B$124,SummaryData!$B:$B,$B127,SummaryData!$C:$C,$H$14) -> 20.63862 | K127: =SUMIFS(SummaryData!$F:$F,SummaryData!$A:$A,$B$124,SummaryData!$B:$B,$B127,SummaryData!$C:$C,$H$14) -> 23.59471 | M127: =SUMIFS(SummaryData!$D:$D,SummaryData!$A:$A,$B$124,SummaryData!$B:$B,$B127,SummaryData!$C:$C,$M$14) -> 19.59297 | O127: =SUMIFS(SummaryData!$E:$E,SummaryData!$A:$A,$B$124,SummaryData!$B:$B,$B127,SummaryData!$C:$C,$M$14) -> 18.57642 | P127: =SUMIFS(SummaryData!$F:$F,SummaryData!$A:$A,$B$124,SummaryData!$B:$B,$B127,SummaryData!$C:$C,$M$14) -> 20.65104
B128: SELECTED CHRONIC DISEASE PREVALENCE
B129: Asthma (ever diagnosed) | C129: =SUMIFS(SummaryData!$D:$D,SummaryData!$A:$A,$B$128,SummaryData!$B:$B,$B129,SummaryData!$C:$C,$C$14) -> 19.38841 | E129: =SUMIFS(SummaryData!$E:$E,SummaryData!$A:$A,$B$128,SummaryData!$B:$B,$B129,SummaryData!$C:$C,$C$14) -> 17.5859 | F129: =SUMIFS(SummaryData!$F:$F,SummaryData!$A:$A,$B$128,SummaryData!$B:$B,$B129,SummaryData!$C:$C,$C$14) -> 21.32785 | H129: =SUMIFS(SummaryData!$D:$D,SummaryData!$A:$A,$B$128,SummaryData!$B:$B,$B129,SummaryData!$C:$C,$H$14) -> 23.66962 | J129: =SUMIFS(SummaryData!$E:$E,SummaryData!$A:$A,$B$128,SummaryData!$B:$B,$B129,SummaryData!$C:$C,$H$14) -> 21.72239 | K129: =SUMIFS(SummaryData!$F:$F,SummaryData!$A:$A,$B$128,SummaryData!$B:$B,$B129,SummaryData!$C:$C,$H$14) -> 25.73403 | M129: =SUMIFS(SummaryData!$D:$D,SummaryData!$A:$A,$B$128,SummaryData!$B:$B,$B129,SummaryData!$C:$C,$M$14) -> 21.72358 | O129: =SUMIFS(SummaryData!$E:$E,SummaryData!$A:$A,$B$128,SummaryData!$B:$B,$B129,SummaryData!$C:$C,$M$14) -> 20.38477 | P129: =SUMIFS(SummaryData!$F:$F,SummaryData!$A:$A,$B$128,SummaryData!$B:$B,$B129,SummaryData!$C:$C,$M$14) -> 23.12478
B130: Asthma (last year) | C130: =SUMIFS(SummaryData!$D:$D,SummaryData!$A:$A,$B$128,SummaryData!$B:$B,$B130,SummaryData!$C:$C,$C$14) -> 10.14995 | D130: * | E130: =SUMIFS(SummaryData!$E:$E,SummaryData!$A:$A,$B$128,SummaryData!$B:$B,$B130,SummaryData!$C:$C,$C$14) -> 8.771843 | F130: =SUMIFS(SummaryData!$F:$F,SummaryData!$A:$A,$B$128,SummaryData!$B:$B,$B130,SummaryData!$C:$C,$C$14) -> 11.71675 | H130: =SUMIFS(SummaryData!$D:$D,SummaryData!$A:$A,$B$128,SummaryData!$B:$B,$B130,SummaryData!$C:$C,$H$14) -> 15.43728 | J130: =SUMIFS(SummaryData!$E:$E,SummaryData!$A:$A,$B$128,SummaryData!$B:$B,$B130,SummaryData!$C:$C,$H$14) -> 13.76398 | K130: =SUMIFS(SummaryData!$F:$F,SummaryData!$A:$A,$B$128,SummaryData!$B:$B,$B130,SummaryData!$C:$C,$H$14) -> 17.27325 | M130: =SUMIFS(SummaryData!$D:$D,SummaryData!$A:$A,$B$128,SummaryData!$B:$B,$B130,SummaryData!$C:$C,$M$14) -> 12.83024 | O130: =SUMIFS(SummaryData!$E:$E,SummaryData!$A:$A,$B$128,SummaryData!$B:$B,$B130,SummaryData!$C:$C,$M$14) -> 11.74025 | P130: =SUMIFS(SummaryData!$F:$F,SummaryData!$A:$A,$B$128,SummaryData!$B:$B,$B130,SummaryData!$C:$C,$M$14) -> 14.00537
B131: Type 1 diabetes | C131: =SUMIFS(SummaryData!$D:$D,SummaryData!$A:$A,$B$128,SummaryData!$B:$B,$B131,SummaryData!$C:$C,$C$14) -> 0.717498 | E131: =SUMIFS(SummaryData!$E:$E,SummaryData!$A:$A,$B$128,SummaryData!$B:$B,$B131,SummaryData!$C:$C,$C$14) -> 0.3375921 | F131: =SUMIFS(SummaryData!$F:$F,SummaryData!$A:$A,$B$128,SummaryData!$B:$B,$B131,SummaryData!$C:$C,$C$14) -> 1.518414 | H131: =SUMIFS(SummaryData!$D:$D,SummaryData!$A:$A,$B$128,SummaryData!$B:$B,$B131,SummaryData!$C:$C,$H$14) -> 0.4111245 | J131: =SUMIFS(SummaryData!$E:$E,SummaryData!$A:$A,$B$128,SummaryData!$B:$B,$B131,SummaryData!$C:$C,$H$14) -> 0.245079 | K131: =SUMIFS(SummaryData!$F:$F,SummaryData!$A:$A,$B$128,SummaryData!$B:$B,$B131,SummaryData!$C:$C,$H$14) -> 0.6888919 | M131: =SUMIFS(SummaryData!$D:$D,SummaryData!$A:$A,$B$128,SummaryData!$B:$B,$B131,SummaryData!$C:$C,$M$14) -> 0.5427661 | O131: =SUMIFS(SummaryData!$E:$E,SummaryData!$A:$A,$B$128,SummaryData!$B:$B,$B131,SummaryData!$C:$C,$M$14) -> 0.3325899 | P131: =SUMIFS(SummaryData!$F:$F,SummaryData!$A:$A,$B$128,SummaryData!$B:$B,$B131,SummaryData!$C:$C,$M$14) -> 0.8845818
B132: Type 2 diabetes | C132: =SUMIFS(SummaryData!$D:$D,SummaryData!$A:$A,$B$128,SummaryData!$B:$B,$B132,SummaryData!$C:$C,$C$14) -> 6.591268 | E132: =SUMIFS(SummaryData!$E:$E,SummaryData!$A:$A,$B$128,SummaryData!$B:$B,$B132,SummaryData!$C:$C,$C$14) -> 5.63652 | F132: =SUMIFS(SummaryData!$F:$F,SummaryData!$A:$A,$B$128,SummaryData!$B:$B,$B132,SummaryData!$C:$C,$C$14) -> 7.694551 | H132: =SUMIFS(SummaryData!$D:$D,SummaryData!$A:$A,$B$128,SummaryData!$B:$B,$B132,SummaryData!$C:$C,$H$14) -> 5.001591 | J132: =SUMIFS(SummaryData!$E:$E,SummaryData!$A:$A,$B$128,SummaryData!$B:$B,$B132,SummaryData!$C:$C,$H$14) -> 4.23802 | K132: =SUMIFS(SummaryData!$F:$F,SummaryData!$A:$A,$B$128,SummaryData!$B:$B,$B132,SummaryData!$C:$C,$H$14) -> 5.894268 | M132: =SUMIFS(SummaryData!$D:$D,SummaryData!$A:$A,$B$128,SummaryData!$B:$B,$B132,SummaryData!$C:$C,$M$14) -> 5.68493 | O132: =SUMIFS(SummaryData!$E:$E,SummaryData!$A:$A,$B$128,SummaryData!$B:$B,$B132,SummaryData!$C:$C,$M$14) -> 5.071668 | P132: =SUMIFS(SummaryData!$F:$F,SummaryData!$A:$A,$B$128,SummaryData!$B:$B,$B132,SummaryData!$C:$C,$M$14) -> 6.367373
B133: Gestational diabetes | H133: =SUMIFS(SummaryData!$D:$D,SummaryData!$A:$A,$B$128,SummaryData!$B:$B,$B133,SummaryData!$C:$C,$H$14) -> 2.234988 | J133: =SUMIFS(SummaryData!$E:$E,SummaryData!$A:$A,$B$128,SummaryData!$B:$B,$B133,SummaryData!$C:$C,$H$14) -> 1.661179 | K133: =SUMIFS(SummaryData!$F:$F,SummaryData!$A:$A,$B$128,SummaryData!$B:$B,$B133,SummaryData!$C:$C,$H$14) -> 3.000955
B134: Heart disease | C134: =SUMIFS(SummaryData!$D:$D,SummaryData!$A:$A,$B$128,SummaryData!$B:$B,$B134,SummaryData!$C:$C,$C$14) -> 8.743572 | E134: =SUMIFS(SummaryData!$E:$E,SummaryData!$A:$A,$B$128,SummaryData!$B:$B,$B134,SummaryData!$C:$C,$C$14) -> 7.752442 | F134: =SUMIFS(SummaryData!$F:$F,SummaryData!$A:$A,$B$128,SummaryData!$B:$B,$B134,SummaryData!$C:$C,$C$14) -> 9.847889 | H134: =SUMIFS(SummaryData!$D:$D,SummaryData!$A:$A,$B$128,SummaryData!$B:$B,$B134,SummaryData!$C:$C,$H$14) -> 5.767111 | J134: =SUMIFS(SummaryData!$E:$E,SummaryData!$A:$A,$B$128,SummaryData!$B:$B,$B134,SummaryData!$C:$C,$H$14) -> 5.003191 | K134: =SUMIFS(SummaryData!$F:$F,SummaryData!$A:$A,$B$128,SummaryData!$B:$B,$B134,SummaryData!$C:$C,$H$14) -> 6.639518 | M134: =SUMIFS(SummaryData!$D:$D,SummaryData!$A:$A,$B$128,SummaryData!$B:$B,$B134,SummaryData!$C:$C,$M$14) -> 7.124144 | O134: =SUMIFS(SummaryData!$E:$E,SummaryData!$A:$A,$B$128,SummaryData!$B:$B,$B134,SummaryData!$C:$C,$M$14) -> 6.493266 | P134: =SUMIFS(SummaryData!$F:$F,SummaryData!$A:$A,$B$128,SummaryData!$B:$B,$B134,SummaryData!$C:$C,$M$14) -> 7.811196
B135: Stroke | C135: =SUMIFS(SummaryData!$D:$D,SummaryData!$A:$A,$B$128,SummaryData!$B:$B,$B135,SummaryData!$C:$C,$C$14) -> 2.755886 | E135: =SUMIFS(SummaryData!$E:$E,SummaryData!$A:$A,$B$128,SummaryData!$B:$B,$B135,SummaryData!$C:$C,$C$14) -> 2.166912 | F135: =SUMIFS(SummaryData!$F:$F,SummaryData!$A:$A,$B$128,SummaryData!$B:$B,$B135,SummaryData!$C:$C,$C$14) -> 3.499219 | H135: =SUMIFS(SummaryData!$D:$D,SummaryData!$A:$A,$B$128,SummaryData!$B:$B,$B135,SummaryData!$C:$C,$H$14) -> 1.880801 | J135: =SUMIFS(SummaryData!$E:$E,SummaryData!$A:$A,$B$128,SummaryData!$B:$B,$B135,SummaryData!$C:$C,$H$14) -> 1.440333 | K135: =SUMIFS(SummaryData!$F:$F,SummaryData!$A:$A,$B$128,SummaryData!$B:$B,$B135,SummaryData!$C:$C,$H$14) -> 2.452618 | M135: =SUMIFS(SummaryData!$D:$D,SummaryData!$A:$A,$B$128,SummaryData!$B:$B,$B135,SummaryData!$C:$C,$M$14) -> 2.279738 | O135: =SUMIFS(SummaryData!$E:$E,SummaryData!$A:$A,$B$128,SummaryData!$B:$B,$B135,SummaryData!$C:$C,$M$14) -> 1.905133 | P135: =SUMIFS(SummaryData!$F:$F,SummaryData!$A:$A,$B$128,SummaryData!$B:$B,$B135,SummaryData!$C:$C,$M$14) -> 2.725955
B136: Cancer | C136: =SUMIFS(SummaryData!$D:$D,SummaryData!$A:$A,$B$128,SummaryData!$B:$B,$B136,SummaryData!$C:$C,$C$14) -> 6.94578 | E136: =SUMIFS(SummaryData!$E:$E,SummaryData!$A:$A,$B$128,SummaryData!$B:$B,$B136,SummaryData!$C:$C,$C$14) -> 6.085904 | F136: =SUMIFS(SummaryData!$F:$F,SummaryData!$A:$A,$B$128,SummaryData!$B:$B,$B136,SummaryData!$C:$C,$C$14) -> 7.916906 | H136: =SUMIFS(SummaryData!$D:$D,SummaryData!$A:$A,$B$128,SummaryData!$B:$B,$B136,SummaryData!$C:$C,$H$14) -> 8.234765 | J136: =SUMIFS(SummaryData!$E:$E,SummaryData!$A:$A,$B$128,SummaryData!$B:$B,$B136,SummaryData!$C:$C,$H$14) -> 7.373177 | K136: =SUMIFS(SummaryData!$F:$F,SummaryData!$A:$A,$B$128,SummaryData!$B:$B,$B136,SummaryData!$C:$C,$H$14) -> 9.187047 | M136: =SUMIFS(SummaryData!$D:$D,SummaryData!$A:$A,$B$128,SummaryData!$B:$B,$B136,SummaryData!$C:$C,$M$14) -> 7.643857 | O136: =SUMIFS(SummaryData!$E:$E,SummaryData!$A:$A,$B$128,SummaryData!$B:$B,$B136,SummaryData!$C:$C,$M$14) -> 7.023261 | P136: =SUMIFS(SummaryData!$F:$F,SummaryData!$A:$A,$B$128,SummaryData!$B:$B,$B136,SummaryData!$C:$C,$M$14) -> 8.314387
B137: Osteoporosis | C137: =SUMIFS(SummaryData!$D:$D,SummaryData!$A:$A,$B$128,SummaryData!$B:$B,$B137,SummaryData!$C:$C,$C$14) -> 3.279618 | E137: =SUMIFS(SummaryData!$E:$E,SummaryData!$A:$A,$B$128,SummaryData!$B:$B,$B137,SummaryData!$C:$C,$C$14) -> 2.515546 | F137: =SUMIFS(SummaryData!$F:$F,SummaryData!$A:$A,$B$128,SummaryData!$B:$B,$B137,SummaryData!$C:$C,$C$14) -> 4.265615 | H137: =SUMIFS(SummaryData!$D:$D,SummaryData!$A:$A,$B$128,SummaryData!$B:$B,$B137,SummaryData!$C:$C,$H$14) -> 8.850479 | J137: =SUMIFS(SummaryData!$E:$E,SummaryData!$A:$A,$B$128,SummaryData!$B:$B,$B137,SummaryData!$C:$C,$H$14) -> 7.949127 | K137: =SUMIFS(SummaryData!$F:$F,SummaryData!$A:$A,$B$128,SummaryData!$B:$B,$B137,SummaryData!$C:$C,$H$14) -> 9.843108 | M137: =SUMIFS(SummaryData!$D:$D,SummaryData!$A:$A,$B$128,SummaryData!$B:$B,$B137,SummaryData!$C:$C,$M$14) -> 6.364817 | O137: =SUMIFS(SummaryData!$E:$E,SummaryData!$A:$A,$B$128,SummaryData!$B:$B,$B137,SummaryData!$C:$C,$M$14) -> 5.757495 | P137: =SUMIFS(SummaryData!$F:$F,SummaryData!$A:$A,$B$128,SummaryData!$B:$B,$B137,SummaryData!$C:$C,$M$14) -> 7.031423
B138: Anxiety or depression (ever diagnosed) | C138: =SUMIFS(SummaryData!$D:$D,SummaryData!$A:$A,$B$128,SummaryData!$B:$B,$B138,SummaryData!$C:$C,$C$14) -> 23.69793 | E138: =SUMIFS(SummaryData!$E:$E,SummaryData!$A:$A,$B$128,SummaryData!$B:$B,$B138,SummaryData!$C:$C,$C$14) -> 21.73876 | F138: =SUMIFS(SummaryData!$F:$F,SummaryData!$A:$A,$B$128,SummaryData!$B:$B,$B138,SummaryData!$C:$C,$C$14) -> 25.7755 | H138: =SUMIFS(SummaryData!$D:$D,SummaryData!$A:$A,$B$128,SummaryData!$B:$B,$B138,SummaryData!$C:$C,$H$14) -> 35.971 | J138: =SUMIFS(SummaryData!$E:$E,SummaryData!$A:$A,$B$128,SummaryData!$B:$B,$B138,SummaryData!$C:$C,$H$14) -> 33.76538 | K138: =SUMIFS(SummaryData!$F:$F,SummaryData!$A:$A,$B$128,SummaryData!$B:$B,$B138,SummaryData!$C:$C,$H$14) -> 38.23751 | M138: =SUMIFS(SummaryData!$D:$D,SummaryData!$A:$A,$B$128,SummaryData!$B:$B,$B138,SummaryData!$C:$C,$M$14) -> 29.76431 | O138: =SUMIFS(SummaryData!$E:$E,SummaryData!$A:$A,$B$128,SummaryData!$B:$B,$B138,SummaryData!$C:$C,$M$14) -> 28.27851 | P138: =SUMIFS(SummaryData!$F:$F,SummaryData!$A:$A,$B$128,SummaryData!$B:$B,$B138,SummaryData!$C:$C,$M$14) -> 31.29411
B139: Arthritis | C139: =SUMIFS(SummaryData!$D:$D,SummaryData!$A:$A,$B$128,SummaryData!$B:$B,$B139,SummaryData!$C:$C,$C$14) -> 17.27233 | E139: =SUMIFS(SummaryData!$E:$E,SummaryData!$A:$A,$B$128,SummaryData!$B:$B,$B139,SummaryData!$C:$C,$C$14) -> 15.84636 | F139: =SUMIFS(SummaryData!$F:$F,SummaryData!$A:$A,$B$128,SummaryData!$B:$B,$B139,SummaryData!$C:$C,$C$14) -> 18.79794 | H139: =SUMIFS(SummaryData!$D:$D,SummaryData!$A:$A,$B$128,SummaryData!$B:$B,$B139,SummaryData!$C:$C,$H$14) -> 24.01351 | J139: =SUMIFS(SummaryData!$E:$E,SummaryData!$A:$A,$B$128,SummaryData!$B:$B,$B139,SummaryData!$C:$C,$H$14) -> 22.45327 | K139: =SUMIFS(SummaryData!$F:$F,SummaryData!$A:$A,$B$128,SummaryData!$B:$B,$B139,SummaryData!$C:$C,$H$14) -> 25.64631 | M139: =SUMIFS(SummaryData!$D:$D,SummaryData!$A:$A,$B$128,SummaryData!$B:$B,$B139,SummaryData!$C:$C,$M$14) -> 20.88437 | O139: =SUMIFS(SummaryData!$E:$E,SummaryData!$A:$A,$B$128,SummaryData!$B:$B,$B139,SummaryData!$C:$C,$M$14) -> 19.82397 | P139: =SUMIFS(SummaryData!$F:$F,SummaryData!$A:$A,$B$128,SummaryData!$B:$B,$B139,SummaryData!$C:$C,$M$14) -> 21.98594
B140: PREVENTATIVE HEALTH CHECKS - In previous 2 years
B141: Blood pressure | C141: =SUMIFS(SummaryData!$D:$D,SummaryData!$A:$A,$B$140,SummaryData!$B:$B,$B141,SummaryData!$C:$C,$C$14) -> 76.81397 | E141: =SUMIFS(SummaryData!$E:$E,SummaryData!$A:$A,$B$140,SummaryData!$B:$B,$B141,SummaryData!$C:$C,$C$14) -> 74.84951 | F141: =SUMIFS(SummaryData!$F:$F,SummaryData!$A:$A,$B$140,SummaryData!$B:$B,$B141,SummaryData!$C:$C,$C$14) -> 78.66872 | H141: =SUMIFS(SummaryData!$D:$D,SummaryData!$A:$A,$B$140,SummaryData!$B:$B,$B141,SummaryData!$C:$C,$H$14) -> 84.00254 | J141: =SUMIFS(SummaryData!$E:$E,SummaryData!$A:$A,$B$140,SummaryData!$B:$B,$B141,SummaryData!$C:$C,$H$14) -> 82.1497 | K141: =SUMIFS(SummaryData!$F:$F,SummaryData!$A:$A,$B$140,SummaryData!$B:$B,$B141,SummaryData!$C:$C,$H$14) -> 85.69655 | M141: =SUMIFS(SummaryData!$D:$D,SummaryData!$A:$A,$B$140,SummaryData!$B:$B,$B141,SummaryData!$C:$C,$M$14) -> 80.1163 | O141: =SUMIFS(SummaryData!$E:$E,SummaryData!$A:$A,$B$140,SummaryData!$B:$B,$B141,SummaryData!$C:$C,$M$14) -> 78.77271 | P141: =SUMIFS(SummaryData!$F:$F,SummaryData!$A:$A,$B$140,SummaryData!$B:$B,$B141,SummaryData!$C:$C,$M$14) -> 81.39493
B142: Blood lipids | C142: =SUMIFS(SummaryData!$D:$D,SummaryData!$A:$A,$B$140,SummaryData!$B:$B,$B142,SummaryData!$C:$C,$C$14) -> 58.34983 | E142: =SUMIFS(SummaryData!$E:$E,SummaryData!$A:$A,$B$140,SummaryData!$B:$B,$B142,SummaryData!$C:$C,$C$14) -> 56.28246 | F142: =SUMIFS(SummaryData!$F:$F,SummaryData!$A:$A,$B$140,SummaryData!$B:$B,$B142,SummaryData!$C:$C,$C$14) -> 60.38824 | H142: =SUMIFS(SummaryData!$D:$D,SummaryData!$A:$A,$B$140,SummaryData!$B:$B,$B142,SummaryData!$C:$C,$H$14) -> 57.34591 | J142: =SUMIFS(SummaryData!$E:$E,SummaryData!$A:$A,$B$140,SummaryData!$B:$B,$B142,SummaryData!$C:$C,$H$14) -> 55.24838 | K142: =SUMIFS(SummaryData!$F:$F,SummaryData!$A:$A,$B$140,SummaryData!$B:$B,$B142,SummaryData!$C:$C,$H$14) -> 59.41734 | M142: =SUMIFS(SummaryData!$D:$D,SummaryData!$A:$A,$B$140,SummaryData!$B:$B,$B142,SummaryData!$C:$C,$M$14) -> 57.6455 | O142: =SUMIFS(SummaryData!$E:$E,SummaryData!$A:$A,$B$140,SummaryData!$B:$B,$B142,SummaryData!$C:$C,$M$14) -> 56.18704 | P142: =SUMIFS(SummaryData!$F:$F,SummaryData!$A:$A,$B$140,SummaryData!$B:$B,$B142,SummaryData!$C:$C,$M$14) -> 59.09076
B143: Blood glucose | C143: =SUMIFS(SummaryData!$D:$D,SummaryData!$A:$A,$B$140,SummaryData!$B:$B,$B143,SummaryData!$C:$C,$C$14) -> 48.71859 | E143: =SUMIFS(SummaryData!$E:$E,SummaryData!$A:$A,$B$140,SummaryData!$B:$B,$B143,SummaryData!$C:$C,$C$14) -> 46.6676 | F143: =SUMIFS(SummaryData!$F:$F,SummaryData!$A:$A,$B$140,SummaryData!$B:$B,$B143,SummaryData!$C:$C,$C$14) -> 50.77391 | H143: =SUMIFS(SummaryData!$D:$D,SummaryData!$A:$A,$B$140,SummaryData!$B:$B,$B143,SummaryData!$C:$C,$H$14) -> 50.80538 | J143: =SUMIFS(SummaryData!$E:$E,SummaryData!$A:$A,$B$140,SummaryData!$B:$B,$B143,SummaryData!$C:$C,$H$14) -> 48.61153 | K143: =SUMIFS(SummaryData!$F:$F,SummaryData!$A:$A,$B$140,SummaryData!$B:$B,$B143,SummaryData!$C:$C,$H$14) -> 52.99613 | M143: =SUMIFS(SummaryData!$D:$D,SummaryData!$A:$A,$B$140,SummaryData!$B:$B,$B143,SummaryData!$C:$C,$M$14) -> 49.35025 | O143: =SUMIFS(SummaryData!$E:$E,SummaryData!$A:$A,$B$140,SummaryData!$B:$B,$B143,SummaryData!$C:$C,$M$14) -> 47.86214 | P143: =SUMIFS(SummaryData!$F:$F,SummaryData!$A:$A,$B$140,SummaryData!$B:$B,$B143,SummaryData!$C:$C,$M$14) -> 50.83951
B144: HIGH BLOOD PRESSURE
B145: High blood pressure | C145: =SUMIFS(SummaryData!$D:$D,SummaryData!$A:$A,$B$144,SummaryData!$B:$B,$B145,SummaryData!$C:$C,$C$14) -> 27.71062 | E145: =SUMIFS(SummaryData!$E:$E,SummaryData!$A:$A,$B$144,SummaryData!$B:$B,$B145,SummaryData!$C:$C,$C$14) -> 25.90241 | F145: =SUMIFS(SummaryData!$F:$F,SummaryData!$A:$A,$B$144,SummaryData!$B:$B,$B145,SummaryData!$C:$C,$C$14) -> 29.59464 | H145: =SUMIFS(SummaryData!$D:$D,SummaryData!$A:$A,$B$144,SummaryData!$B:$B,$B145,SummaryData!$C:$C,$H$14) -> 24.50702 | J145: =SUMIFS(SummaryData!$E:$E,SummaryData!$A:$A,$B$144,SummaryData!$B:$B,$B145,SummaryData!$C:$C,$H$14) -> 22.79676 | K145: =SUMIFS(SummaryData!$F:$F,SummaryData!$A:$A,$B$144,SummaryData!$B:$B,$B145,SummaryData!$C:$C,$H$14) -> 26.30188 | M145: =SUMIFS(SummaryData!$D:$D,SummaryData!$A:$A,$B$144,SummaryData!$B:$B,$B145,SummaryData!$C:$C,$M$14) -> 25.96258 | O145: =SUMIFS(SummaryData!$E:$E,SummaryData!$A:$A,$B$144,SummaryData!$B:$B,$B145,SummaryData!$C:$C,$M$14) -> 24.72617 | P145: =SUMIFS(SummaryData!$F:$F,SummaryData!$A:$A,$B$144,SummaryData!$B:$B,$B145,SummaryData!$C:$C,$M$14) -> 27.23846
B146: During pregnancy only | H146: =SUMIFS(SummaryData!$D:$D,SummaryData!$A:$A,$B$144,SummaryData!$B:$B,$B146,SummaryData!$C:$C,$H$14) -> 3.583655 | J146: =SUMIFS(SummaryData!$E:$E,SummaryData!$A:$A,$B$144,SummaryData!$B:$B,$B146,SummaryData!$C:$C,$H$14) -> 2.733941 | K146: =SUMIFS(SummaryData!$F:$F,SummaryData!$A:$A,$B$144,SummaryData!$B:$B,$B146,SummaryData!$C:$C,$H$14) -> 4.684743
B147: SCREENING† (bowel & breast cancer screening - previous 2 years, cervical cancer screening - previous 5 years)
B148: Bowel Cancer - Colonoscopy | C148: =SUMIFS(SummaryData!$D:$D,SummaryData!$A:$A,$B$147,SummaryData!$B:$B,$B148,SummaryData!$C:$C,$C$14) -> 27.5457 | D148: =IF(SUMIFS(SummaryData!$G:$G,SummaryData!$A:$A,$B$147,SummaryData!$B:$B,$B148,SummaryData!$C:$C,$C$14)>=50,"**", IF(SUMIFS(SummaryData!$G:$G,SummaryData!$A:$A,$B$147,SummaryData!$B:$B,$B148,SummaryData!$C:$C,$C$14)>25, IF(SUMIFS(SummaryData!$G:$G,SummaryData!$A:$A,$B$147,SummaryData!$B:$B,$B148,SummaryData!$C:$C,$C$14)<50,"*",""),"")) ->  | E148: =SUMIFS(SummaryData!$E:$E,SummaryData!$A:$A,$B$147,SummaryData!$B:$B,$B148,SummaryData!$C:$C,$C$14) -> 24.68941 | F148: =SUMIFS(SummaryData!$F:$F,SummaryData!$A:$A,$B$147,SummaryData!$B:$B,$B148,SummaryData!$C:$C,$C$14) -> 30.59817 | H148: =SUMIFS(SummaryData!$D:$D,SummaryData!$A:$A,$B$147,SummaryData!$B:$B,$B148,SummaryData!$C:$C,$H$14) -> 27.891 | I148: =IF(SUMIFS(SummaryData!$G:$G,SummaryData!$A:$A,$B$147,SummaryData!$B:$B,$B148,SummaryData!$C:$C,$H$14)>=50,"**", IF(SUMIFS(SummaryData!$G:$G,SummaryData!$A:$A,$B$147,SummaryData!$B:$B,$B148,SummaryData!$C:$C,$H$14)>25, IF(SUMIFS(SummaryData!$G:$G,SummaryData!$A:$A,$B$147,SummaryData!$B:$B,$B148,SummaryData!$C:$C,$H$14)<50,"*",""),"")) ->  | J148: =SUMIFS(SummaryData!$E:$E,SummaryData!$A:$A,$B$147,SummaryData!$B:$B,$B148,SummaryData!$C:$C,$H$14) -> 25.308 | K148: =SUMIFS(SummaryData!$F:$F,SummaryData!$A:$A,$B$147,SummaryData!$B:$B,$B148,SummaryData!$C:$C,$H$14) -> 30.62952 | M148: =SUMIFS(SummaryData!$D:$D,SummaryData!$A:$A,$B$147,SummaryData!$B:$B,$B148,SummaryData!$C:$C,$M$14) -> 27.73357 | N148: =IF(SUMIFS(SummaryData!$G:$G,SummaryData!$A:$A,$B$147,SummaryData!$B:$B,$B148,SummaryData!$C:$C,$M$14)>=50,"**", IF(SUMIFS(SummaryData!$G:$G,SummaryData!$A:$A,$B$147,SummaryData!$B:$B,$B148,SummaryData!$C:$C,$M$14)>25, IF(SUMIFS(SummaryData!$G:$G,SummaryData!$A:$A,$B$147,SummaryData!$B:$B,$B148,SummaryData!$C:$C,$M$14)<50,"*",""),"")) ->  | O148: =SUMIFS(SummaryData!$E:$E,SummaryData!$A:$A,$B$147,SummaryData!$B:$B,$B148,SummaryData!$C:$C,$M$14) -> 25.79997 | P148: =SUMIFS(SummaryData!$F:$F,SummaryData!$A:$A,$B$147,SummaryData!$B:$B,$B148,SummaryData!$C:$C,$M$14) -> 29.75399
B149: Bowel Cancer - Faecal Occult Blood Test (FOBT) | C149: =SUMIFS(SummaryData!$D:$D,SummaryData!$A:$A,$B$147,SummaryData!$B:$B,$B149,SummaryData!$C:$C,$C$14) -> 56.69749 | D149: =IF(SUMIFS(SummaryData!$G:$G,SummaryData!$A:$A,$B$147,SummaryData!$B:$B,$B149,SummaryData!$C:$C,$C$14)>=50,"**", IF(SUMIFS(SummaryData!$G:$G,SummaryData!$A:$A,$B$147,SummaryData!$B:$B,$B149,SummaryData!$C:$C,$C$14)>25, IF(SUMIFS(SummaryData!$G:$G,SummaryData!$A:$A,$B$147,SummaryData!$B:$B,$B149,SummaryData!$C:$C,$C$14)<50,"*",""),"")) ->  | E149: =SUMIFS(SummaryData!$E:$E,SummaryData!$A:$A,$B$147,SummaryData!$B:$B,$B149,SummaryData!$C:$C,$C$14) -> 53.27475 | F149: =SUMIFS(SummaryData!$F:$F,SummaryData!$A:$A,$B$147,SummaryData!$B:$B,$B149,SummaryData!$C:$C,$C$14) -> 60.05747 | H149: =SUMIFS(SummaryData!$D:$D,SummaryData!$A:$A,$B$147,SummaryData!$B:$B,$B149,SummaryData!$C:$C,$H$14) -> 53.9872 | I149: =IF(SUMIFS(SummaryData!$G:$G,SummaryData!$A:$A,$B$147,SummaryData!$B:$B,$B149,SummaryData!$C:$C,$H$14)>=50,"**", IF(SUMIFS(SummaryData!$G:$G,SummaryData!$A:$A,$B$147,SummaryData!$B:$B,$B149,SummaryData!$C:$C,$H$14)>25, IF(SUMIFS(SummaryData!$G:$G,SummaryData!$A:$A,$B$147,SummaryData!$B:$B,$B149,SummaryData!$C:$C,$H$14)<50,"*",""),"")) ->  | J149: =SUMIFS(SummaryData!$E:$E,SummaryData!$A:$A,$B$147,SummaryData!$B:$B,$B149,SummaryData!$C:$C,$H$14) -> 50.96775 | K149: =SUMIFS(SummaryData!$F:$F,SummaryData!$A:$A,$B$147,SummaryData!$B:$B,$B149,SummaryData!$C:$C,$H$14) -> 56.97767 | M149: =SUMIFS(SummaryData!$D:$D,SummaryData!$A:$A,$B$147,SummaryData!$B:$B,$B149,SummaryData!$C:$C,$M$14) -> 55.22285 | N149: =IF(SUMIFS(SummaryData!$G:$G,SummaryData!$A:$A,$B$147,SummaryData!$B:$B,$B149,SummaryData!$C:$C,$M$14)>=50,"**", IF(SUMIFS(SummaryData!$G:$G,SummaryData!$A:$A,$B$147,SummaryData!$B:$B,$B149,SummaryData!$C:$C,$M$14)>25, IF(SUMIFS(SummaryData!$G:$G,SummaryData!$A:$A,$B$147,SummaryData!$B:$B,$B149,SummaryData!$C:$C,$M$14)<50,"*",""),"")) ->  | O149: =SUMIFS(SummaryData!$E:$E,SummaryData!$A:$A,$B$147,SummaryData!$B:$B,$B149,SummaryData!$C:$C,$M$14) -> 52.96198 | P149: =SUMIFS(SummaryData!$F:$F,SummaryData!$A:$A,$B$147,SummaryData!$B:$B,$B149,SummaryData!$C:$C,$M$14) -> 57.46233
B150: Bowel Cancer - Barium enema | C150: =SUMIFS(SummaryData!$D:$D,SummaryData!$A:$A,$B$147,SummaryData!$B:$B,$B150,SummaryData!$C:$C,$C$14) -> 2.771201 | D150: =IF(SUMIFS(SummaryData!$G:$G,SummaryData!$A:$A,$B$147,SummaryData!$B:$B,$B150,SummaryData!$C:$C,$C$14)>=50,"**", IF(SUMIFS(SummaryData!$G:$G,SummaryData!$A:$A,$B$147,SummaryData!$B:$B,$B150,SummaryData!$C:$C,$C$14)>25, IF(SUMIFS(SummaryData!$G:$G,SummaryData!$A:$A,$B$147,SummaryData!$B:$B,$B150,SummaryData!$C:$C,$C$14)<50,"*",""),"")) ->  | E150: =SUMIFS(SummaryData!$E:$E,SummaryData!$A:$A,$B$147,SummaryData!$B:$B,$B150,SummaryData!$C:$C,$C$14) -> 1.780063 | F150: =SUMIFS(SummaryData!$F:$F,SummaryData!$A:$A,$B$147,SummaryData!$B:$B,$B150,SummaryData!$C:$C,$C$14) -> 4.290098 | H150: =SUMIFS(SummaryData!$D:$D,SummaryData!$A:$A,$B$147,SummaryData!$B:$B,$B150,SummaryData!$C:$C,$H$14) -> 2.322926 | I150: =IF(SUMIFS(SummaryData!$G:$G,SummaryData!$A:$A,$B$147,SummaryData!$B:$B,$B150,SummaryData!$C:$C,$H$14)>=50,"**", IF(SUMIFS(SummaryData!$G:$G,SummaryData!$A:$A,$B$147,SummaryData!$B:$B,$B150,SummaryData!$C:$C,$H$14)>25, IF(SUMIFS(SummaryData!$G:$G,SummaryData!$A:$A,$B$147,SummaryData!$B:$B,$B150,SummaryData!$C:$C,$H$14)<50,"*",""),"")) ->  | J150: =SUMIFS(SummaryData!$E:$E,SummaryData!$A:$A,$B$147,SummaryData!$B:$B,$B150,SummaryData!$C:$C,$H$14) -> 1.580764 | K150: =SUMIFS(SummaryData!$F:$F,SummaryData!$A:$A,$B$147,SummaryData!$B:$B,$B150,SummaryData!$C:$C,$H$14) -> 3.401488 | M150: =SUMIFS(SummaryData!$D:$D,SummaryData!$A:$A,$B$147,SummaryData!$B:$B,$B150,SummaryData!$C:$C,$M$14) -> 2.5273 | N150: =IF(SUMIFS(SummaryData!$G:$G,SummaryData!$A:$A,$B$147,SummaryData!$B:$B,$B150,SummaryData!$C:$C,$M$14)>=50,"**", IF(SUMIFS(SummaryData!$G:$G,SummaryData!$A:$A,$B$147,SummaryData!$B:$B,$B150,SummaryData!$C:$C,$M$14)>25, IF(SUMIFS(SummaryData!$G:$G,SummaryData!$A:$A,$B$147,SummaryData!$B:$B,$B150,SummaryData!$C:$C,$M$14)<50,"*",""),"")) ->  | O150: =SUMIFS(SummaryData!$E:$E,SummaryData!$A:$A,$B$147,SummaryData!$B:$B,$B150,SummaryData!$C:$C,$M$14) -> 1.885031 | P150: =SUMIFS(SummaryData!$F:$F,SummaryData!$A:$A,$B$147,SummaryData!$B:$B,$B150,SummaryData!$C:$C,$M$14) -> 3.380862
B151: Bowel Cancer - Other bowel examination | C151: =SUMIFS(SummaryData!$D:$D,SummaryData!$A:$A,$B$147,SummaryData!$B:$B,$B151,SummaryData!$C:$C,$C$14) -> 1.014798 | D151: =IF(SUMIFS(SummaryData!$G:$G,SummaryData!$A:$A,$B$147,SummaryData!$B:$B,$B151,SummaryData!$C:$C,$C$14)>=50,"**", IF(SUMIFS(SummaryData!$G:$G,SummaryData!$A:$A,$B$147,SummaryData!$B:$B,$B151,SummaryData!$C:$C,$C$14)>25, IF(SUMIFS(SummaryData!$G:$G,SummaryData!$A:$A,$B$147,SummaryData!$B:$B,$B151,SummaryData!$C:$C,$C$14)<50,"*",""),"")) -> * | E151: =SUMIFS(SummaryData!$E:$E,SummaryData!$A:$A,$B$147,SummaryData!$B:$B,$B151,SummaryData!$C:$C,$C$14) -> 0.5871299 | F151: =SUMIFS(SummaryData!$F:$F,SummaryData!$A:$A,$B$147,SummaryData!$B:$B,$B151,SummaryData!$C:$C,$C$14) -> 1.748501 | H151: =SUMIFS(SummaryData!$D:$D,SummaryData!$A:$A,$B$147,SummaryData!$B:$B,$B151,SummaryData!$C:$C,$H$14) -> 1.511907 | I151: =IF(SUMIFS(SummaryData!$G:$G,SummaryData!$A:$A,$B$147,SummaryData!$B:$B,$B151,SummaryData!$C:$C,$H$14)>=50,"**", IF(SUMIFS(SummaryData!$G:$G,SummaryData!$A:$A,$B$147,SummaryData!$B:$B,$B151,SummaryData!$C:$C,$H$14)>25, IF(SUMIFS(SummaryData!$G:$G,SummaryData!$A:$A,$B$147,SummaryData!$B:$B,$B151,SummaryData!$C:$C,$H$14)<50,"*",""),"")) ->  | J151: =SUMIFS(SummaryData!$E:$E,SummaryData!$A:$A,$B$147,SummaryData!$B:$B,$B151,SummaryData!$C:$C,$H$14) -> 0.9400429 | K151: =SUMIFS(SummaryData!$F:$F,SummaryData!$A:$A,$B$147,SummaryData!$B:$B,$B151,SummaryData!$C:$C,$H$14) -> 2.423148 | M151: =SUMIFS(SummaryData!$D:$D,SummaryData!$A:$A,$B$147,SummaryData!$B:$B,$B151,SummaryData!$C:$C,$M$14) -> 1.285269 | N151: =IF(SUMIFS(SummaryData!$G:$G,SummaryData!$A:$A,$B$147,SummaryData!$B:$B,$B151,SummaryData!$C:$C,$M$14)>=50,"**", IF(SUMIFS(SummaryData!$G:$G,SummaryData!$A:$A,$B$147,SummaryData!$B:$B,$B151,SummaryData!$C:$C,$M$14)>25, IF(SUMIFS(SummaryData!$G:$G,SummaryData!$A:$A,$B$147,SummaryData!$B:$B,$B151,SummaryData!$C:$C,$M$14)<50,"*",""),"")) ->  | O151: =SUMIFS(SummaryData!$E:$E,SummaryData!$A:$A,$B$147,SummaryData!$B:$B,$B151,SummaryData!$C:$C,$M$14) -> 0.8947749 | P151: =SUMIFS(SummaryData!$F:$F,SummaryData!$A:$A,$B$147,SummaryData!$B:$B,$B151,SummaryData!$C:$C,$M$14) -> 1.843013
B152: Bowel Cancer - None of these bowel examinations | C152: =SUMIFS(SummaryData!$D:$D,SummaryData!$A:$A,$B$147,SummaryData!$B:$B,$B152,SummaryData!$C:$C,$C$14) -> 31.46727 | D152: =IF(SUMIFS(SummaryData!$G:$G,SummaryData!$A:$A,$B$147,SummaryData!$B:$B,$B152,SummaryData!$C:$C,$C$14)>=50,"**", IF(SUMIFS(SummaryData!$G:$G,SummaryData!$A:$A,$B$147,SummaryData!$B:$B,$B152,SummaryData!$C:$C,$C$14)>25, IF(SUMIFS(SummaryData!$G:$G,SummaryData!$A:$A,$B$147,SummaryData!$B:$B,$B152,SummaryData!$C:$C,$C$14)<50,"*",""),"")) ->  | E152: =SUMIFS(SummaryData!$E:$E,SummaryData!$A:$A,$B$147,SummaryData!$B:$B,$B152,SummaryData!$C:$C,$C$14) -> 28.28754 | F152: =SUMIFS(SummaryData!$F:$F,SummaryData!$A:$A,$B$147,SummaryData!$B:$B,$B152,SummaryData!$C:$C,$C$14) -> 34.83082 | H152: =SUMIFS(SummaryData!$D:$D,SummaryData!$A:$A,$B$147,SummaryData!$B:$B,$B152,SummaryData!$C:$C,$H$14) -> 31.67716 | I152: =IF(SUMIFS(SummaryData!$G:$G,SummaryData!$A:$A,$B$147,SummaryData!$B:$B,$B152,SummaryData!$C:$C,$H$14)>=50,"**", IF(SUMIFS(SummaryData!$G:$G,SummaryData!$A:$A,$B$147,SummaryData!$B:$B,$B152,SummaryData!$C:$C,$H$14)>25, IF(SUMIFS(SummaryData!$G:$G,SummaryData!$A:$A,$B$147,SummaryData!$B:$B,$B152,SummaryData!$C:$C,$H$14)<50,"*",""),"")) ->  | J152: =SUMIFS(SummaryData!$E:$E,SummaryData!$A:$A,$B$147,SummaryData!$B:$B,$B152,SummaryData!$C:$C,$H$14) -> 28.88378 | K152: =SUMIFS(SummaryData!$F:$F,SummaryData!$A:$A,$B$147,SummaryData!$B:$B,$B152,SummaryData!$C:$C,$H$14) -> 34.60921 | M152: =SUMIFS(SummaryData!$D:$D,SummaryData!$A:$A,$B$147,SummaryData!$B:$B,$B152,SummaryData!$C:$C,$M$14) -> 31.58147 | N152: =IF(SUMIFS(SummaryData!$G:$G,SummaryData!$A:$A,$B$147,SummaryData!$B:$B,$B152,SummaryData!$C:$C,$M$14)>=50,"**", IF(SUMIFS(SummaryData!$G:$G,SummaryData!$A:$A,$B$147,SummaryData!$B:$B,$B152,SummaryData!$C:$C,$M$14)>25, IF(SUMIFS(SummaryData!$G:$G,SummaryData!$A:$A,$B$147,SummaryData!$B:$B,$B152,SummaryData!$C:$C,$M$14)<50,"*",""),"")) ->  | O152: =SUMIFS(SummaryData!$E:$E,SummaryData!$A:$A,$B$147,SummaryData!$B:$B,$B152,SummaryData!$C:$C,$M$14) -> 29.46773 | P152: =SUMIFS(SummaryData!$F:$F,SummaryData!$A:$A,$B$147,SummaryData!$B:$B,$B152,SummaryData!$C:$C,$M$14) -> 33.77422
B153: Mammogram in the previous two years (women 50-74 years of age) | H153: =SUMIFS(SummaryData!$D:$D,SummaryData!$A:$A,$B$147,SummaryData!$B:$B,$B153,SummaryData!$C:$C,$H$14) -> 74.16035 | I153: =IF(SUMIFS(SummaryData!$G:$G,SummaryData!$A:$A,$B$147,SummaryData!$B:$B,$B153,SummaryData!$C:$C,$H$14)>=50,"**", IF(SUMIFS(SummaryData!$G:$G,SummaryData!$A:$A,$B$147,SummaryData!$B:$B,$B153,SummaryData!$C:$C,$H$14)>25, IF(SUMIFS(SummaryData!$G:$G,SummaryData!$A:$A,$B$147,SummaryData!$B:$B,$B153,SummaryData!$C:$C,$H$14)<50,"*",""),"")) ->  | J153: =SUMIFS(SummaryData!$E:$E,SummaryData!$A:$A,$B$147,SummaryData!$B:$B,$B153,SummaryData!$C:$C,$H$14) -> 71.43028 | K153: =SUMIFS(SummaryData!$F:$F,SummaryData!$A:$A,$B$147,SummaryData!$B:$B,$B153,SummaryData!$C:$C,$H$14) -> 76.71459
B154: Cervical cancer check (women 25-74 years of age) | H154: =SUMIFS(SummaryData!$D:$D,SummaryData!$A:$A,$B$147,SummaryData!$B:$B,$B154,SummaryData!$C:$C,$H$14) -> 75.29187 | I154: =IF(SUMIFS(SummaryData!$G:$G,SummaryData!$A:$A,$B$147,SummaryData!$B:$B,$B154,SummaryData!$C:$C,$H$14)>=50,"**", IF(SUMIFS(SummaryData!$G:$G,SummaryData!$A:$A,$B$147,SummaryData!$B:$B,$B154,SummaryData!$C:$C,$H$14)>25, IF(SUMIFS(SummaryData!$G:$G,SummaryData!$A:$A,$B$147,SummaryData!$B:$B,$B154,SummaryData!$C:$C,$H$14)<50,"*",""),"")) ->  | J154: =SUMIFS(SummaryData!$E:$E,SummaryData!$A:$A,$B$147,SummaryData!$B:$B,$B154,SummaryData!$C:$C,$H$14) -> 73.1462 | K154: =SUMIFS(SummaryData!$F:$F,SummaryData!$A:$A,$B$147,SummaryData!$B:$B,$B154,SummaryData!$C:$C,$H$14) -> 77.31925
B155: SOCIAL CAPITAL - Contact with others - Number of people spoken to previous day
B156: None | C156: =IF(SUMIFS(SummaryData!$D:$D,SummaryData!$A:$A,$B$155,SummaryData!$B:$B,$B156,SummaryData!$C:$C,$C$14)=0,"NA",SUMIFS(SummaryData!$D:$D,SummaryData!$A:$A,$B$155,SummaryData!$B:$B,$B156,SummaryData!$C:$C,$C$14)) -> 3.876338 | E156: =IF(SUMIFS(SummaryData!$E:$E,SummaryData!$A:$A,$B$155,SummaryData!$B:$B,$B156,SummaryData!$C:$C,$C$14)=0,"NA",SUMIFS(SummaryData!$E:$E,SummaryData!$A:$A,$B$155,SummaryData!$B:$B,$B156,SummaryData!$C:$C,$C$14)) -> 3.039341 | F156: =IF(SUMIFS(SummaryData!$F:$F,SummaryData!$A:$A,$B$155,SummaryData!$B:$B,$B156,SummaryData!$C:$C,$C$14)=0,"NA",SUMIFS(SummaryData!$F:$F,SummaryData!$A:$A,$B$155,SummaryData!$B:$B,$B156,SummaryData!$C:$C,$C$14)) -> 4.93211 | H156: =IF(SUMIFS(SummaryData!$D:$D,SummaryData!$A:$A,$B$155,SummaryData!$B:$B,$B156,SummaryData!$C:$C,$H$14)=0,"NA",SUMIFS(SummaryData!$D:$D,SummaryData!$A:$A,$B$155,SummaryData!$B:$B,$B156,SummaryData!$C:$C,$H$14)) -> 2.56194 | J156: =IF(SUMIFS(SummaryData!$E:$E,SummaryData!$A:$A,$B$155,SummaryData!$B:$B,$B156,SummaryData!$C:$C,$H$14)=0,"NA",SUMIFS(SummaryData!$E:$E,SummaryData!$A:$A,$B$155,SummaryData!$B:$B,$B156,SummaryData!$C:$C,$H$14)) -> 1.928991 | K156: =IF(SUMIFS(SummaryData!$F:$F,SummaryData!$A:$A,$B$155,SummaryData!$B:$B,$B156,SummaryData!$C:$C,$H$14)=0,"NA",SUMIFS(SummaryData!$F:$F,SummaryData!$A:$A,$B$155,SummaryData!$B:$B,$B156,SummaryData!$C:$C,$H$14)) -> 3.395384 | M156: =IF(SUMIFS(SummaryData!$D:$D,SummaryData!$A:$A,$B$155,SummaryData!$B:$B,$B156,SummaryData!$C:$C,$M$14)=0,"NA",SUMIFS(SummaryData!$D:$D,SummaryData!$A:$A,$B$155,SummaryData!$B:$B,$B156,SummaryData!$C:$C,$M$14)) -> 3.214479 | O156: =IF(SUMIFS(SummaryData!$E:$E,SummaryData!$A:$A,$B$155,SummaryData!$B:$B,$B156,SummaryData!$C:$C,$M$14)=0,"NA",SUMIFS(SummaryData!$E:$E,SummaryData!$A:$A,$B$155,SummaryData!$B:$B,$B156,SummaryData!$C:$C,$M$14)) -> 2.678215 | P156: =IF(SUMIFS(SummaryData!$F:$F,SummaryData!$A:$A,$B$155,SummaryData!$B:$B,$B156,SummaryData!$C:$C,$M$14)=0,"NA",SUMIFS(SummaryData!$F:$F,SummaryData!$A:$A,$B$155,SummaryData!$B:$B,$B156,SummaryData!$C:$C,$M$14)) -> 3.853868
B157: 1–4 | C157: =IF(SUMIFS(SummaryData!$D:$D,SummaryData!$A:$A,$B$155,SummaryData!$B:$B,$B157,SummaryData!$C:$C,$C$14)=0,"NA",SUMIFS(SummaryData!$D:$D,SummaryData!$A:$A,$B$155,SummaryData!$B:$B,$B157,SummaryData!$C:$C,$C$14)) -> 20.02096 | E157: =IF(SUMIFS(SummaryData!$E:$E,SummaryData!$A:$A,$B$155,SummaryData!$B:$B,$B157,SummaryData!$C:$C,$C$14)=0,"NA",SUMIFS(SummaryData!$E:$E,SummaryData!$A:$A,$B$155,SummaryData!$B:$B,$B157,SummaryData!$C:$C,$C$14)) -> 18.27247 | F157: =IF(SUMIFS(SummaryData!$F:$F,SummaryData!$A:$A,$B$155,SummaryData!$B:$B,$B157,SummaryData!$C:$C,$C$14)=0,"NA",SUMIFS(SummaryData!$F:$F,SummaryData!$A:$A,$B$155,SummaryData!$B:$B,$B157,SummaryData!$C:$C,$C$14)) -> 21.89194 | H157: =IF(SUMIFS(SummaryData!$D:$D,SummaryData!$A:$A,$B$155,SummaryData!$B:$B,$B157,SummaryData!$C:$C,$H$14)=0,"NA",SUMIFS(SummaryData!$D:$D,SummaryData!$A:$A,$B$155,SummaryData!$B:$B,$B157,SummaryData!$C:$C,$H$14)) -> 23.99411 | J157: =IF(SUMIFS(SummaryData!$E:$E,SummaryData!$A:$A,$B$155,SummaryData!$B:$B,$B157,SummaryData!$C:$C,$H$14)=0,"NA",SUMIFS(SummaryData!$E:$E,SummaryData!$A:$A,$B$155,SummaryData!$B:$B,$B157,SummaryData!$C:$C,$H$14)) -> 22.1538 | K157: =IF(SUMIFS(SummaryData!$F:$F,SummaryData!$A:$A,$B$155,SummaryData!$B:$B,$B157,SummaryData!$C:$C,$H$14)=0,"NA",SUMIFS(SummaryData!$F:$F,SummaryData!$A:$A,$B$155,SummaryData!$B:$B,$B157,SummaryData!$C:$C,$H$14)) -> 25.93636 | M157: =IF(SUMIFS(SummaryData!$D:$D,SummaryData!$A:$A,$B$155,SummaryData!$B:$B,$B157,SummaryData!$C:$C,$M$14)=0,"NA",SUMIFS(SummaryData!$D:$D,SummaryData!$A:$A,$B$155,SummaryData!$B:$B,$B157,SummaryData!$C:$C,$M$14)) -> 22.0658 | O157: =IF(SUMIFS(SummaryData!$E:$E,SummaryData!$A:$A,$B$155,SummaryData!$B:$B,$B157,SummaryData!$C:$C,$M$14)=0,"NA",SUMIFS(SummaryData!$E:$E,SummaryData!$A:$A,$B$155,SummaryData!$B:$B,$B157,SummaryData!$C:$C,$M$14)) -> 20.79148 | P157: =IF(SUMIFS(SummaryData!$F:$F,SummaryData!$A:$A,$B$155,SummaryData!$B:$B,$B157,SummaryData!$C:$C,$M$14)=0,"NA",SUMIFS(SummaryData!$F:$F,SummaryData!$A:$A,$B$155,SummaryData!$B:$B,$B157,SummaryData!$C:$C,$M$14)) -> 23.39515
B158: 5–9 | C158: =IF(SUMIFS(SummaryData!$D:$D,SummaryData!$A:$A,$B$155,SummaryData!$B:$B,$B158,SummaryData!$C:$C,$C$14)=0,"NA",SUMIFS(SummaryData!$D:$D,SummaryData!$A:$A,$B$155,SummaryData!$B:$B,$B158,SummaryData!$C:$C,$C$14)) -> 30.37302 | E158: =IF(SUMIFS(SummaryData!$E:$E,SummaryData!$A:$A,$B$155,SummaryData!$B:$B,$B158,SummaryData!$C:$C,$C$14)=0,"NA",SUMIFS(SummaryData!$E:$E,SummaryData!$A:$A,$B$155,SummaryData!$B:$B,$B158,SummaryData!$C:$C,$C$14)) -> 28.30713 | F158: =IF(SUMIFS(SummaryData!$F:$F,SummaryData!$A:$A,$B$155,SummaryData!$B:$B,$B158,SummaryData!$C:$C,$C$14)=0,"NA",SUMIFS(SummaryData!$F:$F,SummaryData!$A:$A,$B$155,SummaryData!$B:$B,$B158,SummaryData!$C:$C,$C$14)) -> 32.52129 | H158: =IF(SUMIFS(SummaryData!$D:$D,SummaryData!$A:$A,$B$155,SummaryData!$B:$B,$B158,SummaryData!$C:$C,$H$14)=0,"NA",SUMIFS(SummaryData!$D:$D,SummaryData!$A:$A,$B$155,SummaryData!$B:$B,$B158,SummaryData!$C:$C,$H$14)) -> 29.74945 | J158: =IF(SUMIFS(SummaryData!$E:$E,SummaryData!$A:$A,$B$155,SummaryData!$B:$B,$B158,SummaryData!$C:$C,$H$14)=0,"NA",SUMIFS(SummaryData!$E:$E,SummaryData!$A:$A,$B$155,SummaryData!$B:$B,$B158,SummaryData!$C:$C,$H$14)) -> 27.71927 | K158: =IF(SUMIFS(SummaryData!$F:$F,SummaryData!$A:$A,$B$155,SummaryData!$B:$B,$B158,SummaryData!$C:$C,$H$14)=0,"NA",SUMIFS(SummaryData!$F:$F,SummaryData!$A:$A,$B$155,SummaryData!$B:$B,$B158,SummaryData!$C:$C,$H$14)) -> 31.86278 | M158: =IF(SUMIFS(SummaryData!$D:$D,SummaryData!$A:$A,$B$155,SummaryData!$B:$B,$B158,SummaryData!$C:$C,$M$14)=0,"NA",SUMIFS(SummaryData!$D:$D,SummaryData!$A:$A,$B$155,SummaryData!$B:$B,$B158,SummaryData!$C:$C,$M$14)) -> 30.05836 | O158: =IF(SUMIFS(SummaryData!$E:$E,SummaryData!$A:$A,$B$155,SummaryData!$B:$B,$B158,SummaryData!$C:$C,$M$14)=0,"NA",SUMIFS(SummaryData!$E:$E,SummaryData!$A:$A,$B$155,SummaryData!$B:$B,$B158,SummaryData!$C:$C,$M$14)) -> 28.61238 | P158: =IF(SUMIFS(SummaryData!$F:$F,SummaryData!$A:$A,$B$155,SummaryData!$B:$B,$B158,SummaryData!$C:$C,$M$14)=0,"NA",SUMIFS(SummaryData!$F:$F,SummaryData!$A:$A,$B$155,SummaryData!$B:$B,$B158,SummaryData!$C:$C,$M$14)) -> 31.54513
B159: 10, or more | C159: =IF(SUMIFS(SummaryData!$D:$D,SummaryData!$A:$A,$B$155,SummaryData!$B:$B,$B159,SummaryData!$C:$C,$C$14)=0,"NA",SUMIFS(SummaryData!$D:$D,SummaryData!$A:$A,$B$155,SummaryData!$B:$B,$B159,SummaryData!$C:$C,$C$14)) -> 45.06505 | E159: =IF(SUMIFS(SummaryData!$E:$E,SummaryData!$A:$A,$B$155,SummaryData!$B:$B,$B159,SummaryData!$C:$C,$C$14)=0,"NA",SUMIFS(SummaryData!$E:$E,SummaryData!$A:$A,$B$155,SummaryData!$B:$B,$B159,SummaryData!$C:$C,$C$14)) -> 42.81226 | F159: =IF(SUMIFS(SummaryData!$F:$F,SummaryData!$A:$A,$B$155,SummaryData!$B:$B,$B159,SummaryData!$C:$C,$C$14)=0,"NA",SUMIFS(SummaryData!$F:$F,SummaryData!$A:$A,$B$155,SummaryData!$B:$B,$B159,SummaryData!$C:$C,$C$14)) -> 47.33825 | H159: =IF(SUMIFS(SummaryData!$D:$D,SummaryData!$A:$A,$B$155,SummaryData!$B:$B,$B159,SummaryData!$C:$C,$H$14)=0,"NA",SUMIFS(SummaryData!$D:$D,SummaryData!$A:$A,$B$155,SummaryData!$B:$B,$B159,SummaryData!$C:$C,$H$14)) -> 43.37595 | J159: =IF(SUMIFS(SummaryData!$E:$E,SummaryData!$A:$A,$B$155,SummaryData!$B:$B,$B159,SummaryData!$C:$C,$H$14)=0,"NA",SUMIFS(SummaryData!$E:$E,SummaryData!$A:$A,$B$155,SummaryData!$B:$B,$B159,SummaryData!$C:$C,$H$14)) -> 41.11391 | K159: =IF(SUMIFS(SummaryData!$F:$F,SummaryData!$A:$A,$B$155,SummaryData!$B:$B,$B159,SummaryData!$C:$C,$H$14)=0,"NA",SUMIFS(SummaryData!$F:$F,SummaryData!$A:$A,$B$155,SummaryData!$B:$B,$B159,SummaryData!$C:$C,$H$14)) -> 45.66594 | M159: =IF(SUMIFS(SummaryData!$D:$D,SummaryData!$A:$A,$B$155,SummaryData!$B:$B,$B159,SummaryData!$C:$C,$M$14)=0,"NA",SUMIFS(SummaryData!$D:$D,SummaryData!$A:$A,$B$155,SummaryData!$B:$B,$B159,SummaryData!$C:$C,$M$14)) -> 44.18418 | O159: =IF(SUMIFS(SummaryData!$E:$E,SummaryData!$A:$A,$B$155,SummaryData!$B:$B,$B159,SummaryData!$C:$C,$M$14)=0,"NA",SUMIFS(SummaryData!$E:$E,SummaryData!$A:$A,$B$155,SummaryData!$B:$B,$B159,SummaryData!$C:$C,$M$14)) -> 42.59753 | P159: =IF(SUMIFS(SummaryData!$F:$F,SummaryData!$A:$A,$B$155,SummaryData!$B:$B,$B159,SummaryData!$C:$C,$M$14)=0,"NA",SUMIFS(SummaryData!$F:$F,SummaryData!$A:$A,$B$155,SummaryData!$B:$B,$B159,SummaryData!$C:$C,$M$14)) -> 45.7828
B160: SOCIAL CAPITAL - Source of support: social and emotional support you need
B161: Always or usually | C161: =IF(SUMIFS(SummaryData!$D:$D,SummaryData!$A:$A,$B$160,SummaryData!$B:$B,$B161,SummaryData!$C:$C,$C$14)=0,"NA",SUMIFS(SummaryData!$D:$D,SummaryData!$A:$A,$B$160,SummaryData!$B:$B,$B161,SummaryData!$C:$C,$C$14)) -> 65.57677 | E161: =IF(SUMIFS(SummaryData!$E:$E,SummaryData!$A:$A,$B$160,SummaryData!$B:$B,$B161,SummaryData!$C:$C,$C$14)=0,"NA",SUMIFS(SummaryData!$E:$E,SummaryData!$A:$A,$B$160,SummaryData!$B:$B,$B161,SummaryData!$C:$C,$C$14)) -> 63.35121 | F161: =IF(SUMIFS(SummaryData!$F:$F,SummaryData!$A:$A,$B$160,SummaryData!$B:$B,$B161,SummaryData!$C:$C,$C$14)=0,"NA",SUMIFS(SummaryData!$F:$F,SummaryData!$A:$A,$B$160,SummaryData!$B:$B,$B161,SummaryData!$C:$C,$C$14)) -> 67.73601 | H161: =IF(SUMIFS(SummaryData!$D:$D,SummaryData!$A:$A,$B$160,SummaryData!$B:$B,$B161,SummaryData!$C:$C,$H$14)=0,"NA",SUMIFS(SummaryData!$D:$D,SummaryData!$A:$A,$B$160,SummaryData!$B:$B,$B161,SummaryData!$C:$C,$H$14)) -> 72.22443 | J161: =IF(SUMIFS(SummaryData!$E:$E,SummaryData!$A:$A,$B$160,SummaryData!$B:$B,$B161,SummaryData!$C:$C,$H$14)=0,"NA",SUMIFS(SummaryData!$E:$E,SummaryData!$A:$A,$B$160,SummaryData!$B:$B,$B161,SummaryData!$C:$C,$H$14)) -> 70.06207 | K161: =IF(SUMIFS(SummaryData!$F:$F,SummaryData!$A:$A,$B$160,SummaryData!$B:$B,$B161,SummaryData!$C:$C,$H$14)=0,"NA",SUMIFS(SummaryData!$F:$F,SummaryData!$A:$A,$B$160,SummaryData!$B:$B,$B161,SummaryData!$C:$C,$H$14)) -> 74.28793 | M161: =IF(SUMIFS(SummaryData!$D:$D,SummaryData!$A:$A,$B$160,SummaryData!$B:$B,$B161,SummaryData!$C:$C,$M$14)=0,"NA",SUMIFS(SummaryData!$D:$D,SummaryData!$A:$A,$B$160,SummaryData!$B:$B,$B161,SummaryData!$C:$C,$M$14)) -> 69.0235 | O161: =IF(SUMIFS(SummaryData!$E:$E,SummaryData!$A:$A,$B$160,SummaryData!$B:$B,$B161,SummaryData!$C:$C,$M$14)=0,"NA",SUMIFS(SummaryData!$E:$E,SummaryData!$A:$A,$B$160,SummaryData!$B:$B,$B161,SummaryData!$C:$C,$M$14)) -> 67.49025 | P161: =IF(SUMIFS(SummaryData!$F:$F,SummaryData!$A:$A,$B$160,SummaryData!$B:$B,$B161,SummaryData!$C:$C,$M$14)=0,"NA",SUMIFS(SummaryData!$F:$F,SummaryData!$A:$A,$B$160,SummaryData!$B:$B,$B161,SummaryData!$C:$C,$M$14)) -> 70.51602
B162: Sometimes | C162: =IF(SUMIFS(SummaryData!$D:$D,SummaryData!$A:$A,$B$160,SummaryData!$B:$B,$B162,SummaryData!$C:$C,$C$14)=0,"NA",SUMIFS(SummaryData!$D:$D,SummaryData!$A:$A,$B$160,SummaryData!$B:$B,$B162,SummaryData!$C:$C,$C$14)) -> 19.11637 | E162: =IF(SUMIFS(SummaryData!$E:$E,SummaryData!$A:$A,$B$160,SummaryData!$B:$B,$B162,SummaryData!$C:$C,$C$14)=0,"NA",SUMIFS(SummaryData!$E:$E,SummaryData!$A:$A,$B$160,SummaryData!$B:$B,$B162,SummaryData!$C:$C,$C$14)) -> 17.34155 | F162: =IF(SUMIFS(SummaryData!$F:$F,SummaryData!$A:$A,$B$160,SummaryData!$B:$B,$B162,SummaryData!$C:$C,$C$14)=0,"NA",SUMIFS(SummaryData!$F:$F,SummaryData!$A:$A,$B$160,SummaryData!$B:$B,$B162,SummaryData!$C:$C,$C$14)) -> 21.02662 | H162: =IF(SUMIFS(SummaryData!$D:$D,SummaryData!$A:$A,$B$160,SummaryData!$B:$B,$B162,SummaryData!$C:$C,$H$14)=0,"NA",SUMIFS(SummaryData!$D:$D,SummaryData!$A:$A,$B$160,SummaryData!$B:$B,$B162,SummaryData!$C:$C,$H$14)) -> 18.18422 | J162: =IF(SUMIFS(SummaryData!$E:$E,SummaryData!$A:$A,$B$160,SummaryData!$B:$B,$B162,SummaryData!$C:$C,$H$14)=0,"NA",SUMIFS(SummaryData!$E:$E,SummaryData!$A:$A,$B$160,SummaryData!$B:$B,$B162,SummaryData!$C:$C,$H$14)) -> 16.40453 | K162: =IF(SUMIFS(SummaryData!$F:$F,SummaryData!$A:$A,$B$160,SummaryData!$B:$B,$B162,SummaryData!$C:$C,$H$14)=0,"NA",SUMIFS(SummaryData!$F:$F,SummaryData!$A:$A,$B$160,SummaryData!$B:$B,$B162,SummaryData!$C:$C,$H$14)) -> 20.11055 | M162: =IF(SUMIFS(SummaryData!$D:$D,SummaryData!$A:$A,$B$160,SummaryData!$B:$B,$B162,SummaryData!$C:$C,$M$14)=0,"NA",SUMIFS(SummaryData!$D:$D,SummaryData!$A:$A,$B$160,SummaryData!$B:$B,$B162,SummaryData!$C:$C,$M$14)) -> 18.65244 | O162: =IF(SUMIFS(SummaryData!$E:$E,SummaryData!$A:$A,$B$160,SummaryData!$B:$B,$B162,SummaryData!$C:$C,$M$14)=0,"NA",SUMIFS(SummaryData!$E:$E,SummaryData!$A:$A,$B$160,SummaryData!$B:$B,$B162,SummaryData!$C:$C,$M$14)) -> 17.38936 | P162: =IF(SUMIFS(SummaryData!$F:$F,SummaryData!$A:$A,$B$160,SummaryData!$B:$B,$B162,SummaryData!$C:$C,$M$14)=0,"NA",SUMIFS(SummaryData!$F:$F,SummaryData!$A:$A,$B$160,SummaryData!$B:$B,$B162,SummaryData!$C:$C,$M$14)) -> 19.98506
B163: Rarely or never | C163: =IF(SUMIFS(SummaryData!$D:$D,SummaryData!$A:$A,$B$160,SummaryData!$B:$B,$B163,SummaryData!$C:$C,$C$14)=0,"NA",SUMIFS(SummaryData!$D:$D,SummaryData!$A:$A,$B$160,SummaryData!$B:$B,$B163,SummaryData!$C:$C,$C$14)) -> 11.06354 | E163: =IF(SUMIFS(SummaryData!$E:$E,SummaryData!$A:$A,$B$160,SummaryData!$B:$B,$B163,SummaryData!$C:$C,$C$14)=0,"NA",SUMIFS(SummaryData!$E:$E,SummaryData!$A:$A,$B$160,SummaryData!$B:$B,$B163,SummaryData!$C:$C,$C$14)) -> 9.698871 | F163: =IF(SUMIFS(SummaryData!$F:$F,SummaryData!$A:$A,$B$160,SummaryData!$B:$B,$B163,SummaryData!$C:$C,$C$14)=0,"NA",SUMIFS(SummaryData!$F:$F,SummaryData!$A:$A,$B$160,SummaryData!$B:$B,$B163,SummaryData!$C:$C,$C$14)) -> 12.59344 | H163: =IF(SUMIFS(SummaryData!$D:$D,SummaryData!$A:$A,$B$160,SummaryData!$B:$B,$B163,SummaryData!$C:$C,$H$14)=0,"NA",SUMIFS(SummaryData!$D:$D,SummaryData!$A:$A,$B$160,SummaryData!$B:$B,$B163,SummaryData!$C:$C,$H$14)) -> 7.608411 | J163: =IF(SUMIFS(SummaryData!$E:$E,SummaryData!$A:$A,$B$160,SummaryData!$B:$B,$B163,SummaryData!$C:$C,$H$14)=0,"NA",SUMIFS(SummaryData!$E:$E,SummaryData!$A:$A,$B$160,SummaryData!$B:$B,$B163,SummaryData!$C:$C,$H$14)) -> 6.420843 | K163: =IF(SUMIFS(SummaryData!$F:$F,SummaryData!$A:$A,$B$160,SummaryData!$B:$B,$B163,SummaryData!$C:$C,$H$14)=0,"NA",SUMIFS(SummaryData!$F:$F,SummaryData!$A:$A,$B$160,SummaryData!$B:$B,$B163,SummaryData!$C:$C,$H$14)) -> 8.994513 | M163: =IF(SUMIFS(SummaryData!$D:$D,SummaryData!$A:$A,$B$160,SummaryData!$B:$B,$B163,SummaryData!$C:$C,$M$14)=0,"NA",SUMIFS(SummaryData!$D:$D,SummaryData!$A:$A,$B$160,SummaryData!$B:$B,$B163,SummaryData!$C:$C,$M$14)) -> 9.266732 | O163: =IF(SUMIFS(SummaryData!$E:$E,SummaryData!$A:$A,$B$160,SummaryData!$B:$B,$B163,SummaryData!$C:$C,$M$14)=0,"NA",SUMIFS(SummaryData!$E:$E,SummaryData!$A:$A,$B$160,SummaryData!$B:$B,$B163,SummaryData!$C:$C,$M$14)) -> 8.352579 | P163: =IF(SUMIFS(SummaryData!$F:$F,SummaryData!$A:$A,$B$160,SummaryData!$B:$B,$B163,SummaryData!$C:$C,$M$14)=0,"NA",SUMIFS(SummaryData!$F:$F,SummaryData!$A:$A,$B$160,SummaryData!$B:$B,$B163,SummaryData!$C:$C,$M$14)) -> 10.26972
B164: Don't need social and emotional support | C164: =IF(SUMIFS(SummaryData!$D:$D,SummaryData!$A:$A,$B$160,SummaryData!$B:$B,$B164,SummaryData!$C:$C,$C$14)=0,"NA",SUMIFS(SummaryData!$D:$D,SummaryData!$A:$A,$B$160,SummaryData!$B:$B,$B164,SummaryData!$C:$C,$C$14)) -> 2.651125 | E164: =IF(SUMIFS(SummaryData!$E:$E,SummaryData!$A:$A,$B$160,SummaryData!$B:$B,$B164,SummaryData!$C:$C,$C$14)=0,"NA",SUMIFS(SummaryData!$E:$E,SummaryData!$A:$A,$B$160,SummaryData!$B:$B,$B164,SummaryData!$C:$C,$C$14)) -> 2.117746 | F164: =IF(SUMIFS(SummaryData!$F:$F,SummaryData!$A:$A,$B$160,SummaryData!$B:$B,$B164,SummaryData!$C:$C,$C$14)=0,"NA",SUMIFS(SummaryData!$F:$F,SummaryData!$A:$A,$B$160,SummaryData!$B:$B,$B164,SummaryData!$C:$C,$C$14)) -> 3.314293 | H164: =IF(SUMIFS(SummaryData!$D:$D,SummaryData!$A:$A,$B$160,SummaryData!$B:$B,$B164,SummaryData!$C:$C,$H$14)=0,"NA",SUMIFS(SummaryData!$D:$D,SummaryData!$A:$A,$B$160,SummaryData!$B:$B,$B164,SummaryData!$C:$C,$H$14)) -> 1.226888 | J164: =IF(SUMIFS(SummaryData!$E:$E,SummaryData!$A:$A,$B$160,SummaryData!$B:$B,$B164,SummaryData!$C:$C,$H$14)=0,"NA",SUMIFS(SummaryData!$E:$E,SummaryData!$A:$A,$B$160,SummaryData!$B:$B,$B164,SummaryData!$C:$C,$H$14)) -> 0.8485909 | K164: =IF(SUMIFS(SummaryData!$F:$F,SummaryData!$A:$A,$B$160,SummaryData!$B:$B,$B164,SummaryData!$C:$C,$H$14)=0,"NA",SUMIFS(SummaryData!$F:$F,SummaryData!$A:$A,$B$160,SummaryData!$B:$B,$B164,SummaryData!$C:$C,$H$14)) -> 1.770816 | M164: =IF(SUMIFS(SummaryData!$D:$D,SummaryData!$A:$A,$B$160,SummaryData!$B:$B,$B164,SummaryData!$C:$C,$M$14)=0,"NA",SUMIFS(SummaryData!$D:$D,SummaryData!$A:$A,$B$160,SummaryData!$B:$B,$B164,SummaryData!$C:$C,$M$14)) -> 1.89783 | O164: =IF(SUMIFS(SummaryData!$E:$E,SummaryData!$A:$A,$B$160,SummaryData!$B:$B,$B164,SummaryData!$C:$C,$M$14)=0,"NA",SUMIFS(SummaryData!$E:$E,SummaryData!$A:$A,$B$160,SummaryData!$B:$B,$B164,SummaryData!$C:$C,$M$14)) -> 1.560869 | P164: =IF(SUMIFS(SummaryData!$F:$F,SummaryData!$A:$A,$B$160,SummaryData!$B:$B,$B164,SummaryData!$C:$C,$M$14)=0,"NA",SUMIFS(SummaryData!$F:$F,SummaryData!$A:$A,$B$160,SummaryData!$B:$B,$B164,SummaryData!$C:$C,$M$14)) -> 2.305829
B165: SOCIAL CAPITAL - Source of support
B166: Family | C166: =IF(SUMIFS(SummaryData!$D:$D,SummaryData!$A:$A,$B$165,SummaryData!$B:$B,$B166,SummaryData!$C:$C,$C$14)=0,"NA",SUMIFS(SummaryData!$D:$D,SummaryData!$A:$A,$B$165,SummaryData!$B:$B,$B166,SummaryData!$C:$C,$C$14)) -> 90.30028 | E166: =IF(SUMIFS(SummaryData!$E:$E,SummaryData!$A:$A,$B$165,SummaryData!$B:$B,$B166,SummaryData!$C:$C,$C$14)=0,"NA",SUMIFS(SummaryData!$E:$E,SummaryData!$A:$A,$B$165,SummaryData!$B:$B,$B166,SummaryData!$C:$C,$C$14)) -> 88.74508 | F166: =IF(SUMIFS(SummaryData!$F:$F,SummaryData!$A:$A,$B$165,SummaryData!$B:$B,$B166,SummaryData!$C:$C,$C$14)=0,"NA",SUMIFS(SummaryData!$F:$F,SummaryData!$A:$A,$B$165,SummaryData!$B:$B,$B166,SummaryData!$C:$C,$C$14)) -> 91.66078 | H166: =IF(SUMIFS(SummaryData!$D:$D,SummaryData!$A:$A,$B$165,SummaryData!$B:$B,$B166,SummaryData!$C:$C,$H$14)=0,"NA",SUMIFS(SummaryData!$D:$D,SummaryData!$A:$A,$B$165,SummaryData!$B:$B,$B166,SummaryData!$C:$C,$H$14)) -> 91.42325 | J166: =IF(SUMIFS(SummaryData!$E:$E,SummaryData!$A:$A,$B$165,SummaryData!$B:$B,$B166,SummaryData!$C:$C,$H$14)=0,"NA",SUMIFS(SummaryData!$E:$E,SummaryData!$A:$A,$B$165,SummaryData!$B:$B,$B166,SummaryData!$C:$C,$H$14)) -> 89.99448 | K166: =IF(SUMIFS(SummaryData!$F:$F,SummaryData!$A:$A,$B$165,SummaryData!$B:$B,$B166,SummaryData!$C:$C,$H$14)=0,"NA",SUMIFS(SummaryData!$F:$F,SummaryData!$A:$A,$B$165,SummaryData!$B:$B,$B166,SummaryData!$C:$C,$H$14)) -> 92.66463 | M166: =IF(SUMIFS(SummaryData!$D:$D,SummaryData!$A:$A,$B$165,SummaryData!$B:$B,$B166,SummaryData!$C:$C,$M$14)=0,"NA",SUMIFS(SummaryData!$D:$D,SummaryData!$A:$A,$B$165,SummaryData!$B:$B,$B166,SummaryData!$C:$C,$M$14)) -> 90.87004 | O166: =IF(SUMIFS(SummaryData!$E:$E,SummaryData!$A:$A,$B$165,SummaryData!$B:$B,$B166,SummaryData!$C:$C,$M$14)=0,"NA",SUMIFS(SummaryData!$E:$E,SummaryData!$A:$A,$B$165,SummaryData!$B:$B,$B166,SummaryData!$C:$C,$M$14)) -> 89.84613 | P166: =IF(SUMIFS(SummaryData!$F:$F,SummaryData!$A:$A,$B$165,SummaryData!$B:$B,$B166,SummaryData!$C:$C,$M$14)=0,"NA",SUMIFS(SummaryData!$F:$F,SummaryData!$A:$A,$B$165,SummaryData!$B:$B,$B166,SummaryData!$C:$C,$M$14)) -> 91.80012
B167: Friends | C167: =IF(SUMIFS(SummaryData!$D:$D,SummaryData!$A:$A,$B$165,SummaryData!$B:$B,$B167,SummaryData!$C:$C,$C$14)=0,"NA",SUMIFS(SummaryData!$D:$D,SummaryData!$A:$A,$B$165,SummaryData!$B:$B,$B167,SummaryData!$C:$C,$C$14)) -> 83.64386 | E167: =IF(SUMIFS(SummaryData!$E:$E,SummaryData!$A:$A,$B$165,SummaryData!$B:$B,$B167,SummaryData!$C:$C,$C$14)=0,"NA",SUMIFS(SummaryData!$E:$E,SummaryData!$A:$A,$B$165,SummaryData!$B:$B,$B167,SummaryData!$C:$C,$C$14)) -> 81.84414 | F167: =IF(SUMIFS(SummaryData!$F:$F,SummaryData!$A:$A,$B$165,SummaryData!$B:$B,$B167,SummaryData!$C:$C,$C$14)=0,"NA",SUMIFS(SummaryData!$F:$F,SummaryData!$A:$A,$B$165,SummaryData!$B:$B,$B167,SummaryData!$C:$C,$C$14)) -> 85.29724 | H167: =IF(SUMIFS(SummaryData!$D:$D,SummaryData!$A:$A,$B$165,SummaryData!$B:$B,$B167,SummaryData!$C:$C,$H$14)=0,"NA",SUMIFS(SummaryData!$D:$D,SummaryData!$A:$A,$B$165,SummaryData!$B:$B,$B167,SummaryData!$C:$C,$H$14)) -> 86.02271 | J167: =IF(SUMIFS(SummaryData!$E:$E,SummaryData!$A:$A,$B$165,SummaryData!$B:$B,$B167,SummaryData!$C:$C,$H$14)=0,"NA",SUMIFS(SummaryData!$E:$E,SummaryData!$A:$A,$B$165,SummaryData!$B:$B,$B167,SummaryData!$C:$C,$H$14)) -> 84.32453 | K167: =IF(SUMIFS(SummaryData!$F:$F,SummaryData!$A:$A,$B$165,SummaryData!$B:$B,$B167,SummaryData!$C:$C,$H$14)=0,"NA",SUMIFS(SummaryData!$F:$F,SummaryData!$A:$A,$B$165,SummaryData!$B:$B,$B167,SummaryData!$C:$C,$H$14)) -> 87.56406 | M167: =IF(SUMIFS(SummaryData!$D:$D,SummaryData!$A:$A,$B$165,SummaryData!$B:$B,$B167,SummaryData!$C:$C,$M$14)=0,"NA",SUMIFS(SummaryData!$D:$D,SummaryData!$A:$A,$B$165,SummaryData!$B:$B,$B167,SummaryData!$C:$C,$M$14)) -> 84.9995 | O167: =IF(SUMIFS(SummaryData!$E:$E,SummaryData!$A:$A,$B$165,SummaryData!$B:$B,$B167,SummaryData!$C:$C,$M$14)=0,"NA",SUMIFS(SummaryData!$E:$E,SummaryData!$A:$A,$B$165,SummaryData!$B:$B,$B167,SummaryData!$C:$C,$M$14)) -> 83.80047 | P167: =IF(SUMIFS(SummaryData!$F:$F,SummaryData!$A:$A,$B$165,SummaryData!$B:$B,$B167,SummaryData!$C:$C,$M$14)=0,"NA",SUMIFS(SummaryData!$F:$F,SummaryData!$A:$A,$B$165,SummaryData!$B:$B,$B167,SummaryData!$C:$C,$M$14)) -> 86.12447
B168: Neighbours | C168: =IF(SUMIFS(SummaryData!$D:$D,SummaryData!$A:$A,$B$165,SummaryData!$B:$B,$B168,SummaryData!$C:$C,$C$14)=0,"NA",SUMIFS(SummaryData!$D:$D,SummaryData!$A:$A,$B$165,SummaryData!$B:$B,$B168,SummaryData!$C:$C,$C$14)) -> 36.86884 | E168: =IF(SUMIFS(SummaryData!$E:$E,SummaryData!$A:$A,$B$165,SummaryData!$B:$B,$B168,SummaryData!$C:$C,$C$14)=0,"NA",SUMIFS(SummaryData!$E:$E,SummaryData!$A:$A,$B$165,SummaryData!$B:$B,$B168,SummaryData!$C:$C,$C$14)) -> 34.7552 | F168: =IF(SUMIFS(SummaryData!$F:$F,SummaryData!$A:$A,$B$165,SummaryData!$B:$B,$B168,SummaryData!$C:$C,$C$14)=0,"NA",SUMIFS(SummaryData!$F:$F,SummaryData!$A:$A,$B$165,SummaryData!$B:$B,$B168,SummaryData!$C:$C,$C$14)) -> 39.03412 | H168: =IF(SUMIFS(SummaryData!$D:$D,SummaryData!$A:$A,$B$165,SummaryData!$B:$B,$B168,SummaryData!$C:$C,$H$14)=0,"NA",SUMIFS(SummaryData!$D:$D,SummaryData!$A:$A,$B$165,SummaryData!$B:$B,$B168,SummaryData!$C:$C,$H$14)) -> 41.9473 | J168: =IF(SUMIFS(SummaryData!$E:$E,SummaryData!$A:$A,$B$165,SummaryData!$B:$B,$B168,SummaryData!$C:$C,$H$14)=0,"NA",SUMIFS(SummaryData!$E:$E,SummaryData!$A:$A,$B$165,SummaryData!$B:$B,$B168,SummaryData!$C:$C,$H$14)) -> 39.7995 | K168: =IF(SUMIFS(SummaryData!$F:$F,SummaryData!$A:$A,$B$165,SummaryData!$B:$B,$B168,SummaryData!$C:$C,$H$14)=0,"NA",SUMIFS(SummaryData!$F:$F,SummaryData!$A:$A,$B$165,SummaryData!$B:$B,$B168,SummaryData!$C:$C,$H$14)) -> 44.12605 | M168: =IF(SUMIFS(SummaryData!$D:$D,SummaryData!$A:$A,$B$165,SummaryData!$B:$B,$B168,SummaryData!$C:$C,$M$14)=0,"NA",SUMIFS(SummaryData!$D:$D,SummaryData!$A:$A,$B$165,SummaryData!$B:$B,$B168,SummaryData!$C:$C,$M$14)) -> 39.5834 | O168: =IF(SUMIFS(SummaryData!$E:$E,SummaryData!$A:$A,$B$165,SummaryData!$B:$B,$B168,SummaryData!$C:$C,$M$14)=0,"NA",SUMIFS(SummaryData!$E:$E,SummaryData!$A:$A,$B$165,SummaryData!$B:$B,$B168,SummaryData!$C:$C,$M$14)) -> 38.07478 | P168: =IF(SUMIFS(SummaryData!$F:$F,SummaryData!$A:$A,$B$165,SummaryData!$B:$B,$B168,SummaryData!$C:$C,$M$14)=0,"NA",SUMIFS(SummaryData!$F:$F,SummaryData!$A:$A,$B$165,SummaryData!$B:$B,$B168,SummaryData!$C:$C,$M$14)) -> 41.11212
B169: No help available | C169: =IF(SUMIFS(SummaryData!$D:$D,SummaryData!$A:$A,$B$165,SummaryData!$B:$B,$B169,SummaryData!$C:$C,$C$14)=0,"NA",SUMIFS(SummaryData!$D:$D,SummaryData!$A:$A,$B$165,SummaryData!$B:$B,$B169,SummaryData!$C:$C,$C$14)) -> 1.897583 | E169: =IF(SUMIFS(SummaryData!$E:$E,SummaryData!$A:$A,$B$165,SummaryData!$B:$B,$B169,SummaryData!$C:$C,$C$14)=0,"NA",SUMIFS(SummaryData!$E:$E,SummaryData!$A:$A,$B$165,SummaryData!$B:$B,$B169,SummaryData!$C:$C,$C$14)) -> 1.339158 | F169: =IF(SUMIFS(SummaryData!$F:$F,SummaryData!$A:$A,$B$165,SummaryData!$B:$B,$B169,SummaryData!$C:$C,$C$14)=0,"NA",SUMIFS(SummaryData!$F:$F,SummaryData!$A:$A,$B$165,SummaryData!$B:$B,$B169,SummaryData!$C:$C,$C$14)) -> 2.682539 | H169: =IF(SUMIFS(SummaryData!$D:$D,SummaryData!$A:$A,$B$165,SummaryData!$B:$B,$B169,SummaryData!$C:$C,$H$14)=0,"NA",SUMIFS(SummaryData!$D:$D,SummaryData!$A:$A,$B$165,SummaryData!$B:$B,$B169,SummaryData!$C:$C,$H$14)) -> 1.444489 | J169: =IF(SUMIFS(SummaryData!$E:$E,SummaryData!$A:$A,$B$165,SummaryData!$B:$B,$B169,SummaryData!$C:$C,$H$14)=0,"NA",SUMIFS(SummaryData!$E:$E,SummaryData!$A:$A,$B$165,SummaryData!$B:$B,$B169,SummaryData!$C:$C,$H$14)) -> 0.9502571 | K169: =IF(SUMIFS(SummaryData!$F:$F,SummaryData!$A:$A,$B$165,SummaryData!$B:$B,$B169,SummaryData!$C:$C,$H$14)=0,"NA",SUMIFS(SummaryData!$F:$F,SummaryData!$A:$A,$B$165,SummaryData!$B:$B,$B169,SummaryData!$C:$C,$H$14)) -> 2.190088 | M169: =IF(SUMIFS(SummaryData!$D:$D,SummaryData!$A:$A,$B$165,SummaryData!$B:$B,$B169,SummaryData!$C:$C,$M$14)=0,"NA",SUMIFS(SummaryData!$D:$D,SummaryData!$A:$A,$B$165,SummaryData!$B:$B,$B169,SummaryData!$C:$C,$M$14)) -> 1.615228 | O169: =IF(SUMIFS(SummaryData!$E:$E,SummaryData!$A:$A,$B$165,SummaryData!$B:$B,$B169,SummaryData!$C:$C,$M$14)=0,"NA",SUMIFS(SummaryData!$E:$E,SummaryData!$A:$A,$B$165,SummaryData!$B:$B,$B169,SummaryData!$C:$C,$M$14)) -> 1.24206 | P169: =IF(SUMIFS(SummaryData!$F:$F,SummaryData!$A:$A,$B$165,SummaryData!$B:$B,$B169,SummaryData!$C:$C,$M$14)=0,"NA",SUMIFS(SummaryData!$F:$F,SummaryData!$A:$A,$B$165,SummaryData!$B:$B,$B169,SummaryData!$C:$C,$M$14)) -> 2.098129
B170: SOCIAL CAPITAL - Ability to raise $2,000 within 2 days in an emergency
B171: Ability to raise $2,000 within 2 days in an emergency | C171: =IF(SUMIFS(SummaryData!$D:$D,SummaryData!$A:$A,$B$170,SummaryData!$B:$B,$B171,SummaryData!$C:$C,$C$14)=0,"NA",SUMIFS(SummaryData!$D:$D,SummaryData!$A:$A,$B$170,SummaryData!$B:$B,$B171,SummaryData!$C:$C,$C$14)) -> 84.61809 | E171: =IF(SUMIFS(SummaryData!$E:$E,SummaryData!$A:$A,$B$170,SummaryData!$B:$B,$B171,SummaryData!$C:$C,$C$14)=0,"NA",SUMIFS(SummaryData!$E:$E,SummaryData!$A:$A,$B$170,SummaryData!$B:$B,$B171,SummaryData!$C:$C,$C$14)) -> 82.67931 | F171: =IF(SUMIFS(SummaryData!$F:$F,SummaryData!$A:$A,$B$170,SummaryData!$B:$B,$B171,SummaryData!$C:$C,$C$14)=0,"NA",SUMIFS(SummaryData!$F:$F,SummaryData!$A:$A,$B$170,SummaryData!$B:$B,$B171,SummaryData!$C:$C,$C$14)) -> 86.3756 | H171: =IF(SUMIFS(SummaryData!$D:$D,SummaryData!$A:$A,$B$170,SummaryData!$B:$B,$B171,SummaryData!$C:$C,$H$14)=0,"NA",SUMIFS(SummaryData!$D:$D,SummaryData!$A:$A,$B$170,SummaryData!$B:$B,$B171,SummaryData!$C:$C,$H$14)) -> 81.98674 | J171: =IF(SUMIFS(SummaryData!$E:$E,SummaryData!$A:$A,$B$170,SummaryData!$B:$B,$B171,SummaryData!$C:$C,$H$14)=0,"NA",SUMIFS(SummaryData!$E:$E,SummaryData!$A:$A,$B$170,SummaryData!$B:$B,$B171,SummaryData!$C:$C,$H$14)) -> 80.03212 | K171: =IF(SUMIFS(SummaryData!$F:$F,SummaryData!$A:$A,$B$170,SummaryData!$B:$B,$B171,SummaryData!$C:$C,$H$14)=0,"NA",SUMIFS(SummaryData!$F:$F,SummaryData!$A:$A,$B$170,SummaryData!$B:$B,$B171,SummaryData!$C:$C,$H$14)) -> 83.78878 | M171: =IF(SUMIFS(SummaryData!$D:$D,SummaryData!$A:$A,$B$170,SummaryData!$B:$B,$B171,SummaryData!$C:$C,$M$14)=0,"NA",SUMIFS(SummaryData!$D:$D,SummaryData!$A:$A,$B$170,SummaryData!$B:$B,$B171,SummaryData!$C:$C,$M$14)) -> 83.26669 | O171: =IF(SUMIFS(SummaryData!$E:$E,SummaryData!$A:$A,$B$170,SummaryData!$B:$B,$B171,SummaryData!$C:$C,$M$14)=0,"NA",SUMIFS(SummaryData!$E:$E,SummaryData!$A:$A,$B$170,SummaryData!$B:$B,$B171,SummaryData!$C:$C,$M$14)) -> 81.92956 | P171: =IF(SUMIFS(SummaryData!$F:$F,SummaryData!$A:$A,$B$170,SummaryData!$B:$B,$B171,SummaryData!$C:$C,$M$14)=0,"NA",SUMIFS(SummaryData!$F:$F,SummaryData!$A:$A,$B$170,SummaryData!$B:$B,$B171,SummaryData!$C:$C,$M$14)) -> 84.52357
B172: SOCIAL CAPITAL - Could one of your relatives, or friends, care for you (or your children) in an emergency
B173: Relatives, or friends, can care for you (or your children) in an emergency | C173: =IF(SUMIFS(SummaryData!$D:$D,SummaryData!$A:$A,$B$172,SummaryData!$B:$B,$B173,SummaryData!$C:$C,$C$14)=0,"NA",SUMIFS(SummaryData!$D:$D,SummaryData!$A:$A,$B$172,SummaryData!$B:$B,$B173,SummaryData!$C:$C,$C$14)) -> 84.32335 | E173: =IF(SUMIFS(SummaryData!$E:$E,SummaryData!$A:$A,$B$172,SummaryData!$B:$B,$B173,SummaryData!$C:$C,$C$14)=0,"NA",SUMIFS(SummaryData!$E:$E,SummaryData!$A:$A,$B$172,SummaryData!$B:$B,$B173,SummaryData!$C:$C,$C$14)) -> 82.53959 | F173: =IF(SUMIFS(SummaryData!$F:$F,SummaryData!$A:$A,$B$172,SummaryData!$B:$B,$B173,SummaryData!$C:$C,$C$14)=0,"NA",SUMIFS(SummaryData!$F:$F,SummaryData!$A:$A,$B$172,SummaryData!$B:$B,$B173,SummaryData!$C:$C,$C$14)) -> 85.95588 | H173: =IF(SUMIFS(SummaryData!$D:$D,SummaryData!$A:$A,$B$172,SummaryData!$B:$B,$B173,SummaryData!$C:$C,$H$14)=0,"NA",SUMIFS(SummaryData!$D:$D,SummaryData!$A:$A,$B$172,SummaryData!$B:$B,$B173,SummaryData!$C:$C,$H$14)) -> 87.26386 | J173: =IF(SUMIFS(SummaryData!$E:$E,SummaryData!$A:$A,$B$172,SummaryData!$B:$B,$B173,SummaryData!$C:$C,$H$14)=0,"NA",SUMIFS(SummaryData!$E:$E,SummaryData!$A:$A,$B$172,SummaryData!$B:$B,$B173,SummaryData!$C:$C,$H$14)) -> 85.55205 | K173: =IF(SUMIFS(SummaryData!$F:$F,SummaryData!$A:$A,$B$172,SummaryData!$B:$B,$B173,SummaryData!$C:$C,$H$14)=0,"NA",SUMIFS(SummaryData!$F:$F,SummaryData!$A:$A,$B$172,SummaryData!$B:$B,$B173,SummaryData!$C:$C,$H$14)) -> 88.79941 | M173: =IF(SUMIFS(SummaryData!$D:$D,SummaryData!$A:$A,$B$172,SummaryData!$B:$B,$B173,SummaryData!$C:$C,$M$14)=0,"NA",SUMIFS(SummaryData!$D:$D,SummaryData!$A:$A,$B$172,SummaryData!$B:$B,$B173,SummaryData!$C:$C,$M$14)) -> 85.97661 | O173: =IF(SUMIFS(SummaryData!$E:$E,SummaryData!$A:$A,$B$172,SummaryData!$B:$B,$B173,SummaryData!$C:$C,$M$14)=0,"NA",SUMIFS(SummaryData!$E:$E,SummaryData!$A:$A,$B$172,SummaryData!$B:$B,$B173,SummaryData!$C:$C,$M$14)) -> 84.77961 | P173: =IF(SUMIFS(SummaryData!$F:$F,SummaryData!$A:$A,$B$172,SummaryData!$B:$B,$B173,SummaryData!$C:$C,$M$14)=0,"NA",SUMIFS(SummaryData!$F:$F,SummaryData!$A:$A,$B$172,SummaryData!$B:$B,$B173,SummaryData!$C:$C,$M$14)) -> 87.09381
B174: SOCIAL CAPITAL - Experienced food insecurity
B175: Ran out of food, and couldn't afford to buy more in the previous year | C175: =IF(SUMIFS(SummaryData!$D:$D,SummaryData!$A:$A,$B$174,SummaryData!$B:$B,$B175,SummaryData!$C:$C,$C$14)=0,"NA",SUMIFS(SummaryData!$D:$D,SummaryData!$A:$A,$B$174,SummaryData!$B:$B,$B175,SummaryData!$C:$C,$C$14)) -> 6.112594 | E175: =IF(SUMIFS(SummaryData!$E:$E,SummaryData!$A:$A,$B$174,SummaryData!$B:$B,$B175,SummaryData!$C:$C,$C$14)=0,"NA",SUMIFS(SummaryData!$E:$E,SummaryData!$A:$A,$B$174,SummaryData!$B:$B,$B175,SummaryData!$C:$C,$C$14)) -> 4.990975 | F175: =IF(SUMIFS(SummaryData!$F:$F,SummaryData!$A:$A,$B$174,SummaryData!$B:$B,$B175,SummaryData!$C:$C,$C$14)=0,"NA",SUMIFS(SummaryData!$F:$F,SummaryData!$A:$A,$B$174,SummaryData!$B:$B,$B175,SummaryData!$C:$C,$C$14)) -> 7.466464 | H175: =IF(SUMIFS(SummaryData!$D:$D,SummaryData!$A:$A,$B$174,SummaryData!$B:$B,$B175,SummaryData!$C:$C,$H$14)=0,"NA",SUMIFS(SummaryData!$D:$D,SummaryData!$A:$A,$B$174,SummaryData!$B:$B,$B175,SummaryData!$C:$C,$H$14)) -> 7.064289 | J175: =IF(SUMIFS(SummaryData!$E:$E,SummaryData!$A:$A,$B$174,SummaryData!$B:$B,$B175,SummaryData!$C:$C,$H$14)=0,"NA",SUMIFS(SummaryData!$E:$E,SummaryData!$A:$A,$B$174,SummaryData!$B:$B,$B175,SummaryData!$C:$C,$H$14)) -> 5.807491 | K175: =IF(SUMIFS(SummaryData!$F:$F,SummaryData!$A:$A,$B$174,SummaryData!$B:$B,$B175,SummaryData!$C:$C,$H$14)=0,"NA",SUMIFS(SummaryData!$F:$F,SummaryData!$A:$A,$B$174,SummaryData!$B:$B,$B175,SummaryData!$C:$C,$H$14)) -> 8.568329 | M175: =IF(SUMIFS(SummaryData!$D:$D,SummaryData!$A:$A,$B$174,SummaryData!$B:$B,$B175,SummaryData!$C:$C,$M$14)=0,"NA",SUMIFS(SummaryData!$D:$D,SummaryData!$A:$A,$B$174,SummaryData!$B:$B,$B175,SummaryData!$C:$C,$M$14)) -> 6.520928 | O175: =IF(SUMIFS(SummaryData!$E:$E,SummaryData!$A:$A,$B$174,SummaryData!$B:$B,$B175,SummaryData!$C:$C,$M$14)=0,"NA",SUMIFS(SummaryData!$E:$E,SummaryData!$A:$A,$B$174,SummaryData!$B:$B,$B175,SummaryData!$C:$C,$M$14)) -> 5.671564 | P175: =IF(SUMIFS(SummaryData!$F:$F,SummaryData!$A:$A,$B$174,SummaryData!$B:$B,$B175,SummaryData!$C:$C,$M$14)=0,"NA",SUMIFS(SummaryData!$F:$F,SummaryData!$A:$A,$B$174,SummaryData!$B:$B,$B175,SummaryData!$C:$C,$M$14)) -> 7.487394
B176: SOCIAL CAPITAL - Reliance on low-cost food for children†
B177: Never, or not often | C177: =IF(SUMIFS(SummaryData!$D:$D,SummaryData!$A:$A,$B$176,SummaryData!$B:$B,$B177,SummaryData!$C:$C,$C$14)=0,"NA",SUMIFS(SummaryData!$D:$D,SummaryData!$A:$A,$B$176,SummaryData!$B:$B,$B177,SummaryData!$C:$C,$C$14)) -> 86.96397 | E177: =IF(SUMIFS(SummaryData!$E:$E,SummaryData!$A:$A,$B$176,SummaryData!$B:$B,$B177,SummaryData!$C:$C,$C$14)=0,"NA",SUMIFS(SummaryData!$E:$E,SummaryData!$A:$A,$B$176,SummaryData!$B:$B,$B177,SummaryData!$C:$C,$C$14)) -> 83.27093 | F177: =IF(SUMIFS(SummaryData!$F:$F,SummaryData!$A:$A,$B$176,SummaryData!$B:$B,$B177,SummaryData!$C:$C,$C$14)=0,"NA",SUMIFS(SummaryData!$F:$F,SummaryData!$A:$A,$B$176,SummaryData!$B:$B,$B177,SummaryData!$C:$C,$C$14)) -> 89.94025 | H177: =IF(SUMIFS(SummaryData!$D:$D,SummaryData!$A:$A,$B$176,SummaryData!$B:$B,$B177,SummaryData!$C:$C,$H$14)=0,"NA",SUMIFS(SummaryData!$D:$D,SummaryData!$A:$A,$B$176,SummaryData!$B:$B,$B177,SummaryData!$C:$C,$H$14)) -> 82.25272 | J177: =IF(SUMIFS(SummaryData!$E:$E,SummaryData!$A:$A,$B$176,SummaryData!$B:$B,$B177,SummaryData!$C:$C,$H$14)=0,"NA",SUMIFS(SummaryData!$E:$E,SummaryData!$A:$A,$B$176,SummaryData!$B:$B,$B177,SummaryData!$C:$C,$H$14)) -> 78.60221 | K177: =IF(SUMIFS(SummaryData!$F:$F,SummaryData!$A:$A,$B$176,SummaryData!$B:$B,$B177,SummaryData!$C:$C,$H$14)=0,"NA",SUMIFS(SummaryData!$F:$F,SummaryData!$A:$A,$B$176,SummaryData!$B:$B,$B177,SummaryData!$C:$C,$H$14)) -> 85.39615 | M177: =IF(SUMIFS(SummaryData!$D:$D,SummaryData!$A:$A,$B$176,SummaryData!$B:$B,$B177,SummaryData!$C:$C,$M$14)=0,"NA",SUMIFS(SummaryData!$D:$D,SummaryData!$A:$A,$B$176,SummaryData!$B:$B,$B177,SummaryData!$C:$C,$M$14)) -> 84.34797 | O177: =IF(SUMIFS(SummaryData!$E:$E,SummaryData!$A:$A,$B$176,SummaryData!$B:$B,$B177,SummaryData!$C:$C,$M$14)=0,"NA",SUMIFS(SummaryData!$E:$E,SummaryData!$A:$A,$B$176,SummaryData!$B:$B,$B177,SummaryData!$C:$C,$M$14)) -> 81.80378 | P177: =IF(SUMIFS(SummaryData!$F:$F,SummaryData!$A:$A,$B$176,SummaryData!$B:$B,$B177,SummaryData!$C:$C,$M$14)=0,"NA",SUMIFS(SummaryData!$F:$F,SummaryData!$A:$A,$B$176,SummaryData!$B:$B,$B177,SummaryData!$C:$C,$M$14)) -> 86.59473
B178: Sometimes | C178: =IF(SUMIFS(SummaryData!$D:$D,SummaryData!$A:$A,$B$176,SummaryData!$B:$B,$B178,SummaryData!$C:$C,$C$14)=0,"NA",SUMIFS(SummaryData!$D:$D,SummaryData!$A:$A,$B$176,SummaryData!$B:$B,$B178,SummaryData!$C:$C,$C$14)) -> 6.975208 | E178: =IF(SUMIFS(SummaryData!$E:$E,SummaryData!$A:$A,$B$176,SummaryData!$B:$B,$B178,SummaryData!$C:$C,$C$14)=0,"NA",SUMIFS(SummaryData!$E:$E,SummaryData!$A:$A,$B$176,SummaryData!$B:$B,$B178,SummaryData!$C:$C,$C$14)) -> 4.841965 | F178: =IF(SUMIFS(SummaryData!$F:$F,SummaryData!$A:$A,$B$176,SummaryData!$B:$B,$B178,SummaryData!$C:$C,$C$14)=0,"NA",SUMIFS(SummaryData!$F:$F,SummaryData!$A:$A,$B$176,SummaryData!$B:$B,$B178,SummaryData!$C:$C,$C$14)) -> 9.950029 | H178: =IF(SUMIFS(SummaryData!$D:$D,SummaryData!$A:$A,$B$176,SummaryData!$B:$B,$B178,SummaryData!$C:$C,$H$14)=0,"NA",SUMIFS(SummaryData!$D:$D,SummaryData!$A:$A,$B$176,SummaryData!$B:$B,$B178,SummaryData!$C:$C,$H$14)) -> 11.29143 | J178: =IF(SUMIFS(SummaryData!$E:$E,SummaryData!$A:$A,$B$176,SummaryData!$B:$B,$B178,SummaryData!$C:$C,$H$14)=0,"NA",SUMIFS(SummaryData!$E:$E,SummaryData!$A:$A,$B$176,SummaryData!$B:$B,$B178,SummaryData!$C:$C,$H$14)) -> 8.750998 | K178: =IF(SUMIFS(SummaryData!$F:$F,SummaryData!$A:$A,$B$176,SummaryData!$B:$B,$B178,SummaryData!$C:$C,$H$14)=0,"NA",SUMIFS(SummaryData!$F:$F,SummaryData!$A:$A,$B$176,SummaryData!$B:$B,$B178,SummaryData!$C:$C,$H$14)) -> 14.45254 | M178: =IF(SUMIFS(SummaryData!$D:$D,SummaryData!$A:$A,$B$176,SummaryData!$B:$B,$B178,SummaryData!$C:$C,$M$14)=0,"NA",SUMIFS(SummaryData!$D:$D,SummaryData!$A:$A,$B$176,SummaryData!$B:$B,$B178,SummaryData!$C:$C,$M$14)) -> 9.379548 | O178: =IF(SUMIFS(SummaryData!$E:$E,SummaryData!$A:$A,$B$176,SummaryData!$B:$B,$B178,SummaryData!$C:$C,$M$14)=0,"NA",SUMIFS(SummaryData!$E:$E,SummaryData!$A:$A,$B$176,SummaryData!$B:$B,$B178,SummaryData!$C:$C,$M$14)) -> 7.615083 | P178: =IF(SUMIFS(SummaryData!$F:$F,SummaryData!$A:$A,$B$176,SummaryData!$B:$B,$B178,SummaryData!$C:$C,$M$14)=0,"NA",SUMIFS(SummaryData!$F:$F,SummaryData!$A:$A,$B$176,SummaryData!$B:$B,$B178,SummaryData!$C:$C,$M$14)) -> 11.50195
B179: Yes, definitely | C179: =IF(SUMIFS(SummaryData!$D:$D,SummaryData!$A:$A,$B$176,SummaryData!$B:$B,$B179,SummaryData!$C:$C,$C$14)=0,"NA",SUMIFS(SummaryData!$D:$D,SummaryData!$A:$A,$B$176,SummaryData!$B:$B,$B179,SummaryData!$C:$C,$C$14)) -> 4.942697 | E179: =IF(SUMIFS(SummaryData!$E:$E,SummaryData!$A:$A,$B$176,SummaryData!$B:$B,$B179,SummaryData!$C:$C,$C$14)=0,"NA",SUMIFS(SummaryData!$E:$E,SummaryData!$A:$A,$B$176,SummaryData!$B:$B,$B179,SummaryData!$C:$C,$C$14)) -> 3.170013 | F179: =IF(SUMIFS(SummaryData!$F:$F,SummaryData!$A:$A,$B$176,SummaryData!$B:$B,$B179,SummaryData!$C:$C,$C$14)=0,"NA",SUMIFS(SummaryData!$F:$F,SummaryData!$A:$A,$B$176,SummaryData!$B:$B,$B179,SummaryData!$C:$C,$C$14)) -> 7.628575 | H179: =IF(SUMIFS(SummaryData!$D:$D,SummaryData!$A:$A,$B$176,SummaryData!$B:$B,$B179,SummaryData!$C:$C,$H$14)=0,"NA",SUMIFS(SummaryData!$D:$D,SummaryData!$A:$A,$B$176,SummaryData!$B:$B,$B179,SummaryData!$C:$C,$H$14)) -> 5.748006 | J179: =IF(SUMIFS(SummaryData!$E:$E,SummaryData!$A:$A,$B$176,SummaryData!$B:$B,$B179,SummaryData!$C:$C,$H$14)=0,"NA",SUMIFS(SummaryData!$E:$E,SummaryData!$A:$A,$B$176,SummaryData!$B:$B,$B179,SummaryData!$C:$C,$H$14)) -> 3.997428 | K179: =IF(SUMIFS(SummaryData!$F:$F,SummaryData!$A:$A,$B$176,SummaryData!$B:$B,$B179,SummaryData!$C:$C,$H$14)=0,"NA",SUMIFS(SummaryData!$F:$F,SummaryData!$A:$A,$B$176,SummaryData!$B:$B,$B179,SummaryData!$C:$C,$H$14)) -> 8.199731 | M179: =IF(SUMIFS(SummaryData!$D:$D,SummaryData!$A:$A,$B$176,SummaryData!$B:$B,$B179,SummaryData!$C:$C,$M$14)=0,"NA",SUMIFS(SummaryData!$D:$D,SummaryData!$A:$A,$B$176,SummaryData!$B:$B,$B179,SummaryData!$C:$C,$M$14)) -> 5.385657 | O179: =IF(SUMIFS(SummaryData!$E:$E,SummaryData!$A:$A,$B$176,SummaryData!$B:$B,$B179,SummaryData!$C:$C,$M$14)=0,"NA",SUMIFS(SummaryData!$E:$E,SummaryData!$A:$A,$B$176,SummaryData!$B:$B,$B179,SummaryData!$C:$C,$M$14)) -> 4.069413 | P179: =IF(SUMIFS(SummaryData!$F:$F,SummaryData!$A:$A,$B$176,SummaryData!$B:$B,$B179,SummaryData!$C:$C,$M$14)=0,"NA",SUMIFS(SummaryData!$F:$F,SummaryData!$A:$A,$B$176,SummaryData!$B:$B,$B179,SummaryData!$C:$C,$M$14)) -> 7.096146
B180: SOCIAL CAPITAL - Membership of an organised group
B181: Sports | C181: =IF(SUMIFS(SummaryData!$D:$D,SummaryData!$A:$A,$B$180,SummaryData!$B:$B,$B181,SummaryData!$C:$C,$C$14)=0,"NA",SUMIFS(SummaryData!$D:$D,SummaryData!$A:$A,$B$180,SummaryData!$B:$B,$B181,SummaryData!$C:$C,$C$14)) -> 28.72335 | E181: =IF(SUMIFS(SummaryData!$E:$E,SummaryData!$A:$A,$B$180,SummaryData!$B:$B,$B181,SummaryData!$C:$C,$C$14)=0,"NA",SUMIFS(SummaryData!$E:$E,SummaryData!$A:$A,$B$180,SummaryData!$B:$B,$B181,SummaryData!$C:$C,$C$14)) -> 26.75186 | F181: =IF(SUMIFS(SummaryData!$F:$F,SummaryData!$A:$A,$B$180,SummaryData!$B:$B,$B181,SummaryData!$C:$C,$C$14)=0,"NA",SUMIFS(SummaryData!$F:$F,SummaryData!$A:$A,$B$180,SummaryData!$B:$B,$B181,SummaryData!$C:$C,$C$14)) -> 30.77907 | H181: =IF(SUMIFS(SummaryData!$D:$D,SummaryData!$A:$A,$B$180,SummaryData!$B:$B,$B181,SummaryData!$C:$C,$H$14)=0,"NA",SUMIFS(SummaryData!$D:$D,SummaryData!$A:$A,$B$180,SummaryData!$B:$B,$B181,SummaryData!$C:$C,$H$14)) -> 19.02443 | J181: =IF(SUMIFS(SummaryData!$E:$E,SummaryData!$A:$A,$B$180,SummaryData!$B:$B,$B181,SummaryData!$C:$C,$H$14)=0,"NA",SUMIFS(SummaryData!$E:$E,SummaryData!$A:$A,$B$180,SummaryData!$B:$B,$B181,SummaryData!$C:$C,$H$14)) -> 17.33326 | K181: =IF(SUMIFS(SummaryData!$F:$F,SummaryData!$A:$A,$B$180,SummaryData!$B:$B,$B181,SummaryData!$C:$C,$H$14)=0,"NA",SUMIFS(SummaryData!$F:$F,SummaryData!$A:$A,$B$180,SummaryData!$B:$B,$B181,SummaryData!$C:$C,$H$14)) -> 20.83901 | M181: =IF(SUMIFS(SummaryData!$D:$D,SummaryData!$A:$A,$B$180,SummaryData!$B:$B,$B181,SummaryData!$C:$C,$M$14)=0,"NA",SUMIFS(SummaryData!$D:$D,SummaryData!$A:$A,$B$180,SummaryData!$B:$B,$B181,SummaryData!$C:$C,$M$14)) -> 23.82636 | O181: =IF(SUMIFS(SummaryData!$E:$E,SummaryData!$A:$A,$B$180,SummaryData!$B:$B,$B181,SummaryData!$C:$C,$M$14)=0,"NA",SUMIFS(SummaryData!$E:$E,SummaryData!$A:$A,$B$180,SummaryData!$B:$B,$B181,SummaryData!$C:$C,$M$14)) -> 22.51381 | P181: =IF(SUMIFS(SummaryData!$F:$F,SummaryData!$A:$A,$B$180,SummaryData!$B:$B,$B181,SummaryData!$C:$C,$M$14)=0,"NA",SUMIFS(SummaryData!$F:$F,SummaryData!$A:$A,$B$180,SummaryData!$B:$B,$B181,SummaryData!$C:$C,$M$14)) -> 25.19055
B182: Religious | C182: =IF(SUMIFS(SummaryData!$D:$D,SummaryData!$A:$A,$B$180,SummaryData!$B:$B,$B182,SummaryData!$C:$C,$C$14)=0,"NA",SUMIFS(SummaryData!$D:$D,SummaryData!$A:$A,$B$180,SummaryData!$B:$B,$B182,SummaryData!$C:$C,$C$14)) -> 14.19244 | E182: =IF(SUMIFS(SummaryData!$E:$E,SummaryData!$A:$A,$B$180,SummaryData!$B:$B,$B182,SummaryData!$C:$C,$C$14)=0,"NA",SUMIFS(SummaryData!$E:$E,SummaryData!$A:$A,$B$180,SummaryData!$B:$B,$B182,SummaryData!$C:$C,$C$14)) -> 12.71905 | F182: =IF(SUMIFS(SummaryData!$F:$F,SummaryData!$A:$A,$B$180,SummaryData!$B:$B,$B182,SummaryData!$C:$C,$C$14)=0,"NA",SUMIFS(SummaryData!$F:$F,SummaryData!$A:$A,$B$180,SummaryData!$B:$B,$B182,SummaryData!$C:$C,$C$14)) -> 15.80561 | H182: =IF(SUMIFS(SummaryData!$D:$D,SummaryData!$A:$A,$B$180,SummaryData!$B:$B,$B182,SummaryData!$C:$C,$H$14)=0,"NA",SUMIFS(SummaryData!$D:$D,SummaryData!$A:$A,$B$180,SummaryData!$B:$B,$B182,SummaryData!$C:$C,$H$14)) -> 17.16994 | J182: =IF(SUMIFS(SummaryData!$E:$E,SummaryData!$A:$A,$B$180,SummaryData!$B:$B,$B182,SummaryData!$C:$C,$H$14)=0,"NA",SUMIFS(SummaryData!$E:$E,SummaryData!$A:$A,$B$180,SummaryData!$B:$B,$B182,SummaryData!$C:$C,$H$14)) -> 15.62878 | K182: =IF(SUMIFS(SummaryData!$F:$F,SummaryData!$A:$A,$B$180,SummaryData!$B:$B,$B182,SummaryData!$C:$C,$H$14)=0,"NA",SUMIFS(SummaryData!$F:$F,SummaryData!$A:$A,$B$180,SummaryData!$B:$B,$B182,SummaryData!$C:$C,$H$14)) -> 18.82916 | M182: =IF(SUMIFS(SummaryData!$D:$D,SummaryData!$A:$A,$B$180,SummaryData!$B:$B,$B182,SummaryData!$C:$C,$M$14)=0,"NA",SUMIFS(SummaryData!$D:$D,SummaryData!$A:$A,$B$180,SummaryData!$B:$B,$B182,SummaryData!$C:$C,$M$14)) -> 15.84821 | O182: =IF(SUMIFS(SummaryData!$E:$E,SummaryData!$A:$A,$B$180,SummaryData!$B:$B,$B182,SummaryData!$C:$C,$M$14)=0,"NA",SUMIFS(SummaryData!$E:$E,SummaryData!$A:$A,$B$180,SummaryData!$B:$B,$B182,SummaryData!$C:$C,$M$14)) -> 14.75968 | P182: =IF(SUMIFS(SummaryData!$F:$F,SummaryData!$A:$A,$B$180,SummaryData!$B:$B,$B182,SummaryData!$C:$C,$M$14)=0,"NA",SUMIFS(SummaryData!$F:$F,SummaryData!$A:$A,$B$180,SummaryData!$B:$B,$B182,SummaryData!$C:$C,$M$14)) -> 17.00102
